Workbook

Sheet 表紙

Sheet 床衝撃音計算シート
C6: <マンションの構造についてお聞きします>
D7: 1. 柱、梁のある構造ですか。
D9: 2. 柱、梁がなく、壁で支える構造ですか | L9: 番号入力 | N9: 1
C11: ＜部屋の位置のパターンを選んで下さい＞
C13: (部屋の配置)シートを見て、該当する部屋位置のパターンを選択してください。 | L13: 番号入力 | N13: 13
C15: ＜住戸と部屋の寸法を入力してください。それぞれの寸法の意味は、右の参考図をご覧下さい＞
D17: 住戸寸法(m) | E17: 12.27 | F17: × | G17: 6.65 | L17: 床 厚(mm) | N17: 200
D19: 部屋寸法(m) | E19: 5.18 | F19: × | G19: 3.64 | L19: 天井高さ(m) | N19: 2.4
E21: ＊ 床厚は大変重要です。正確に記入してください。
E22: 分からない時は、建設した会社に問い合わせをして下さい。
C25: すべての入力が終わったら、必ず右の 計算実行 をクリックしてください。下図に結果が表示されます。

Sheet 部屋の配置

Sheet 結果の説明
H3: ='計算表（参考）'!M22 -> 50.60556547

Sheet ﾜｰｸｼｰﾄ (hidden)
K3: 等級 | L3: 建築学会 適用等級の意味
K4: 特級 | L4: 性能が特に優れている。
K5: １級 | L5: 好ましい性能水準である。
K6: ２級 | L6: 一般的な性能水準である。
K7: ３級 | L7: やや劣るが、やむを得ない場合に許容される 性能水準である。
D10: ='計算表（参考）'!M22 -> 50.60556547

Sheet 計算表（参考） (hidden)
B2: <L等級算出＞ | P2: <入力データ＞ | T2: ＜計算経過表＞ | AV2: ＜小梁拘束計算＞
E4: 63 | F4: 125 | G4: 250 | H4: 500 | I4: 1000 | J4: 2000 | K4: 4000 | Q4: 24000000000 | T4: 周波数(Hz) | W4: 31.5 | X4: 63 | Y4: 125 | Z4: 250 | AA4: 500 | AB4: 1000 | AC4: 2000 | AD4: 4000 | AG4: 周波数(Hz) | AJ4: 31.5 | AK4: 63 | AL4: 125 | AM4: 250 | AN4: 500 | AO4: 1000 | AP4: 2000 | AQ4: 4000 | AV4: 周波数(Hz) | AY4: 31.5 | AZ4: 63 | BA4: 125 | BB4: 250 | BC4: 500 | BD4: 1000 | BE4: 2000 | BF4: 4000
C5: L-85 | E5: 108 | F5: 98 | G5: 91 | H5: 85 | I5: 82 | J5: 81 | K5: 81 | Q5: 2300 | T5: 加振力(dB) | W5: 47 | X5: 38 | Y5: 23 | Z5: 13 | AA5: 5 | AB5: 0 | AC5: -5 | AD5: -10 | AE5: (可変） | AG5: 駆動点インピーダンス(dB) | AH5: ｓ | AI5: 1 | AJ5: =20*LOG10($Q$41)+W$49+AY$15 -> 107.2009766 | AK5: =20*LOG10($Q$41)+X$49+AZ$15 -> 111.1616919 | AL5: 116.8432051 | AM5: 116.8432051 | AN5: 116.8432051 | AO5: 116.8432051 | AP5: 116.8432051 | AQ5: 116.8432051 | AV5: 小梁による端部拘束 加振点１(dB) | AW5: s | AX5: x | AY5: =-3*$BG5*LOG10($Q$16/W$47)-1.2*$BG5 -> -1.225175354 | AZ5: -2.128265341 | BA5: -3.020973731 | BB5: -3.924063718 | BC5: -4.827153705 | BD5: -5.730243692 | BE5: -6.633333679 | BF5: -7.536423666 | BG5: =(Q18-$Q$7/1000)/($Q$7/1000) -> 2
C6: L-80 | E6: 103 | F6: 93 | G6: 86 | H6: 80 | I6: 77 | J6: 76 | K6: 76 | Q6: 0.16 | T6: 室内平均吸音率 | W6: 0.1 | X6: 0.1 | Y6: 0.1 | Z6: 0.1 | AA6: 0.15 | AB6: 0.15 | AC6: 0.2 | AD6: 0.2 | AE6: (可変） | AH6: ｃ | AJ6: =20*LOG10($Q$41)+W$51+AY$26 -> 103.7664481 | AK6: =20*LOG10($Q$41)+X$51+AZ$26 -> 111.2676009 | AL6: 116.4611313 | AM6: 116.8432051 | AN6: 116.8432051 | AO6: 116.8432051 | AP6: 116.8432051 | AQ6: 116.8432051 | AY6: =MAX(AY5,0) -> 0 | AZ6: =MAX(AZ5,0) -> 0 | BA6: 0 | BB6: 0 | BC6: 0 | BD6: 0 | BE6: 0 | BF6: 0
C7: L-75 | E7: 98 | F7: 88 | G7: 81 | H7: 75 | I7: 72 | J7: 71 | K7: 71 | Q7: =床衝撃音計算シート!N17 -> 200 | T7: モード数 | U7: s | V7: 1 | W7: ='計算表s-1'!C6 -> 1.549733295 | X7: ='計算表s-1'!D6 -> 2.298242139 | Y7: ='計算表s-1'!E6 -> 6.352368328 | Z7: ='計算表s-1'!F6 -> 12.74950322 | AA7: ='計算表s-1'!G6 -> 26.48760578 | AB7: ='計算表s-1'!H6 -> 37.27788129 | AC7: ='計算表s-1'!I6 -> 48.80971717 | AD7: ='計算表s-1'!J6 -> 98.44258591 | AH7: ｓ | AI7: 2 | AJ7: =20*LOG10($Q$41)+W$53+AY$37 -> 107.2009766 | AK7: =20*LOG10($Q$41)+X$53+AZ$37 -> 111.1616919 | AL7: 116.8432051 | AM7: 116.8432051 | AN7: 116.8432051 | AO7: 116.8432051 | AP7: 116.8432051 | AQ7: 116.8432051 | AY7: =IF($P$18=1,AY6) -> FALSE | AZ7: =IF($P$18=1,AZ6) -> FALSE | BA7: FALSE | BB7: FALSE | BC7: FALSE | BD7: FALSE | BE7: FALSE | BF7: FALSE
C8: L-70 | E8: 93 | F8: 83 | G8: 76 | H8: 70 | I8: 67 | J8: 66 | K8: 66 | Q8: 0.03 | U8: c | W8: ='計算表c-1'!C6 -> 1.186364398 | X8: ='計算表c-1'!D6 -> 2.326723273 | Y8: ='計算表c-1'!E6 -> 5.227517818 | Z8: ='計算表c-1'!F6 -> 11.48006951 | AA8: ='計算表c-1'!G6 -> 24.44375032 | AB8: ='計算表c-1'!H6 -> 37.94479948 | AC8: ='計算表c-1'!I6 -> 49.68294512 | AD8: ='計算表c-1'!J6 -> 100.2037684 | AH8: ｃ | AJ8: =20*LOG10($Q$41)+W$55+AY$48 -> 103.7664481 | AK8: =20*LOG10($Q$41)+X$55+AZ$48 -> 111.2676009 | AL8: 116.4611313 | AM8: 116.8432051 | AN8: 116.8432051 | AO8: 116.8432051 | AP8: 116.8432051 | AQ8: 116.8432051 | AY8: =IF($P$18=0,W69) -> 0 | AZ8: =IF($P$18=0,X69) -> 0 | BA8: 0 | BB8: 0 | BC8: 0 | BD8: 0 | BE8: 0 | BF8: 0
C9: L-65 | E9: 88 | F9: 78 | G9: 71 | H9: 65 | I9: 62 | J9: 61 | K9: 61 | P9: 床 | Q9: =床衝撃音計算シート!E17 -> 12.27 | U9: s | V9: 2 | W9: ='計算表s-2'!C6 -> 1.549733295 | X9: ='計算表s-2'!D6 -> 2.298242139 | Y9: ='計算表s-2'!E6 -> 6.352368328 | Z9: ='計算表s-2'!F6 -> 12.74950322 | AA9: ='計算表s-2'!G6 -> 26.48760578 | AB9: ='計算表s-2'!H6 -> 37.27788089 | AC9: ='計算表s-2'!I6 -> 48.80971664 | AD9: ='計算表s-2'!J6 -> 98.44258484 | AH9: ｓ | AI9: 3 | AJ9: =20*LOG10($Q$41)+W$57+AY$59 -> 107.869157 | AK9: =20*LOG10($Q$41)+X$57+AZ$59 -> 114.0378803 | AL9: 116.8432051 | AM9: 116.8432051 | AN9: 116.8432051 | AO9: 116.8432051 | AP9: 116.8432051 | AQ9: 116.8432051 | AY9: =MAX(AY7,AY8) -> 0 | AZ9: =MAX(AZ7,AZ8) -> 0 | BA9: 0 | BB9: 0 | BC9: 0 | BD9: 0 | BE9: 0 | BF9: 0
C10: L-60 | E10: 83 | F10: 73 | G10: 66 | H10: 60 | I10: 57 | J10: 56 | K10: 56 | Q10: =床衝撃音計算シート!G17 -> 6.65 | U10: c | W10: ='計算表c-2'!C6 -> 1.186364398 | X10: ='計算表c-2'!D6 -> 2.326723273 | Y10: ='計算表c-2'!E6 -> 5.227517818 | Z10: ='計算表c-2'!F6 -> 11.48006951 | AA10: ='計算表c-2'!G6 -> 24.44375032 | AB10: ='計算表c-2'!H6 -> 37.94479948 | AC10: ='計算表c-2'!I6 -> 49.68294512 | AD10: ='計算表c-2'!J6 -> 100.2037684 | AH10: ｃ | AJ10: =20*LOG10($Q$41)+W$59+AY$70 -> 101.626544 | AK10: =20*LOG10($Q$41)+X$59+AZ$70 -> 112.1686432 | AL10: 116.8432051 | AM10: 116.8432051 | AN10: 116.8432051 | AO10: 116.8432051 | AP10: 116.8432051 | AQ10: 116.8432051 | AX10: y | AY10: =-3*$BG10*LOG10($Q$17/W$47)-1.2*$BG10 -> -1.469893818 | AZ10: -2.372983805 | BA10: -3.265692196 | BB10: -4.168782183 | BC10: -5.07187217 | BD10: -5.974962157 | BE10: -6.878052144 | BF10: -7.781142131 | BG10: =(Q19-$Q$7/1000)/($Q$7/1000) -> 2
C11: L-55 | E11: 78 | F11: 68 | G11: 61 | H11: 55 | I11: 52 | J11: 51 | K11: 51 | P11: 室 | Q11: =MIN(床衝撃音計算シート!E19,床衝撃音計算シート!G19) -> 3.64 | U11: s | V11: 3 | W11: ='計算表s-3'!C6 -> 1.643646947 | X11: ='計算表s-3'!D6 -> 3.370950454 | Y11: ='計算表s-3'!E6 -> 7.493898369 | Z11: ='計算表s-3'!F6 -> 11.54338315 | AA11: ='計算表s-3'!G6 -> 25.8943479 | AB11: ='計算表s-3'!H6 -> 35.97683655 | AC11: ='計算表s-3'!I6 -> 47.10619691 | AD11: ='計算表s-3'!J6 -> 95.00681638 | AH11: ｓ | AI11: 4 | AJ11: =20*LOG10($Q$41)+W$61+AY$81 -> 107.2009766 | AK11: =20*LOG10($Q$41)+X$61+AZ$81 -> 111.1616919 | AL11: 116.8432051 | AM11: 116.8432051 | AN11: 116.8432051 | AO11: 116.8432051 | AP11: 116.8432051 | AQ11: 116.8432051 | AY11: =MAX(AY10,0) -> 0 | AZ11: =MAX(AZ10,0) -> 0 | BA11: 0 | BB11: 0 | BC11: 0 | BD11: 0 | BE11: 0 | BF11: 0
C12: L-50 | E12: 73 | F12: 63 | G12: 56 | H12: 50 | I12: 47 | J12: 46 | K12: 46 | Q12: =MAX(床衝撃音計算シート!E19,床衝撃音計算シート!G19) -> 5.18 | U12: c | W12: ='計算表c-3'!C6 -> 0.9724084439 | X12: ='計算表c-3'!D6 -> 2.596382211 | Y12: ='計算表c-3'!E6 -> 6.65750235 | Z12: ='計算表c-3'!F6 -> 11.10386322 | AA12: ='計算表c-3'!G6 -> 23.1620384 | AB12: ='計算表c-3'!H6 -> 36.61366894 | AC12: ='計算表c-3'!I6 -> 47.94003209 | AD12: ='計算表c-3'!J6 -> 96.68854895 | AH12: ｃ | AJ12: =20*LOG10($Q$41)+W$63+AY$92 -> 103.7664481 | AK12: =20*LOG10($Q$41)+X$63+AZ$92 -> 111.2676009 | AL12: 116.4611313 | AM12: 116.8432051 | AN12: 116.8432051 | AO12: 116.8432051 | AP12: 116.8432051 | AQ12: 116.8432051 | AY12: =IF($P$19=1,AY11) -> FALSE | AZ12: =IF($P$19=1,AZ11) -> FALSE | BA12: FALSE | BB12: FALSE | BC12: FALSE | BD12: FALSE | BE12: FALSE | BF12: FALSE
C13: L-45 | E13: 68 | F13: 58 | G13: 51 | H13: 45 | I13: 42 | J13: 41 | K13: 41 | Q13: =床衝撃音計算シート!N19 -> 2.4 | U13: s | V13: 4 | W13: ='計算表s-4'!C6 -> 1.549733295 | X13: ='計算表s-4'!D6 -> 2.298242139 | Y13: ='計算表s-4'!E6 -> 6.352368328 | Z13: ='計算表s-4'!F6 -> 12.74950322 | AA13: ='計算表s-4'!G6 -> 26.48760578 | AB13: ='計算表s-4'!H6 -> 37.27788089 | AC13: ='計算表s-4'!I6 -> 48.80971664 | AD13: ='計算表s-4'!J6 -> 98.44258484 | AH13: ｓ | AI13: 5 | AJ13: =20*LOG10($Q$41)+W$65+AY$103 -> 107.2009766 | AK13: =20*LOG10($Q$41)+X$65+AZ$103 -> 111.1616919 | AL13: 116.8432051 | AM13: 116.8432051 | AN13: 116.8432051 | AO13: 116.8432051 | AP13: 116.8432051 | AQ13: 116.8432051 | AY13: =IF($P$19=0,W71) -> 0 | AZ13: =IF($P$19=0,X71) -> 0 | BA13: 0 | BB13: 0 | BC13: 0 | BD13: 0 | BE13: 0 | BF13: 0
C14: L-40 | E14: 63 | F14: 53 | G14: 46 | H14: 40 | I14: 37 | J14: 36 | K14: 36 | Q14: =IF(床衝撃音計算シート!N9=1,0.8,0.2) -> 0.8 | U14: c | W14: ='計算表c-4'!C6 -> 1.186364398 | X14: ='計算表c-4'!D6 -> 2.326723273 | Y14: ='計算表c-4'!E6 -> 5.227517818 | Z14: ='計算表c-4'!F6 -> 11.48006951 | AA14: ='計算表c-4'!G6 -> 24.44375032 | AB14: ='計算表c-4'!H6 -> 37.94479948 | AC14: ='計算表c-4'!I6 -> 49.68294512 | AD14: ='計算表c-4'!J6 -> 100.2037684 | AH14: ｃ | AJ14: =20*LOG10($Q$41)+W$67+AY$114 -> 103.7664481 | AK14: =20*LOG10($Q$41)+X$67+AZ$114 -> 111.2676009 | AL14: 116.4611313 | AM14: 116.8432051 | AN14: 116.8432051 | AO14: 116.8432051 | AP14: 116.8432051 | AQ14: 116.8432051 | AY14: =MAX(AY12,AY13) -> 0 | AZ14: =MAX(AZ12,AZ13) -> 0 | BA14: 0 | BB14: 0 | BC14: 0 | BD14: 0 | BE14: 0 | BF14: 0
C15: L-35 | E15: 58 | F15: 48 | G15: 41 | H15: 35 | I15: 32 | J15: 31 | K15: 31 | Q15: 5 | U15: s | V15: 5 | W15: ='計算表s-5'!C6 -> 1.549733295 | X15: ='計算表s-5'!D6 -> 2.298242139 | Y15: ='計算表s-5'!E6 -> 6.352368328 | Z15: ='計算表s-5'!F6 -> 12.74950322 | AA15: ='計算表s-5'!G6 -> 26.48760578 | AB15: ='計算表s-5'!H6 -> 37.27788089 | AC15: ='計算表s-5'!I6 -> 48.80971664 | AD15: ='計算表s-5'!J6 -> 98.44258484 | AG15: cbの値 | AJ15: =SQRT(3.14*$Q$36*$Q$7/1000*AJ4/1.7320508) -> 193.3264689 | AK15: 273.4049143 | AL15: 385.1155443 | AM15: 544.6356258 | AN15: 770.2310886 | AO15: 1089.271252 | AP15: 1540.462177 | AQ15: 2178.542503 | AY15: =SQRT(AY9^2+AY14^2) -> 0 | AZ15: =SQRT(AZ9^2+AZ14^2) -> 0 | BA15: 0 | BB15: 0 | BC15: 0 | BD15: 0 | BE15: 0 | BF15: 0
C16: L-30 | E16: 53 | F16: 43 | G16: 36 | H16: 30 | I16: 27 | J16: 26 | K16: 26 | Q16: =D30 -> 3.91 | U16: c | W16: ='計算表c-5'!C6 -> 1.186364398 | X16: ='計算表c-5'!D6 -> 2.326723273 | Y16: ='計算表c-5'!E6 -> 5.227517818 | Z16: ='計算表c-5'!F6 -> 11.48006951 | AA16: ='計算表c-5'!G6 -> 24.44375032 | AB16: ='計算表c-5'!H6 -> 37.94479948 | AC16: ='計算表c-5'!I6 -> 49.68294512 | AD16: ='計算表c-5'!J6 -> 100.2037684 | AG16: ｋｒの値 | AJ16: =2*3.14*AJ4/AJ15*$Q$40 -> 2.50743467 | AK16: =2*3.14*AK4/AK15*$Q$40 -> 3.546048117 | AL16: 4.994929423 | AM16: 7.063896933 | AN16: 9.989858846 | AO16: 14.12779387 | AP16: 19.97971769 | AQ16: 28.25558773 | AW16: c | AX16: x | AY16: =-3*$BG16*LOG10($Q$16/W$47)-1.2*$BG16 -> -1.225175354 | AZ16: -2.128265341 | BA16: -3.020973731 | BB16: -3.924063718 | BC16: -4.827153705 | BD16: -5.730243692 | BE16: -6.633333679 | BF16: -7.536423666 | BG16: =(Q18-$Q$7/1000)/($Q$7/1000) -> 2
C17: 計算値 | E17: =E20 -> 73.60556547 | F17: =F20 -> 56.89435252 | G17: 46.91610222 | H17: 38.22704133 | I17: 31.40319402 | J17: 23.42990863 | K17: 16.6394904 | Q17: =F30 -> 4.295 | U17: s | V17: 1 | W17: =1-W7^(-0.75) -> 0.2800418087 | X17: =1-X7^(-0.75) -> 0.4642611236 | Y17: 0.7500815917 | Z17: 0.8517891313 | AA17: 0.9143518529 | AB17: 0.9337155611 | AC17: 0.9458472792 | AD17: 0.9680027437 | AG17: αの値 | AJ17: =1-EXP(-12.5*3.14*$Q$9*$Q$10*$Q$8*AJ4/(2*($Q$9+$Q$10))/AJ15) -> 0.3388068348 | AK17: =1-EXP(-12.5*3.14*$Q$9*$Q$10*$Q$8*AK4/(2*($Q$9+$Q$10))/AK15) -> 0.4429349348 | AL17: 0.5613829423 | AM17: 0.6882313199 | AN17: 0.8076150767 | AO17: 0.9028002901 | AP17: 0.9629880413 | AQ17: 0.9905522164 | AY17: =MAX(AY16,0) -> 0 | AZ17: =MAX(AZ16,0) -> 0 | BA17: 0 | BB17: 0 | BC17: 0 | BD17: 0 | BE17: 0 | BF17: 0
P18: =H30 -> 0 | Q18: =I30 -> 0.6 | W18: =1-(1/W7)^(-0.75) -> -0.3889695431 | X18: =1-(1/X7)^(-0.75) -> -0.8665809856 | Y18: -3.001305894 | Z18: -5.747143506 | AA18: -10.67567582 | AB18: -14.08649718 | AC18: -17.46629284 | AD18: -30.25267963 | AG18: ｒ／ｐの値 | AJ18: =$Q$40/(2*($Q$9+$Q$10)*AJ17/(1-AJ17)) -> 0.1263792614 | AK18: 0.08144522149 | AL18: 0.05059713484 | AM18: 0.02933578214 | AN18: 0.01542645855 | AO18: 0.006972249159 | AP18: 0.002488976493 | AQ18: 0.0006176638486 | AY18: =IF($P$18=1,AY17) -> FALSE | AZ18: =IF($P$18=1,AZ17) -> FALSE | BA18: FALSE | BB18: FALSE | BC18: FALSE | BD18: FALSE | BE18: FALSE | BF18: FALSE
C19: 31.5 | E19: 63 | F19: 125 | G19: 250 | H19: 500 | I19: 1000 | J19: 2000 | K19: 4000 | P19: =J30 -> 0 | Q19: =K30 -> 0.6 | T19: 拡散度指数 | W19: =MAX(W17,W18) -> 0.2800418087 | X19: =MAX(X17,X18) -> 0.4642611236 | Y19: 0.7500815917 | Z19: 0.8517891313 | AA19: 0.9143518529 | AB19: 0.9337155611 | AC19: 0.9458472792 | AD19: 0.9680027437 | AG19: 拡散板面平均レベル差(dB) | AJ19: =(-10.3*LOG10(AJ16)+1.3)*10^(-1.753*AJ18+0.001753) -> -1.69525695 | AK19: =(-10.3*LOG10(AK16)+1.3)*10^(-1.753*AK18+0.001753) -> -3.152840409 | AL19: -4.825353732 | AM19: -6.640506793 | AN19: -8.486602458 | AO19: -10.29458324 | AP19: -12.02358909 | AQ19: -13.66745111 | AY19: =IF($P$18=0,W74) -> 0 | AZ19: =IF($P$18=0,X74) -> 0 | BA19: 0 | BB19: 0 | BC19: 0 | BD19: 0 | BE19: 0 | BF19: 0
C20: =AJ82 -> 86.03508902 | E20: =AK82 -> 73.60556547 | F20: 56.89435252 | G20: 46.91610222 | H20: 38.22704133 | I20: 31.40319402 | J20: 23.42990863 | K20: 16.6394904 | Q20: =D31 -> 3.91 | U20: c | W20: =1-W8^(-0.75) -> 0.1202962952 | X20: =1-X8^(-0.75) -> 0.4691871234 | Y20: 0.7107466758 | Z20: 0.8396600987 | AA20: 0.9090350425 | AB20: 0.934591257 | AC20: 0.9465627007 | AD20: 0.9684254653 | AG20: 板面平均レベル差(dB) | AH20: s | AI20: 1 | AJ20: =(AJ19+3)*W19-3 -> -2.634617396 | AK20: =(AK19+3)*X19-3 -> -3.07095786 | AL20: -4.369164233 | AM20: -6.100944119 | AN20: -8.016685124 | AO20: -9.811065883 | AP20: -11.53493719 | AQ20: -13.32612194 | AY20: =MAX(AY18,AY19) -> 0 | AZ20: =MAX(AZ18,AZ19) -> 0 | BA20: 0 | BB20: 0 | BC20: 0 | BD20: 0 | BE20: 0 | BF20: 0
Q21: =F31 -> 4.295 | W21: =1-(1/W8)^(-0.75) -> -0.1367463778 | X21: =1-(1/X8)^(-0.75) -> -0.8839030553 | Y21: -2.457177209 | Z21: -5.236750753 | AA21: -9.9932443 | AB21: -14.28847603 | AC21: -17.71352058 | AD21: -30.67109221 | AJ21: =AJ20 -> -2.634617396 | AK21: =AK20 -> -3.07095786 | AL21: -4.369164233 | AM21: -6.100944119 | AN21: -8.016685124 | AO21: -9.811065883 | AP21: -11.53493719 | AQ21: -13.32612194 | AX21: y | AY21: =-3*$BG21*LOG10($Q$17/W$47)-1.2*$BG21 -> -1.469893818 | AZ21: -2.372983805 | BA21: -3.265692196 | BB21: -4.168782183 | BC21: -5.07187217 | BD21: -5.974962157 | BE21: -6.878052144 | BF21: -7.781142131 | BG21: =(Q19-$Q$7/1000)/($Q$7/1000) -> 2
C22: L値 | E22: =30+E20-E16 -> 50.60556547 | F22: =30+F20-F16 -> 43.89435252 | G22: 40.91610222 | H22: 38.22704133 | I22: 34.40319402 | J22: 27.42990863 | K22: 20.6394904 | M22: =MAX(E22,F22,G22,H22,I22,J22,K22) -> 50.60556547 | P22: =H31 -> 0 | Q22: =I31 -> 0.6 | W22: =MAX(W20,W21) -> 0.1202962952 | X22: =MAX(X20,X21) -> 0.4691871234 | Y22: 0.7107466758 | Z22: 0.8396600987 | AA22: 0.9090350425 | AB22: 0.934591257 | AC22: 0.9465627007 | AD22: 0.9684254653 | AH22: c | AJ22: =(AJ19+3)*W22-3 -> -2.843044245 | AK22: =(AK19+3)*X22-3 -> -3.071710752 | AL22: -4.297364097 | AM22: -6.056788293 | AN22: -7.987513899 | AO22: -9.817453719 | AP22: -11.54139286 | AQ22: -13.3306313 | AY22: =MAX(AY21,0) -> 0 | AZ22: =MAX(AZ21,0) -> 0 | BA22: 0 | BB22: 0 | BC22: 0 | BD22: 0 | BE22: 0 | BF22: 0
E23: =ROUND(E22,0.1)-2 -> 49 | F23: 42 | G23: 39 | H23: 36 | I23: 32 | J23: 25 | K23: 19 | P23: =J31 -> 1 | Q23: =K31 -> 0.6 | U23: s | V23: 2 | W23: =1-W9^(-0.75) -> 0.2800418087 | X23: =1-X9^(-0.75) -> 0.4642611236 | Y23: 0.7500815917 | Z23: 0.8517891313 | AA23: 0.9143518529 | AB23: 0.9337155606 | AC23: 0.9458472788 | AD23: 0.9680027434 | AJ23: =AJ22 -> -2.843044245 | AK23: =AK22 -> -3.071710752 | AL23: -4.297364097 | AM23: -6.056788293 | AN23: -7.987513899 | AO23: -9.817453719 | AP23: -11.54139286 | AQ23: -13.3306313 | AY23: =IF($P$19=1,AY22) -> FALSE | AZ23: =IF($P$19=1,AZ22) -> FALSE | BA23: FALSE | BB23: FALSE | BC23: FALSE | BD23: FALSE | BE23: FALSE | BF23: FALSE
C24: L等級 | E24: =(ROUNDUP(E23/5,0.1))*5 -> 50 | F24: 45 | G24: 40 | H24: 40 | I24: 35 | J24: 25 | K24: 20 | M24: =MAX(E24,F24,G24,H24,I24,J24,K24) -> 50 | Q24: =D32 -> 4.82 | W24: =1-(1/W9)^(-0.75) -> -0.3889695431 | X24: =1-(1/X9)^(-0.75) -> -0.8665809856 | Y24: -3.001305894 | Z24: -5.747143506 | AA24: -10.67567582 | AB24: -14.08649705 | AC24: -17.46629269 | AD24: -30.25267937 | AH24: s | AI24: 2 | AJ24: =(AJ19+3)*W25-3 -> -2.634617396 | AK24: =(AK19+3)*X25-3 -> -3.07095786 | AL24: -4.369164233 | AM24: -6.100944119 | AN24: -8.016685124 | AO24: -9.811065879 | AP24: -11.53493719 | AQ24: -13.32612194 | AY24: =IF($P$19=0,W76) -> 0 | AZ24: =IF($P$19=0,X76) -> 0 | BA24: 0 | BB24: 0 | BC24: 0 | BD24: 0 | BE24: 0 | BF24: 0
Q25: =F32 -> 5.59 | W25: =MAX(W23,W24) -> 0.2800418087 | X25: 0.4642611236 | Y25: 0.7500815917 | Z25: 0.8517891313 | AA25: 0.9143518529 | AB25: 0.9337155606 | AC25: 0.9458472788 | AD25: 0.9680027434 | AJ25: =AJ24 -> -2.634617396 | AK25: =AK24 -> -3.07095786 | AL25: -4.369164233 | AM25: -6.100944119 | AN25: -8.016685124 | AO25: -9.811065879 | AP25: -11.53493719 | AQ25: -13.32612194 | AY25: =MAX(AY23,AY24) -> 0 | AZ25: =MAX(AZ23,AZ24) -> 0 | BA25: 0 | BB25: 0 | BC25: 0 | BD25: 0 | BE25: 0 | BF25: 0
C26: 決定ｆ | E26: =IF(E24=$M$24,63) -> 63 | F26: =IF(F24=$M$24,125) -> FALSE | G26: =IF(G24=$M$24,250) -> FALSE | H26: =IF(H24=$M$24,500) -> FALSE | I26: =IF(I24=$M$24,1000) -> FALSE | J26: =IF(J24=$M$24,2000) -> FALSE | K26: =IF(K24=$M$24,4000) -> FALSE | M26: =MIN(E26,F26,G26,H26,I26,J26,K26) -> 63 | P26: =H32 -> 1 | Q26: =I32 -> 0.6 | U26: c | W26: =1-W10^(-0.75) -> 0.1202962952 | X26: =1-X10^(-0.75) -> 0.4691871234 | Y26: 0.7107466758 | Z26: 0.8396600987 | AA26: 0.9090350425 | AB26: 0.934591257 | AC26: 0.9465627007 | AD26: 0.9684254653 | AH26: c | AJ26: =(AJ19+3)*W28-3 -> -2.843044245 | AK26: =(AK19+3)*X28-3 -> -3.071710752 | AL26: -4.297364097 | AM26: -6.056788293 | AN26: -7.987513899 | AO26: -9.817453719 | AP26: -11.54139286 | AQ26: -13.3306313 | AY26: =SQRT(AY20^2+AY25^2) -> 0 | AZ26: =SQRT(AZ20^2+AZ25^2) -> 0 | BA26: 0 | BB26: 0 | BC26: 0 | BD26: 0 | BE26: 0 | BF26: 0
P27: =J32 -> 1 | Q27: =K32 -> 0.6 | W27: =1-(1/W10)^(-0.75) -> -0.1367463778 | X27: =1-(1/X10)^(-0.75) -> -0.8839030553 | Y27: -2.457177209 | Z27: -5.236750753 | AA27: -9.9932443 | AB27: -14.28847603 | AC27: -17.71352058 | AD27: -30.67109221 | AJ27: =AJ26 -> -2.843044245 | AK27: =AK26 -> -3.071710752 | AL27: -4.297364097 | AM27: -6.056788293 | AN27: -7.987513899 | AO27: -9.817453719 | AP27: -11.54139286 | AQ27: -13.3306313 | AV27: 小梁による端部拘束 加振点2(dB) | AW27: s | AX27: x | AY27: =-3*$BG27*LOG10($Q$20/W$47)-1.2*$BG27 -> -1.225175354 | AZ27: -2.128265341 | BA27: -3.020973731 | BB27: -3.924063718 | BC27: -4.827153705 | BD27: -5.730243692 | BE27: -6.633333679 | BF27: -7.536423666 | BG27: =(Q22-$Q$7/1000)/($Q$7/1000) -> 2
Q28: =D33 -> 3.91 | W28: =MAX(W26,W27) -> 0.1202962952 | X28: 0.4691871234 | Y28: 0.7107466758 | Z28: 0.8396600987 | AA28: 0.9090350425 | AB28: 0.934591257 | AC28: 0.9465627007 | AD28: 0.9684254653 | AH28: s | AI28: 3 | AJ28: =(AJ19+3)*W31-3 -> -2.594068385 | AK28: =(AK19+3)*X31-3 -> -3.09140427 | AL28: -4.422343392 | AM28: -6.059191147 | AN28: -8.008633426 | AO28: -9.798010066 | AP28: -11.52174273 | AQ28: -13.31690545 | AY28: =MAX(AY27,0) -> 0 | AZ28: =MAX(AZ27,0) -> 0 | BA28: 0 | BB28: 0 | BC28: 0 | BD28: 0 | BE28: 0 | BF28: 0
H29: x | J29: y | Q29: =F33 -> 4.295 | U29: s | V29: 3 | W29: =1-W11^(-0.75) -> 0.3111199671 | X29: =1-X11^(-0.75) -> 0.5980373294 | Y29: 0.7792152103 | Z29: 0.8403201314 | AA29: 0.912884333 | AB29: 0.9319257649 | AC29: 0.9443850607 | AD29: 0.9671387616 | AJ29: =AJ28 -> -2.594068385 | AK29: =AK28 -> -3.09140427 | AL29: -4.422343392 | AM29: -6.059191147 | AN29: -8.008633426 | AO29: -9.798010066 | AP29: -11.52174273 | AQ29: -13.31690545 | AY29: =IF($P$22=1,AY28) -> FALSE | AZ29: =IF($P$22=1,AZ28) -> FALSE | BA29: FALSE | BB29: FALSE | BC29: FALSE | BD29: FALSE | BE29: FALSE | BF29: FALSE
C30: 加振点1 | D30: =E77 -> 3.91 | F30: =E108 -> 4.295 | G30: 小梁 | H30: =E92 -> 0 | I30: 0.6 | J30: =E123 -> 0 | K30: 0.6 | P30: =H33 -> 1 | Q30: =I33 -> 0.6 | W30: =1-(1/W11)^(-0.75) -> -0.4516315646 | X30: =1-(1/X11)^(-0.75) -> -1.487793204 | Y30: -3.529297517 | Z30: -5.262530203 | AA30: -10.47899149 | AB30: -13.68984556 | AC30: -16.98078021 | AD30: -29.43098949 | AH30: c | AJ30: =(AJ19+3)*W34-3 -> -2.972905873 | AK30: =(AK19+3)*X34-3 -> -3.078116132 | AL30: -4.384937272 | AM30: -6.042017662 | AN30: -7.966940518 | AO30: -9.804502036 | AP30: -11.52830364 | AQ30: -13.32148833 | AY30: =IF($P$22=0,W79) -> 0 | AZ30: =IF($P$22=0,X79) -> 0 | BA30: 0 | BB30: 0 | BC30: 0 | BD30: 0 | BE30: 0 | BF30: 0
C31: 加振点2 | D31: =F77 -> 3.91 | F31: =F108 -> 4.295 | G31: 小梁 | H31: =F92 -> 0 | I31: 0.6 | J31: =F123 -> 1 | K31: 0.6 | P31: =J33 -> 0 | Q31: =K33 -> 0.6 | W31: =MAX(W29,W30) -> 0.3111199671 | X31: 0.5980373294 | Y31: 0.7792152103 | Z31: 0.8403201314 | AA31: 0.912884333 | AB31: 0.9319257649 | AC31: 0.9443850607 | AD31: 0.9671387616 | AJ31: =AJ30 -> -2.972905873 | AK31: =AK30 -> -3.078116132 | AL31: -4.384937272 | AM31: -6.042017662 | AN31: -7.966940518 | AO31: -9.804502036 | AP31: -11.52830364 | AQ31: -13.32148833 | AY31: =MAX(AY29,AY30) -> 0 | AZ31: 0 | BA31: 0 | BB31: 0 | BC31: 0 | BD31: 0 | BE31: 0 | BF31: 0
C32: 加振点3 | D32: =G77 -> 4.82 | F32: =G108 -> 5.59 | G32: 小梁 | H32: =G92 -> 1 | I32: 0.6 | J32: =G123 -> 1 | K32: 0.6 | Q32: =D34 -> 3.91 | U32: c | W32: =1-W12^(-0.75) -> -0.02120623787 | X32: =1-X12^(-0.75) -> 0.5110960667 | Y32: 0.7587226781 | Z32: 0.8356027977 | AA32: 0.9052852937 | AB32: 0.9328157363 | AC32: 0.9451121449 | AD32: 0.9675683744 | AH32: s | AI32: 4 | AJ32: =(AJ19+3)*W37-3 -> -2.634617396 | AK32: =(AK19+3)*X37-3 -> -3.07095786 | AL32: -4.369164233 | AM32: -6.100944119 | AN32: -8.016685124 | AO32: -9.811065879 | AP32: -11.53493719 | AQ32: -13.32612194 | AX32: y | AY32: =-3*$BG32*LOG10($Q$21/W$47)-1.2*$BG32 -> -1.469893818 | AZ32: -2.372983805 | BA32: -3.265692196 | BB32: -4.168782183 | BC32: -5.07187217 | BD32: -5.974962157 | BE32: -6.878052144 | BF32: -7.781142131 | BG32: =(Q23-$Q$7/1000)/($Q$7/1000) -> 2
C33: 加振点4 | D33: =H77 -> 3.91 | F33: =H108 -> 4.295 | G33: 小梁 | H33: =H92 -> 1 | I33: 0.6 | J33: =H123 -> 0 | K33: 0.6 | Q33: =F34 -> 4.295 | W33: =1-(1/W12)^(-0.75) -> 0.02076587185 | X33: =1-(1/X12)^(-0.75) -> -1.045391603 | Y33: -3.144608338 | Z33: -5.082828578 | AA33: -9.558022494 | AB33: -13.88443788 | AC33: -17.21896663 | AD33: -29.83410038 | AJ33: =AJ32 -> -2.634617396 | AK33: =AK32 -> -3.07095786 | AL33: -4.369164233 | AM33: -6.100944119 | AN33: -8.016685124 | AO33: -9.811065879 | AP33: -11.53493719 | AQ33: -13.32612194 | AY33: =MAX(AY32,0) -> 0 | AZ33: =MAX(AZ32,0) -> 0 | BA33: 0 | BB33: 0 | BC33: 0 | BD33: 0 | BE33: 0 | BF33: 0
C34: 加振点5 | D34: =I77 -> 3.91 | F34: =I108 -> 4.295 | G34: 小梁 | H34: =I92 -> 1 | I34: 0.6 | J34: =I123 -> 1 | K34: 0.6 | N34: =SQRT(Q4*(Q7/1000)^3/12/(1-Q6^2)/(Q5*Q7/1000)) -> 188.9350087 | P34: =H34 -> 1 | Q34: =I34 -> 0.6 | W34: =MAX(W32,W33) -> 0.02076587185 | X34: 0.5110960667 | Y34: 0.7587226781 | Z34: 0.8356027977 | AA34: 0.9052852937 | AB34: 0.9328157363 | AC34: 0.9451121449 | AD34: 0.9675683744 | AH34: c | AJ34: =(AJ19+3)*W40-3 -> -2.843044245 | AK34: =(AK19+3)*X40-3 -> -3.071710752 | AL34: -4.297364097 | AM34: -6.056788293 | AN34: -7.987513899 | AO34: -9.817453719 | AP34: -11.54139286 | AQ34: -13.3306313 | AY34: =IF($P$23=1,AY33) -> 0 | AZ34: =IF($P$23=1,AZ33) -> 0 | BA34: 0 | BB34: 0 | BC34: 0 | BD34: 0 | BE34: 0 | BF34: 0
P35: =J34 -> 1 | Q35: =K34 -> 0.6 | U35: s | V35: 4 | W35: =1-W13^(-0.75) -> 0.2800418087 | X35: =1-X13^(-0.75) -> 0.4642611236 | Y35: 0.7500815917 | Z35: 0.8517891313 | AA35: 0.9143518529 | AB35: 0.9337155606 | AC35: 0.9458472788 | AD35: 0.9680027434 | AJ35: =AJ34 -> -2.843044245 | AK35: =AK34 -> -3.071710752 | AL35: -4.297364097 | AM35: -6.056788293 | AN35: -7.987513899 | AO35: -9.817453719 | AP35: -11.54139286 | AQ35: -13.3306313 | AY35: =IF($P$23=0,W81) -> FALSE | AZ35: =IF($P$23=0,X81) -> FALSE | BA35: FALSE | BB35: FALSE | BC35: FALSE | BD35: FALSE | BE35: FALSE | BF35: FALSE
B36: 1 | C36: 加振ｘ | E36: =Q11/4 -> 0.91 | F36: =Q11/4 -> 0.91 | G36: =Q11/2 -> 1.82 | H36: =Q11/4*3 -> 2.73 | I36: =Q11/4*3 -> 2.73 | N36: 340 | Q36: =SQRT(Q4/Q5/(1-Q6^2)) -> 3272.450343 | W36: =1-(1/W13)^(-0.75) -> -0.3889695431 | X36: =1-(1/X13)^(-0.75) -> -0.8665809856 | Y36: -3.001305894 | Z36: -5.747143506 | AA36: -10.67567582 | AB36: -14.08649705 | AC36: -17.46629269 | AD36: -30.25267937 | AH36: s | AI36: 5 | AJ36: =(AJ19+3)*W43-3 -> -2.634617396 | AK36: =(AK19+3)*X43-3 -> -3.07095786 | AL36: -4.369164233 | AM36: -6.100944119 | AN36: -8.016685124 | AO36: -9.811065879 | AP36: -11.53493719 | AQ36: -13.32612194 | AY36: =MAX(AY34,AY35) -> 0 | AZ36: 0 | BA36: 0 | BB36: 0 | BC36: 0 | BD36: 0 | BE36: 0 | BF36: 0
C37: 加振ｙ | E37: =Q12/4 -> 1.295 | F37: =Q12/4 -> 1.295 | G37: =Q12/2 -> 2.59 | H37: =Q12/4 -> 1.295 | I37: =Q12/4 -> 1.295 | Q37: =3.14/2*N34*(1/Q9^2+1/Q10^2) -> 8.677882774 | W37: =MAX(W35,W36) -> 0.2800418087 | X37: 0.4642611236 | Y37: 0.7500815917 | Z37: 0.8517891313 | AA37: 0.9143518529 | AB37: 0.9337155606 | AC37: 0.9458472788 | AD37: 0.9680027434 | AJ37: =AJ36 -> -2.634617396 | AK37: =AK36 -> -3.07095786 | AL37: -4.369164233 | AM37: -6.100944119 | AN37: -8.016685124 | AO37: -9.811065879 | AP37: -11.53493719 | AQ37: -13.32612194 | AY37: =SQRT(AY31^2+AY36^2) -> 0 | AZ37: 0 | BA37: 0 | BB37: 0 | BC37: 0 | BD37: 0 | BE37: 0 | BF37: 0
B38: 2 | C38: 加振ｘ | E38: =Q11/4+3 -> 3.91 | F38: =Q11/4+3 -> 3.91 | G38: =Q11/2+3 -> 4.82 | H38: =Q11/4+3 -> 3.91 | I38: =Q11/4+3 -> 3.91 | Q38: =2*3.14/3*N34*SQRT((1/Q9^2+1/Q10^2)^2+2*(1/Q9^4+1/Q10^4)) -> 17.53999642 | U38: c | W38: =1-W14^(-0.75) -> 0.1202962952 | X38: =1-X14^(-0.75) -> 0.4691871234 | Y38: 0.7107466758 | Z38: 0.8396600987 | AA38: 0.9090350425 | AB38: 0.934591257 | AC38: 0.9465627007 | AD38: 0.9684254653 | AH38: c | AJ38: =(AJ19+3)*W46-3 -> -2.843044245 | AK38: =(AK19+3)*X46-3 -> -3.071710752 | AL38: -4.297364097 | AM38: -6.056788293 | AN38: -7.987513899 | AO38: -9.817453719 | AP38: -11.54139286 | AQ38: -13.3306313 | AW38: c | AX38: x | AY38: =-3*$BG38*LOG10($Q$20/W$47)-1.2*$BG38 -> -1.225175354 | AZ38: -2.128265341 | BA38: -3.020973731 | BB38: -3.924063718 | BC38: -4.827153705 | BD38: -5.730243692 | BE38: -6.633333679 | BF38: -7.536423666 | BG38: =(Q22-$Q$7/1000)/($Q$7/1000) -> 2
C39: 加振ｙ | E39: =Q12/4 -> 1.295 | F39: =Q12/4 -> 1.295 | G39: =Q12/2 -> 2.59 | H39: =Q12/4 -> 1.295 | I39: =Q12/4 -> 1.295 | Q39: =N36^2/2/3.14/N34 -> 97.42844083 | W39: =1-(1/W14)^(-0.75) -> -0.1367463778 | X39: =1-(1/X14)^(-0.75) -> -0.8839030553 | Y39: -2.457177209 | Z39: -5.236750753 | AA39: -9.9932443 | AB39: -14.28847603 | AC39: -17.71352058 | AD39: -30.67109221 | AJ39: =AJ38 -> -2.843044245 | AK39: =AK38 -> -3.071710752 | AL39: -4.297364097 | AM39: -6.056788293 | AN39: -7.987513899 | AO39: -9.817453719 | AP39: -11.54139286 | AQ39: -13.3306313 | AY39: =MAX(AY38,0) -> 0 | AZ39: =MAX(AZ38,0) -> 0 | BA39: 0 | BB39: 0 | BC39: 0 | BD39: 0 | BE39: 0 | BF39: 0
B40: 3 | C40: 加振ｘ | E40: =Q11/4 -> 0.91 | F40: =Q11/4*3 -> 2.73 | G40: =Q11/2 -> 1.82 | H40: =Q11/4 -> 0.91 | I40: =Q11/4*3 -> 2.73 | Q40: =SQRT(Q11*Q12/3.14) -> 2.45047766 | W40: =MAX(W38,W39) -> 0.1202962952 | X40: 0.4691871234 | Y40: 0.7107466758 | Z40: 0.8396600987 | AA40: 0.9090350425 | AB40: 0.934591257 | AC40: 0.9465627007 | AD40: 0.9684254653 | AG40: 音響放射率 | AJ40: =$Q$43+20*LOG10(AJ4/$Q$37) -> -3.425213942 | AK40: 2.595385971 | AL40: 8.546775242 | AM40: 14.56737516 | AN40: 20.58797507 | AO40: 26.60857498 | AP40: 32.6291749 | AQ40: 38.64977481 | AY40: =IF($P$22=1,AY39) -> FALSE | AZ40: =IF($P$22=1,AZ39) -> FALSE | BA40: FALSE | BB40: FALSE | BC40: FALSE | BD40: FALSE | BE40: FALSE | BF40: FALSE
C41: 加振ｙ | E41: =Q12/4 -> 1.295 | F41: =Q12/4 -> 1.295 | G41: =Q12/2 -> 2.59 | H41: =Q12/4*3 -> 3.885 | I41: =Q12/4*3 -> 3.885 | Q41: =8*SQRT(Q4*(Q7/1000)^3/(12*(1-Q6^2))*Q5*Q7/1000) -> 695280.8319 | U41: s | V41: 1 | W41: =1-W15^(-0.75) -> 0.2800418087 | X41: =1-X15^(-0.75) -> 0.4642611236 | Y41: 0.7500815917 | Z41: 0.8517891313 | AA41: 0.9143518529 | AB41: 0.9337155606 | AC41: 0.9458472788 | AD41: 0.9680027434 | AJ41: =MIN(AJ40,0) -> -3.425213942 | AK41: =MIN(AK40,0) -> 0 | AL41: 0 | AM41: 0 | AN41: 0 | AO41: 0 | AP41: 0 | AQ41: 0 | AR41: =Q11*Q12 -> 18.8552 | AY41: =IF($P$22=0,W84) -> 0 | AZ41: =IF($P$22=0,X84) -> 0 | BA41: 0 | BB41: 0 | BC41: 0 | BD41: 0 | BE41: 0 | BF41: 0
B42: 4 | C42: 加振ｘ | E42: =Q11/4 -> 0.91 | F42: =Q11/4*3 -> 2.73 | G42: =Q11/2 -> 1.82 | H42: =Q11/4 -> 0.91 | I42: =Q11/4*3 -> 2.73 | N42: ramd | Q42: =N36/Q39 -> 3.489740748 | W42: =1-(1/W15)^(-0.75) -> -0.3889695431 | X42: =1-(1/X15)^(-0.75) -> -0.8665809856 | Y42: -3.001305894 | Z42: -5.747143506 | AA42: -10.67567582 | AB42: -14.08649705 | AC42: -17.46629269 | AD42: -30.25267937 | AJ42: =$Q$43*LOG10($Q$39/AJ4)/(LOG10($Q$39/$Q$37)) -> -6.827593225 | AK42: -2.636291617 | AL42: 1.506828302 | AM42: 5.69812991 | AN42: 9.889431518 | AO42: 14.08073313 | AP42: 18.27203473 | AQ42: 22.46333634 | AY42: =MAX(AY40,AY41) -> 0 | AZ42: =MAX(AZ40,AZ41) -> 0 | BA42: 0 | BB42: 0 | BC42: 0 | BD42: 0 | BE42: 0 | BF42: 0
C43: 加振ｙ | E43: =Q12/4+3 -> 4.295 | F43: =Q12/4+3 -> 4.295 | G43: =Q12/2+3 -> 5.59 | H43: =Q12/4+3 -> 4.295 | I43: =Q12/4+3 -> 4.295 | N43: sig0 | P43: =10*LOG10(Q42^2*Q11*Q12/(Q9*Q10)^2) -> -14.62314944 | Q43: =MIN($P$43,0) -> -14.62314944 | W43: =MAX(W41,W42) -> 0.2800418087 | X43: 0.4642611236 | Y43: 0.7500815917 | Z43: 0.8517891313 | AA43: 0.9143518529 | AB43: 0.9337155606 | AC43: 0.9458472788 | AD43: 0.9680027434 | AJ43: =MIN(AJ42,0) -> -6.827593225 | AK43: =MIN(AK42,0) -> -2.636291617 | AL43: 0 | AM43: 0 | AN43: 0 | AO43: 0 | AP43: 0 | AQ43: 0 | AX43: y | AY43: =-3*$BG43*LOG10($Q$21/W$47)-1.2*$BG43 -> -1.469893818 | AZ43: -2.372983805 | BA43: -3.265692196 | BB43: -4.168782183 | BC43: -5.07187217 | BD43: -5.974962157 | BE43: -6.878052144 | BF43: -7.781142131 | BG43: =(Q23-$Q$7/1000)/($Q$7/1000) -> 2
B44: 5 | C44: 加振ｘ | E44: =Q11/4+3 -> 3.91 | F44: =Q11/4+3 -> 3.91 | G44: =Q11/2+3 -> 4.82 | H44: =Q11/4+3 -> 3.91 | I44: =Q11/4+3 -> 3.91 | N44: lx/ly | P44: =Q9/Q10 -> 1.845112782 | Q44: =MIN(P44,3) -> 1.845112782 | U44: c | W44: =1-W16^(-0.75) -> 0.1202962952 | X44: =1-X16^(-0.75) -> 0.4691871234 | Y44: 0.7107466758 | Z44: 0.8396600987 | AA44: 0.9090350425 | AB44: 0.934591257 | AC44: 0.9465627007 | AD44: 0.9684254653 | AJ44: =MIN(AJ41,AJ43) -> -6.827593225 | AK44: =MIN(AK41,AK43) -> -2.636291617 | AL44: 0 | AM44: 0 | AN44: 0 | AO44: 0 | AP44: 0 | AQ44: 0 | AY44: =MAX(AY43,0) -> 0 | AZ44: =MAX(AZ43,0) -> 0 | BA44: 0 | BB44: 0 | BC44: 0 | BD44: 0 | BE44: 0 | BF44: 0
C45: 加振ｙ | E45: =Q12/4+3 -> 4.295 | F45: =Q12/4+3 -> 4.295 | G45: =Q12/2+3 -> 5.59 | H45: =Q12/4+3 -> 4.295 | I45: =Q12/4+3 -> 4.295 | W45: =1-(1/W16)^(-0.75) -> -0.1367463778 | X45: =1-(1/X16)^(-0.75) -> -0.8839030553 | Y45: -2.457177209 | Z45: -5.236750753 | AA45: -9.9932443 | AB45: -14.28847603 | AC45: -17.71352058 | AD45: -30.67109221 | AG45: 10log(F/A) | AJ45: =10*LOG10($Q$11*$Q$12/(W6*($Q$11*$Q$12+$Q$12*$Q$13+$Q$11*$Q$13)*2)) -> 3.720893386 | AK45: =10*LOG10($Q$11*$Q$12/(X6*($Q$11*$Q$12+$Q$12*$Q$13+$Q$11*$Q$13)*2)) -> 3.720893386 | AL45: 3.720893386 | AM45: 3.720893386 | AN45: 1.959980796 | AO45: 1.959980796 | AP45: 0.7105934296 | AQ45: 0.7105934296 | AY45: =IF($P$23=1,AY44) -> 0 | AZ45: =IF($P$23=1,AZ44) -> 0 | BA45: 0 | BB45: 0 | BC45: 0 | BD45: 0 | BE45: 0 | BF45: 0
B46: 6 | C46: 加振ｘ | E46: =Q11/4 -> 0.91 | F46: =Q11/4 -> 0.91 | G46: =Q11/2 -> 1.82 | H46: =Q11/4*3 -> 2.73 | I46: =Q11/4*3 -> 2.73 | W46: =MAX(W44,W45) -> 0.1202962952 | X46: 0.4691871234 | Y46: 0.7107466758 | Z46: 0.8396600987 | AA46: 0.9090350425 | AB46: 0.934591257 | AC46: 0.9465627007 | AD46: 0.9684254653 | AG46: 床衝撃音レベル(dB) 補正前 | AH46: s | AI46: 1 | AJ46: =AJ$44+W$5-AJ5+AJ$21+AJ$45+152.1 -> 86.15770613 | AK46: =AK$44+X$5-AK5+AK$21+AK$45+152.1 -> 76.951952 | AL46: 57.60852402 | AM46: 45.87674414 | AN46: 34.20009054 | AO46: 27.40570978 | AP46: 19.43245111 | AQ46: 12.64126636 | AY46: =IF($P$23=0,W86) -> FALSE | AZ46: =IF($P$23=0,X86) -> FALSE | BA46: FALSE | BB46: FALSE | BC46: FALSE | BD46: FALSE | BE46: FALSE | BF46: FALSE
C47: 加振ｙ | E47: =Q12/4 -> 1.295 | F47: =Q12/4 -> 1.295 | G47: =Q12/2 -> 2.59 | H47: =Q12/4 -> 1.295 | I47: =Q12/4 -> 1.295 | T47: 曲げ波の波長(m) | W47: =SQRT(3.14*$Q$36*$Q$7/1000/W4/1.73205) -> 6.137349636 | X47: 4.339761546 | Y47: 3.080925066 | Z47: 2.178543006 | AA47: 1.540462533 | AB47: 1.089271503 | AC47: 0.7702312664 | AD47: 0.5446357516 | AH47: c | AJ47: =AJ$44+W$5-AJ6+AJ$23+AJ$45+152.1 -> 89.38380782 | AK47: =AK$44+X$5-AK6+AK$23+AK$45+152.1 -> 76.84529011 | AL47: 58.06239801 | AM47: 45.92089996 | AN47: 34.22926177 | AO47: 27.39932195 | AP47: 19.42599544 | AQ47: 12.636757 | AY47: =MAX(AY45,AY46) -> 0 | AZ47: =MAX(AZ45,AZ46) -> 0 | BA47: 0 | BB47: 0 | BC47: 0 | BD47: 0 | BE47: 0 | BF47: 0
B48: 7 | C48: 加振ｘ | E48: =Q11/4+3 -> 3.91 | F48: =Q11/4+3 -> 3.91 | G48: =Q11/2+3 -> 4.82 | H48: =Q11/4+3 -> 3.91 | I48: =Q11/4+3 -> 3.91 | T48: 共振による低下量(dB) | U48: s | V48: 1 | W48: =21.5*W19-20*LOG10(2.2925*($Q$44/(1+$Q$44^2))*LN(1/2/$Q$8^2)) -> -9.642228492 | X48: =21.5*X19-20*LOG10(2.2925*($Q$44/(1+$Q$44^2))*LN(1/2/$Q$8^2)) -> -5.681513223 | Y48: 0.4636268426 | Z48: 2.650338944 | AA48: 3.995437458 | AB48: 4.411757184 | AC48: 4.672589124 | AD48: 5.14893161 | AH48: s | AI48: 2 | AJ48: =AJ$44+W$5-AJ7+AJ$25+AJ$45+152.1 -> 86.15770613 | AK48: =AK$44+X$5-AK7+AK$25+AK$45+152.1 -> 76.951952 | AL48: 57.60852402 | AM48: 45.87674414 | AN48: 34.20009054 | AO48: 27.40570979 | AP48: 19.43245111 | AQ48: 12.64126636 | AY48: =SQRT(AY42^2+AY47^2) -> 0 | AZ48: =SQRT(AZ42^2+AZ47^2) -> 0 | BA48: 0 | BB48: 0 | BC48: 0 | BD48: 0 | BE48: 0 | BF48: 0
C49: 加振ｙ | E49: =Q12/4 -> 1.295 | F49: =Q12/4 -> 1.295 | G49: =Q12/2 -> 2.59 | H49: =Q12/4 -> 1.295 | I49: =Q12/4 -> 1.295 | W49: =MIN(W48,0) -> -9.642228492 | X49: -5.681513223 | Y49: 0 | Z49: 0 | AA49: 0 | AB49: 0 | AC49: 0 | AD49: 0 | AH49: c | AJ49: =AJ$44+W$5-AJ8+AJ$27+AJ$45+152.1 -> 89.38380782 | AK49: =AK$44+X$5-AK8+AK$27+AK$45+152.1 -> 76.84529011 | AL49: 58.06239801 | AM49: 45.92089996 | AN49: 34.22926177 | AO49: 27.39932195 | AP49: 19.42599544 | AQ49: 12.636757 | AV49: 小梁による端部拘束 加振点3(dB) | AW49: s | AX49: x | AY49: =-3*$BG49*LOG10($Q$24/W$47)-1.2*$BG49 -> -1.770397039 | AZ49: -2.673487026 | BA49: -3.566195416 | BB49: -4.469285403 | BC49: -5.37237539 | BD49: -6.275465377 | BE49: -7.178555364 | BF49: -8.081645351 | BG49: =(Q26-$Q$7/1000)/($Q$7/1000) -> 2
B50: 8 | C50: 加振ｘ | E50: =Q11/4 -> 0.91 | F50: =Q11/4*3 -> 2.73 | G50: =Q11/2 -> 1.82 | H50: =Q11/4 -> 0.91 | I50: =Q11/4*3 -> 2.73 | U50: c | W50: =21.5*W22-20*LOG10(2.2925*($Q$44/(1+$Q$44^2))*LN(1/2/$Q$8^2)) -> -13.07675703 | X50: =21.5*X22-20*LOG10(2.2925*($Q$44/(1+$Q$44^2))*LN(1/2/$Q$8^2)) -> -5.575604226 | Y50: -0.3820738489 | Z50: 2.389564743 | AA50: 3.881126035 | AB50: 4.430584645 | AC50: 4.687970686 | AD50: 5.158020124 | AH50: s | AI50: 3 | AJ50: =AJ$44+W$5-AJ9+AJ$29+AJ$45+152.1 -> 85.53007473 | AK50: =AK$44+X$5-AK9+AK$29+AK$45+152.1 -> 74.05531717 | AL50: 57.55534486 | AM50: 45.91849711 | AN50: 34.20814224 | AO50: 27.4187656 | AP50: 19.44564557 | AQ50: 12.65048285 | AY50: =MAX(AY49,0) -> 0 | AZ50: =MAX(AZ49,0) -> 0 | BA50: 0 | BB50: 0 | BC50: 0 | BD50: 0 | BE50: 0 | BF50: 0
C51: 加振ｙ | E51: =Q12/4 -> 1.295 | F51: =Q12/4 -> 1.295 | G51: =Q12/2 -> 2.59 | H51: =Q12/4*3 -> 3.885 | I51: =Q12/4*3 -> 3.885 | W51: =MIN(W50,0) -> -13.07675703 | X51: -5.575604226 | Y51: -0.3820738489 | Z51: 0 | AA51: 0 | AB51: 0 | AC51: 0 | AD51: 0 | AH51: c | AJ51: =AJ$44+W$5-AJ10+AJ$31+AJ$45+152.1 -> 91.39385029 | AK51: =AK$44+X$5-AK10+AK$31+AK$45+152.1 -> 75.93784245 | AL51: 57.59275098 | AM51: 45.93567059 | AN51: 34.24983515 | AO51: 27.41227363 | AP51: 19.43908466 | AQ51: 12.64589997 | AY51: =IF($P$26=1,AY50) -> 0 | AZ51: =IF($P$26=1,AZ50) -> 0 | BA51: 0 | BB51: 0 | BC51: 0 | BD51: 0 | BE51: 0 | BF51: 0
B52: 9 | C52: 加振ｘ | E52: =Q11/4 -> 0.91 | F52: =Q11/4*3 -> 2.73 | G52: =Q11/2 -> 1.82 | H52: =Q11/4 -> 0.91 | I52: =Q11/4*3 -> 2.73 | U52: s | V52: 2 | W52: =21.5*W25-20*LOG10(2.2925*($Q$44/(1+$Q$44^2))*LN(1/2/$Q$8^2)) -> -9.642228492 | X52: =21.5*X25-20*LOG10(2.2925*($Q$44/(1+$Q$44^2))*LN(1/2/$Q$8^2)) -> -5.681513223 | Y52: 0.4636268426 | Z52: 2.650338944 | AA52: 3.995437458 | AB52: 4.411757173 | AC52: 4.672589114 | AD52: 5.148931604 | AH52: s | AI52: 4 | AJ52: =AJ$44+W$5-AJ11+AJ$33+AJ$45+152.1 -> 86.15770613 | AK52: =AK$44+X$5-AK11+AK$33+AK$45+152.1 -> 76.951952 | AL52: 57.60852402 | AM52: 45.87674414 | AN52: 34.20009054 | AO52: 27.40570979 | AP52: 19.43245111 | AQ52: 12.64126636 | AY52: =IF($P$26=0,W89) -> FALSE | AZ52: =IF($P$26=0,X89) -> FALSE | BA52: FALSE | BB52: FALSE | BC52: FALSE | BD52: FALSE | BE52: FALSE | BF52: FALSE
C53: 加振ｙ | E53: =Q12/4+3 -> 4.295 | F53: =Q12/4+3 -> 4.295 | G53: =Q12/2+3 -> 5.59 | H53: =Q12/4+3 -> 4.295 | I53: =Q12/4+3 -> 4.295 | W53: =MIN(W52,0) -> -9.642228492 | X53: -5.681513223 | Y53: 0 | Z53: 0 | AA53: 0 | AB53: 0 | AC53: 0 | AD53: 0 | AH53: c | AJ53: =AJ$44+W$5-AJ12+AJ$35+AJ$45+152.1 -> 89.38380782 | AK53: =AK$44+X$5-AK12+AK$35+AK$45+152.1 -> 76.84529011 | AL53: 58.06239801 | AM53: 45.92089996 | AN53: 34.22926177 | AO53: 27.39932195 | AP53: 19.42599544 | AQ53: 12.636757 | AY53: =MAX(AY51,AY52) -> 0 | AZ53: =MAX(AZ51,AZ52) -> 0 | BA53: 0 | BB53: 0 | BC53: 0 | BD53: 0 | BE53: 0 | BF53: 0
B54: 10 | C54: 加振ｘ | E54: =Q11/4+3 -> 3.91 | F54: =Q11/4+3 -> 3.91 | G54: =Q11/2+3 -> 4.82 | H54: =Q11/4+3 -> 3.91 | I54: =Q11/4+3 -> 3.91 | U54: c | W54: =21.5*W28-20*LOG10(2.2925*($Q$44/(1+$Q$44^2))*LN(1/2/$Q$8^2)) -> -13.07675703 | X54: =21.5*X28-20*LOG10(2.2925*($Q$44/(1+$Q$44^2))*LN(1/2/$Q$8^2)) -> -5.575604226 | Y54: -0.3820738489 | Z54: 2.389564743 | AA54: 3.881126035 | AB54: 4.430584645 | AC54: 4.687970686 | AD54: 5.158020124 | AH54: s | AI54: 5 | AJ54: =AJ$44+W$5-AJ13+AJ$37+AJ$45+152.1 -> 86.15770613 | AK54: =AK$44+X$5-AK13+AK$37+AK$45+152.1 -> 76.951952 | AL54: 57.60852402 | AM54: 45.87674414 | AN54: 34.20009054 | AO54: 27.40570979 | AP54: 19.43245111 | AQ54: 12.64126636 | AX54: y | AY54: =-3*$BG54*LOG10($Q$25/W$47)-1.2*$BG54 -> -2.156585656 | AZ54: -3.059675643 | BA54: -3.952384034 | BB54: -4.855474021 | BC54: -5.758564008 | BD54: -6.661653995 | BE54: -7.564743982 | BF54: -8.467833969 | BG54: =(Q27-$Q$7/1000)/($Q$7/1000) -> 2
C55: 加振ｙ | E55: =Q12/4+3 -> 4.295 | F55: =Q12/4+3 -> 4.295 | G55: =Q12/2+3 -> 5.59 | H55: =Q12/4+3 -> 4.295 | I55: =Q12/4+3 -> 4.295 | W55: =MIN(W54,0) -> -13.07675703 | X55: -5.575604226 | Y55: -0.3820738489 | Z55: 0 | AA55: 0 | AB55: 0 | AC55: 0 | AD55: 0 | AH55: c | AJ55: =AJ$44+W$5-AJ14+AJ$39+AJ$45+152.1 -> 89.38380782 | AK55: =AK$44+X$5-AK14+AK$39+AK$45+152.1 -> 76.84529011 | AL55: 58.06239801 | AM55: 45.92089996 | AN55: 34.22926177 | AO55: 27.39932195 | AP55: 19.42599544 | AQ55: 12.636757 | AY55: =MAX(AY54,0) -> 0 | AZ55: =MAX(AZ54,0) -> 0 | BA55: 0 | BB55: 0 | BC55: 0 | BD55: 0 | BE55: 0 | BF55: 0
B56: 11 | C56: 加振ｘ | E56: =Q11/4 -> 0.91 | F56: =Q11/4*3 -> 2.73 | G56: =Q11/2 -> 1.82 | H56: =Q11/4 -> 0.91 | I56: =Q11/4*3 -> 2.73 | U56: s | V56: 3 | W56: =21.5*W31-20*LOG10(2.2925*($Q$44/(1+$Q$44^2))*LN(1/2/$Q$8^2)) -> -8.974048088 | X56: =21.5*X31-20*LOG10(2.2925*($Q$44/(1+$Q$44^2))*LN(1/2/$Q$8^2)) -> -2.805324797 | Y56: 1.089999641 | Z56: 2.403755445 | AA56: 3.96388578 | AB56: 4.373276566 | AC56: 4.641151425 | AD56: 5.130355995 | AG56: Fast-Peak補正(dB) | AJ56: 4 | AK56: 4 | AL56: 4 | AM56: 4 | AN56: 4 | AO56: 4 | AP56: 4 | AQ56: 4 | AY56: =IF($P$27=1,AY55) -> 0 | AZ56: =IF($P$27=1,AZ55) -> 0 | BA56: 0 | BB56: 0 | BC56: 0 | BD56: 0 | BE56: 0 | BF56: 0
C57: 加振ｙ | E57: =Q12/4 -> 1.295 | F57: =Q12/4 -> 1.295 | G57: =Q12/2 -> 2.59 | H57: =Q12/4*3 -> 3.885 | I57: =Q12/4*3 -> 3.885 | W57: =MIN(W56,0) -> -8.974048088 | X57: -2.805324797 | Y57: 0 | Z57: 0 | AA57: 0 | AB57: 0 | AC57: 0 | AD57: 0 | AG57: 音場補正(dB) | AJ57: -7 | AK57: -7 | AL57: -5 | AM57: -3 | AN57: -1 | AO57: 0 | AP57: 0 | AQ57: 0 | AR57: =Q11*Q12 -> 18.8552 | AY57: =IF($P$27=0,W91) -> FALSE | AZ57: =IF($P$27=0,X91) -> FALSE | BA57: FALSE | BB57: FALSE | BC57: FALSE | BD57: FALSE | BE57: FALSE | BF57: FALSE
B58: 12 | C58: 加振ｘ | E58: =Q11/4 -> 0.91 | F58: =Q11/4*3 -> 2.73 | G58: =Q11/2 -> 1.82 | H58: =Q11/4 -> 0.91 | I58: =Q11/4*3 -> 2.73 | U58: c | W58: =21.5*W34-20*LOG10(2.2925*($Q$44/(1+$Q$44^2))*LN(1/2/$Q$8^2)) -> -15.21666113 | X58: =21.5*X34-20*LOG10(2.2925*($Q$44/(1+$Q$44^2))*LN(1/2/$Q$8^2)) -> -4.674561946 | Y58: 0.6494101997 | Z58: 2.302332772 | AA58: 3.800506434 | AB58: 4.39241095 | AC58: 4.656783736 | AD58: 5.13959267 | AJ58: =IF(AR57<15,-20) -> FALSE | AK58: -7 | AL58: -5 | AM58: -3 | AN58: -1 | AO58: 0 | AP58: 0 | AQ58: 0 | AY58: =MAX(AY56,AY57) -> 0 | AZ58: =MAX(AZ56,AZ57) -> 0 | BA58: 0 | BB58: 0 | BC58: 0 | BD58: 0 | BE58: 0 | BF58: 0
C59: 加振ｙ | E59: =Q12/4+3 -> 4.295 | F59: =Q12/4+3 -> 4.295 | G59: =Q12/2+3 -> 5.59 | H59: =Q12/4+3 -> 4.295 | I59: =Q12/4+3 -> 4.295 | W59: =MIN(W58,0) -> -15.21666113 | X59: -4.674561946 | Y59: 0 | Z59: 0 | AA59: 0 | AB59: 0 | AC59: 0 | AD59: 0 | AJ59: =MIN(AJ57,AJ58) -> -7 | AK59: -7 | AL59: -5 | AM59: -3 | AN59: 0 | AO59: 0 | AP59: 0 | AQ59: 0 | AY59: =SQRT(AY53^2+AY58^2) -> 0 | AZ59: =SQRT(AZ53^2+AZ58^2) -> 0 | BA59: 0 | BB59: 0 | BC59: 0 | BD59: 0 | BE59: 0 | BF59: 0
B60: 13 | C60: 加振ｘ | E60: =Q11/4+3 -> 3.91 | F60: =Q11/4+3 -> 3.91 | G60: =Q11/2+3 -> 4.82 | H60: =Q11/4+3 -> 3.91 | I60: =Q11/4+3 -> 3.91 | U60: s | V60: 4 | W60: =21.5*W37-20*LOG10(2.2925*($Q$44/(1+$Q$44^2))*LN(1/2/$Q$8^2)) -> -9.642228492 | X60: =21.5*X37-20*LOG10(2.2925*($Q$44/(1+$Q$44^2))*LN(1/2/$Q$8^2)) -> -5.681513223 | Y60: 0.4636268426 | Z60: 2.650338944 | AA60: 3.995437458 | AB60: 4.411757173 | AC60: 4.672589114 | AD60: 5.148931604 | AG60: 床衝撃音レベル(dB) 補正後 | AH60: s | AI60: 1 | AJ60: =AJ46+AJ$56+AJ$59 -> 83.15770613 | AK60: 73.951952 | AL60: 56.60852402 | AM60: 46.87674414 | AN60: 38.20009054 | AO60: 31.40570978 | AP60: 23.43245111 | AQ60: 16.64126636 | AW60: c | AX60: x | AY60: =-3*$BG60*LOG10($Q$24/W$47)-1.2*$BG60 -> -1.770397039 | AZ60: -2.673487026 | BA60: -3.566195416 | BB60: -4.469285403 | BC60: -5.37237539 | BD60: -6.275465377 | BE60: -7.178555364 | BF60: -8.081645351 | BG60: =(Q26-$Q$7/1000)/($Q$7/1000) -> 2
C61: 加振ｙ | E61: =Q12/4+3 -> 4.295 | F61: =Q12/4+3 -> 4.295 | G61: =Q12/2+3 -> 5.59 | H61: =Q12/4+3 -> 4.295 | I61: =Q12/4+3 -> 4.295 | W61: =MIN(W60,0) -> -9.642228492 | X61: -5.681513223 | Y61: 0 | Z61: 0 | AA61: 0 | AB61: 0 | AC61: 0 | AD61: 0 | AI61: 2 | AJ61: =AJ48+AJ$56+AJ$59 -> 83.15770613 | AK61: 73.951952 | AL61: 56.60852402 | AM61: 46.87674414 | AN61: 38.20009054 | AO61: 31.40570979 | AP61: 23.43245111 | AQ61: 16.64126636 | AY61: =MAX(AY60,0) -> 0 | AZ61: =MAX(AZ60,0) -> 0 | BA61: 0 | BB61: 0 | BC61: 0 | BD61: 0 | BE61: 0 | BF61: 0
U62: c | W62: =21.5*W40-20*LOG10(2.2925*($Q$44/(1+$Q$44^2))*LN(1/2/$Q$8^2)) -> -13.07675703 | X62: =21.5*X40-20*LOG10(2.2925*($Q$44/(1+$Q$44^2))*LN(1/2/$Q$8^2)) -> -5.575604226 | Y62: -0.3820738489 | Z62: 2.389564743 | AA62: 3.881126035 | AB62: 4.430584645 | AC62: 4.687970686 | AD62: 5.158020124 | AI62: 3 | AJ62: =AJ50+AJ$56+AJ$59 -> 82.53007473 | AK62: 71.05531717 | AL62: 56.55534486 | AM62: 46.91849711 | AN62: 38.20814224 | AO62: 31.4187656 | AP62: 23.44564557 | AQ62: 16.65048285 | AY62: =IF($P$26=1,AY61) -> 0 | AZ62: =IF($P$26=1,AZ61) -> 0 | BA62: 0 | BB62: 0 | BC62: 0 | BD62: 0 | BE62: 0 | BF62: 0
E63: 加振１ｘ | F63: 加振2x | G63: 加振3x | H63: 加振4x | I63: 加振5x | W63: =MIN(W62,0) -> -13.07675703 | X63: -5.575604226 | Y63: -0.3820738489 | Z63: 0 | AA63: 0 | AB63: 0 | AC63: 0 | AD63: 0 | AI63: 4 | AJ63: =AJ52+AJ$56+AJ$59 -> 83.15770613 | AK63: 73.951952 | AL63: 56.60852402 | AM63: 46.87674414 | AN63: 38.20009054 | AO63: 31.40570979 | AP63: 23.43245111 | AQ63: 16.64126636 | AY63: =IF($P$26=0,W94) -> FALSE | AZ63: =IF($P$26=0,X94) -> FALSE | BA63: FALSE | BB63: FALSE | BC63: FALSE | BD63: FALSE | BE63: FALSE | BF63: FALSE
C64: 1 | E64: =IF(床衝撃音計算シート!$N$13=1,E36,0) -> 0 | F64: =IF(床衝撃音計算シート!$N$13=1,F36,0) -> 0 | G64: =IF(床衝撃音計算シート!$N$13=1,G36,0) -> 0 | H64: =IF(床衝撃音計算シート!$N$13=1,H36,0) -> 0 | I64: =IF(床衝撃音計算シート!$N$13=1,I36,0) -> 0 | U64: s | V64: 5 | W64: =21.5*W43-20*LOG10(2.2925*($Q$44/(1+$Q$44^2))*LN(1/2/$Q$8^2)) -> -9.642228492 | X64: =21.5*X43-20*LOG10(2.2925*($Q$44/(1+$Q$44^2))*LN(1/2/$Q$8^2)) -> -5.681513223 | Y64: 0.4636268426 | Z64: 2.650338944 | AA64: 3.995437458 | AB64: 4.411757173 | AC64: 4.672589114 | AD64: 5.148931604 | AI64: 5 | AJ64: =AJ54+AJ$56+AJ$59 -> 83.15770613 | AK64: 73.951952 | AL64: 56.60852402 | AM64: 46.87674414 | AN64: 38.20009054 | AO64: 31.40570979 | AP64: 23.43245111 | AQ64: 16.64126636 | AY64: =MAX(AY62,AY63) -> 0 | AZ64: =MAX(AZ62,AZ63) -> 0 | BA64: 0 | BB64: 0 | BC64: 0 | BD64: 0 | BE64: 0 | BF64: 0
C65: 2 | E65: =IF(床衝撃音計算シート!$N$13=2,E38,0) -> 0 | F65: =IF(床衝撃音計算シート!$N$13=2,F38,0) -> 0 | G65: =IF(床衝撃音計算シート!$N$13=2,G38,0) -> 0 | H65: =IF(床衝撃音計算シート!$N$13=2,H38,0) -> 0 | I65: =IF(床衝撃音計算シート!$N$13=2,I38,0) -> 0 | W65: =MIN(W64,0) -> -9.642228492 | X65: =MIN(X64,0) -> -5.681513223 | Y65: 0 | Z65: 0 | AA65: 0 | AB65: 0 | AC65: 0 | AD65: 0 | AH65: c | AI65: 1 | AJ65: =AJ47+AJ$56+AJ$59 -> 86.38380782 | AK65: 73.84529011 | AL65: 57.06239801 | AM65: 46.92089996 | AN65: 38.22926177 | AO65: 31.39932195 | AP65: 23.42599544 | AQ65: 16.636757 | AX65: y | AY65: =-3*$BG65*LOG10($Q$25/W$47)-1.2*$BG65 -> -2.156585656 | AZ65: -3.059675643 | BA65: -3.952384034 | BB65: -4.855474021 | BC65: -5.758564008 | BD65: -6.661653995 | BE65: -7.564743982 | BF65: -8.467833969 | BG65: =(Q27-$Q$7/1000)/($Q$7/1000) -> 2
C66: 3 | E66: =IF(床衝撃音計算シート!$N$13=3,E40,0) -> 0 | F66: =IF(床衝撃音計算シート!$N$13=3,F40,0) -> 0 | G66: =IF(床衝撃音計算シート!$N$13=3,G40,0) -> 0 | H66: =IF(床衝撃音計算シート!$N$13=3,H40,0) -> 0 | I66: =IF(床衝撃音計算シート!$N$13=3,I40,0) -> 0 | U66: c | W66: =21.5*W46-20*LOG10(2.2925*($Q$44/(1+$Q$44^2))*LN(1/2/$Q$8^2)) -> -13.07675703 | X66: =21.5*X46-20*LOG10(2.2925*($Q$44/(1+$Q$44^2))*LN(1/2/$Q$8^2)) -> -5.575604226 | Y66: -0.3820738489 | Z66: 2.389564743 | AA66: 3.881126035 | AB66: 4.430584645 | AC66: 4.687970686 | AD66: 5.158020124 | AI66: 2 | AJ66: =AJ49+AJ$56+AJ$59 -> 86.38380782 | AK66: 73.84529011 | AL66: 57.06239801 | AM66: 46.92089996 | AN66: 38.22926177 | AO66: 31.39932195 | AP66: 23.42599544 | AQ66: 16.636757 | AY66: =MAX(AY65,0) -> 0 | AZ66: =MAX(AZ65,0) -> 0 | BA66: 0 | BB66: 0 | BC66: 0 | BD66: 0 | BE66: 0 | BF66: 0
C67: 4 | E67: =IF(床衝撃音計算シート!$N$13=4,E42,0) -> 0 | F67: =IF(床衝撃音計算シート!$N$13=4,F42,0) -> 0 | G67: =IF(床衝撃音計算シート!$N$13=4,G42,0) -> 0 | H67: =IF(床衝撃音計算シート!$N$13=4,H42,0) -> 0 | I67: =IF(床衝撃音計算シート!$N$13=4,I42,0) -> 0 | W67: =MIN(W66,0) -> -13.07675703 | X67: =MIN(X66,0) -> -5.575604226 | Y67: -0.3820738489 | Z67: 0 | AA67: 0 | AB67: 0 | AC67: 0 | AD67: 0 | AI67: 3 | AJ67: =AJ51+AJ$56+AJ$59 -> 88.39385029 | AK67: 72.93784245 | AL67: 56.59275098 | AM67: 46.93567059 | AN67: 38.24983515 | AO67: 31.41227363 | AP67: 23.43908466 | AQ67: 16.64589997 | AY67: =IF($P$27=1,AY66) -> 0 | AZ67: =IF($P$27=1,AZ66) -> 0 | BA67: 0 | BB67: 0 | BC67: 0 | BD67: 0 | BE67: 0 | BF67: 0
C68: 5 | E68: =IF(床衝撃音計算シート!$N$13=5,E44,0) -> 0 | F68: =IF(床衝撃音計算シート!$N$13=5,F44,0) -> 0 | G68: =IF(床衝撃音計算シート!$N$13=5,G44,0) -> 0 | H68: =IF(床衝撃音計算シート!$N$13=5,H44,0) -> 0 | I68: =IF(床衝撃音計算シート!$N$13=5,I44,0) -> 0 | T68: 拘束による増加量(dB) | U68: s | V68: 1 | W68: =-30.6*LOG10($Q$16/W$47)-23.1 -> -17.1083943 | X68: -21.71415324 | Y68: -26.26696603 | Z68: -30.87272496 | AA68: -35.4784839 | AB68: -40.08424283 | AC68: -44.69000176 | AD68: -49.2957607 | AI68: 4 | AJ68: =AJ53+AJ$56+AJ$59 -> 86.38380782 | AK68: 73.84529011 | AL68: 57.06239801 | AM68: 46.92089996 | AN68: 38.22926177 | AO68: 31.39932195 | AP68: 23.42599544 | AQ68: 16.636757 | AY68: =IF($P$27=0,W96) -> FALSE | AZ68: =IF($P$27=0,X96) -> FALSE | BA68: FALSE | BB68: FALSE | BC68: FALSE | BD68: FALSE | BE68: FALSE | BF68: FALSE
C69: 6 | E69: =IF(床衝撃音計算シート!$N$13=6,E46,0) -> 0 | F69: =IF(床衝撃音計算シート!$N$13=6,F46,0) -> 0 | G69: =IF(床衝撃音計算シート!$N$13=6,G46,0) -> 0 | H69: =IF(床衝撃音計算シート!$N$13=6,H46,0) -> 0 | I69: =IF(床衝撃音計算シート!$N$13=6,I46,0) -> 0 | W69: =MAX(W68,0) -> 0 | X69: =MAX(X68,0) -> 0 | Y69: 0 | Z69: 0 | AA69: 0 | AB69: 0 | AC69: 0 | AD69: 0 | AI69: 5 | AJ69: =AJ55+AJ$56+AJ$59 -> 86.38380782 | AK69: 73.84529011 | AL69: 57.06239801 | AM69: 46.92089996 | AN69: 38.22926177 | AO69: 31.39932195 | AP69: 23.42599544 | AQ69: 16.636757 | AY69: =MAX(AY67,AY68) -> 0 | AZ69: =MAX(AZ67,AZ68) -> 0 | BA69: 0 | BB69: 0 | BC69: 0 | BD69: 0 | BE69: 0 | BF69: 0
C70: 7 | E70: =IF(床衝撃音計算シート!$N$13=7,E48,0) -> 0 | F70: =IF(床衝撃音計算シート!$N$13=7,F48,0) -> 0 | G70: =IF(床衝撃音計算シート!$N$13=7,G48,0) -> 0 | H70: =IF(床衝撃音計算シート!$N$13=7,H48,0) -> 0 | I70: =IF(床衝撃音計算シート!$N$13=7,I48,0) -> 0 | W70: =-30.6*LOG10($Q$17/W$47)-23.1 -> -18.35645847 | X70: -22.96221741 | Y70: -27.5150302 | Z70: -32.12078913 | AA70: -36.72654807 | AB70: -41.332307 | AC70: -45.93806593 | AD70: -50.54382487 | AG70: 床衝撃音レベル(dB) 補正後 | AH70: s | AI70: 1 | AJ70: =MAX(AJ60,0) -> 83.15770613 | AK70: =MAX(AK60,0) -> 73.951952 | AL70: 56.60852402 | AM70: 46.87674414 | AN70: 38.20009054 | AO70: 31.40570978 | AP70: 23.43245111 | AQ70: 16.64126636 | AY70: =SQRT(AY64^2+AY69^2) -> 0 | AZ70: =SQRT(AZ64^2+AZ69^2) -> 0 | BA70: 0 | BB70: 0 | BC70: 0 | BD70: 0 | BE70: 0 | BF70: 0
C71: 8 | E71: =IF(床衝撃音計算シート!$N$13=8,E50,0) -> 0 | F71: =IF(床衝撃音計算シート!$N$13=8,F50,0) -> 0 | G71: =IF(床衝撃音計算シート!$N$13=8,G50,0) -> 0 | H71: =IF(床衝撃音計算シート!$N$13=8,H50,0) -> 0 | I71: =IF(床衝撃音計算シート!$N$13=8,I50,0) -> 0 | W71: =MAX(W70,0) -> 0 | X71: =MAX(X70,0) -> 0 | Y71: 0 | Z71: 0 | AA71: 0 | AB71: 0 | AC71: 0 | AD71: 0 | AI71: 2 | AJ71: =MAX(AJ61,0) -> 83.15770613 | AK71: 73.951952 | AL71: 56.60852402 | AM71: 46.87674414 | AN71: 38.20009054 | AO71: 31.40570979 | AP71: 23.43245111 | AQ71: 16.64126636 | AV71: 小梁による端部拘束 加振点4(dB) | AW71: s | AX71: x | AY71: =-3*$BG71*LOG10($Q$28/W$47)-1.2*$BG71 -> -1.225175354 | AZ71: -2.128265341 | BA71: -3.020973731 | BB71: -3.924063718 | BC71: -4.827153705 | BD71: -5.730243692 | BE71: -6.633333679 | BF71: -7.536423666 | BG71: =(Q30-$Q$7/1000)/($Q$7/1000) -> 2
C72: 9 | E72: =IF(床衝撃音計算シート!$N$13=9,E52,0) -> 0 | F72: =IF(床衝撃音計算シート!$N$13=9,F52,0) -> 0 | G72: =IF(床衝撃音計算シート!$N$13=9,G52,0) -> 0 | H72: =IF(床衝撃音計算シート!$N$13=9,H52,0) -> 0 | I72: =IF(床衝撃音計算シート!$N$13=9,I52,0) -> 0 | W72: =SQRT(W69^2+W71^2) -> 0 | X72: =SQRT(X69^2+X71^2) -> 0 | Y72: 0 | Z72: 0 | AA72: 0 | AB72: 0 | AC72: 0 | AD72: 0 | AI72: 3 | AJ72: 82.53007473 | AK72: 71.05531717 | AL72: 56.55534486 | AM72: 46.91849711 | AN72: 38.20814224 | AO72: 31.4187656 | AP72: 23.44564557 | AQ72: 16.65048285 | AY72: =MAX(AY71,0) -> 0 | AZ72: =MAX(AZ71,0) -> 0 | BA72: 0 | BB72: 0 | BC72: 0 | BD72: 0 | BE72: 0 | BF72: 0
C73: 10 | E73: =IF(床衝撃音計算シート!$N$13=10,E54,0) -> 0 | F73: =IF(床衝撃音計算シート!$N$13=10,F54,0) -> 0 | G73: =IF(床衝撃音計算シート!$N$13=10,G54,0) -> 0 | H73: =IF(床衝撃音計算シート!$N$13=10,H54,0) -> 0 | I73: =IF(床衝撃音計算シート!$N$13=10,I54,0) -> 0 | U73: c | W73: =-40*LOG10($Q$16/W$47)-23.3 -> -15.46783569 | X73: -21.4884356 | Y73: -27.43982487 | Z73: -33.46042479 | AA73: -39.4810247 | AB73: -45.50162461 | AC73: -51.52222453 | AD73: -57.54282444 | AI73: 4 | AJ73: 83.15770613 | AK73: 73.951952 | AL73: 56.60852402 | AM73: 46.87674414 | AN73: 38.20009054 | AO73: 31.40570979 | AP73: 23.43245111 | AQ73: 16.64126636 | AY73: =IF($P$30=1,AY72) -> 0 | AZ73: =IF($P$30=1,AZ72) -> 0 | BA73: 0 | BB73: 0 | BC73: 0 | BD73: 0 | BE73: 0 | BF73: 0
C74: 11 | E74: =IF(床衝撃音計算シート!$N$13=11,E56,0) -> 0 | F74: =IF(床衝撃音計算シート!$N$13=11,F56,0) -> 0 | G74: =IF(床衝撃音計算シート!$N$13=11,G56,0) -> 0 | H74: =IF(床衝撃音計算シート!$N$13=11,H56,0) -> 0 | I74: =IF(床衝撃音計算シート!$N$13=11,I56,0) -> 0 | W74: =MAX(W73,0) -> 0 | X74: =MAX(X73,0) -> 0 | Y74: 0 | Z74: 0 | AA74: 0 | AB74: 0 | AC74: 0 | AD74: 0 | AI74: 5 | AJ74: =MAX(AJ64,0) -> 83.15770613 | AK74: =MAX(AK64,0) -> 73.951952 | AL74: 56.60852402 | AM74: 46.87674414 | AN74: 38.20009054 | AO74: 31.40570979 | AP74: 23.43245111 | AQ74: 16.64126636 | AY74: =IF($P$30=0,W99) -> FALSE | AZ74: =IF($P$30=0,X99) -> FALSE | BA74: FALSE | BB74: FALSE | BC74: FALSE | BD74: FALSE | BE74: FALSE | BF74: FALSE
C75: 12 | E75: =IF(床衝撃音計算シート!$N$13=12,E58,0) -> 0 | F75: =IF(床衝撃音計算シート!$N$13=12,F58,0) -> 0 | G75: =IF(床衝撃音計算シート!$N$13=12,G58,0) -> 0 | H75: =IF(床衝撃音計算シート!$N$13=12,H58,0) -> 0 | I75: =IF(床衝撃音計算シート!$N$13=12,I58,0) -> 0 | W75: =-40*LOG10($Q$17/W$47)-23.3 -> -17.09929212 | X75: -23.11989203 | Y75: -29.07128131 | Z75: -35.09188122 | AA75: -41.11248113 | AB75: -47.13308105 | AC75: -53.15368096 | AD75: -59.17428087 | AH75: c | AI75: 1 | AJ75: =MAX(AJ65,0) -> 86.38380782 | AK75: =MAX(AK65,0) -> 73.84529011 | AL75: 57.06239801 | AM75: 46.92089996 | AN75: 38.22926177 | AO75: 31.39932195 | AP75: 23.42599544 | AQ75: 16.636757 | AY75: =MAX(AY73,AY74) -> 0 | AZ75: =MAX(AZ73,AZ74) -> 0 | BA75: 0 | BB75: 0 | BC75: 0 | BD75: 0 | BE75: 0 | BF75: 0
C76: 13 | E76: =IF(床衝撃音計算シート!$N$13=13,E60,0) -> 3.91 | F76: =IF(床衝撃音計算シート!$N$13=13,F60,0) -> 3.91 | G76: =IF(床衝撃音計算シート!$N$13=13,G60,0) -> 4.82 | H76: =IF(床衝撃音計算シート!$N$13=13,H60,0) -> 3.91 | I76: =IF(床衝撃音計算シート!$N$13=13,I60,0) -> 3.91 | W76: =MAX(W75,0) -> 0 | X76: =MAX(X75,0) -> 0 | Y76: 0 | Z76: 0 | AA76: 0 | AB76: 0 | AC76: 0 | AD76: 0 | AI76: 2 | AJ76: =MAX(AJ66,0) -> 86.38380782 | AK76: 73.84529011 | AL76: 57.06239801 | AM76: 46.92089996 | AN76: 38.22926177 | AO76: 31.39932195 | AP76: 23.42599544 | AQ76: 16.636757 | AX76: y | AY76: =-3*$BG76*LOG10($Q$29/W$47)-1.2*$BG76 -> -1.469893818 | AZ76: -2.372983805 | BA76: -3.265692196 | BB76: -4.168782183 | BC76: -5.07187217 | BD76: -5.974962157 | BE76: -6.878052144 | BF76: -7.781142131 | BG76: =(Q31-$Q$7/1000)/($Q$7/1000) -> 2
E77: =MAX(E64:E76) -> 3.91 | F77: =MAX(F64:F76) -> 3.91 | G77: =MAX(G64:G76) -> 4.82 | H77: =MAX(H64:H76) -> 3.91 | I77: =MAX(I64:I76) -> 3.91 | W77: =SQRT(W74^2+W76^2) -> 0 | X77: =SQRT(X74^2+X76^2) -> 0 | Y77: 0 | Z77: 0 | AA77: 0 | AB77: 0 | AC77: 0 | AD77: 0 | AI77: 3 | AJ77: 88.39385029 | AK77: 72.93784245 | AL77: 56.59275098 | AM77: 46.93567059 | AN77: 38.24983515 | AO77: 31.41227363 | AP77: 23.43908466 | AQ77: 16.64589997 | AY77: =MAX(AY76,0) -> 0 | AZ77: =MAX(AZ76,0) -> 0 | BA77: 0 | BB77: 0 | BC77: 0 | BD77: 0 | BE77: 0 | BF77: 0
U78: s | V78: 2 | W78: =-30.6*LOG10($Q$20/W$47)-23.1 -> -17.1083943 | X78: -21.71415324 | Y78: -26.26696603 | Z78: -30.87272496 | AA78: -35.4784839 | AB78: -40.08424283 | AC78: -44.69000176 | AD78: -49.2957607 | AI78: 4 | AJ78: 86.38380782 | AK78: 73.84529011 | AL78: 57.06239801 | AM78: 46.92089996 | AN78: 38.22926177 | AO78: 31.39932195 | AP78: 23.42599544 | AQ78: 16.636757 | AY78: =IF($P$31=1,AY77) -> FALSE | AZ78: =IF($P$31=1,AZ77) -> FALSE | BA78: FALSE | BB78: FALSE | BC78: FALSE | BD78: FALSE | BE78: FALSE | BF78: FALSE
C79: 1 | E79: =IF(床衝撃音計算シート!$N$13=1,0,0) -> 0 | F79: =IF(床衝撃音計算シート!$N$13=1,0,0) -> 0 | G79: =IF(床衝撃音計算シート!$N$13=1,0,0) -> 0 | H79: =IF(床衝撃音計算シート!$N$13=1,0,0) -> 0 | I79: =IF(床衝撃音計算シート!$N$13=1,0,0) -> 0 | W79: =MAX(W78,0) -> 0 | X79: 0 | Y79: 0 | Z79: 0 | AA79: 0 | AB79: 0 | AC79: 0 | AD79: 0 | AI79: 5 | AJ79: 86.38380782 | AK79: 73.84529011 | AL79: 57.06239801 | AM79: 46.92089996 | AN79: 38.22926177 | AO79: 31.39932195 | AP79: 23.42599544 | AQ79: 16.636757 | AY79: =IF($P$31=0,W101) -> 0 | AZ79: =IF($P$31=0,X101) -> 0 | BA79: 0 | BB79: 0 | BC79: 0 | BD79: 0 | BE79: 0 | BF79: 0
C80: 2 | E80: =IF(床衝撃音計算シート!$N$13=2,0,0) -> 0 | F80: =IF(床衝撃音計算シート!$N$13=2,0,0) -> 0 | G80: =IF(床衝撃音計算シート!$N$13=2,0,0) -> 0 | H80: =IF(床衝撃音計算シート!$N$13=2,0,0) -> 0 | I80: =IF(床衝撃音計算シート!$N$13=2,0,0) -> 0 | W80: =-30.6*LOG10($Q$21/W$47)-23.1 -> -18.35645847 | X80: -22.96221741 | Y80: -27.5150302 | Z80: -32.12078913 | AA80: -36.72654807 | AB80: -41.332307 | AC80: -45.93806593 | AD80: -50.54382487 | AG80: 平均床衝撃音レベル(dB) | AI80: ｓ | AJ80: =SUM(AJ70:AJ74)/$Q$15 -> 83.03217985 | AK80: =SUM(AK70:AK74)/$Q$15 -> 73.37262503 | AL80: 56.59788819 | AM80: 46.88509473 | AN80: 38.20170088 | AO80: 31.40832095 | AP80: 23.43509 | AQ80: 16.64310966 | AY80: =MAX(AY78,AY79) -> 0 | AZ80: =MAX(AZ78,AZ79) -> 0 | BA80: 0 | BB80: 0 | BC80: 0 | BD80: 0 | BE80: 0 | BF80: 0
C81: 3 | E81: =IF(床衝撃音計算シート!$N$13=3,0,0) -> 0 | F81: =IF(床衝撃音計算シート!$N$13=3,0,0) -> 0 | G81: =IF(床衝撃音計算シート!$N$13=3,0,0) -> 0 | H81: =IF(床衝撃音計算シート!$N$13=3,0,0) -> 0 | I81: =IF(床衝撃音計算シート!$N$13=3,0,0) -> 0 | W81: =MAX(W80,0) -> 0 | X81: 0 | Y81: 0 | Z81: 0 | AA81: 0 | AB81: 0 | AC81: 0 | AD81: 0 | AI81: ｃ | AJ81: =SUM(AJ75:AJ79)/$Q$15 -> 86.78581631 | AK81: =SUM(AK75:AK79)/$Q$15 -> 73.66380058 | AL81: 56.9684686 | AM81: 46.92385409 | AN81: 38.23337644 | AO81: 31.40191228 | AP81: 23.42861328 | AQ81: 16.63858559 | AY81: =SQRT(AY75^2+AY80^2) -> 0 | AZ81: =SQRT(AZ75^2+AZ80^2) -> 0 | BA81: 0 | BB81: 0 | BC81: 0 | BD81: 0 | BE81: 0 | BF81: 0
C82: 4 | E82: =IF(床衝撃音計算シート!$N$13=4,0,0) -> 0 | F82: =IF(床衝撃音計算シート!$N$13=4,0,0) -> 0 | G82: =IF(床衝撃音計算シート!$N$13=4,0,0) -> 0 | H82: =IF(床衝撃音計算シート!$N$13=4,0,0) -> 0 | I82: =IF(床衝撃音計算シート!$N$13=4,0,0) -> 0 | W82: =SQRT(W79^2+W81^2) -> 0 | X82: 0 | Y82: 0 | Z82: 0 | AA82: 0 | AB82: 0 | AC82: 0 | AD82: 0 | AG82: 拘束条件考慮 | AJ82: =AJ80+$Q$14*(AJ81-AJ80) -> 86.03508902 | AK82: =AK80+$Q$14*(AK81-AK80) -> 73.60556547 | AL82: 56.89435252 | AM82: 46.91610222 | AN82: 38.22704133 | AO82: 31.40319402 | AP82: 23.42990863 | AQ82: 16.6394904 | AW82: c | AX82: x | AY82: =-3*$BG82*LOG10($Q$28/W$47)-1.2*$BG82 -> -1.225175354 | AZ82: -2.128265341 | BA82: -3.020973731 | BB82: -3.924063718 | BC82: -4.827153705 | BD82: -5.730243692 | BE82: -6.633333679 | BF82: -7.536423666 | BG82: =(Q30-$Q$7/1000)/($Q$7/1000) -> 2
C83: 5 | E83: =IF(床衝撃音計算シート!$N$13=5,0,0) -> 0 | F83: =IF(床衝撃音計算シート!$N$13=5,0,0) -> 0 | G83: =IF(床衝撃音計算シート!$N$13=5,0,0) -> 0 | H83: =IF(床衝撃音計算シート!$N$13=5,0,0) -> 0 | I83: =IF(床衝撃音計算シート!$N$13=5,0,0) -> 0 | U83: c | W83: =-40*LOG10($Q$20/W$47)-23.3 -> -15.46783569 | X83: -21.4884356 | Y83: -27.43982487 | Z83: -33.46042479 | AA83: -39.4810247 | AB83: -45.50162461 | AC83: -51.52222453 | AD83: -57.54282444 | AY83: =MAX(AY82,0) -> 0 | AZ83: =MAX(AZ82,0) -> 0 | BA83: 0 | BB83: 0 | BC83: 0 | BD83: 0 | BE83: 0 | BF83: 0
C84: 6 | E84: =IF(床衝撃音計算シート!$N$13=6,0,0) -> 0 | F84: =IF(床衝撃音計算シート!$N$13=6,0,0) -> 0 | G84: =IF(床衝撃音計算シート!$N$13=6,0,0) -> 0 | H84: =IF(床衝撃音計算シート!$N$13=6,1,0) -> 0 | I84: =IF(床衝撃音計算シート!$N$13=6,1,0) -> 0 | W84: =MAX(W83,0) -> 0 | X84: 0 | Y84: 0 | Z84: 0 | AA84: 0 | AB84: 0 | AC84: 0 | AD84: 0 | AY84: =IF($P$30=1,AY83) -> 0 | AZ84: =IF($P$30=1,AZ83) -> 0 | BA84: 0 | BB84: 0 | BC84: 0 | BD84: 0 | BE84: 0 | BF84: 0
C85: 7 | E85: =IF(床衝撃音計算シート!$N$13=7,1,0) -> 0 | F85: =IF(床衝撃音計算シート!$N$13=7,1,0) -> 0 | G85: =IF(床衝撃音計算シート!$N$13=7,1,0) -> 0 | H85: =IF(床衝撃音計算シート!$N$13=7,1,0) -> 0 | I85: =IF(床衝撃音計算シート!$N$13=7,1,0) -> 0 | W85: =-40*LOG10($Q$21/W$47)-23.3 -> -17.09929212 | X85: -23.11989203 | Y85: -29.07128131 | Z85: -35.09188122 | AA85: -41.11248113 | AB85: -47.13308105 | AC85: -53.15368096 | AD85: -59.17428087 | AY85: =IF($P$30=0,W104) -> FALSE | AZ85: =IF($P$30=0,X104) -> FALSE | BA85: FALSE | BB85: FALSE | BC85: FALSE | BD85: FALSE | BE85: FALSE | BF85: FALSE
C86: 8 | E86: =IF(床衝撃音計算シート!$N$13=8,0,0) -> 0 | F86: =IF(床衝撃音計算シート!$N$13=8,0,0) -> 0 | G86: =IF(床衝撃音計算シート!$N$13=8,0,0) -> 0 | H86: =IF(床衝撃音計算シート!$N$13=8,1,0) -> 0 | I86: =IF(床衝撃音計算シート!$N$13=8,1,0) -> 0 | W86: =MAX(W85,0) -> 0 | X86: 0 | Y86: 0 | Z86: 0 | AA86: 0 | AB86: 0 | AC86: 0 | AD86: 0 | AY86: =MAX(AY84,AY85) -> 0 | AZ86: =MAX(AZ84,AZ85) -> 0 | BA86: 0 | BB86: 0 | BC86: 0 | BD86: 0 | BE86: 0 | BF86: 0
C87: 9 | E87: =IF(床衝撃音計算シート!$N$13=9,1,0) -> 0 | F87: =IF(床衝撃音計算シート!$N$13=9,1,0) -> 0 | G87: =IF(床衝撃音計算シート!$N$13=9,1,0) -> 0 | H87: =IF(床衝撃音計算シート!$N$13=9,1,0) -> 0 | I87: =IF(床衝撃音計算シート!$N$13=9,1,0) -> 0 | W87: =SQRT(W84^2+W86^2) -> 0 | X87: 0 | Y87: 0 | Z87: 0 | AA87: 0 | AB87: 0 | AC87: 0 | AD87: 0 | AX87: y | AY87: =-3*$BG87*LOG10($Q$29/W$47)-1.2*$BG87 -> -1.469893818 | AZ87: -2.372983805 | BA87: -3.265692196 | BB87: -4.168782183 | BC87: -5.07187217 | BD87: -5.974962157 | BE87: -6.878052144 | BF87: -7.781142131 | BG87: =(Q31-$Q$7/1000)/($Q$7/1000) -> 2
C88: 10 | E88: =IF(床衝撃音計算シート!$N$13=10,1,0) -> 0 | F88: =IF(床衝撃音計算シート!$N$13=10,1,0) -> 0 | G88: =IF(床衝撃音計算シート!$N$13=10,1,0) -> 0 | H88: =IF(床衝撃音計算シート!$N$13=10,1,0) -> 0 | I88: =IF(床衝撃音計算シート!$N$13=10,1,0) -> 0 | U88: s | V88: 3 | W88: =-30.6*LOG10($Q$24/W$47)-23.1 -> -19.8890249 | X88: -24.49478383 | Y88: -29.04759662 | Z88: -33.65335556 | AA88: -38.25911449 | AB88: -42.86487342 | AC88: -47.47063236 | AD88: -52.07639129 | AY88: =MAX(AY87,0) -> 0 | AZ88: =MAX(AZ87,0) -> 0 | BA88: 0 | BB88: 0 | BC88: 0 | BD88: 0 | BE88: 0 | BF88: 0
C89: 11 | E89: =IF(床衝撃音計算シート!$N$13=11,0,0) -> 0 | F89: =IF(床衝撃音計算シート!$N$13=11,0,0) -> 0 | G89: =IF(床衝撃音計算シート!$N$13=11,0,0) -> 0 | H89: =IF(床衝撃音計算シート!$N$13=11,0,0) -> 0 | I89: =IF(床衝撃音計算シート!$N$13=11,0,0) -> 0 | W89: =MAX(W88,0) -> 0 | X89: 0 | Y89: 0 | Z89: 0 | AA89: 0 | AB89: 0 | AC89: 0 | AD89: 0 | AY89: =IF($P$31=1,AY88) -> FALSE | AZ89: =IF($P$31=1,AZ88) -> FALSE | BA89: FALSE | BB89: FALSE | BC89: FALSE | BD89: FALSE | BE89: FALSE | BF89: FALSE
C90: 12 | E90: =IF(床衝撃音計算シート!$N$13=12,0,0) -> 0 | F90: =IF(床衝撃音計算シート!$N$13=12,0,0) -> 0 | G90: =IF(床衝撃音計算シート!$N$13=12,1,0) -> 0 | H90: =IF(床衝撃音計算シート!$N$13=12,1,0) -> 0 | I90: =IF(床衝撃音計算シート!$N$13=12,1,0) -> 0 | W90: =-30.6*LOG10($Q$25/W$47)-23.1 -> -21.85858685 | X90: -26.46434578 | Y90: -31.01715857 | Z90: -35.62291751 | AA90: -40.22867644 | AB90: -44.83443538 | AC90: -49.44019431 | AD90: -54.04595324 | AY90: =IF($P$31=0,W106) -> 0 | AZ90: =IF($P$31=0,X106) -> 0 | BA90: 0 | BB90: 0 | BC90: 0 | BD90: 0 | BE90: 0 | BF90: 0
C91: 13 | E91: =IF(床衝撃音計算シート!$N$13=13,0,0) -> 0 | F91: =IF(床衝撃音計算シート!$N$13=13,0,0) -> 0 | G91: =IF(床衝撃音計算シート!$N$13=13,1,0) -> 1 | H91: =IF(床衝撃音計算シート!$N$13=13,1,0) -> 1 | I91: =IF(床衝撃音計算シート!$N$13=13,1,0) -> 1 | W91: =MAX(W90,0) -> 0 | X91: 0 | Y91: 0 | Z91: 0 | AA91: 0 | AB91: 0 | AC91: 0 | AD91: 0 | AY91: =MAX(AY89,AY90) -> 0 | AZ91: =MAX(AZ89,AZ90) -> 0 | BA91: 0 | BB91: 0 | BC91: 0 | BD91: 0 | BE91: 0 | BF91: 0
E92: =MAX(E79:E91) -> 0 | F92: =MAX(F79:F91) -> 0 | G92: =MAX(G79:G91) -> 1 | H92: =MAX(H79:H91) -> 1 | I92: =MAX(I79:I91) -> 1 | W92: =SQRT(W89^2+W91^2) -> 0 | X92: 0 | Y92: 0 | Z92: 0 | AA92: 0 | AB92: 0 | AC92: 0 | AD92: 0 | AY92: =SQRT(AY86^2+AY91^2) -> 0 | AZ92: =SQRT(AZ86^2+AZ91^2) -> 0 | BA92: 0 | BB92: 0 | BC92: 0 | BD92: 0 | BE92: 0 | BF92: 0
U93: c | W93: =-40*LOG10($Q$24/W$47)-23.3 -> -19.10264692 | X93: -25.12324684 | Y93: -31.07463611 | Z93: -37.09523602 | AA93: -43.11583593 | AB93: -49.13643585 | AC93: -55.15703576 | AD93: -61.17763567 | AV93: 小梁による端部拘束 加振点5(dB) | AW93: s | AX93: x | AY93: =-3*$BG93*LOG10($Q$32/W$47)-1.2*$BG93 -> -1.225175354 | AZ93: -2.128265341 | BA93: -3.020973731 | BB93: -3.924063718 | BC93: -4.827153705 | BD93: -5.730243692 | BE93: -6.633333679 | BF93: -7.536423666 | BG93: =(Q34-$Q$7/1000)/($Q$7/1000) -> 2
E94: 加振1y | F94: 加振2y | G94: 加振3y | H94: 加振4y | I94: 加振5y | W94: =MAX(W93,0) -> 0 | X94: 0 | Y94: 0 | Z94: 0 | AA94: 0 | AB94: 0 | AC94: 0 | AD94: 0 | AY94: =MAX(AY93,0) -> 0 | AZ94: =MAX(AZ93,0) -> 0 | BA94: 0 | BB94: 0 | BC94: 0 | BD94: 0 | BE94: 0 | BF94: 0
C95: 1 | E95: =IF(床衝撃音計算シート!$N$13=1,E37,0) -> 0 | F95: =IF(床衝撃音計算シート!$N$13=1,F37,0) -> 0 | G95: =IF(床衝撃音計算シート!$N$13=1,G37,0) -> 0 | H95: =IF(床衝撃音計算シート!$N$13=1,H37,0) -> 0 | I95: =IF(床衝撃音計算シート!$N$13=1,I37,0) -> 0 | W95: =-40*LOG10($Q$25/W$47)-23.3 -> -21.67723771 | X95: -27.69783762 | Y95: -33.64922689 | Z95: -39.66982681 | AA95: -45.69042672 | AB95: -51.71102663 | AC95: -57.73162655 | AD95: -63.75222646 | AY95: =IF($P$34=1,AY94) -> 0 | AZ95: =IF($P$34=1,AZ94) -> 0 | BA95: 0 | BB95: 0 | BC95: 0 | BD95: 0 | BE95: 0 | BF95: 0
C96: 2 | E96: =IF(床衝撃音計算シート!$N$13=2,E39,0) -> 0 | F96: =IF(床衝撃音計算シート!$N$13=2,F39,0) -> 0 | G96: =IF(床衝撃音計算シート!$N$13=2,G39,0) -> 0 | H96: =IF(床衝撃音計算シート!$N$13=2,H39,0) -> 0 | I96: =IF(床衝撃音計算シート!$N$13=2,I39,0) -> 0 | W96: =MAX(W95,0) -> 0 | X96: 0 | Y96: 0 | Z96: 0 | AA96: 0 | AB96: 0 | AC96: 0 | AD96: 0 | AY96: =IF($P$34=0,W109) -> FALSE | AZ96: =IF($P$34=0,X109) -> FALSE | BA96: FALSE | BB96: FALSE | BC96: FALSE | BD96: FALSE | BE96: FALSE | BF96: FALSE
C97: 3 | E97: =IF(床衝撃音計算シート!$N$13=3,E41,0) -> 0 | F97: =IF(床衝撃音計算シート!$N$13=3,F41,0) -> 0 | G97: =IF(床衝撃音計算シート!$N$13=3,G41,0) -> 0 | H97: =IF(床衝撃音計算シート!$N$13=3,H41,0) -> 0 | I97: =IF(床衝撃音計算シート!$N$13=3,I41,0) -> 0 | W97: =SQRT(W94^2+W96^2) -> 0 | X97: 0 | Y97: 0 | Z97: 0 | AA97: 0 | AB97: 0 | AC97: 0 | AD97: 0 | AY97: =MAX(AY95,AY96) -> 0 | AZ97: =MAX(AZ95,AZ96) -> 0 | BA97: 0 | BB97: 0 | BC97: 0 | BD97: 0 | BE97: 0 | BF97: 0
C98: 4 | E98: =IF(床衝撃音計算シート!$N$13=4,E43,0) -> 0 | F98: =IF(床衝撃音計算シート!$N$13=4,F43,0) -> 0 | G98: =IF(床衝撃音計算シート!$N$13=4,G43,0) -> 0 | H98: =IF(床衝撃音計算シート!$N$13=4,H43,0) -> 0 | I98: =IF(床衝撃音計算シート!$N$13=4,I43,0) -> 0 | U98: s | V98: 4 | W98: =-30.6*LOG10($Q$28/W$47)-23.1 -> -17.1083943 | X98: -21.71415324 | Y98: -26.26696603 | Z98: -30.87272496 | AA98: -35.4784839 | AB98: -40.08424283 | AC98: -44.69000176 | AD98: -49.2957607 | AX98: y | AY98: =-3*$BG98*LOG10($Q$33/W$47)-1.2*$BG98 -> -1.469893818 | AZ98: -2.372983805 | BA98: -3.265692196 | BB98: -4.168782183 | BC98: -5.07187217 | BD98: -5.974962157 | BE98: -6.878052144 | BF98: -7.781142131 | BG98: =(Q35-$Q$7/1000)/($Q$7/1000) -> 2
C99: 5 | E99: =IF(床衝撃音計算シート!$N$13=5,E45,0) -> 0 | F99: =IF(床衝撃音計算シート!$N$13=5,F45,0) -> 0 | G99: =IF(床衝撃音計算シート!$N$13=5,G45,0) -> 0 | H99: =IF(床衝撃音計算シート!$N$13=5,H45,0) -> 0 | I99: =IF(床衝撃音計算シート!$N$13=5,I45,0) -> 0 | W99: =MAX(W98,0) -> 0 | X99: 0 | Y99: 0 | Z99: 0 | AA99: 0 | AB99: 0 | AC99: 0 | AD99: 0 | AY99: =MAX(AY98,0) -> 0 | AZ99: =MAX(AZ98,0) -> 0 | BA99: 0 | BB99: 0 | BC99: 0 | BD99: 0 | BE99: 0 | BF99: 0
C100: 6 | E100: =IF(床衝撃音計算シート!$N$13=6,E47,0) -> 0 | F100: =IF(床衝撃音計算シート!$N$13=6,F47,0) -> 0 | G100: =IF(床衝撃音計算シート!$N$13=6,G47,0) -> 0 | H100: =IF(床衝撃音計算シート!$N$13=6,H47,0) -> 0 | I100: =IF(床衝撃音計算シート!$N$13=6,I47,0) -> 0 | W100: =-30.6*LOG10($Q$29/W$47)-23.1 -> -18.35645847 | X100: -22.96221741 | Y100: -27.5150302 | Z100: -32.12078913 | AA100: -36.72654807 | AB100: -41.332307 | AC100: -45.93806593 | AD100: -50.54382487 | AY100: =IF($P$35=1,AY99) -> 0 | AZ100: =IF($P$35=1,AZ99) -> 0 | BA100: 0 | BB100: 0 | BC100: 0 | BD100: 0 | BE100: 0 | BF100: 0
C101: 7 | E101: =IF(床衝撃音計算シート!$N$13=7,E49,0) -> 0 | F101: =IF(床衝撃音計算シート!$N$13=7,F49,0) -> 0 | G101: =IF(床衝撃音計算シート!$N$13=7,G49,0) -> 0 | H101: =IF(床衝撃音計算シート!$N$13=7,H49,0) -> 0 | I101: =IF(床衝撃音計算シート!$N$13=7,I49,0) -> 0 | W101: =MAX(W100,0) -> 0 | X101: 0 | Y101: 0 | Z101: 0 | AA101: 0 | AB101: 0 | AC101: 0 | AD101: 0 | AY101: =IF($P$35=0,W111) -> FALSE | AZ101: =IF($P$35=0,X111) -> FALSE | BA101: FALSE | BB101: FALSE | BC101: FALSE | BD101: FALSE | BE101: FALSE | BF101: FALSE
C102: 8 | E102: =IF(床衝撃音計算シート!$N$13=8,E51,0) -> 0 | F102: =IF(床衝撃音計算シート!$N$13=8,F51,0) -> 0 | G102: =IF(床衝撃音計算シート!$N$13=8,G51,0) -> 0 | H102: =IF(床衝撃音計算シート!$N$13=8,H51,0) -> 0 | I102: =IF(床衝撃音計算シート!$N$13=8,I51,0) -> 0 | W102: =SQRT(W99^2+W101^2) -> 0 | X102: 0 | Y102: 0 | Z102: 0 | AA102: 0 | AB102: 0 | AC102: 0 | AD102: 0 | AY102: =MAX(AY100,AY101) -> 0 | AZ102: =MAX(AZ100,AZ101) -> 0 | BA102: 0 | BB102: 0 | BC102: 0 | BD102: 0 | BE102: 0 | BF102: 0
C103: 9 | E103: =IF(床衝撃音計算シート!$N$13=9,E53,0) -> 0 | F103: =IF(床衝撃音計算シート!$N$13=9,F53,0) -> 0 | G103: =IF(床衝撃音計算シート!$N$13=9,G53,0) -> 0 | H103: =IF(床衝撃音計算シート!$N$13=9,H53,0) -> 0 | I103: =IF(床衝撃音計算シート!$N$13=9,I53,0) -> 0 | U103: c | W103: =-40*LOG10($Q$28/W$47)-23.3 -> -15.46783569 | X103: -21.4884356 | Y103: -27.43982487 | Z103: -33.46042479 | AA103: -39.4810247 | AB103: -45.50162461 | AC103: -51.52222453 | AD103: -57.54282444 | AY103: =SQRT(AY97^2+AY102^2) -> 0 | AZ103: =SQRT(AZ97^2+AZ102^2) -> 0 | BA103: 0 | BB103: 0 | BC103: 0 | BD103: 0 | BE103: 0 | BF103: 0
C104: 10 | E104: =IF(床衝撃音計算シート!$N$13=10,E55,0) -> 0 | F104: =IF(床衝撃音計算シート!$N$13=10,F55,0) -> 0 | G104: =IF(床衝撃音計算シート!$N$13=10,G55,0) -> 0 | H104: =IF(床衝撃音計算シート!$N$13=10,H55,0) -> 0 | I104: =IF(床衝撃音計算シート!$N$13=10,I55,0) -> 0 | W104: =MAX(W103,0) -> 0 | X104: 0 | Y104: 0 | Z104: 0 | AA104: 0 | AB104: 0 | AC104: 0 | AD104: 0 | AW104: c | AX104: x | AY104: =-3*$BG104*LOG10($Q$32/W$47)-1.2*$BG104 -> -1.225175354 | AZ104: -2.128265341 | BA104: -3.020973731 | BB104: -3.924063718 | BC104: -4.827153705 | BD104: -5.730243692 | BE104: -6.633333679 | BF104: -7.536423666 | BG104: =(Q34-$Q$7/1000)/($Q$7/1000) -> 2
C105: 11 | E105: =IF(床衝撃音計算シート!$N$13=11,E57,0) -> 0 | F105: =IF(床衝撃音計算シート!$N$13=11,F57,0) -> 0 | G105: =IF(床衝撃音計算シート!$N$13=11,G57,0) -> 0 | H105: =IF(床衝撃音計算シート!$N$13=11,H57,0) -> 0 | I105: =IF(床衝撃音計算シート!$N$13=11,I57,0) -> 0 | W105: =-40*LOG10($Q$29/W$47)-23.3 -> -17.09929212 | X105: -23.11989203 | Y105: -29.07128131 | Z105: -35.09188122 | AA105: -41.11248113 | AB105: -47.13308105 | AC105: -53.15368096 | AD105: -59.17428087 | AY105: =MAX(AY104,0) -> 0 | AZ105: =MAX(AZ104,0) -> 0 | BA105: 0 | BB105: 0 | BC105: 0 | BD105: 0 | BE105: 0 | BF105: 0
C106: 12 | E106: =IF(床衝撃音計算シート!$N$13=12,E59,0) -> 0 | F106: =IF(床衝撃音計算シート!$N$13=12,F59,0) -> 0 | G106: =IF(床衝撃音計算シート!$N$13=12,G59,0) -> 0 | H106: =IF(床衝撃音計算シート!$N$13=12,H59,0) -> 0 | I106: =IF(床衝撃音計算シート!$N$13=12,I59,0) -> 0 | W106: =MAX(W105,0) -> 0 | X106: 0 | Y106: 0 | Z106: 0 | AA106: 0 | AB106: 0 | AC106: 0 | AD106: 0 | AY106: =IF($P$34=1,AY105) -> 0 | AZ106: =IF($P$34=1,AZ105) -> 0 | BA106: 0 | BB106: 0 | BC106: 0 | BD106: 0 | BE106: 0 | BF106: 0
C107: 13 | E107: =IF(床衝撃音計算シート!$N$13=13,E61,0) -> 4.295 | F107: =IF(床衝撃音計算シート!$N$13=13,F61,0) -> 4.295 | G107: =IF(床衝撃音計算シート!$N$13=13,G61,0) -> 5.59 | H107: =IF(床衝撃音計算シート!$N$13=13,H61,0) -> 4.295 | I107: =IF(床衝撃音計算シート!$N$13=13,I61,0) -> 4.295 | W107: =SQRT(W104^2+W106^2) -> 0 | X107: 0 | Y107: 0 | Z107: 0 | AA107: 0 | AB107: 0 | AC107: 0 | AD107: 0 | AY107: =IF($P$34=0,W114) -> FALSE | AZ107: =IF($P$34=0,X114) -> FALSE | BA107: FALSE | BB107: FALSE | BC107: FALSE | BD107: FALSE | BE107: FALSE | BF107: FALSE
E108: =MAX(E95:E107) -> 4.295 | F108: =MAX(F95:F107) -> 4.295 | G108: =MAX(G95:G107) -> 5.59 | H108: =MAX(H95:H107) -> 4.295 | I108: =MAX(I95:I107) -> 4.295 | U108: s | V108: 5 | W108: =-30.6*LOG10($Q$32/W$47)-23.1 -> -17.1083943 | X108: -21.71415324 | Y108: -26.26696603 | Z108: -30.87272496 | AA108: -35.4784839 | AB108: -40.08424283 | AC108: -44.69000176 | AD108: -49.2957607 | AY108: =MAX(AY106,AY107) -> 0 | AZ108: =MAX(AZ106,AZ107) -> 0 | BA108: 0 | BB108: 0 | BC108: 0 | BD108: 0 | BE108: 0 | BF108: 0
W109: =MAX(W108,0) -> 0 | X109: 0 | Y109: 0 | Z109: 0 | AA109: 0 | AB109: 0 | AC109: 0 | AD109: 0 | AX109: y | AY109: =-3*$BG109*LOG10($Q$33/W$47)-1.2*$BG109 -> -1.469893818 | AZ109: -2.372983805 | BA109: -3.265692196 | BB109: -4.168782183 | BC109: -5.07187217 | BD109: -5.974962157 | BE109: -6.878052144 | BF109: -7.781142131 | BG109: =(Q35-$Q$7/1000)/($Q$7/1000) -> 2
C110: 1 | E110: =IF(床衝撃音計算シート!$N$13=1,0,0) -> 0 | F110: =IF(床衝撃音計算シート!$N$13=1,0,0) -> 0 | G110: =IF(床衝撃音計算シート!$N$13=1,0,0) -> 0 | H110: =IF(床衝撃音計算シート!$N$13=1,0,0) -> 0 | I110: =IF(床衝撃音計算シート!$N$13=1,0,0) -> 0 | W110: =-30.6*LOG10($Q$33/W$47)-23.1 -> -18.35645847 | X110: -22.96221741 | Y110: -27.5150302 | Z110: -32.12078913 | AA110: -36.72654807 | AB110: -41.332307 | AC110: -45.93806593 | AD110: -50.54382487 | AY110: =MAX(AY109,0) -> 0 | AZ110: =MAX(AZ109,0) -> 0 | BA110: 0 | BB110: 0 | BC110: 0 | BD110: 0 | BE110: 0 | BF110: 0
C111: 2 | E111: =IF(床衝撃音計算シート!$N$13=2,0,0) -> 0 | F111: =IF(床衝撃音計算シート!$N$13=2,0,0) -> 0 | G111: =IF(床衝撃音計算シート!$N$13=2,0,0) -> 0 | H111: =IF(床衝撃音計算シート!$N$13=2,0,0) -> 0 | I111: =IF(床衝撃音計算シート!$N$13=2,0,0) -> 0 | W111: =MAX(W110,0) -> 0 | X111: 0 | Y111: 0 | Z111: 0 | AA111: 0 | AB111: 0 | AC111: 0 | AD111: 0 | AY111: =IF($P$35=1,AY110) -> 0 | AZ111: =IF($P$35=1,AZ110) -> 0 | BA111: 0 | BB111: 0 | BC111: 0 | BD111: 0 | BE111: 0 | BF111: 0
C112: 3 | E112: =IF(床衝撃音計算シート!$N$13=3,0,0) -> 0 | F112: =IF(床衝撃音計算シート!$N$13=3,0,0) -> 0 | G112: =IF(床衝撃音計算シート!$N$13=3,0,0) -> 0 | H112: =IF(床衝撃音計算シート!$N$13=3,0,0) -> 0 | I112: =IF(床衝撃音計算シート!$N$13=3,0,0) -> 0 | W112: =SQRT(W109^2+W111^2) -> 0 | X112: 0 | Y112: 0 | Z112: 0 | AA112: 0 | AB112: 0 | AC112: 0 | AD112: 0 | AY112: =IF($P$35=0,W116) -> FALSE | AZ112: =IF($P$35=0,X116) -> FALSE | BA112: FALSE | BB112: FALSE | BC112: FALSE | BD112: FALSE | BE112: FALSE | BF112: FALSE
C113: 4 | E113: =IF(床衝撃音計算シート!$N$13=4,0,0) -> 0 | F113: =IF(床衝撃音計算シート!$N$13=4,0,0) -> 0 | G113: =IF(床衝撃音計算シート!$N$13=4,0,0) -> 0 | H113: =IF(床衝撃音計算シート!$N$13=4,0,0) -> 0 | I113: =IF(床衝撃音計算シート!$N$13=4,0,0) -> 0 | U113: c | W113: =-40*LOG10($Q$32/W$47)-23.3 -> -15.46783569 | X113: -21.4884356 | Y113: -27.43982487 | Z113: -33.46042479 | AA113: -39.4810247 | AB113: -45.50162461 | AC113: -51.52222453 | AD113: -57.54282444 | AY113: =MAX(AY111,AY112) -> 0 | AZ113: =MAX(AZ111,AZ112) -> 0 | BA113: 0 | BB113: 0 | BC113: 0 | BD113: 0 | BE113: 0 | BF113: 0
C114: 5 | E114: =IF(床衝撃音計算シート!$N$13=5,0,0) -> 0 | F114: =IF(床衝撃音計算シート!$N$13=5,0,0) -> 0 | G114: =IF(床衝撃音計算シート!$N$13=5,0,0) -> 0 | H114: =IF(床衝撃音計算シート!$N$13=5,0,0) -> 0 | I114: =IF(床衝撃音計算シート!$N$13=5,0,0) -> 0 | W114: =MAX(W113,0) -> 0 | X114: 0 | Y114: 0 | Z114: 0 | AA114: 0 | AB114: 0 | AC114: 0 | AD114: 0 | AY114: =SQRT(AY108^2+AY113^2) -> 0 | AZ114: =SQRT(AZ108^2+AZ113^2) -> 0 | BA114: 0 | BB114: 0 | BC114: 0 | BD114: 0 | BE114: 0 | BF114: 0
C115: 6 | E115: =IF(床衝撃音計算シート!$N$13=6,0,0) -> 0 | F115: =IF(床衝撃音計算シート!$N$13=6,0,0) -> 0 | G115: =IF(床衝撃音計算シート!$N$13=6,0,0) -> 0 | H115: =IF(床衝撃音計算シート!$N$13=6,0,0) -> 0 | I115: =IF(床衝撃音計算シート!$N$13=6,0,0) -> 0 | W115: =-40*LOG10($Q$33/W$47)-23.3 -> -17.09929212 | X115: -23.11989203 | Y115: -29.07128131 | Z115: -35.09188122 | AA115: -41.11248113 | AB115: -47.13308105 | AC115: -53.15368096 | AD115: -59.17428087
C116: 7 | E116: =IF(床衝撃音計算シート!$N$13=7,0,0) -> 0 | F116: =IF(床衝撃音計算シート!$N$13=7,1,0) -> 0 | G116: =IF(床衝撃音計算シート!$N$13=7,1,0) -> 0 | H116: =IF(床衝撃音計算シート!$N$13=7,0,0) -> 0 | I116: =IF(床衝撃音計算シート!$N$13=7,1,0) -> 0 | W116: =MAX(W115,0) -> 0 | X116: 0 | Y116: 0 | Z116: 0 | AA116: 0 | AB116: 0 | AC116: 0 | AD116: 0
C117: 8 | E117: =IF(床衝撃音計算シート!$N$13=8,0,0) -> 0 | F117: =IF(床衝撃音計算シート!$N$13=8,0,0) -> 0 | G117: =IF(床衝撃音計算シート!$N$13=8,0,0) -> 0 | H117: =IF(床衝撃音計算シート!$N$13=8,0,0) -> 0 | I117: =IF(床衝撃音計算シート!$N$13=8,0,0) -> 0 | W117: =SQRT(W114^2+W116^2) -> 0 | X117: 0 | Y117: 0 | Z117: 0 | AA117: 0 | AB117: 0 | AC117: 0 | AD117: 0
C118: 9 | E118: =IF(床衝撃音計算シート!$N$13=9,0,0) -> 0 | F118: =IF(床衝撃音計算シート!$N$13=9,0,0) -> 0 | G118: =IF(床衝撃音計算シート!$N$13=9,0,0) -> 0 | H118: =IF(床衝撃音計算シート!$N$13=9,0,0) -> 0 | I118: =IF(床衝撃音計算シート!$N$13=9,0,0) -> 0
C119: 10 | E119: =IF(床衝撃音計算シート!$N$13=10,0,0) -> 0 | F119: =IF(床衝撃音計算シート!$N$13=10,0,0) -> 0 | G119: =IF(床衝撃音計算シート!$N$13=10,0,0) -> 0 | H119: =IF(床衝撃音計算シート!$N$13=10,0,0) -> 0 | I119: =IF(床衝撃音計算シート!$N$13=10,0,0) -> 0
C120: 11 | E120: =IF(床衝撃音計算シート!$N$13=11,0,0) -> 0 | F120: =IF(床衝撃音計算シート!$N$13=11,1,0) -> 0 | G120: =IF(床衝撃音計算シート!$N$13=11,0,0) -> 0 | H120: =IF(床衝撃音計算シート!$N$13=11,0,0) -> 0 | I120: =IF(床衝撃音計算シート!$N$13=11,1,0) -> 0
C121: 12 | E121: =IF(床衝撃音計算シート!$N$13=12,0,0) -> 0 | F121: =IF(床衝撃音計算シート!$N$13=12,1,0) -> 0 | G121: =IF(床衝撃音計算シート!$N$13=12,0,0) -> 0 | H121: =IF(床衝撃音計算シート!$N$13=12,0,0) -> 0 | I121: =IF(床衝撃音計算シート!$N$13=12,1,0) -> 0
C122: 13 | E122: =IF(床衝撃音計算シート!$N$13=13,0,0) -> 0 | F122: =IF(床衝撃音計算シート!$N$13=13,1,0) -> 1 | G122: =IF(床衝撃音計算シート!$N$13=13,1,0) -> 1 | H122: =IF(床衝撃音計算シート!$N$13=13,0,0) -> 0 | I122: =IF(床衝撃音計算シート!$N$13=13,1,0) -> 1
E123: =MAX(E110:E122) -> 0 | F123: =MAX(F110:F122) -> 1 | G123: =MAX(G110:G122) -> 1 | H123: =MAX(H110:H122) -> 0 | I123: =MAX(I110:I122) -> 1

Sheet 計算表s-1 (hidden)
B1: ヤング率 | C1: 辺長ｘ | D1: 辺長ｙ | E1: 板厚 | F1: ポアソン比 | G1: 密度 | H1: 曲げ剛性 | I1: 面密度 | J1: 加振点ｘ | K1: 加振点ｙ | L1: 縮退重み | M1: 周波数重み
B2: 24000000000 | C2: =床衝撃音計算シート!E17 -> 12.27 | D2: =床衝撃音計算シート!G17 -> 6.65 | E2: =(床衝撃音計算シート!N17)/1000 -> 0.2 | F2: 0.16 | G2: 2300 | H2: =B2*E2^3/12/(1-F2^2) -> 16420361.25 | I2: =G2*E2 -> 460 | J2: ='計算表（参考）'!D30 -> 3.91 | K2: ='計算表（参考）'!F30 -> 4.295 | L2: 1 | M2: 0
B4: 周波数 | C4: 31.5Hz | D4: 63Hz | E4: 125Hz | F4: 250Hz | G4: 500Hz | H4: 1000Hz | I4: (2000Hz) | J4: (4000Hz)
B5: モード数１ | C5: =M8 -> 2.395752665 | D5: =S8 -> 3.552882129 | E5: =Y8 -> 9.820208031 | F5: =AE8 -> 19.70962128 | G5: =AK8 -> 40.947531 | H5: =AQ8 -> 57.62835691 | I5: =H6*I7/H7 -> 75.45557055 | J5: =H6*J7/H7 -> 152.1836617
B6: モード数２ | C6: =C5*($D$7^2+$C$7^2)/2/$D$7^2 -> 1.549733295 | D6: =D5*($D$7^2+$C$7^2)/2/$D$7^2 -> 2.298242139 | E6: 6.352368328 | F6: 12.74950322 | G6: 26.48760578 | H6: 37.27788129 | I6: 48.80971717 | J6: 98.44258591
C7: =MIN(C2,D2) -> 6.65 | D7: =MAX(C2,D2) -> 12.27 | H7: =0.354*SQRT(I2/H2)*C2*D2*1000-0.139*SQRT(SQRT(I2/H2*1000^2))*(C2+D2) -> 146.8318991 | I7: =0.354*SQRT(I2/H2)*C2*D2*2000-0.139*SQRT(SQRT(I2/H2*2000^2))*(C2+D2) -> 297.2080049 | J7: =0.354*SQRT(I2/H2)*C2*D2*4000-0.139*SQRT(SQRT(I2/H2*4000^2))*(C2+D2) -> 599.4282747
M8: =M9+O9+Q9 -> 2.395752665 | S8: =S9+U9+W9 -> 3.552882129 | Y8: =Y9+AA9+AC9 -> 9.820208031 | AE8: =AE9+AG9+AI9 -> 19.70962128 | AK8: =AK9+AM9+AO9 -> 40.947531 | AQ8: =AQ9+AS9+AU9 -> 57.62835691
B9: m | C9: n | D9: fi | F9: No. | G9: m | H9: n | I9: fi | J9: 縮退ﾁｪｯｸ | K9: 周波数重み | L9: 重み | M9: =SUM(N10:N409) -> 0.00600633998 | O9: =SUM(P10:P409) -> 2.193856854 | Q9: =SUM(R10:R409) -> 0.1958894713 | S9: =SUM(T10:T409) -> 0.1600382281 | U9: =SUM(V10:V409) -> 2.942982935 | W9: =SUM(X10:X409) -> 0.4498609661 | Y9: =SUM(Z10:Z409) -> 0.1966407604 | AA9: =SUM(AB10:AB409) -> 8.522104925 | AC9: =SUM(AD10:AD409) -> 1.101462345 | AE9: =SUM(AF10:AF409) -> 1.587417636 | AG9: =SUM(AH10:AH409) -> 15.02283653 | AI9: =SUM(AJ10:AJ409) -> 3.099367106 | AK9: =SUM(AL10:AL409) -> 2.859637775 | AM9: =SUM(AN10:AN409) -> 32.27004746 | AO9: =SUM(AP10:AP409) -> 5.817845764 | AQ9: =SUM(AR10:AR409) -> 5.567727897 | AS9: =SUM(AT10:AT409) -> 46.43516311 | AU9: =SUM(AV10:AV409) -> 5.625465909
B10: 1 | C10: 1 | D10: =3.1416/2*SQRT($H$2/$I$2)*(B10^2/$C$2^2+C10^2/$D$2^2) -> 8.682304625 | F10: 1 | G10: 1 | H10: 1 | I10: 8.682304625 | J10: =1 -> 1 | K10: =ABS(SIN(G10*3.1416*$J$2/$C$2)*SIN(H10*3.1416*$K$2/$D$2))*(1/F10^$M$2)+(1-1/F10^$M$2) -> 0.7551928147 | L10: =$J10*$K10 -> 0.7551928147 | M10: =10^(LOG10($I10/22.27)/LOG10(2)*70/20)*$L10 -> 1.323509944e-05 | N10: =IF($I10<22.27,M10,0) -> 1.323509944e-05 | O10: =AND($I10>22.27,$I10<44.45) -> FALSE | P10: =IF($O10=TRUE,$L10,0) -> 0 | Q10: =10^(LOG10(44.45/$I10)/LOG10(2)*70/20)*$L10 -> 133099064.5 | R10: =IF($I10>44.45,Q10,0) -> 0 | S10: =10^(LOG10($I10/44.548)/LOG10(2)*70/20)*$L10 -> 4.176575554e-09 | T10: =IF($I10<44.528,S10,0) -> 4.176575554e-09 | U10: =AND($I10>44.548,$I10<89.095) -> FALSE | V10: =IF($U10=TRUE,$L10,0) -> 0 | W10: =10^(LOG10(89.095/$I10)/LOG10(2)*70/20)*$L10 -> 4.317562986e+11 | X10: =IF($I10>89.095,W10,0) -> 0 | Y10: =10^(LOG10($I10/89.09)/LOG10(2)*70/20)*$L10 -> 1.321783719e-12 | Z10: =IF($I10<89.09,Y10,0) -> 1.321783719e-12 | AA10: =AND($I10>89.09,$I10<176.78) -> FALSE | AB10: =IF($AA10=TRUE,$L10,0) -> 0 | AC10: =10^(LOG10(176.78/$I10)/LOG10(2)*70/20)*$L10 -> 1.244870269e+15 | AD10: =IF($I10>176.78,AC10,0) -> 0 | AE10: =10^(LOG10($I10/176.78)/LOG10(2)*70/20)*$L10 -> 4.581330293e-16 | AF10: =IF($I10<176.78,AE10,0) -> 4.581330293e-16 | AG10: =AND($I10>176.78,$I10<353.55) -> FALSE | AH10: =IF($AG10=TRUE,$L10,0) -> 0 | AI10: =10^(LOG10(353.55/$I10)/LOG10(2)*70/20)*$L10 -> 3.935331085e+18 | AJ10: =IF($I10>353.55,AI10,0) -> 0 | AK10: =10^(LOG10($I10/353.55)/LOG10(2)*70/20)*$L10 -> 1.449220345e-19 | AL10: =IF($I10<353.55,AK10,0) -> 1.449220345e-19 | AM10: =AND($I10>353.55,$I10<707.1) -> FALSE | AN10: =IF($AM10=TRUE,$L10,0) -> 0 | AO10: =10^(LOG10(707.1/$I10)/LOG10(2)*70/20)*$L10 -> 1.244460957e+22 | AP10: =IF($I10>707.1,AO10,0) -> 0 | AQ10: =10^(LOG10($I10/707.1)/LOG10(2)*70/20)*$L10 -> 4.582837123e-23 | AR10: =IF($I10<707.1,AQ10,0) -> 4.582837123e-23 | AS10: =AND($I10>707.1,$I10<1414.2) -> FALSE | AT10: =IF($AS10=TRUE,$L10,0) -> 0 | AU10: =10^(LOG10(1414.2/$I10)/LOG10(2)*70/20)*$L10 -> 3.935331085e+25 | AV10: =IF($I10>1414.2,AU10,0) -> 0
B11: 1 | C11: 2 | D11: 28.81543447 | F11: 2 | G11: 2 | H11: 1 | I11: 14.59608865 | J11: =IF(ABS(I11-I10)>0.0001,1,$L$2) -> 1 | K11: 0.8146498235 | L11: =$J11*$K11 -> 0.8146498235 | M11: =10^(LOG10($I11/22.27)/LOG10(2)*70/20)*$L11 -> 0.005993104881 | N11: =IF($I11<22.27,M11,0) -> 0.005993104881 | O11: =AND($I11>22.27,$I11<44.45) -> FALSE | P11: =IF($O11=TRUE,$L11,0) -> 0 | Q11: =10^(LOG10(44.45/$I11)/LOG10(2)*70/20)*$L11 -> 342039.7425 | R11: =IF($I11>44.45,Q11,0) -> 0 | S11: =10^(LOG10($I11/44.548)/LOG10(2)*70/20)*$L11 -> 1.891232888e-06 | T11: =IF($I11<44.528,S11,0) -> 1.891232888e-06 | U11: FALSE | V11: =IF($U11=TRUE,$L11,0) -> 0 | W11: =10^(LOG10(89.095/$I11)/LOG10(2)*70/20)*$L11 -> 1109533066 | X11: 0 | Y11: =10^(LOG10($I11/89.09)/LOG10(2)*70/20)*$L11 -> 5.985288203e-10 | Z11: =IF($I11<89.09,Y11,0) -> 5.985288203e-10 | AA11: =AND($I11>89.09,$I11<176.78) -> FALSE | AB11: =IF($AA11=TRUE,$L11,0) -> 0 | AC11: =10^(LOG10(176.78/$I11)/LOG10(2)*70/20)*$L11 -> 3.199084139e+12 | AD11: =IF($I11>176.78,AC11,0) -> 0 | AE11: =10^(LOG10($I11/176.78)/LOG10(2)*70/20)*$L11 -> 2.074513536e-13 | AF11: =IF($I11<176.78,AE11,0) -> 2.074513536e-13 | AG11: =AND($I11>176.78,$I11<353.55) -> FALSE | AH11: =IF($AG11=TRUE,$L11,0) -> 0 | AI11: =10^(LOG10(353.55/$I11)/LOG10(2)*70/20)*$L11 -> 1.011306605e+16 | AJ11: =IF($I11>353.55,AI11,0) -> 0 | AK11: =10^(LOG10($I11/353.55)/LOG10(2)*70/20)*$L11 -> 6.5623455e-17 | AL11: =IF($I11<353.55,AK11,0) -> 6.5623455e-17 | AM11: =AND($I11>353.55,$I11<707.1) -> FALSE | AN11: =IF($AM11=TRUE,$L11,0) -> 0 | AO11: =10^(LOG10(707.1/$I11)/LOG10(2)*70/20)*$L11 -> 3.198032285e+19 | AP11: =IF($I11>707.1,AO11,0) -> 0 | AQ11: =10^(LOG10($I11/707.1)/LOG10(2)*70/20)*$L11 -> 2.075195857e-20 | AR11: =IF($I11<707.1,AQ11,0) -> 2.075195857e-20 | AS11: =AND($I11>707.1,$I11<1414.2) -> FALSE | AT11: =IF($AS11=TRUE,$L11,0) -> 0 | AU11: =10^(LOG10(1414.2/$I11)/LOG10(2)*70/20)*$L11 -> 1.011306605e+23 | AV11: =IF($I11>1414.2,AU11,0) -> 0
B12: 1 | C12: 3 | D12: 62.37065089 | F12: 3 | G12: 3 | H12: 1 | I12: 24.45239536 | J12: 1 | K12: 0.1235951213 | L12: 0.1235951213 | M12: 0.3664891898 | N12: 0 | O12: TRUE | P12: 0.1235951213 | Q12: 128.744297 | R12: 0 | S12: 0.0001156523076 | T12: 0.0001156523076 | U12: FALSE | V12: 0 | W12: 417629.9912 | X12: 0 | Y12: 3.660111859e-08 | Z12: 3.660111859e-08 | AA12: FALSE | AB12: 0 | AC12: 1204140301 | AD12: 0 | AE12: 1.268602503e-11 | AF12: 1.268602503e-11 | AG12: FALSE | AH12: 0 | AI12: 3.806573967e+12 | AJ12: 0 | AK12: 4.01299282e-15 | AL12: 4.01299282e-15 | AM12: FALSE | AN12: 0 | AO12: 1.203744382e+16 | AP12: 0 | AQ12: 1.269019755e-18 | AR12: 1.269019755e-18 | AS12: FALSE | AT12: 0 | AU12: 3.806573967e+19 | AV12: 0
B13: 1 | C13: 4 | D13: 109.3479539 | F13: 4 | G13: 1 | H13: 2 | I13: 28.81543447 | J13: 1 | K13: 0.6681662288 | L13: 0.6681662288 | M13: 13.36519415 | N13: 0 | O13: TRUE | P13: 0.6681662288 | Q13: 103.1763794 | R13: 0 | S13: 0.004217629298 | T13: 0.004217629298 | U13: FALSE | V13: 0 | W13: 334690.9449 | X13: 0 | Y13: 1.334776222e-06 | Z13: 1.334776222e-06 | AA13: FALSE | AB13: 0 | AC13: 965004582.5 | AD13: 0 | AE13: 4.626362583e-10 | AF13: 4.626362583e-10 | AG13: FALSE | AH13: 0 | AI13: 3.050609067e+12 | AJ13: 0 | AK13: 1.46346549e-13 | AL13: 1.46346549e-13 | AM13: FALSE | AN13: 0 | AO13: 9646872904003806 | AP13: 0 | AQ13: 4.627884225e-17 | AR13: 4.627884225e-17 | AS13: FALSE | AT13: 0 | AU13: 3.050609067e+19 | AV13: 0
B14: 1 | C14: 5 | D14: 169.7473434 | F14: 5 | G14: 2 | H14: 2 | I14: 34.7292185 | J14: 1 | K14: 0.7207715563 | L14: 0.7207715563 | M14: 126.3185114 | N14: 0 | O14: TRUE | P14: 0.7207715563 | Q14: 12.70324849 | R14: 0 | S14: 0.03986209619 | T14: 0.03986209619 | U14: FALSE | V14: 0 | W14: 41207.70923 | X14: 0 | Y14: 1.261537569e-05 | Z14: 1.261537569e-05 | AA14: FALSE | AB14: 0 | AC14: 118812979.1 | AD14: 0 | AE14: 4.372515867e-09 | AF14: 4.372515867e-09 | AG14: FALSE | AH14: 0 | AI14: 3.755960935e+11 | AJ14: 0 | AK14: 1.383165707e-12 | AL14: 1.383165707e-12 | AM14: FALSE | AN14: 0 | AO14: 1.187739136e+15 | AP14: 0 | AQ14: 4.373954017e-16 | AR14: 4.373954017e-16 | AS14: FALSE | AT14: 0 | AU14: 3.755960935e+18 | AV14: 0
B15: 1 | C15: 6 | D15: 243.5688195 | F15: 6 | G15: 4 | H15: 1 | I15: 38.25122474 | J15: 1 | K15: 0.6813239473 | L15: 0.6813239473 | M15: 367.0869921 | N15: 0 | O15: TRUE | P15: 0.6813239473 | Q15: 3.905933326 | R15: 0 | S15: 0.1158409549 | T15: 0.1158409549 | U15: FALSE | V15: 0 | W15: 12670.34687 | X15: 0 | Y15: 3.666082084e-05 | Z15: 3.666082084e-05 | AA15: FALSE | AB15: 0 | AC15: 36532039.42 | AD15: 0 | AE15: 1.270671795e-08 | AF15: 1.270671795e-08 | AG15: FALSE | AH15: 0 | AI15: 1.154864679e+11 | AJ15: 0 | AK15: 4.019538651e-12 | AL15: 4.019538651e-12 | AM15: FALSE | AN15: 0 | AO15: 3.652002774e+14 | AP15: 0 | AQ15: 1.271089728e-15 | AR15: 1.271089728e-15 | AS15: FALSE | AT15: 0 | AU15: 1.154864679e+18 | AV15: 0
B16: 1 | C16: 7 | D16: 330.8123822 | F16: 7 | G16: 3 | H16: 2 | I16: 44.58552521 | J16: 1 | K16: 0.1093523196 | L16: 0.1093523196 | M16: 349.9342795 | N16: 0 | O16: FALSE | P16: 0 | Q16: 0.1055494623 | R16: 0.1055494623 | S16: 0.1104281055 | T16: 0 | U16: TRUE | V16: 0.1093523196 | W16: 342.3889216 | X16: 0 | Y16: 3.494778678e-05 | Z16: 3.494778678e-05 | AA16: FALSE | AB16: 0 | AC16: 987199.9327 | AD16: 0 | AE16: 1.211297673e-08 | AF16: 1.211297673e-08 | AG16: FALSE | AH16: 0 | AI16: 3120773850 | AJ16: 0 | AK16: 3.831719435e-12 | AL16: 3.831719435e-12 | AM16: FALSE | AN16: 0 | AO16: 9.868753428e+12 | AP16: 0 | AQ16: 1.211696077e-15 | AR16: 1.211696077e-15 | AS16: FALSE | AT16: 0 | AU16: 3.12077385e+16 | AV16: 0
B17: 1 | C17: 8 | D17: 431.4780315 | F17: 8 | G17: 5 | H17: 1 | I17: 55.99257682 | J17: 1 | K17: 0.858560315 | L17: 0.858560315 | M17: 38836.48095 | N17: 0 | O17: FALSE | P17: 0 | Q17: 0.05862572995 | R17: 0.05862572995 | S17: 12.25555559 | T17: 0 | U17: TRUE | V17: 0.858560315 | W17: 190.1743507 | X17: 0 | Y17: 0.003878582737 | Z17: 0.003878582737 | AA17: FALSE | AB17: 0 | AC17: 548324.126 | AD17: 0 | AE17: 1.344324971e-06 | AF17: 1.344324971e-06 | AG17: FALSE | AH17: 0 | AI17: 1733383013 | AJ17: 0 | AK17: 4.252527047e-10 | AL17: 4.252527047e-10 | AM17: FALSE | AN17: 0 | AO17: 5.481438378e+12 | AP17: 0 | AQ17: 1.344767128e-13 | AR17: 1.344767128e-13 | AS17: FALSE | AT17: 0 | AU17: 1.733383013e+16 | AV17: 0
B18: 1 | C18: 9 | D18: 545.5657673 | F18: 9 | G18: 4 | H18: 2 | I18: 58.38435459 | J18: 1 | K18: 0.6028098303 | L18: 0.6028098303 | M18: 44346.69267 | N18: 0 | O18: FALSE | P18: 0 | Q18: 0.02530963773 | R18: 0.02530963773 | S18: 13.99440279 | T18: 0 | U18: TRUE | V18: 0.6028098303 | W18: 82.10121945 | X18: 0 | Y18: 0.004428885224 | Z18: 0.004428885224 | AA18: FALSE | AB18: 0 | AC18: 236720.0374 | AD18: 0 | AE18: 1.535060975e-06 | AF18: 1.535060975e-06 | AG18: FALSE | AH18: 0 | AI18: 748328355.8 | AJ18: 0 | AK18: 4.855885637e-10 | AL18: 4.855885637e-10 | AM18: FALSE | AN18: 0 | AO18: 2.366422042e+12 | AP18: 0 | AQ18: 1.535565867e-13 | AR18: 1.535565867e-13 | AS18: FALSE | AT18: 0 | AU18: 7483283558064873 | AV18: 0
B19: 1 | C19: 10 | D19: 673.0755897 | F19: 10 | G19: 1 | H19: 3 | I19: 62.37065089 | J19: 1 | K19: 0.1640244394 | L19: 0.1640244394 | M19: 26006.90734 | N19: 0 | O19: FALSE | P19: 0 | Q19: 0.00319532419 | R19: 0.00319532419 | S19: 8.206951065 | T19: 0 | U19: TRUE | V19: 0.1640244394 | W19: 10.36522195 | X19: 0 | Y19: 0.00259729871 | Z19: 0.00259729871 | AA19: FALSE | AB19: 0 | AC19: 29885.74036 | AD19: 0 | AE19: 9.002292199e-07 | AF19: 9.002292199e-07 | AG19: FALSE | AH19: 0 | AI19: 94475935.34 | AJ19: 0 | AK19: 2.847711074e-10 | AL19: 2.847711074e-10 | AM19: FALSE | AN19: 0 | AO19: 2.987591398e+11 | AP19: 0 | AQ19: 9.005253113e-14 | AR19: 9.005253113e-14 | AS19: FALSE | AT19: 0 | AU19: 9.447593534e+14 | AV19: 0
B20: 1 | C20: 11 | D20: 814.0074986 | F20: 11 | G20: 2 | H20: 3 | I20: 68.28443492 | J20: 1 | K20: 0.1769382309 | L20: 0.1769382309 | M20: 80429.41153 | N20: 0 | O20: FALSE | P20: 0 | Q20: 0.001202305915 | R20: 0.001202305915 | S20: 25.38095883 | T20: 0 | U20: TRUE | V20: 0.1769382309 | W20: 3.900126221 | X20: 0 | Y20: 0.008032450918 | Z20: 0.008032450918 | AA20: FALSE | AB20: 0 | AC20: 11245.11951 | AD20: 0 | AE20: 2.784064458e-06 | AF20: 2.784064458e-06 | AG20: FALSE | AH20: 0 | AI20: 35548498.08 | AJ20: 0 | AK20: 8.806880529e-10 | AL20: 8.806880529e-10 | AM20: FALSE | AN20: 0 | AO20: 1.124142213e+11 | AP20: 0 | AQ20: 2.784980155e-13 | AR20: 2.784980155e-13 | AS20: FALSE | AT20: 0 | AU20: 355484980846607 | AV20: 0
B21: 1 | C21: 12 | D21: 968.3614941 | F21: 12 | G21: 5 | H21: 2 | I21: 76.12570667 | J21: 1 | K21: 0.7596219094 | L21: 0.7596219094 | M21: 1222038.907 | N21: 0 | O21: FALSE | P21: 0 | Q21: 0.001458466456 | R21: 0.001458466456 | S21: 385.6365302 | T21: 0 | U21: TRUE | V21: 0.7596219094 | W21: 4.73107817 | X21: 0 | Y21: 0.1220445028 | Z21: 0.1220445028 | AA21: FALSE | AB21: 0 | AC21: 13640.97889 | AD21: 0 | AE21: 4.23008825e-05 | AF21: 4.23008825e-05 | AG21: FALSE | AH21: 0 | AI21: 43122379.57 | AJ21: 0 | AK21: 1.338111326e-08 | AL21: 1.338111326e-08 | AM21: FALSE | AN21: 0 | AO21: 1.363649376e+11 | AP21: 0 | AQ21: 4.231479555e-12 | AR21: 4.231479555e-12 | AS21: FALSE | AT21: 0 | AU21: 4.312237957e+14 | AV21: 0
B22: 1 | C22: 13 | D22: 1136.137576 | F22: 13 | G22: 6 | H22: 1 | I22: 77.67645157 | J22: 1 | K22: 0.2448315927 | L22: 0.2448315927 | M22: 497946.3384 | N22: 0 | O22: FALSE | P22: 0 | Q22: 0.0003718252559 | R22: 0.0003718252559 | S22: 157.1359938 | T22: 0 | U22: TRUE | V22: 0.2448315927 | W22: 1.206153453 | X22: 0 | Y22: 0.04972968777 | Z22: 0.04972968777 | AA22: FALSE | AB22: 0 | AC22: 3477.666865 | AD22: 0 | AE22: 1.723641484e-05 | AF22: 1.723641484e-05 | AG22: FALSE | AH22: 0 | AI22: 10993732.32 | AJ22: 0 | AK22: 5.45242571e-09 | AL22: 5.45242571e-09 | AM22: FALSE | AN22: 0 | AO22: 3.476523413e+10 | AP22: 0 | AQ22: 1.724208402e-12 | AR22: 1.724208402e-12 | AS22: FALSE | AT22: 0 | AU22: 1.099373232e+14 | AV22: 0
B23: 1 | C23: 14 | D23: 1317.335745 | F23: 14 | G23: 3 | H23: 3 | I23: 78.14074162 | J23: 1 | K23: 0.02684429736 | L23: 0.02684429736 | M23: 58513.88117 | N23: 0 | O23: FALSE | P23: 0 | Q23: 3.803922759e-05 | R23: 3.803922759e-05 | S23: 18.46511594 | T23: 0 | U23: TRUE | V23: 0.02684429736 | W23: 0.1233943767 | X23: 0 | Y23: 0.005843756278 | Z23: 0.005843756278 | AA23: FALSE | AB23: 0 | AC23: 355.7793862 | AD23: 0 | AE23: 2.025458272e-06 | AF23: 2.025458272e-06 | AG23: FALSE | AH23: 0 | AI23: 1124703.283 | AJ23: 0 | AK23: 6.407168111e-10 | AL23: 6.407168111e-10 | AM23: FALSE | AN23: 0 | AO23: 3556624065 | AP23: 0 | AQ23: 2.026124458e-13 | AR23: 2.026124458e-13 | AS23: FALSE | AT23: 0 | AU23: 1.124703283e+13 | AV23: 0
B24: 1 | C24: 15 | D24: 1511.956 | F24: 15 | G24: 4 | H24: 3 | I24: 91.93957101 | J24: 1 | K24: 0.1479804579 | L24: 0.1479804579 | M24: 2136730.181 | N24: 0 | O24: FALSE | P24: 0 | Q24: 3.16552365e-05 | R24: 3.16552365e-05 | S24: 674.2839433 | T24: 0 | U24: FALSE | V24: 0 | W24: 0.1026855282 | X24: 0.1026855282 | Y24: 0.213394329 | Z24: 0 | AA24: TRUE | AB24: 0.1479804579 | AC24: 296.0701709 | AD24: 0 | AE24: 7.396292526e-05 | AF24: 7.396292526e-05 | AG24: FALSE | AH24: 0 | AI24: 935948.2477 | AJ24: 0 | AK24: 2.339682346e-08 | AL24: 2.339682346e-08 | AM24: FALSE | AN24: 0 | AO24: 2959728235 | AP24: 0 | AQ24: 7.398725216e-12 | AR24: 7.398725216e-12 | AS24: FALSE | AT24: 0 | AU24: 9.359482477e+12 | AV24: 0
B25: 1 | C25: 16 | D25: 1719.998342 | F25: 16 | G25: 6 | H25: 2 | I25: 97.80958142 | J25: 1 | K25: 0.2166177945 | L25: 0.2166177945 | M25: 6423237.358 | N25: 0 | O25: FALSE | P25: 0 | Q25: 2.256424476e-05 | R25: 2.256424476e-05 | S25: 2026.968989 | T25: 0 | U25: FALSE | V25: 0 | W25: 0.07319551669 | X25: 0.07319551669 | Y25: 0.6414859668 | Z25: 0 | AA25: TRUE | AB25: 0.2166177945 | AC25: 211.0424859 | AD25: 0 | AE25: 0.0002223403913 | AF25: 0.0002223403913 | AG25: FALSE | AH25: 0 | AI25: 667155.5066 | AJ25: 0 | AK25: 7.033333074e-08 | AL25: 7.033333074e-08 | AM25: FALSE | AN25: 0 | AO25: 2109730954 | AP25: 0 | AQ25: 2.224135206e-11 | AR25: 2.224135206e-11 | AS25: FALSE | AT25: 0 | AU25: 6.671555066e+12 | AV25: 0
B26: 1 | C26: 17 | D26: 1941.46277 | F26: 17 | G26: 7 | H26: 1 | I26: 103.302849 | J26: 1 | K26: 0.5944529111 | L26: 0.5944529111 | M26: 33272887.2 | N26: 0 | O26: FALSE | P26: 0 | Q26: 3.280431261e-05 | R26: 3.280431261e-05 | S26: 10499.86273 | T26: 0 | U26: FALSE | V26: 0 | W26: 0.1064129838 | X26: 0.1064129838 | Y26: 3.322949009 | Z26: 0 | AA26: TRUE | AB26: 0.5944529111 | AC26: 306.8174342 | AD26: 0 | AE26: 0.001151741147 | AF26: 0.001151741147 | AG26: FALSE | AH26: 0 | AI26: 969922.9038 | AJ26: 0 | AK26: 3.643323218e-07 | AL26: 3.643323218e-07 | AM26: FALSE | AN26: 0 | AO26: 3067165531 | AP26: 0 | AQ26: 1.152119962e-10 | AR26: 1.152119962e-10 | AS26: FALSE | AT26: 0 | AU26: 9.699229038e+12 | AV26: 0
B27: 1 | C27: 18 | D27: 2176.349285 | F27: 18 | G27: 1 | H27: 4 | I27: 109.3479539 | J27: 1 | K27: 0.8132888902 | L27: 0.8132888902 | M27: 88181910.81 | N27: 0 | O27: FALSE | P27: 0 | Q27: 2.31684344e-05 | R27: 2.31684344e-05 | S27: 27827.40052 | T27: 0 | U27: FALSE | V27: 0 | W27: 0.0751554304 | X27: 0.0751554304 | Y27: 8.806689705 | Z27: 0 | AA27: TRUE | AB27: 0.8132888902 | AC27: 216.6934476 | AD27: 0 | AE27: 0.003052417257 | AF27: 0.003052417257 | AG27: FALSE | AH27: 0 | AI27: 685019.5409 | AJ27: 0 | AK27: 9.655765703e-07 | AL27: 9.655765703e-07 | AM27: FALSE | AN27: 0 | AO27: 2166221991 | AP27: 0 | AQ27: 3.053421217e-10 | AR27: 3.053421217e-10 | AS27: FALSE | AT27: 0 | AU27: 6.850195409e+12 | AV27: 0
B28: 1 | C28: 19 | D28: 2424.657887 | F28: 19 | G28: 5 | H28: 3 | I28: 109.6809231 | J28: 1 | K28: 0.1864753897 | L28: 0.1864753897 | M28: 20946360.1 | N28: 0 | O28: FALSE | P28: 0 | Q28: 5.127680944e-06 | R28: 5.127680944e-06 | S28: 6610.003644 | T28: 0 | U28: FALSE | V28: 0 | W28: 0.01663353948 | X28: 0.01663353948 | Y28: 2.091904021 | Z28: 0 | AA28: TRUE | AB28: 0.1864753897 | AC28: 47.9589964 | AD28: 0 | AE28: 0.0007250583532 | AF28: 0.0007250583532 | AG28: FALSE | AH28: 0 | AI28: 151609.7975 | AJ28: 0 | AK28: 2.293589962e-07 | AL28: 2.293589962e-07 | AM28: FALSE | AN28: 0 | AO28: 479432275.5 | AP28: 0 | AQ28: 7.252968297e-11 | AR28: 7.252968297e-11 | AS28: FALSE | AT28: 0 | AU28: 1.516097975e+12 | AV28: 0
B29: 1 | C29: 20 | D29: 2686.388575 | F29: 20 | G29: 2 | H29: 4 | I29: 115.2617379 | J29: 1 | K29: 0.8773198552 | L29: 0.8773198552 | M29: 175488519 | N29: 0 | O29: FALSE | P29: 0 | Q29: 1.354733034e-05 | R29: 1.354733034e-05 | S29: 55378.58344 | T29: 0 | U29: FALSE | V29: 0 | W29: 0.04394580251 | X29: 0.04394580251 | Y29: 17.52596332 | Z29: 0 | AA29: TRUE | AB29: 0.8773198552 | AC29: 126.7076431 | AD29: 0 | AE29: 0.006074535911 | AF29: 0.006074535911 | AG29: FALSE | AH29: 0 | AI29: 400553.0046 | AJ29: 0 | AK29: 1.92156873e-06 | AL29: 1.92156873e-06 | AM29: FALSE | AN29: 0 | AO29: 1266659818 | AP29: 0 | AQ29: 6.076533867e-10 | AR29: 6.076533867e-10 | AS29: FALSE | AT29: 0 | AU29: 4.005530046e+12 | AV29: 0
B30: 2 | C30: 1 | D30: 14.59608865 | F30: 21 | G30: 7 | H30: 2 | I30: 123.4359789 | J30: 1 | K30: 0.5259496013 | L30: 0.5259496013 | M30: 233349783.4 | N30: 0 | O30: FALSE | P30: 0 | Q30: 3.661570257e-06 | R30: 3.661570257e-06 | S30: 73637.75431 | T30: 0 | U30: FALSE | V30: 0 | W30: 0.01187766441 | X30: 0.01187766441 | Y30: 23.30454303 | Z30: 0 | AA30: TRUE | AB30: 0.5259496013 | AC30: 34.24652132 | AD30: 0 | AE30: 0.008077403849 | AF30: 0.008077403849 | AG30: FALSE | AH30: 0 | AI30: 108261.4014 | AJ30: 0 | AK30: 2.5551395e-06 | AL30: 2.5551395e-06 | AM30: FALSE | AN30: 0 | AO30: 342352611.1 | AP30: 0 | AQ30: 8.080060561e-10 | AR30: 8.080060561e-10 | AS30: FALSE | AT30: 0 | AU30: 1.082614014e+12 | AV30: 0
B31: 2 | C31: 2 | D31: 34.7292185 | F31: 22 | G31: 3 | H31: 4 | I31: 125.1180446 | J31: 1 | K31: 0.1331031454 | L31: 0.1331031454 | M31: 69118729.29 | N31: 0 | O31: FALSE | P31: 0 | Q31: 7.917123231e-07 | R31: 7.917123231e-07 | S31: 21811.66801 | T31: 0 | U31: FALSE | V31: 0 | W31: 0.002568213258 | X31: 0.002568213258 | Y31: 6.902857923 | Z31: 0 | AA31: TRUE | AB31: 0.1331031454 | AC31: 7.404853943 | AD31: 0 | AE31: 0.002392545139 | AF31: 0.002392545139 | AG31: FALSE | AH31: 0 | AI31: 23408.50499 | AJ31: 0 | AK31: 7.568380517e-07 | AL31: 7.568380517e-07 | AM31: FALSE | AN31: 0 | AO31: 74024192.38 | AP31: 0 | AQ31: 2.393332063e-10 | AR31: 2.393332063e-10 | AS31: FALSE | AT31: 0 | AU31: 2.340850499e+11 | AV31: 0
B32: 2 | C32: 3 | D32: 68.28443492 | F32: 23 | G32: 6 | H32: 3 | I32: 131.3647978 | J32: 1 | K32: 0.05317630671 | L32: 0.05317630671 | M32: 48656020.53 | N32: 0 | O32: FALSE | P32: 0 | Q32: 1.79509017e-07 | R32: 1.79509017e-07 | S32: 15354.28931 | T32: 0 | U32: FALSE | V32: 0 | W32: 0.0005823042335 | X32: 0.0005823042335 | Y32: 4.859255953 | Z32: 0 | AA32: TRUE | AB32: 0.05317630671 | AC32: 1.678940713 | AD32: 0 | AE32: 0.001684228379 | AF32: 0.001684228379 | AG32: FALSE | AH32: 0 | AI32: 5307.531027 | AJ32: 0 | AK32: 5.327749534e-07 | AL32: 5.327749534e-07 | AM32: FALSE | AN32: 0 | AO32: 16783886.8 | AP32: 0 | AQ32: 1.684782333e-10 | AR32: 1.684782333e-10 | AS32: FALSE | AT32: 0 | AU32: 5.307531027e+10 | AV32: 0
B33: 2 | C33: 4 | D33: 115.2617379 | F33: 24 | G33: 8 | H33: 1 | I33: 132.8717691 | J33: 1 | K33: 0.8860863155 | L33: 0.8860863155 | M33: 925742176 | N33: 0 | O33: FALSE | P33: 0 | Q33: 2.619681674e-06 | R33: 2.619681674e-06 | S33: 292134.7255 | T33: 0 | U33: FALSE | V33: 0 | W33: 0.00849791144 | X33: 0.00849791144 | Y33: 92.45347504 | Z33: 0 | AA33: TRUE | AB33: 0.8860863155 | AC33: 24.50177875 | AD33: 0 | AE33: 0.03204456977 | AF33: 0.03204456977 | AG33: FALSE | AH33: 0 | AI33: 77455.95179 | AJ33: 0 | AK33: 1.013671565e-05 | AL33: 1.013671565e-05 | AM33: FALSE | AN33: 0 | AO33: 244937226 | AP33: 0 | AQ33: 3.205510944e-09 | AR33: 3.205510944e-09 | AS33: FALSE | AT33: 0 | AU33: 7.745595179e+11 | AV33: 0
B34: 2 | C34: 5 | D34: 175.6611274 | F34: 25 | G34: 4 | H34: 4 | I34: 138.916874 | J34: 1 | K34: 0.7337373796 | L34: 0.7337373796 | M34: 1285908313 | N34: 0 | O34: FALSE | P34: 0 | Q34: 1.293176483e-06 | R34: 1.293176483e-06 | S34: 405791.679 | T34: 0 | U34: FALSE | V34: 0 | W34: 0.004194898693 | X34: 0.004194898693 | Y34: 128.423113 | Z34: 0 | AA34: TRUE | AB34: 0.7337373796 | AC34: 12.09502833 | AD34: 0 | AE34: 0.04451172229 | AF34: 0.04451172229 | AG34: FALSE | AH34: 0 | AI34: 38235.26206 | AJ34: 0 | AK34: 1.408047214e-05 | AL34: 1.408047214e-05 | AM34: FALSE | AN34: 0 | AO34: 120910515.1 | AP34: 0 | AQ34: 4.452636249e-09 | AR34: 4.452636249e-09 | AS34: FALSE | AT34: 0 | AU34: 3.823526206e+11 | AV34: 0
B35: 2 | C35: 6 | D35: 249.4826036 | F35: 26 | G35: 8 | H35: 2 | I35: 153.004899 | J35: 1 | K35: 0.7839758805 | L35: 0.7839758805 | M35: 4223942942 | N35: 0 | O35: FALSE | P35: 0 | Q35: 4.494422265e-07 | R35: 4.494422265e-07 | S35: 1332941.767 | T35: 0 | U35: FALSE | V35: 0 | W35: 0.001457932953 | X35: 0.001457932953 | Y35: 421.8433744 | Z35: 0 | AA35: TRUE | AB35: 0.7839758805 | AC35: 4.203615311 | AD35: 0 | AE35: 0.1462118048 | AF35: 0.1462118048 | AG35: FALSE | AH35: 0 | AI35: 13288.62807 | AJ35: 0 | AK35: 4.625143979e-05 | AL35: 4.625143979e-05 | AM35: FALSE | AN35: 0 | AO35: 42022331.68 | AP35: 0 | AQ35: 1.462598948e-08 | AR35: 1.462598948e-08 | AS35: FALSE | AT35: 0 | AU35: 1.328862807e+11 | AV35: 0
B36: 2 | C36: 7 | D36: 336.7261662 | F36: 27 | G36: 5 | H36: 4 | I36: 156.6582261 | J36: 1 | K36: 0.924608328 | L36: 0.924608328 | M36: 6554242780 | N36: 0 | O36: FALSE | P36: 0 | Q36: 4.028836014e-07 | R36: 4.028836014e-07 | S36: 2068310.124 | T36: 0 | U36: FALSE | V36: 0 | W36: 0.001306902743 | X36: 0.001306902743 | Y36: 654.5694222 | Z36: 0 | AA36: TRUE | AB36: 0.924608328 | AC36: 3.768154338 | AD36: 0 | AE36: 0.2268751446 | AF36: 0.2268751446 | AG36: FALSE | AH36: 0 | AI36: 11912.03234 | AJ36: 0 | AK36: 7.17678173e-05 | AL36: 7.17678173e-05 | AM36: FALSE | AN36: 0 | AO36: 37669153.74 | AP36: 0 | AQ36: 2.269497654e-08 | AR36: 2.269497654e-08 | AS36: FALSE | AT36: 0 | AU36: 1.191203234e+11 | AV36: 0
B37: 2 | C37: 8 | D37: 437.3918155 | F37: 28 | G37: 7 | H37: 3 | I37: 156.9911953 | J37: 1 | K37: 0.1291124646 | L37: 0.1291124646 | M37: 938110120.7 | N37: 0 | O37: FALSE | P37: 0 | Q37: 5.488694192e-08 | R37: 5.488694192e-08 | S37: 296037.6546 | T37: 0 | U37: FALSE | V37: 0 | W37: 0.0001780462017 | X37: 0.0001780462017 | Y37: 93.68865639 | Z37: 0 | AA37: TRUE | AB37: 0.1291124646 | AC37: 0.5133553899 | AD37: 0 | AE37: 0.03247268624 | AF37: 0.03247268624 | AG37: FALSE | AH37: 0 | AI37: 1622.838519 | AJ37: 0 | AK37: 1.027214249e-05 | AL37: 1.027214249e-05 | AM37: FALSE | AN37: 0 | AO37: 5131865.994 | AP37: 0 | AQ37: 3.248336672e-09 | AR37: 3.248336672e-09 | AS37: FALSE | AT37: 0 | AU37: 1.622838519e+10 | AV37: 0
B38: 2 | C38: 9 | D38: 551.4795513 | F38: 29 | G38: 9 | H38: 1 | I38: 166.3832119 | J38: 1 | K38: 0.3613957761 | L38: 0.3613957761 | M38: 5160128373 | N38: 0 | O38: FALSE | P38: 0 | Q38: 7.817936739e-08 | R38: 7.817936739e-08 | S38: 1628372.051 | T38: 0 | U38: FALSE | V38: 0 | W38: 0.0002536038432 | X38: 0.0002536038432 | Y38: 515.3398128 | Z38: 0 | AA38: TRUE | AB38: 0.3613957761 | AC38: 0.731208521 | AD38: 0 | AE38: 0.1786178679 | AF38: 0.1786178679 | AG38: FALSE | AH38: 0 | AI38: 2311.524095 | AJ38: 0 | AK38: 5.650250726e-05 | AL38: 5.650250726e-05 | AM38: FALSE | AN38: 0 | AO38: 7309681.007 | AP38: 0 | AQ38: 1.786766165e-08 | AR38: 1.786766165e-08 | AS38: FALSE | AT38: 0 | AU38: 2.311524095e+10 | AV38: 0
B39: 2 | C39: 10 | D39: 678.9893737 | F39: 30 | G39: 1 | H39: 5 | I39: 169.7473434 | J39: 1 | K39: 0.5555430142 | L39: 0.5555430142 | M39: 1.001087541e+10 | N39: 0 | O39: FALSE | P39: 0 | Q39: 9.522474945e-08 | R39: 9.522474945e-08 | S39: 3159113.211 | T39: 0 | U39: FALSE | V39: 0 | W39: 0.000308896877 | X39: 0.000308896877 | Y39: 999.7818437 | Z39: 0 | AA39: TRUE | AB39: 0.5555430142 | AC39: 0.8906333032 | AD39: 0 | AE39: 0.3465264992 | AF39: 0.3465264992 | AG39: FALSE | AH39: 0 | AI39: 2815.50376 | AJ39: 0 | AK39: 0.0001096173427 | AL39: 0.0001096173427 | AM39: FALSE | AN39: 0 | AO39: 8903404.642 | AP39: 0 | AQ39: 3.466404741e-08 | AR39: 3.466404741e-08 | AS39: FALSE | AT39: 0 | AU39: 2.81550376e+10 | AV39: 0
B40: 2 | C40: 11 | D40: 819.9212826 | F40: 31 | G40: 2 | H40: 5 | I40: 175.6611274 | J40: 1 | K40: 0.5992814148 | L40: 0.5992814148 | M40: 1.608074177e+10 | N40: 0 | O40: FALSE | P40: 0 | Q40: 6.898299627e-08 | R40: 6.898299627e-08 | S40: 5074569.577 | T40: 0 | U40: FALSE | V40: 0 | W40: 0.0002237719945 | X40: 0.0002237719945 | Y40: 1605.976801 | Z40: 0 | AA40: TRUE | AB40: 0.5992814148 | AC40: 0.6451952269 | AD40: 0 | AE40: 0.5566349519 | AF40: 0.5566349519 | AG40: FALSE | AH40: 0 | AI40: 2039.615609 | AJ40: 0 | AK40: 0.0001760813226 | AL40: 0.0001760813226 | AM40: FALSE | AN40: 0 | AO40: 6449830.876 | AP40: 0 | AQ40: 5.568180329e-08 | AR40: 5.568180329e-08 | AS40: FALSE | AT40: 0 | AU40: 2.039615609e+10 | AV40: 0
B41: 2 | C41: 12 | D41: 974.2752782 | F41: 32 | G41: 6 | H41: 4 | I41: 178.3421008 | J41: 1 | K41: 0.2636661928 | L41: 0.2636661928 | M41: 8437483494 | N41: 0 | O41: FALSE | P41: 0 | Q41: 2.544968864e-08 | R41: 2.544968864e-08 | S41: 2662600.871 | T41: 0 | U41: FALSE | V41: 0 | W41: 8.255552666e-05 | X41: 8.255552666e-05 | Y41: 842.6478667 | Z41: 0 | AA41: FALSE | AB41: 0 | AC41: 0.2380299281 | AD41: 0.2380299281 | AE41: 0.2920635308 | AF41: 0 | AG41: TRUE | AH41: 0.2636661928 | AI41: 752.4692318 | AJ41: 0 | AK41: 9.238897524e-05 | AL41: 9.238897524e-05 | AM41: FALSE | AN41: 0 | AO41: 2379516.642 | AP41: 0 | AQ41: 2.921595924e-08 | AR41: 2.921595924e-08 | AS41: FALSE | AT41: 0 | AU41: 7524692318 | AV41: 0
B42: 2 | C42: 13 | D42: 1142.05136 | F42: 33 | G42: 3 | H42: 5 | I42: 185.5174342 | J42: 1 | K42: 0.09092036479 | L42: 0.09092036479 | M42: 4602520685 | N42: 0 | O42: FALSE | P42: 0 | Q42: 5.547701728e-09 | R42: 5.547701728e-09 | S42: 1452408.837 | T42: 0 | U42: FALSE | V42: 0 | W42: 1.799603305e-05 | X42: 1.799603305e-05 | Y42: 459.6517717 | Z42: 0 | AA42: FALSE | AB42: 0 | AC42: 0.05188743414 | AD42: 0.05188743414 | AE42: 0.1593162751 | AF42: 0 | AG42: TRUE | AH42: 0.09092036479 | AI42: 164.0285237 | AJ42: 0 | AK42: 5.039680017e-05 | AL42: 5.039680017e-05 | AM42: FALSE | AN42: 0 | AO42: 518703.7362 | AP42: 0 | AQ42: 1.593686753e-08 | AR42: 1.593686753e-08 | AS42: FALSE | AT42: 0 | AU42: 1640285237 | AV42: 0
B43: 2 | C43: 14 | D43: 1323.249529 | F43: 34 | G43: 9 | H43: 2 | I43: 186.5163418 | J43: 1 | K43: 0.3197494045 | L43: 0.3197494045 | M43: 1.722898763e+10 | N43: 0 | O43: FALSE | P43: 0 | Q43: 1.832931533e-08 | R43: 1.832931533e-08 | S43: 5436919.374 | T43: 0 | U43: FALSE | V43: 0 | W43: 5.945794865e-05 | X43: 5.945794865e-05 | Y43: 1720.651624 | Z43: 0 | AA43: FALSE | AB43: 0 | AC43: 0.171433359 | AD43: 0.171433359 | AE43: 0.5963814878 | AF43: 0 | AG43: TRUE | AH43: 0.3197494045 | AI43: 541.9416331 | AJ43: 0 | AK43: 0.0001886544149 | AL43: 0.0001886544149 | AM43: FALSE | AN43: 0 | AO43: 1713769.92 | AP43: 0 | AQ43: 5.965776417e-08 | AR43: 5.965776417e-08 | AS43: FALSE | AT43: 0 | AU43: 5419416331 | AV43: 0
B44: 2 | C44: 15 | D44: 1517.869784 | F44: 35 | G44: 8 | H44: 3 | I44: 186.5601154 | J44: 1 | K44: 0.1924539116 | L44: 0.1924539116 | M44: 1.039828394e+10 | N44: 0 | O44: FALSE | P44: 0 | Q44: 1.100216936e-08 | R44: 1.100216936e-08 | S44: 3281366.997 | T44: 0 | U44: FALSE | V44: 0 | W44: 3.568962665e-05 | X44: 3.568962665e-05 | Y44: 1038.472168 | Z44: 0 | AA44: FALSE | AB44: 0 | AC44: 0.1029028535 | AD44: 0.1029028535 | AE44: 0.3599366474 | AF44: 0 | AG44: TRUE | AH44: 0.1924539116 | AI44: 325.3004013 | AJ44: 0 | AK44: 0.0001138593987 | AL44: 0.0001138593987 | AM44: FALSE | AN44: 0 | AO44: 1028690.192 | AP44: 0 | AQ44: 3.600550329e-08 | AR44: 3.600550329e-08 | AS44: FALSE | AT44: 0 | AU44: 3253004013 | AV44: 0
B45: 2 | C45: 16 | D45: 1725.912126 | F45: 36 | G45: 4 | H45: 5 | I45: 199.3162635 | J45: 1 | K45: 0.501202808 | L45: 0.501202808 | M45: 5.842710842e+10 | N45: 0 | O45: FALSE | P45: 0 | Q45: 1.328003167e-08 | R45: 1.328003167e-08 | S45: 18437733.23 | T45: 0 | U45: FALSE | V45: 0 | W45: 4.30787199e-05 | X45: 4.30787199e-05 | Y45: 5835.09032 | Z45: 0 | AA45: FALSE | AB45: 0 | AC45: 0.1242076093 | AD45: 0.1242076093 | AE45: 2.022454632 | AF45: 0 | AG45: TRUE | AH45: 0.501202808 | AI45: 392.6498028 | AJ45: 0 | AK45: 0.0006397666646 | AL45: 0.0006397666646 | AM45: FALSE | AN45: 0 | AO45: 1241667.7 | AP45: 0 | AQ45: 2.023119831e-07 | AR45: 2.023119831e-07 | AS45: FALSE | AT45: 0 | AU45: 3926498028 | AV45: 0
B46: 2 | C46: 17 | D46: 1947.376554 | F46: 37 | G46: 10 | H46: 1 | I46: 203.8371774 | J46: 1 | K46: 0.4962375253 | L46: 0.4962375253 | M46: 7.50831873e+10 | N46: 0 | O46: FALSE | P46: 0 | Q46: 1.013031658e-08 | R46: 1.013031658e-08 | S46: 23693860.86 | T46: 0 | U46: FALSE | V46: 0 | W46: 3.286144803e-05 | X46: 3.286144803e-05 | Y46: 7498.525792 | Z46: 0 | AA46: FALSE | AB46: 0 | AC46: 0.09474844903 | AD46: 0.09474844903 | AE46: 2.599004881 | AF46: 0 | AG46: TRUE | AH46: 0.4962375253 | AI46: 299.5223888 | AJ46: 0 | AK46: 0.0008221478284 | AL46: 0.0008221478284 | AM46: FALSE | AN46: 0 | AO46: 947172.9588 | AP46: 0 | AQ46: 2.599859711e-07 | AR46: 2.599859711e-07 | AS46: FALSE | AT46: 0 | AU46: 2995223888 | AV46: 0
B47: 2 | C47: 18 | D47: 2182.263069 | F47: 38 | G47: 7 | H47: 4 | I47: 203.9684983 | J47: 1 | K47: 0.640183459 | L47: 0.640183459 | M47: 9.759095433e+10 | N47: 0 | O47: FALSE | P47: 0 | Q47: 1.297136995e-08 | R47: 1.297136995e-08 | S47: 30796594.76 | T47: 0 | U47: FALSE | V47: 0 | W47: 4.207746085e-05 | X47: 4.207746085e-05 | Y47: 9746.366855 | Z47: 0 | AA47: FALSE | AB47: 0 | AC47: 0.1213207084 | AD47: 0.1213207084 | AE47: 3.378111342 | AF47: 0 | AG47: TRUE | AH47: 0.640183459 | AI47: 383.5236225 | AJ47: 0 | AK47: 0.001068603959 | AL47: 0.001068603959 | AM47: FALSE | AN47: 0 | AO47: 1212808.184 | AP47: 0 | AQ47: 3.379222426e-07 | AR47: 3.379222426e-07 | AS47: FALSE | AT47: 0 | AU47: 3835236225 | AV47: 0
B48: 2 | C48: 19 | D48: 2430.571671 | F48: 39 | G48: 5 | H48: 5 | I48: 217.0576156 | J48: 1 | K48: 0.6315833201 | L48: 0.6315833201 | M48: 1.98425131e+11 | N48: 0 | O48: FALSE | P48: 0 | Q48: 6.209421507e-09 | R48: 6.209421507e-09 | S48: 62616647.12 | T48: 0 | U48: FALSE | V48: 0 | W48: 2.014256716e-05 | X48: 2.014256716e-05 | Y48: 19816.63293 | Z48: 0 | AA48: FALSE | AB48: 0 | AC48: 0.05807647296 | AD48: 0.05807647296 | AE48: 6.86848684 | AF48: 0 | AG48: TRUE | AH48: 0.6315833201 | AI48: 183.5935479 | AJ48: 0 | AK48: 0.002172720637 | AL48: 0.002172720637 | AM48: FALSE | AN48: 0 | AO48: 580573.775 | AP48: 0 | AQ48: 6.870745931e-07 | AR48: 6.870745931e-07 | AS48: FALSE | AT48: 0 | AU48: 1835935479 | AV48: 0
B49: 2 | C49: 20 | D49: 2692.302359 | F49: 40 | G49: 9 | H49: 3 | I49: 220.0715582 | J49: 1 | K49: 0.0784935164 | L49: 0.0784935164 | M49: 2.89488377e+10 | N49: 0 | O49: FALSE | P49: 0 | Q49: 6.573897866e-10 | R49: 6.573897866e-10 | S49: 9135330.52 | T49: 0 | U49: FALSE | V49: 0 | W49: 2.132488174e-06 | X49: 2.132488174e-06 | Y49: 2891.108036 | Z49: 0 | AA49: FALSE | AB49: 0 | AC49: 0.006148540589 | AD49: 0.006148540589 | AE49: 1.002064153 | AF49: 0 | AG49: TRUE | AH49: 0.0784935164 | AI49: 19.43699959 | AJ49: 0 | AK49: 0.0003169847326 | AL49: 0.0003169847326 | AM49: FALSE | AN49: 0 | AO49: 61465.18958 | AP49: 0 | AQ49: 1.002393739e-07 | AR49: 1.002393739e-07 | AS49: FALSE | AT49: 0 | AU49: 194369995.9 | AV49: 0
B50: 3 | C50: 1 | D50: 24.45239536 | F50: 41 | G50: 10 | H50: 2 | I50: 223.9703073 | J50: 1 | K50: 0.439052318 | L50: 0.439052318 | M50: 1.986027852e+11 | N50: 0 | O50: FALSE | P50: 0 | Q50: 2.998014488e-09 | R50: 2.998014488e-09 | S50: 62672709.15 | T50: 0 | U50: FALSE | V50: 0 | W50: 9.725174577e-06 | X50: 9.725174577e-06 | Y50: 19834.37519 | Z50: 0 | AA50: FALSE | AB50: 0 | AC50: 0.02804031055 | AD50: 0.02804031055 | AE50: 6.874636344 | AF50: 0 | AG50: TRUE | AH50: 0.439052318 | AI50: 88.64209264 | AJ50: 0 | AK50: 0.00217466592 | AL50: 0.00217466592 | AM50: FALSE | AN50: 0 | AO50: 280310.9093 | AP50: 0 | AQ50: 6.876897458e-07 | AR50: 6.876897458e-07 | AS50: FALSE | AT50: 0 | AU50: 886420926.4 | AV50: 0
B51: 3 | C51: 2 | D51: 44.58552521 | F51: 42 | G51: 8 | H51: 4 | I51: 233.5374184 | J51: 1 | K51: 0.9542518707 | L51: 0.9542518707 | M51: 7.02011021e+11 | N51: 0 | O51: FALSE | P51: 0 | Q51: 4.006532066e-09 | R51: 4.006532066e-09 | S51: 221532303.7 | T51: 0 | U51: FALSE | V51: 0 | W51: 1.299667628e-05 | X51: 1.299667628e-05 | Y51: 70109.54032 | Z51: 0 | AA51: FALSE | AB51: 0 | AC51: 0.03747293544 | AD51: 0.03747293544 | AE51: 24.30011479 | AF51: 0 | AG51: TRUE | AH51: 0.9542518707 | AI51: 118.460864 | AJ51: 0 | AK51: 0.007686898455 | AL51: 0.007686898455 | AM51: FALSE | AN51: 0 | AO51: 374606.1439 | AP51: 0 | AQ51: 2.430810726e-06 | AR51: 2.430810726e-06 | AS51: FALSE | AT51: 0 | AU51: 1184608640 | AV51: 0
B52: 3 | C52: 3 | D52: 78.14074162 | F52: 43 | G52: 6 | H52: 5 | I52: 238.7414904 | J52: 1 | K52: 0.1801056344 | L52: 0.1801056344 | M52: 1.711956664e+11 | N52: 0 | O52: FALSE | P52: 0 | Q52: 5.852593291e-10 | R52: 5.852593291e-10 | S52: 54023895.95 | T52: 0 | U52: FALSE | V52: 0 | W52: 1.898506219e-06 | X52: 1.898506219e-06 | Y52: 17097.23795 | Z52: 0 | AA52: FALSE | AB52: 0 | AC52: 0.005473907282 | AD52: 0.005473907282 | AE52: 5.925938795 | AF52: 0 | AG52: TRUE | AH52: 0.1801056344 | AI52: 17.30432321 | AJ52: 0 | AK52: 0.00187456274 | AL52: 0.00187456274 | AM52: FALSE | AN52: 0 | AO52: 54721.0747 | AP52: 0 | AQ52: 5.927887876e-07 | AR52: 5.927887876e-07 | AS52: FALSE | AT52: 0 | AU52: 173043232.1 | AV52: 0
B53: 3 | C53: 4 | D53: 125.1180446 | F53: 44 | G53: 1 | H53: 6 | I53: 243.5688195 | J53: 1 | K53: 0.3217653038 | L53: 0.3217653038 | M53: 3.859981252e+11 | N53: 0 | O53: FALSE | P53: 0 | Q53: 8.284756375e-10 | R53: 8.284756375e-10 | S53: 121808705.8 | T53: 0 | U53: FALSE | V53: 0 | W53: 2.687468736e-06 | X53: 2.687468736e-06 | Y53: 38549.46762 | Z53: 0 | AA53: FALSE | AB53: 0 | AC53: 0.007748699764 | AD53: 0.007748699764 | AE53: 13.36132692 | AF53: 0 | AG53: TRUE | AH53: 0.3217653038 | AI53: 24.49548343 | AJ53: 0 | AK53: 0.004226612266 | AL53: 0.004226612266 | AM53: FALSE | AN53: 0 | AO53: 77461.52003 | AP53: 0 | AQ53: 1.336572155e-06 | AR53: 1.336572155e-06 | AS53: FALSE | AT53: 0 | AU53: 244954834.3 | AV53: 0
B54: 3 | C54: 5 | D54: 185.5174342 | F54: 45 | G54: 11 | H54: 1 | I54: 245.2336656 | J54: 1 | K54: 0.8967025276 | L54: 0.8967025276 | M54: 1.164369795e+12 | N54: 0 | O54: FALSE | P54: 0 | Q54: 2.133007439e-09 | R54: 2.133007439e-09 | S54: 367437996.6 | T54: 0 | U54: FALSE | V54: 0 | W54: 6.919202627e-06 | X54: 6.919202627e-06 | Y54: 116285.1133 | Z54: 0 | AA54: FALSE | AB54: 0 | AC54: 0.01994993394 | AD54: 0.01994993394 | AE54: 40.30466594 | AF54: 0 | AG54: TRUE | AH54: 0.8967025276 | AI54: 63.06648744 | AJ54: 0 | AK54: 0.01274964653 | AL54: 0.01274964653 | AM54: FALSE | AN54: 0 | AO54: 199433.7443 | AP54: 0 | AQ54: 4.031792241e-06 | AR54: 4.031792241e-06 | AS54: FALSE | AT54: 0 | AU54: 630664874.4 | AV54: 0
B55: 3 | C55: 6 | D55: 259.3389103 | F55: 46 | G55: 2 | H55: 6 | I55: 249.4826036 | J55: 1 | K55: 0.3470981752 | L55: 0.3470981752 | M55: 5.503417731e+11 | N55: 0 | O55: FALSE | P55: 0 | Q55: 6.761743552e-10 | R55: 6.761743552e-10 | S55: 173670323.1 | T55: 0 | U55: FALSE | V55: 0 | W55: 2.193422906e-06 | X55: 2.193422906e-06 | Y55: 54962.39742 | Z55: 0 | AA55: FALSE | AB55: 0 | AC55: 0.006324231914 | AD55: 0.006324231914 | AE55: 19.05008306 | AF55: 0 | AG55: TRUE | AH55: 0.3470981752 | AI55: 19.99240166 | AJ55: 0 | AK55: 0.006026146597 | AL55: 0.006026146597 | AM55: FALSE | AN55: 0 | AO55: 63221.52516 | AP55: 0 | AQ55: 1.905634876e-06 | AR55: 1.905634876e-06 | AS55: FALSE | AT55: 0 | AU55: 199924016.6 | AV55: 0
B56: 3 | C56: 7 | D56: 346.582473 | F56: 47 | G56: 10 | H56: 3 | I56: 257.5255237 | J56: 1 | K56: 0.1077805301 | L56: 0.1077805301 | M56: 2.471366683e+11 | N56: 0 | O56: FALSE | P56: 0 | Q56: 1.451877438e-10 | R56: 1.451877438e-10 | S56: 77988455.77 | T56: 0 | U56: FALSE | V56: 0 | W56: 4.709704241e-07 | X56: 4.709704241e-07 | Y56: 24681.43333 | Z56: 0 | AA56: FALSE | AB56: 0 | AC56: 0.001357935207 | AD56: 0.001357935207 | AE56: 8.554636934 | AF56: 0 | AG56: TRUE | AH56: 0.1077805301 | AI56: 4.292756252 | AJ56: 0 | AK56: 0.00270610349 | AL56: 0.00270610349 | AM56: FALSE | AN56: 0 | AO56: 13574.8872 | AP56: 0 | AQ56: 8.557450612e-07 | AR56: 8.557450612e-07 | AS56: FALSE | AT56: 0 | AU56: 42927562.52 | AV56: 0
B57: 3 | C57: 8 | D57: 447.2481222 | F57: 48 | G57: 3 | H57: 6 | I57: 259.3389103 | J57: 1 | K57: 0.05266022261 | L57: 0.05266022261 | M57: 1.310119608e+11 | N57: 0 | O57: FALSE | P57: 0 | Q57: 6.537940264e-11 | R57: 6.537940264e-11 | S57: 41343199.2 | T57: 0 | U57: FALSE | V57: 0 | W57: 2.120823988e-07 | X57: 2.120823988e-07 | Y57: 13084.10847 | Z57: 0 | AA57: FALSE | AB57: 0 | AC57: 0.0006114909586 | AD57: 0.0006114909586 | AE57: 4.534979637 | AF57: 0 | AG57: TRUE | AH57: 0.05266022261 | AI57: 1.933068399 | AJ57: 0 | AK57: 0.00143455816 | AL57: 0.00143455816 | AM57: FALSE | AN57: 0 | AO57: 6112.899013 | AP57: 0 | AQ57: 4.536471222e-07 | AR57: 4.536471222e-07 | AS57: FALSE | AT57: 0 | AU57: 19330683.99 | AV57: 0
B58: 3 | C58: 9 | D58: 561.335858 | F58: 49 | G58: 7 | H58: 5 | I58: 264.3678878 | J58: 1 | K58: 0.4372978074 | L58: 0.4372978074 | M58: 1.36014275e+12 | N58: 0 | O58: FALSE | P58: 0 | Q58: 4.342667933e-10 | R58: 4.342667933e-10 | S58: 429217701.5 | T58: 0 | U58: FALSE | V58: 0 | W58: 1.408705793e-06 | X58: 1.408705793e-06 | Y58: 135836.8746 | Z58: 0 | AA58: FALSE | AB58: 0 | AC58: 0.004061680086 | AD58: 0.004061680086 | AE58: 47.08134769 | AF58: 0 | AG58: TRUE | AH58: 0.4372978074 | AI58: 12.83993706 | AJ58: 0 | AK58: 0.01489332631 | AL58: 0.01489332631 | AM58: FALSE | AN58: 0 | AO58: 40603.44611 | AP58: 0 | AQ58: 4.709683306e-06 | AR58: 4.709683306e-06 | AS58: FALSE | AT58: 0 | AU58: 128399370.6 | AV58: 0
B59: 3 | C59: 10 | D59: 688.8456804 | F59: 50 | G59: 11 | H59: 2 | I59: 265.3667954 | J59: 1 | K59: 0.793368706 | L59: 0.793368706 | M59: 2.57825258e+12 | N59: 0 | O59: FALSE | P59: 0 | Q59: 7.540691684e-10 | R59: 7.540691684e-10 | S59: 813614340.1 | T59: 0 | U59: FALSE | V59: 0 | W59: 2.446103692e-06 | X59: 2.446103692e-06 | Y59: 257488.9821 | Z59: 0 | AA59: FALSE | AB59: 0 | AC59: 0.007052779011 | AD59: 0.007052779011 | AE59: 89.24622517 | AF59: 0 | AG59: TRUE | AH59: 0.793368706 | AI59: 22.29551237 | AJ59: 0 | AK59: 0.02823141686 | AL59: 0.02823141686 | AM59: FALSE | AN59: 0 | AO59: 70504.60068 | AP59: 0 | AQ59: 8.927557885e-06 | AR59: 8.927557885e-06 | AS59: FALSE | AT59: 0 | AU59: 222955123.7 | AV59: 0
B60: 3 | C60: 11 | D60: 829.7775894 | F60: 51 | G60: 9 | H60: 4 | I60: 267.0488612 | J60: 1 | K60: 0.3891975187 | L60: 0.3891975187 | M60: 1.361212734e+12 | N60: 0 | O60: FALSE | P60: 0 | Q60: 3.437167017e-10 | R60: 3.437167017e-10 | S60: 429555354.3 | T60: 0 | U60: FALSE | V60: 0 | W60: 1.114972907e-06 | X60: 1.114972907e-06 | Y60: 135943.7334 | Z60: 0 | AA60: FALSE | AB60: 0 | AC60: 0.003214768673 | AD60: 0.003214768673 | AE60: 47.11838518 | AF60: 0 | AG60: TRUE | AH60: 0.3891975187 | AI60: 10.16264859 | AJ60: 0 | AK60: 0.01490504244 | AL60: 0.01490504244 | AM60: FALSE | AN60: 0 | AO60: 32137.11661 | AP60: 0 | AQ60: 4.713388274e-06 | AR60: 4.713388274e-06 | AS60: FALSE | AT60: 0 | AU60: 101626485.9 | AV60: 0
B61: 3 | C61: 12 | D61: 984.1315849 | F61: 52 | G61: 4 | H61: 6 | I61: 273.1377397 | J61: 1 | K61: 0.290291966 | L61: 0.290291966 | M61: 1.319557219e+12 | N61: 0 | O61: FALSE | P61: 0 | Q61: 1.972551358e-10 | R61: 1.972551358e-10 | S61: 416410201.4 | T61: 0 | U61: FALSE | V61: 0 | W61: 6.398703674e-07 | X61: 6.398703674e-07 | Y61: 131783.6149 | Z61: 0 | AA61: FALSE | AB61: 0 | AC61: 0.001844919458 | AD61: 0.001844919458 | AE61: 45.67647934 | AF61: 0 | AG61: TRUE | AH61: 0.290291966 | AI61: 5.832229328 | AJ61: 0 | AK61: 0.0144489218 | AL61: 0.0144489218 | AM61: FALSE | AN61: 0 | AO61: 18443.12851 | AP61: 0 | AQ61: 4.569150264e-06 | AR61: 4.569150264e-06 | AS61: FALSE | AT61: 0 | AU61: 58322293.28 | AV61: 0
B62: 3 | C62: 13 | D62: 1151.907667 | F62: 53 | G62: 12 | H62: 1 | I62: 290.5726764 | J62: 1 | K62: 0.4710631979 | L62: 0.4710631979 | M62: 4.396617879e+12 | N62: 0 | O62: FALSE | P62: 0 | Q62: 1.558928309e-10 | R62: 1.558928309e-10 | S62: 1387432473 | T62: 0 | U62: FALSE | V62: 0 | W62: 5.056963541e-07 | X62: 5.056963541e-07 | Y62: 439088.3465 | Z62: 0 | AA62: FALSE | AB62: 0 | AC62: 0.001458059462 | AD62: 0.001458059462 | AE62: 152.1889485 | AF62: 0 | AG62: TRUE | AH62: 0.4710631979 | AI62: 4.609272843 | AJ62: 0 | AK62: 0.04814220029 | AL62: 0.04814220029 | AM62: FALSE | AN62: 0 | AO62: 14575.80054 | AP62: 0 | AQ62: 1.522390045e-05 | AR62: 1.522390045e-05 | AS62: FALSE | AT62: 0 | AU62: 46092728.43 | AV62: 0
B63: 3 | C63: 14 | D63: 1333.105836 | F63: 54 | G63: 5 | H63: 6 | I63: 290.8790917 | J63: 1 | K63: 0.3658071359 | L63: 0.3658071359 | M63: 3.456317667e+12 | N63: 0 | O63: FALSE | P63: 0 | Q63: 1.195851378e-10 | R63: 1.195851378e-10 | S63: 1090703696 | T63: 0 | U63: FALSE | V63: 0 | W63: 3.879188531e-07 | X63: 3.879188531e-07 | Y63: 345180.9666 | Z63: 0 | AA63: FALSE | AB63: 0 | AC63: 0.001118475049 | AD63: 0.001118475049 | AE63: 119.6404523 | AF63: 0 | AG63: TRUE | AH63: 0.3658071359 | AI63: 3.535765722 | AJ63: 0 | AK63: 0.03784607668 | AL63: 0.03784607668 | AM63: FALSE | AN63: 0 | AO63: 11181.07296 | AP63: 0 | AQ63: 1.196798028e-05 | AR63: 1.196798028e-05 | AS63: FALSE | AT63: 0 | AU63: 35357657.22 | AV63: 0
B64: 3 | C64: 15 | D64: 1527.726091 | F64: 55 | G64: 8 | H64: 5 | I64: 293.9368079 | J64: 1 | K64: 0.651832291 | L64: 0.651832291 | M64: 6.955043581e+12 | N64: 0 | O64: FALSE | P64: 0 | Q64: 1.886941342e-10 | R64: 1.886941342e-10 | S64: 2194790083 | T64: 0 | U64: FALSE | V64: 0 | W64: 6.120995759e-07 | X64: 6.120995759e-07 | Y64: 694597.2268 | Z64: 0 | AA64: FALSE | AB64: 0 | AC64: 0.00176484875 | AD64: 0.00176484875 | AE64: 240.7488662 | AF64: 0 | AG64: TRUE | AH64: 0.651832291 | AI64: 5.579106769 | AJ64: 0 | AK64: 0.07615651629 | AL64: 0.07615651629 | AM64: FALSE | AN64: 0 | AO64: 17642.6847 | AP64: 0 | AQ64: 2.408280502e-05 | AR64: 2.408280502e-05 | AS64: FALSE | AT64: 0 | AU64: 55791067.69 | AV64: 0
B65: 3 | C65: 16 | D65: 1735.768433 | F65: 56 | G65: 11 | H65: 3 | I65: 298.9220119 | J65: 1 | K65: 0.1947597045 | L65: 0.1947597045 | M65: 2.526876207e+12 | N65: 0 | O65: FALSE | P65: 0 | Q65: 4.636612065e-11 | R65: 4.636612065e-11 | S65: 797401594.3 | T65: 0 | U65: FALSE | V65: 0 | W65: 1.504057501e-07 | X65: 1.504057501e-07 | Y65: 252358.0457 | Z65: 0 | AA65: FALSE | AB65: 0 | AC65: 0.0004336604867 | AD65: 0.0004336604867 | AE65: 87.46783177 | AF65: 0 | AG65: TRUE | AH65: 0.1947597045 | AI65: 1.37090397 | AJ65: 0 | AK65: 0.02766885452 | AL65: 0.02766885452 | AM65: FALSE | AN65: 0 | AO65: 4335.178997 | AP65: 0 | AQ65: 8.749660053e-06 | AR65: 8.749660053e-06 | AS65: FALSE | AT65: 0 | AU65: 13709039.7 | AV65: 0
B66: 3 | C66: 17 | D66: 1957.232861 | F66: 57 | G66: 10 | H66: 4 | I66: 304.5028267 | J66: 1 | K66: 0.5344124816 | L66: 0.5344124816 | M66: 8.597340819e+12 | N66: 0 | O66: FALSE | P66: 0 | Q66: 1.026066611e-10 | R66: 1.026066611e-10 | S66: 2713046748 | T66: 0 | U66: FALSE | V66: 0 | W66: 3.328428517e-07 | X66: 3.328428517e-07 | Y66: 858612.7493 | Z66: 0 | AA66: FALSE | AB66: 0 | AC66: 0.0009596760296 | AD66: 0.0009596760296 | AE66: 297.5969928 | AF66: 0 | AG66: TRUE | AH66: 0.5344124816 | AI66: 3.033764244 | AJ66: 0 | AK66: 0.09413938511 | AL66: 0.09413938511 | AM66: FALSE | AN66: 0 | AO66: 9593.604896 | AP66: 0 | AQ66: 2.976948745e-05 | AR66: 2.976948745e-05 | AS66: FALSE | AT66: 0 | AU66: 30337642.44 | AV66: 0
B67: 3 | C67: 18 | D67: 2192.119376 | F67: 58 | G67: 12 | H67: 2 | I67: 310.7058063 | J67: 1 | K67: 0.416779019 | L67: 0.416779019 | M67: 8.476585238e+12 | N67: 0 | O67: FALSE | P67: 0 | Q67: 6.329614725e-11 | R67: 6.329614725e-11 | S67: 2674940135 | T67: 0 | U67: FALSE | V67: 0 | W67: 2.053245855e-07 | X67: 2.053245855e-07 | Y67: 846552.9411 | Z67: 0 | AA67: FALSE | AB67: 0 | AC67: 0.0005920063536 | AD67: 0.0005920063536 | AE67: 293.4170378 | AF67: 0 | AG67: TRUE | AH67: 0.416779019 | AI67: 1.871472927 | AJ67: 0 | AK67: 0.09281713252 | AL67: 0.09281713252 | AM67: FALSE | AN67: 0 | AO67: 5918.117028 | AP67: 0 | AQ67: 2.935135447e-05 | AR67: 2.935135447e-05 | AS67: FALSE | AT67: 0 | AU67: 18714729.27 | AV67: 0
B68: 3 | C68: 19 | D68: 2440.427977 | F68: 59 | G68: 6 | H68: 6 | I68: 312.5629665 | J68: 1 | K68: 0.1043154943 | L68: 0.1043154943 | M68: 2.273817921e+12 | N68: 0 | O68: FALSE | P68: 0 | Q68: 1.478183905e-11 | R68: 1.478183905e-11 | S68: 717544464.6 | T68: 0 | U68: FALSE | V68: 0 | W68: 4.795039047e-08 | X68: 4.795039047e-08 | Y68: 227085.2229 | Z68: 0 | AA68: FALSE | AB68: 0 | AC68: 0.0001382539541 | AD68: 0.0001382539541 | AE68: 78.708218 | AF68: 0 | AG68: TRUE | AH68: 0.1043154943 | AI68: 0.4370536406 | AJ68: 0 | AK68: 0.02489791034 | AL68: 0.02489791034 | AM68: FALSE | AN68: 0 | AO68: 1382.084964 | AP68: 0 | AQ68: 7.873410566e-06 | AR68: 7.873410566e-06 | AS68: FALSE | AT68: 0 | AU68: 4370536.406 | AV68: 0
B69: 3 | C69: 20 | D69: 2702.158665 | F69: 60 | G69: 9 | H69: 5 | I69: 327.4482507 | J69: 1 | K69: 0.2658538255 | L69: 0.2658538255 | M69: 9.953367206e+12 | N69: 0 | O69: FALSE | P69: 0 | Q69: 2.193321594e-11 | R69: 2.193321594e-11 | S69: 3140965456 | T69: 0 | U69: FALSE | V69: 0 | W69: 7.114854012e-08 | X69: 7.114854012e-08 | Y69: 994038.5244 | Z69: 0 | AA69: FALSE | AB69: 0 | AC69: 0.0002051404984 | AD69: 0.0002051404984 | AE69: 344.5358526 | AF69: 0 | AG69: TRUE | AH69: 0.2658538255 | AI69: 0.64849792 | AJ69: 0 | AK69: 0.108987638 | AL69: 0.108987638 | AM69: FALSE | AN69: 0 | AO69: 2050.730485 | AP69: 0 | AQ69: 3.446491727e-05 | AR69: 3.446491727e-05 | AS69: FALSE | AT69: 0 | AU69: 6484979.2 | AV69: 0
B70: 4 | C70: 1 | D70: 38.25122474 | F70: 61 | G70: 1 | H70: 7 | I70: 330.8123822 | J70: 1 | K70: 0.8402288658 | L70: 0.8402288658 | M70: 3.542719758e+13 | N70: 0 | O70: FALSE | P70: 0 | Q70: 6.155238831e-11 | R70: 6.155238831e-11 | S70: 1.117969442e+10 | T70: 0 | U70: FALSE | V70: 0 | W70: 1.996680551e-07 | X70: 1.996680551e-07 | Y70: 3538099.065 | Z70: 0 | AA70: FALSE | AB70: 0 | AC70: 0.0005756970455 | AD70: 0.0005756970455 | AE70: 1226.312611 | AF70: 0 | AG70: TRUE | AH70: 0.8402288658 | AI70: 1.819915324 | AJ70: 0 | AK70: 0.3879216454 | AL70: 0.3879216454 | AM70: FALSE | AN70: 0 | AO70: 5755.077572 | AP70: 0 | AQ70: 0.0001226715953 | AR70: 0.0001226715953 | AS70: FALSE | AT70: 0 | AU70: 18199153.24 | AV70: 0
B71: 4 | C71: 2 | D71: 58.38435459 | F71: 62 | G71: 2 | H71: 7 | I71: 336.7261662 | J71: 1 | K71: 0.9063808393 | L71: 0.9063808393 | M71: 4.695901885e+13 | N71: 0 | O71: FALSE | P71: 0 | Q71: 5.403671394e-11 | R71: 5.403671394e-11 | S71: 1.481876967e+10 | T71: 0 | U71: FALSE | V71: 0 | W71: 1.752881712e-07 | X71: 1.752881712e-07 | Y71: 4689777.121 | Z71: 0 | AA71: FALSE | AB71: 0 | AC71: 0.0005054032414 | AD71: 0.0005054032414 | AE71: 1625.486658 | AF71: 0 | AG71: TRUE | AH71: 0.9063808393 | AI71: 1.597699885 | AJ71: 0 | AK71: 0.5141930805 | AL71: 0.5141930805 | AM71: FALSE | AN71: 0 | AO71: 5052.370655 | AP71: 0 | AQ71: 0.0001626021291 | AR71: 0.0001626021291 | AS71: FALSE | AT71: 0 | AU71: 15976998.85 | AV71: 0
B72: 4 | C72: 3 | D72: 91.93957101 | F72: 63 | G72: 7 | H72: 6 | I72: 338.1893639 | J72: 1 | K72: 0.2532787889 | L72: 0.2532787889 | M72: 1.380070289e+13 | N72: 0 | O72: FALSE | P72: 0 | Q72: 1.435763633e-11 | R72: 1.435763633e-11 | S72: 4355061976 | T72: 0 | U72: FALSE | V72: 0 | W72: 4.657433126e-08 | X72: 4.657433126e-08 | Y72: 1378270.293 | Z72: 0 | AA72: FALSE | AB72: 0 | AC72: 0.0001342864029 | AD72: 0.0001342864029 | AE72: 477.7113954 | AF72: 0 | AG72: TRUE | AH72: 0.2532787889 | AI72: 0.4245112675 | AJ72: 0 | AK72: 0.1511152939 | AL72: 0.1511152939 | AM72: FALSE | AN72: 0 | AO72: 1342.422498 | AP72: 0 | AQ72: 4.778685179e-05 | AR72: 4.778685179e-05 | AS72: FALSE | AT72: 0 | AU72: 4245112.675 | AV72: 0
B73: 4 | C73: 4 | D73: 138.916874 | F73: 64 | G73: 13 | H73: 1 | I73: 339.85421 | J73: 1 | K73: 0.3885521009 | L73: 0.3885521009 | M73: 2.2415484e+13 | N73: 0 | O73: FALSE | P73: 0 | Q73: 2.080352436e-11 | R73: 2.080352436e-11 | S73: 7073612324 | T73: 0 | U73: FALSE | V73: 0 | W73: 6.748396548e-08 | X73: 6.748396548e-08 | Y73: 2238624.797 | Z73: 0 | AA73: FALSE | AB73: 0 | AC73: 0.0001945745378 | AD73: 0.0001945745378 | AE73: 775.912084 | AF73: 0 | AG73: TRUE | AH73: 0.3885521009 | AI73: 0.6150964049 | AJ73: 0 | AK73: 0.2454456471 | AL73: 0.2454456471 | AM73: FALSE | AN73: 0 | AO73: 1945.10562 | AP73: 0 | AQ73: 7.761672866e-05 | AR73: 7.761672866e-05 | AS73: FALSE | AT73: 0 | AU73: 6150964.049 | AV73: 0
B74: 4 | C74: 5 | D74: =3.1416/2*SQRT($H$2/$I$2)*(B74^2/$C$2^2+C74^2/$D$2^2) -> 199.3162635 | F74: 65 | G74: 12 | H74: 3 | I74: 344.2610227 | J74: 1 | K74: =ABS(SIN(G74*3.1416*$J$2/$C$2)*SIN(H74*3.1416*$K$2/$D$2))*(1/F74^$M$2)+(1-1/F74^$M$2) -> 0.1023127809 | L74: 0.1023127809 | M74: 6.856188282e+12 | N74: 0 | O74: FALSE | P74: 0 | Q74: 4.715888798e-12 | R74: 4.715888798e-12 | S74: 2163594501 | T74: 0 | U74: =AND($I74>44.548,$I74<89.095) -> FALSE | V74: 0 | W74: 1.529773857e-08 | X74: =IF($I74>89.095,W74,0) -> 1.529773857e-08 | Y74: 684724.5903 | Z74: 0 | AA74: FALSE | AB74: 0 | AC74: 4.410752081e-05 | AD74: 4.410752081e-05 | AE74: 237.3269896 | AF74: 0 | AG74: TRUE | AH74: 0.1023127809 | AI74: 0.1394343668 | AJ74: 0 | AK74: 0.07507406798 | AL74: 0.07507406798 | AM74: FALSE | AN74: 0 | AO74: 440.9301832 | AP74: 0 | AQ74: 2.37405048e-05 | AR74: 2.37405048e-05 | AS74: FALSE | AT74: 0 | AU74: 1394343.668 | AV74: 0
B75: 4 | C75: 6 | D75: 273.1377397 | F75: 66 | G75: 11 | H75: 4 | I75: 345.8993148 | J75: =IF(ABS(I75-I74)>0.0001,1,$L$2) -> 1 | K75: 0.9656847752 | L75: =$J75*$K75 -> 0.9656847752 | M75: =10^(LOG10($I75/22.27)/LOG10(2)*70/20)*$L75 -> 6.838499336e+13 | N75: =IF($I75<22.27,M75,0) -> 0 | O75: =AND($I75>22.27,$I75<44.45) -> FALSE | P75: =IF($O75=TRUE,$L75,0) -> 0 | Q75: =10^(LOG10(44.45/$I75)/LOG10(2)*70/20)*$L75 -> 4.212078661e-11 | R75: =IF($I75>44.45,Q75,0) -> 4.212078661e-11 | S75: =10^(LOG10($I75/44.548)/LOG10(2)*70/20)*$L75 -> 2.158012434e+10 | T75: =IF($I75<44.528,S75,0) -> 0 | U75: FALSE | V75: =IF($U75=TRUE,$L75,0) -> 0 | W75: =10^(LOG10(89.095/$I75)/LOG10(2)*70/20)*$L75 -> 1.366344308e-07 | X75: 1.366344308e-07 | Y75: =10^(LOG10($I75/89.09)/LOG10(2)*70/20)*$L75 -> 6829580.028 | Z75: =IF($I75<89.09,Y75,0) -> 0 | AA75: =AND($I75>89.09,$I75<176.78) -> FALSE | AB75: =IF($AA75=TRUE,$L75,0) -> 0 | AC75: =10^(LOG10(176.78/$I75)/LOG10(2)*70/20)*$L75 -> 0.0003939540458 | AD75: =IF($I75>176.78,AC75,0) -> 0.0003939540458 | AE75: =10^(LOG10($I75/176.78)/LOG10(2)*70/20)*$L75 -> 2367.146866 | AF75: =IF($I75<176.78,AE75,0) -> 0 | AG75: =AND($I75>176.78,$I75<353.55) -> TRUE | AH75: =IF($AG75=TRUE,$L75,0) -> 0.9656847752 | AI75: =10^(LOG10(353.55/$I75)/LOG10(2)*70/20)*$L75 -> 1.245382464 | AJ75: =IF($I75>353.55,AI75,0) -> 0 | AK75: =10^(LOG10($I75/353.55)/LOG10(2)*70/20)*$L75 -> 0.7488037709 | AL75: =IF($I75<353.55,AK75,0) -> 0.7488037709 | AM75: =AND($I75>353.55,$I75<707.1) -> FALSE | AN75: =IF($AM75=TRUE,$L75,0) -> 0 | AO75: =10^(LOG10(707.1/$I75)/LOG10(2)*70/20)*$L75 -> 3938.245143 | AP75: =IF($I75>707.1,AO75,0) -> 0 | AQ75: =10^(LOG10($I75/707.1)/LOG10(2)*70/20)*$L75 -> 0.0002367925437 | AR75: =IF($I75<707.1,AQ75,0) -> 0.0002367925437 | AS75: =AND($I75>707.1,$I75<1414.2) -> FALSE | AT75: =IF($AS75=TRUE,$L75,0) -> 0 | AU75: =10^(LOG10(1414.2/$I75)/LOG10(2)*70/20)*$L75 -> 12453824.64 | AV75: =IF($I75>1414.2,AU75,0) -> 0
B76: 4 | C76: 7 | D76: 360.3813023 | F76: 67 | G76: 3 | H76: 7 | I76: 346.582473 | J76: 1 | K76: 0.1375121512 | L76: 0.1375121512 | M76: 9.963900841e+12 | N76: 0 | O76: FALSE | P76: 0 | Q76: 5.861911654e-12 | R76: 5.861911654e-12 | S76: 3144289536 | T76: 0 | U76: FALSE | V76: 0 | W76: 1.901528976e-08 | X76: 1.901528976e-08 | Y76: 995090.514 | Z76: 0 | AA76: FALSE | AB76: 0 | AC76: 5.48262271e-05 | AD76: 5.48262271e-05 | AE76: 344.9004744 | AF76: 0 | AG76: TRUE | AH76: 0.1375121512 | AI76: 0.1733187475 | AJ76: 0 | AK76: 0.1091029794 | AL76: 0.1091029794 | AM76: FALSE | AN76: 0 | AO76: 548.0820032 | AP76: 0 | AQ76: 3.450139145e-05 | AR76: 3.450139145e-05 | AS76: FALSE | AT76: 0 | AU76: 1733187.475 | AV76: 0
B77: 4 | C77: 8 | D77: 461.0469516 | F77: 68 | G77: 13 | H77: 2 | I77: 359.9873398 | J77: 1 | K77: 0.3437763005 | L77: 0.3437763005 | M77: 3.872401751e+13 | N77: 0 | O77: FALSE | P77: 0 | Q77: 9.426662808e-12 | R77: 9.426662808e-12 | S77: 1.222006571e+10 | T77: 0 | U77: FALSE | V77: 0 | W77: 3.057888541e-08 | X77: 3.057888541e-08 | Y77: 3867351.061 | Z77: 0 | AA77: FALSE | AB77: 0 | AC77: 8.81672032e-05 | AD77: 8.81672032e-05 | AE77: 1340.432048 | AF77: 0 | AG77: FALSE | AH77: 0 | AI77: 0.278717505 | AJ77: 0.278717505 | AK77: 0.4240212496 | AL77: 0 | AM77: TRUE | AN77: 0.3437763005 | AO77: 881.3821395 | AP77: 0 | AQ77: 0.0001340872925 | AR77: 0.0001340872925 | AS77: FALSE | AT77: 0 | AU77: 2787175.05 | AV77: 0
B78: 4 | C78: 9 | D78: 575.1346874 | F78: 69 | G78: 4 | H78: 7 | I78: 360.3813023 | J78: 1 | K78: 0.7580422328 | L78: 0.7580422328 | M78: 8.648102871e+13 | N78: 0 | O78: FALSE | P78: 0 | Q78: 2.052354938e-11 | R78: 2.052354938e-11 | S78: 2.729065634e+10 | T78: 0 | U78: FALSE | V78: 0 | W78: 6.657576254e-08 | X78: 6.657576254e-08 | Y78: 8636823.337 | Z78: 0 | AA78: FALSE | AB78: 0 | AC78: 0.000191955943 | AD78: 0.000191955943 | AE78: 2993.541215 | AF78: 0 | AG78: FALSE | AH78: 0 | AI78: 0.6068184035 | AJ78: 0.6068184035 | AK78: 0.9469522074 | AL78: 0 | AM78: TRUE | AN78: 0.7580422328 | AO78: 1918.928281 | AP78: 0 | AQ78: 0.0002994525811 | AR78: 0.0002994525811 | AS78: FALSE | AT78: 0 | AU78: 6068184.035 | AV78: 0
B79: 4 | C79: 10 | D79: 702.6445098 | F79: 70 | G79: 10 | H79: 5 | I79: 364.9022162 | J79: 1 | K79: 0.365047555 | L79: 0.365047555 | M79: 4.814232035e+13 | N79: 0 | O79: FALSE | P79: 0 | Q79: 8.549847781e-12 | R79: 8.549847781e-12 | S79: 1.519218191e+10 | T79: 0 | U79: FALSE | V79: 0 | W79: 2.773460989e-08 | X79: 2.773460989e-08 | Y79: 4807952.936 | Z79: 0 | AA79: FALSE | AB79: 0 | AC79: 7.996638704e-05 | AD79: 7.996638704e-05 | AE79: 1666.446645 | AF79: 0 | AG79: FALSE | AH79: 0 | AI79: 0.2527927741 | AJ79: 0.2527927741 | AK79: 0.5271500259 | AL79: 0 | AM79: TRUE | AN79: 0.365047555 | AO79: 799.4009421 | AP79: 0 | AQ79: 0.000166699475 | AR79: 0.000166699475 | AS79: FALSE | AT79: 0 | AU79: 2527927.741 | AV79: 0
B80: 4 | C80: 11 | D80: 843.5764187 | F80: 71 | G80: 8 | H80: 6 | I80: 367.758284 | J80: 1 | K80: 0.3775351499 | L80: 0.3775351499 | M80: 5.451332971e+13 | N80: 0 | O80: FALSE | P80: 0 | Q80: 8.076042355e-12 | R80: 8.076042355e-12 | S80: 1.72026694e+10 | T80: 0 | U80: FALSE | V80: 0 | W80: 2.619764584e-08 | X80: 2.619764584e-08 | Y80: 5444222.915 | Z80: 0 | AA80: FALSE | AB80: 0 | AC80: 7.553490369e-05 | AD80: 7.553490369e-05 | AE80: 1886.979164 | AF80: 0 | AG80: FALSE | AH80: 0 | AI80: 0.2387838009 | AJ80: 0.2387838009 | AK80: 0.5969114691 | AL80: 0 | AM80: TRUE | AN80: 0.3775351499 | AO80: 755.1006792 | AP80: 0 | AQ80: 0.0001887599804 | AR80: 0.0001887599804 | AS80: FALSE | AT80: 0 | AU80: 2387838.009 | AV80: 0
B81: 4 | C81: 12 | D81: 997.9304143 | F81: 72 | G81: 5 | H81: 7 | I81: 378.1226544 | J81: 1 | K81: 0.9552357301 | L81: 0.9552357301 | M81: 1.905431958e+14 | N81: 0 | O81: FALSE | P81: 0 | Q81: 1.479156702e-11 | R81: 1.479156702e-11 | S81: 6.012935961e+10 | T81: 0 | U81: FALSE | V81: 0 | W81: 4.798194674e-08 | X81: 4.798194674e-08 | Y81: 19029467.44 | Z81: 0 | AA81: FALSE | AB81: 0 | AC81: 0.0001383449394 | AD81: 0.0001383449394 | AE81: 6595.653619 | AF81: 0 | AG81: FALSE | AH81: 0 | AI81: 0.4373412667 | AJ81: 0.4373412667 | AK81: 2.086414819 | AL81: 0 | AM81: TRUE | AN81: 0.9552357301 | AO81: 1382.994518 | AP81: 0 | AQ81: 0.0006597822973 | AR81: 0.0006597822973 | AS81: FALSE | AT81: 0 | AU81: 4373412.667 | AV81: 0
B82: 4 | C82: 13 | D82: 1165.706496 | F82: 73 | G82: 12 | H82: 4 | I82: 391.2383257 | J82: 1 | K82: 0.5073015235 | L82: 0.5073015235 | M82: 1.504270739e+14 | N82: 0 | O82: FALSE | P82: 0 | Q82: 5.284365381e-12 | R82: 5.284365381e-12 | S82: 4.746999009e+10 | T82: 0 | U82: FALSE | V82: 0 | W82: 1.714180371e-08 | X82: 1.714180371e-08 | Y82: 15023087.51 | Z82: 0 | AA82: FALSE | AB82: 0 | AC82: 4.942445973e-05 | AD82: 4.942445973e-05 | AE82: 5207.033868 | AF82: 0 | AG82: FALSE | AH82: 0 | AI82: 0.1562424757 | AJ82: 0.1562424757 | AK82: 1.647150268 | AL82: 0 | AM82: TRUE | AN82: 0.5073015235 | AO82: 494.0820904 | AP82: 0 | AQ82: 0.0005208746496 | AR82: 0.0005208746496 | AS82: FALSE | AT82: 0 | AU82: 1562424.757 | AV82: 0
B83: 4 | C83: 14 | D83: 1346.904665 | F83: 74 | G83: 14 | H83: 1 | I83: 393.0782662 | J83: 1 | K83: 0.8902063548 | L83: 0.8902063548 | M83: 2.787671917e+14 | N83: 0 | O83: FALSE | P83: 0 | Q83: 8.780641252e-12 | R83: 8.780641252e-12 | S83: 8.797004082e+10 | T83: 0 | U83: FALSE | V83: 0 | W83: 2.848327432e-08 | X83: 2.848327432e-08 | Y83: 27840360.16 | Z83: 0 | AA83: FALSE | AB83: 0 | AC83: 8.212498922e-05 | AD83: 8.212498922e-05 | AE83: 9649.527649 | AF83: 0 | AG83: FALSE | AH83: 0 | AI83: 0.2596166291 | AJ83: 0.2596166291 | AK83: 3.052452213 | AL83: 0 | AM83: TRUE | AN83: 0.8902063548 | AO83: 820.9798664 | AP83: 0 | AQ83: 0.0009652701443 | AR83: 0.0009652701443 | AS83: FALSE | AT83: 0 | AU83: 2596166.291 | AV83: 0
B84: 4 | C84: 15 | D84: 1541.52492 | F84: 75 | G84: 13 | H84: 3 | I84: 393.5425562 | J84: 1 | K84: 0.08439174646 | L84: 0.08439174646 | M84: 2.679240101e+13 | N84: 0 | O84: FALSE | P84: 0 | Q84: 8.210598728e-13 | R84: 8.210598728e-13 | S84: 8454827830 | T84: 0 | U84: FALSE | V84: 0 | W84: 2.663412947e-09 | X84: 2.663412947e-09 | Y84: 2675745.626 | Z84: 0 | AA84: FALSE | AB84: 0 | AC84: 7.679340411e-06 | AD84: 7.679340411e-06 | AE84: 927.4190868 | AF84: 0 | AG84: FALSE | AH84: 0 | AI84: 0.02427622201 | AJ84: 0.02427622201 | AK84: 0.2933721263 | AL84: 0 | AM84: TRUE | AN84: 0.08439174646 | AO84: 76.76815455 | AP84: 0 | AQ84: 9.277241211e-05 | AR84: 9.277241211e-05 | AS84: FALSE | AT84: 0 | AU84: 242762.2201 | AV84: 0
B85: 4 | C85: 16 | D85: 1749.567262 | F85: 76 | G85: 6 | H85: 7 | I85: 399.8065292 | J85: 1 | K85: 0.2724000645 | L85: 0.2724000645 | M85: 1.039099651e+14 | N85: 0 | O85: FALSE | P85: 0 | Q85: 2.205686201e-12 | R85: 2.205686201e-12 | S85: 3.279067317e+10 | T85: 0 | U85: FALSE | V85: 0 | W85: 7.154963212e-09 | X85: 7.154963212e-09 | Y85: 10377443.76 | Z85: 0 | AA85: FALSE | AB85: 0 | AC85: 2.062969552e-05 | AD85: 2.062969552e-05 | AE85: 3596.843931 | AF85: 0 | AG85: FALSE | AH85: 0 | AI85: 0.0652153755 | AJ85: 0.0652153755 | AK85: 1.137796027 | AL85: 0 | AM85: TRUE | AN85: 0.2724000645 | AO85: 206.2291251 | AP85: 0 | AQ85: 0.0003598026957 | AR85: 0.0003598026957 | AS85: FALSE | AT85: 0 | AU85: 652153.755 | AV85: 0
B86: 4 | C86: 17 | D86: 1971.03169 | F86: 77 | G86: 9 | H86: 6 | I86: 401.2697268 | J86: 1 | K86: 0.1539800425 | L86: 0.1539800425 | M86: 6.128588023e+13 | N86: 0 | O86: FALSE | P86: 0 | Q86: 1.194964367e-12 | R86: 1.194964367e-12 | S86: 1.93398705e+10 | T86: 0 | U86: FALSE | V86: 0 | W86: 3.876311183e-09 | X86: 3.876311183e-09 | Y86: 6120594.638 | Z86: 0 | AA86: FALSE | AB86: 0 | AC86: 1.117645431e-05 | AD86: 1.117645431e-05 | AE86: 2121.411032 | AF86: 0 | AG86: FALSE | AH86: 0 | AI86: 0.03533143105 | AJ86: 0.03533143105 | AK86: 0.6710697183 | AL86: 0 | AM86: TRUE | AN86: 0.1539800425 | AO86: 111.7277951 | AP86: 0 | AQ86: 0.0002122108778 | AR86: 0.0002122108778 | AS86: FALSE | AT86: 0 | AU86: 353314.3105 | AV86: 0
B87: 4 | C87: 18 | D87: 2205.918205 | F87: 78 | G87: 11 | H87: 5 | I87: 406.2987044 | J87: 1 | K87: 0.6596419024 | L87: 0.6596419024 | M87: 3.034546442e+14 | N87: 0 | O87: FALSE | P87: 0 | Q87: 4.429035853e-12 | R87: 4.429035853e-12 | S87: 9.576061398e+10 | T87: 0 | U87: FALSE | V87: 0 | W87: 1.436722439e-08 | X87: 1.436722439e-08 | Y87: 30305885.48 | Z87: 0 | AA87: FALSE | AB87: 0 | AC87: 4.142459659e-05 | AD87: 4.142459659e-05 | AE87: 10504.08393 | AF87: 0 | AG87: FALSE | AH87: 0 | AI87: 0.130953005 | AJ87: 0.130953005 | AK87: 3.32277552 | AL87: 0 | AM87: TRUE | AN87: 0.6596419024 | AO87: 414.1097624 | AP87: 0 | AQ87: 0.00105075388 | AR87: 0.00105075388 | AS87: FALSE | AT87: 0 | AU87: 1309530.05 | AV87: 0
B88: 4 | C88: 19 | D88: 2454.226807 | F88: 79 | G88: 14 | H88: 2 | I88: 413.211396 | J88: 1 | K88: 0.7876211364 | L88: 0.7876211364 | M88: 4.408495398e+14 | N88: 0 | O88: FALSE | P88: 0 | Q88: 4.346411548e-12 | R88: 4.346411548e-12 | S88: 1.39118064e+11 | T88: 0 | U88: FALSE | V88: 0 | W88: 1.409920174e-08 | X88: 1.409920174e-08 | Y88: 44027454.93 | Z88: 0 | AA88: FALSE | AB88: 0 | AC88: 4.065181475e-05 | AD88: 4.065181475e-05 | AE88: 15260.00889 | AF88: 0 | AG88: FALSE | AH88: 0 | AI88: 0.1285100578 | AJ88: 0.1285100578 | AK88: 4.827225706 | AL88: 0 | AM88: TRUE | AN88: 0.7876211364 | AO88: 406.3844849 | AP88: 0 | AQ88: 0.001526502801 | AR88: 0.001526502801 | AS88: FALSE | AT88: 0 | AU88: 1285100.578 | AV88: 0
B89: 4 | C89: 20 | D89: 2715.957495 | F89: 80 | G89: 7 | H89: 7 | I89: 425.4329266 | J89: 1 | K89: 0.6613893638 | L89: 0.6613893638 | M89: 5.195304661e+14 | N89: 0 | O89: FALSE | P89: 0 | Q89: 2.600697893e-12 | R89: 2.600697893e-12 | S89: 1.639472566e+11 | T89: 0 | U89: FALSE | V89: 0 | W89: 8.43633049e-09 | X89: 8.43633049e-09 | Y89: 51885285.37 | Z89: 0 | AA89: FALSE | AB89: 0 | AC89: 2.43242242e-05 | AD89: 2.43242242e-05 | AE89: 17983.54952 | AF89: 0 | AG89: FALSE | AH89: 0 | AI89: 0.07689465963 | AJ89: 0.07689465963 | AK89: 5.688768149 | AL89: 0 | AM89: TRUE | AN89: 0.6613893638 | AO89: 243.1622643 | AP89: 0 | AQ89: 0.001798946443 | AR89: 0.001798946443 | AS89: FALSE | AT89: 0 | AU89: 768946.5963 | AV89: 0
B90: 5 | C90: 1 | D90: 55.99257682 | F90: 81 | G90: 1 | H90: 8 | I90: 431.4780315 | J90: 1 | K90: 0.4216376281 | L90: 0.4216376281 | M90: 390244791051921 | N90: 0 | O90: FALSE | P90: 0 | Q90: 1.407110233e-12 | R90: 1.407110233e-12 | S90: 1.231488182e+11 | T90: 0 | U90: FALSE | V90: 0 | W90: 4.564485169e-09 | X90: 4.564485169e-09 | Y90: 38973580.32 | Z90: 0 | AA90: FALSE | AB90: 0 | AC90: 1.316064618e-05 | AD90: 1.316064618e-05 | AE90: 13508.32528 | AF90: 0 | AG90: FALSE | AH90: 0 | AI90: 0.04160393359 | AJ90: 0.04160393359 | AK90: 4.273112518 | AL90: 0 | AM90: TRUE | AN90: 0.4216376281 | AO90: 131.5631898 | AP90: 0 | AQ90: 0.001351276825 | AR90: 0.001351276825 | AS90: FALSE | AT90: 0 | AU90: 416039.3359 | AV90: 0
B91: 5 | C91: 2 | D91: 76.12570667 | F91: 82 | G91: 2 | H91: 8 | I91: 437.3918155 | J91: 1 | K91: 0.4548335373 | L91: 0.4548335373 | M91: 4.931592071e+14 | N91: 0 | O91: FALSE | P91: 0 | Q91: 1.295699609e-12 | R91: 1.295699609e-12 | S91: 1.556253278e+11 | T91: 0 | U91: FALSE | V91: 0 | W91: 4.20308339e-09 | X91: 4.20308339e-09 | Y91: 49251599.02 | Z91: 0 | AA91: FALSE | AB91: 0 | AC91: 1.211862703e-05 | AD91: 1.211862703e-05 | AE91: 17070.70827 | AF91: 0 | AG91: FALSE | AH91: 0 | AI91: 0.03830986316 | AJ91: 0.03830986316 | AK91: 5.400007455 | AL91: 0 | AM91: TRUE | AN91: 0.4548335373 | AO91: 121.1464244 | AP91: 0 | AQ91: 0.001707632294 | AR91: 0.001707632294 | AS91: FALSE | AT91: 0 | AU91: 383098.6316 | AV91: 0
B92: 5 | C92: 3 | D92: 109.6809231 | F92: 83 | G92: 10 | H92: 6 | I92: 438.7236923 | J92: 1 | K92: 0.2114321203 | L92: 0.2114321203 | M92: 2.374969339e+14 | N92: 0 | O92: FALSE | P92: 0 | Q92: 5.813938538e-13 | R92: 5.813938538e-13 | S92: 7.494646282e+10 | T92: 0 | U92: FALSE | V92: 0 | W92: 1.885967112e-09 | X92: 1.885967112e-09 | Y92: 23718717.17 | Z92: 0 | AA92: FALSE | AB92: 0 | AC92: 5.437753645e-06 | AD92: 5.437753645e-06 | AE92: 8220.957481 | AF92: 0 | AG92: FALSE | AH92: 0 | AI92: 0.01719003296 | AJ92: 0.01719003296 | AK92: 2.600550076 | AL92: 0 | AM92: TRUE | AN92: 0.2114321203 | AO92: 54.3596572 | AP92: 0 | AQ92: 0.0008223661409 | AR92: 0.0008223661409 | AS92: FALSE | AT92: 0 | AU92: 171900.3296 | AV92: 0
B93: 5 | C93: 4 | D93: 156.6582261 | F93: 84 | G93: 13 | H93: 4 | I93: 440.5198592 | J93: 1 | K93: 0.418442947 | L93: 0.418442947 | M93: 4.928943478e+14 | N93: 0 | O93: FALSE | P93: 0 | Q93: 1.097248964e-12 | R93: 1.097248964e-12 | S93: 1.555417466e+11 | T93: 0 | U93: FALSE | V93: 0 | W93: 3.559334944e-09 | X93: 3.559334944e-09 | Y93: 49225147.63 | Z93: 0 | AA93: FALSE | AB93: 0 | AC93: 1.026252602e-05 | AD93: 1.026252602e-05 | AE93: 17061.54016 | AF93: 0 | AG93: FALSE | AH93: 0 | AI93: 0.03244228629 | AJ93: 0.03244228629 | AK93: 5.397107292 | AL93: 0 | AM93: TRUE | AN93: 0.418442947 | AO93: 102.5915172 | AP93: 0 | AQ93: 0.001706715182 | AR93: 0.001706715182 | AS93: FALSE | AT93: 0 | AU93: 324422.8629 | AV93: 0
B94: 5 | C94: 5 | D94: 217.0576156 | F94: 85 | G94: 14 | H94: 3 | I94: 446.7666125 | J94: 1 | K94: 0.1933487654 | L94: 0.1933487654 | M94: 2.682619607e+14 | N94: 0 | O94: FALSE | P94: 0 | Q94: 4.304376237e-13 | R94: 4.304376237e-13 | S94: 8.465492476e+10 | T94: 0 | U94: FALSE | V94: 0 | W94: 1.396284458e-09 | X94: 1.396284458e-09 | Y94: 26791207.25 | Z94: 0 | AA94: FALSE | AB94: 0 | AC94: 4.025866014e-06 | AD94: 4.025866014e-06 | AE94: 9285.889031 | AF94: 0 | AG94: FALSE | AH94: 0 | AI94: 0.01272672026 | AJ94: 0.01272672026 | AK94: 2.937421764 | AL94: 0 | AM94: TRUE | AN94: 0.1933487654 | AO94: 40.24542316 | AP94: 0 | AQ94: 0.0009288943222 | AR94: 0.0009288943222 | AS94: FALSE | AT94: 0 | AU94: 127267.2026 | AV94: 0
B95: 5 | C95: 6 | D95: 290.8790917 | F95: 86 | G95: 3 | H95: 8 | I95: 447.2481222 | J95: 1 | K95: 0.06900536227 | L95: 0.06900536227 | M95: 9.694819028e+13 | N95: 0 | O95: FALSE | P95: 0 | Q95: 1.517093987e-13 | R95: 1.517093987e-13 | S95: 3.059375892e+10 | T95: 0 | U95: FALSE | V95: 0 | W95: 4.921258365e-10 | X95: 4.921258365e-10 | Y95: 9682174.285 | Z95: 0 | AA95: FALSE | AB95: 0 | AC95: 1.418931987e-06 | AD95: 1.418931987e-06 | AE95: 3355.862062 | AF95: 0 | AG95: FALSE | AH95: 0 | AI95: 0.004485581585 | AJ95: 0.004485581585 | AK95: 1.061565804 | AL95: 0 | AM95: TRUE | AN95: 0.06900536227 | AO95: 14.18465444 | AP95: 0 | AQ95: 0.0003356965828 | AR95: 0.0003356965828 | AS95: FALSE | AT95: 0 | AU95: 44855.81585 | AV95: 0
B96: 5 | C96: 7 | D96: 378.1226544 | F96: 87 | G96: 15 | H96: 1 | I96: 450.2448451 | J96: 1 | K96: 0.5717409999 | L96: 0.5717409999 | M96: 868113221576297 | N96: 0 | O96: FALSE | P96: 0 | Q96: 1.163077934e-12 | R96: 1.163077934e-12 | S96: 2.739488642e+11 | T96: 0 | U96: FALSE | V96: 0 | W96: 3.772875682e-09 | X96: 3.772875682e-09 | Y96: 86698096.02 | Z96: 0 | AA96: FALSE | AB96: 0 | AC96: 1.087822177e-05 | AD96: 1.087822177e-05 | AE96: 30049.74324 | AF96: 0 | AG96: FALSE | AH96: 0 | AI96: 0.03438864702 | AJ96: 0.03438864702 | AK96: 9.505688632 | AL96: 0 | AM96: TRUE | AN96: 0.5717409999 | AO96: 108.7464502 | AP96: 0 | AQ96: 0.00300596268 | AR96: 0.00300596268 | AS96: FALSE | AT96: 0 | AU96: 343886.4702 | AV96: 0
B97: 5 | C97: 8 | D97: 478.7883037 | F97: 88 | G97: 12 | H97: 5 | I97: 451.6377152 | J97: 1 | K97: 0.346528547 | L97: 0.346528547 | M97: 5.453970466e+14 | N97: 0 | O97: FALSE | P97: 0 | Q97: 6.800671022e-13 | R97: 6.800671022e-13 | S97: 1.72109925e+11 | T97: 0 | U97: FALSE | V97: 0 | W97: 2.206050478e-09 | X97: 2.206050478e-09 | Y97: 54468569.7 | Z97: 0 | AA97: FALSE | AB97: 0 | AC97: 6.360640622e-06 | AD97: 6.360640622e-06 | AE97: 18878.92133 | AF97: 0 | AG97: FALSE | AH97: 0 | AI97: 0.02010749825 | AJ97: 0.02010749825 | AK97: 5.972002703 | AL97: 0 | AM97: TRUE | AN97: 0.346528547 | AO97: 63.58549252 | AP97: 0 | AQ97: 0.001888513073 | AR97: 0.001888513073 | AS97: FALSE | AT97: 0 | AU97: 201074.9825 | AV97: 0
B98: 5 | C98: 9 | D98: 592.8760395 | F98: 89 | G98: 8 | H98: 7 | I98: 455.0018467 | J98: 1 | K98: 0.9858612071 | L98: 0.9858612071 | M98: 1.691461275e+15 | N98: 0 | O98: FALSE | P98: 0 | Q98: 1.774826929e-12 | R98: 1.774826929e-12 | S98: 5.337712681e+11 | T98: 0 | U98: FALSE | V98: 0 | W98: 5.757310979e-09 | X98: 5.757310979e-09 | Y98: 168925513.9 | Z98: 0 | AA98: FALSE | AB98: 0 | AC98: 1.659988584e-05 | AD98: 1.659988584e-05 | AE98: 58549.93998 | AF98: 0 | AG98: FALSE | AH98: 0 | AI98: 0.05247618838 | AJ98: 0.05247618838 | AK98: 18.52120647 | AL98: 0 | AM98: TRUE | AN98: 0.9858612071 | AO98: 165.9442782 | AP98: 0 | AQ98: 0.005856919745 | AR98: 0.005856919745 | AS98: FALSE | AT98: 0 | AU98: 524761.8838 | AV98: 0
B99: 5 | C99: 10 | D99: 720.3858619 | F99: 90 | G99: 4 | H99: 8 | I99: 461.0469516 | J99: 1 | K99: 0.3803953209 | L99: 0.3803953209 | M99: 7.60897079e+14 | N99: 0 | O99: FALSE | P99: 0 | Q99: 5.873959242e-13 | R99: 5.873959242e-13 | S99: 2.401148668e+11 | T99: 0 | U99: FALSE | V99: 0 | W99: 1.905437059e-09 | X99: 1.905437059e-09 | Y99: 75990465.73 | Z99: 0 | AA99: FALSE | AB99: 0 | AC99: 5.493890771e-06 | AD99: 5.493890771e-06 | AE99: 26338.45596 | AF99: 0 | AG99: FALSE | AH99: 0 | AI99: 0.01736749577 | AJ99: 0.01736749577 | AK99: 8.331690537 | AL99: 0 | AM99: TRUE | AN99: 0.3803953209 | AO99: 54.92084388 | AP99: 0 | AQ99: 0.002634711886 | AR99: 0.002634711886 | AS99: FALSE | AT99: 0 | AU99: 173674.9577 | AV99: 0
B100: 5 | C100: 11 | D100: 861.3177708 | F100: 91 | G100: 15 | H100: 2 | I100: 470.3779749 | J100: 1 | K100: 0.5058549556 | L100: 0.5058549556 | M100: 1.2772934e+15 | N100: 0 | O100: FALSE | P100: 0 | Q100: 6.187965205e-13 | R100: 6.187965205e-13 | S100: 4.030730872e+11 | T100: 0 | U100: FALSE | V100: 0 | W100: 2.007296567e-09 | X100: 2.007296567e-09 | Y100: 127562745.4 | Z100: 0 | AA100: FALSE | AB100: 0 | AC100: 5.787579302e-06 | AD100: 5.787579302e-06 | AE100: 44213.51705 | AF100: 0 | AG100: FALSE | AH100: 0 | AI100: 0.01829591509 | AJ100: 0.01829591509 | AK100: 13.98614035 | AL100: 0 | AM100: TRUE | AN100: 0.5058549556 | AO100: 57.85676355 | AP100: 0 | AQ100: 0.004422805917 | AR100: 0.004422805917 | AS100: FALSE | AT100: 0 | AU100: 182959.1509 | AV100: 0
B101: 5 | C101: 12 | D101: 1015.671766 | F101: 92 | G101: 5 | H101: 8 | I101: 478.7883037 | J101: 1 | K101: 0.4793495485 | L101: 0.4793495485 | M101: 1.487314744e+15 | N101: 0 | O101: FALSE | P101: 0 | Q101: 4.771866394e-13 | R101: 4.771866394e-13 | S101: 4.693491293e+11 | T101: 0 | U101: FALSE | V101: 0 | W101: 1.547932271e-09 | X101: 1.547932271e-09 | Y101: 148537487.1 | Z101: 0 | AA101: FALSE | AB101: 0 | AC101: 4.463107704e-06 | AD101: 4.463107704e-06 | AE101: 51483.40683 | AF101: 0 | AG101: FALSE | AH101: 0 | AI101: 0.01410894526 | AJ101: 0.01410894526 | AK101: 16.28583749 | AL101: 0 | AM101: TRUE | AN101: 0.4793495485 | AO101: 44.61640241 | AP101: 0 | AQ101: 0.005150034007 | AR101: 0.005150034007 | AS101: FALSE | AT101: 0 | AU101: 141089.4526 | AV101: 0
B102: 5 | C102: 13 | D102: 1183.447848 | F102: 93 | G102: 11 | H102: 6 | I102: 480.1201805 | J102: 1 | K102: 0.3820584036 | L102: 0.3820584036 | M102: 1224354423019057 | N102: 0 | O102: FALSE | P102: 0 | Q102: 3.682467072e-13 | R102: 3.682467072e-13 | S102: 3.863672333e+11 | T102: 0 | U102: FALSE | V102: 0 | W102: 1.1945451e-09 | X102: 1.1945451e-09 | Y102: 122275752.4 | Z102: 0 | AA102: FALSE | AB102: 0 | AC102: 3.44419684e-06 | AD102: 3.44419684e-06 | AE102: 42381.0341 | AF102: 0 | AG102: FALSE | AH102: 0 | AI102: 0.01088792561 | AJ102: 0.01088792561 | AK102: 13.40646776 | AL102: 0 | AM102: TRUE | AN102: 0.3820584036 | AO102: 34.43064394 | AP102: 0 | AQ102: 0.004239497351 | AR102: 0.004239497351 | AS102: FALSE | AT102: 0 | AU102: 108879.2561 | AV102: 0
B103: 5 | C103: 14 | D103: 1364.646017 | F103: 94 | G103: 9 | H103: 7 | I103: 488.5132895 | J103: 1 | K103: 0.4020895818 | L103: 0.4020895818 | M103: 1576188061600960 | N103: 0 | O103: FALSE | P103: 0 | Q103: 3.168284121e-13 | R103: 3.168284121e-13 | S103: 4.973947159e+11 | T103: 0 | U103: FALSE | V103: 0 | W103: 1.027750743e-09 | X103: 1.027750743e-09 | Y103: 157413227.4 | Z103: 0 | AA103: FALSE | AB103: 0 | AC103: 2.963283567e-06 | AD103: 2.963283567e-06 | AE103: 54559.75716 | AF103: 0 | AG103: FALSE | AH103: 0 | AI103: 0.009367644343 | AJ103: 0.009367644343 | AK103: 17.25898485 | AL103: 0 | AM103: TRUE | AN103: 0.4020895818 | AO103: 29.62309244 | AP103: 0 | AQ103: 0.005457770222 | AR103: 0.005457770222 | AS103: FALSE | AT103: 0 | AU103: 93676.44343 | AV103: 0
B104: 5 | C104: 15 | D104: 1559.266272 | F104: 95 | G104: 14 | H104: 4 | I104: 493.7439154 | J104: 1 | K104: 0.9586888596 | L104: 0.9586888596 | M104: 4253446284329950 | N104: 0 | O104: FALSE | P104: 0 | Q104: 6.674226209e-13 | R104: 6.674226209e-13 | S104: 1.342252081e+12 | T104: 0 | U104: FALSE | V104: 0 | W104: 2.165033402e-09 | X104: 2.165033402e-09 | Y104: 424789860.6 | Z104: 0 | AA104: FALSE | AB104: 0 | AC104: 6.24237729e-06 | AD104: 6.24237729e-06 | AE104: 147233.0631 | AF104: 0 | AG104: FALSE | AH104: 0 | AI104: 0.01973363973 | AJ104: 0.01973363973 | AK104: 46.57449626 | AL104: 0 | AM104: TRUE | AN104: 0.9586888596 | AO104: 62.40324806 | AP104: 0 | AQ104: 0.0147281489 | AR104: 0.0147281489 | AS104: FALSE | AT104: 0 | AU104: 197336.3973 | AV104: 0
B105: 5 | C105: 16 | D105: 1767.308614 | F105: 96 | G105: 6 | H105: 8 | I105: 500.4721784 | J105: 1 | K105: 0.1366938482 | L105: 0.1366938482 | M105: 709833345136650 | N105: 0 | O105: FALSE | P105: 0 | Q105: 8.130702234e-14 | R105: 8.130702234e-14 | S105: 2.240007799e+11 | T105: 0 | U105: FALSE | V105: 0 | W105: 2.637495548e-10 | X105: 2.637495548e-10 | Y105: 70890752.48 | Z105: 0 | AA105: FALSE | AB105: 0 | AC105: 7.604613537e-07 | AD105: 7.604613537e-07 | AE105: 24570.88458 | AF105: 0 | AG105: FALSE | AH105: 0 | AI105: 0.002403999259 | AJ105: 0.002403999259 | AK105: 7.772551542 | AL105: 0 | AM105: TRUE | AN105: 0.1366938482 | AO105: 7.602113151 | AP105: 0 | AQ105: 0.00245789661 | AR105: 0.00245789661 | AS105: FALSE | AT105: 0 | AU105: 24039.99259 | AV105: 0
B106: 5 | C106: 17 | D106: 1988.773042 | F106: 97 | G106: 13 | H106: 5 | I106: 500.9192488 | J106: 1 | K106: 0.2858308515 | L106: 0.2858308515 | M106: 1.49977172e+15 | N106: 0 | O106: FALSE | P106: 0 | Q106: 1.682594866e-13 | R106: 1.682594866e-13 | S106: 4.73280154e+11 | T106: 0 | U106: FALSE | V106: 0 | W106: 5.458121994e-10 | X106: 5.458121994e-10 | Y106: 149781560 | Z106: 0 | AA106: FALSE | AB106: 0 | AC106: 1.573724302e-06 | AD106: 1.573724302e-06 | AE106: 51914.60512 | AF106: 0 | AG106: FALSE | AH106: 0 | AI106: 0.004974916919 | AJ106: 0.004974916919 | AK106: 16.42223921 | AL106: 0 | AM106: TRUE | AN106: 0.2858308515 | AO106: 15.73206863 | AP106: 0 | AQ106: 0.005193168018 | AR106: 0.005193168018 | AS106: FALSE | AT106: 0 | AU106: 49749.16919 | AV106: 0
B107: 5 | C107: 18 | D107: 2223.659557 | F107: 98 | G107: 15 | H107: 3 | I107: 503.9331913 | J107: 1 | K107: 0.1241795409 | L107: 0.1241795409 | M107: 6.986450966e+14 | N107: 0 | O107: FALSE | P107: 0 | Q107: 6.817576152e-14 | R107: 6.817576152e-14 | S107: 2.204701253e+11 | T107: 0 | U107: FALSE | V107: 0 | W107: 2.211534285e-10 | X107: 2.211534285e-10 | Y107: 69773386.89 | Z107: 0 | AA107: FALSE | AB107: 0 | AC107: 6.376451923e-07 | AD107: 6.376451923e-07 | AE107: 24183.6033 | AF107: 0 | AG107: FALSE | AH107: 0 | AI107: 0.002015748154 | AJ107: 0.002015748154 | AK107: 7.650042169 | AL107: 0 | AM107: TRUE | AN107: 0.1241795409 | AO107: 6.374355355 | AP107: 0 | AQ107: 0.002419155745 | AR107: 0.002419155745 | AS107: FALSE | AT107: 0 | AU107: 20157.48154 | AV107: 0
B108: 5 | C108: 19 | D108: 2471.968159 | F108: 99 | G108: 16 | H108: 1 | I108: 511.3539467 | J108: 1 | K108: 0.2734516723 | L108: 0.2734516723 | M108: 1.823481179e+15 | N108: 0 | O108: FALSE | P108: 0 | Q108: 1.266620158e-13 | R108: 1.266620158e-13 | S108: 5.754325419e+11 | T108: 0 | U108: FALSE | V108: 0 | W108: 4.10875338e-10 | X108: 4.10875338e-10 | Y108: 182110285.1 | Z108: 0 | AA108: FALSE | AB108: 0 | AC108: 1.184664808e-06 | AD108: 1.184664808e-06 | AE108: 63119.80956 | AF108: 0 | AG108: FALSE | AH108: 0 | AI108: 0.003745007299 | AJ108: 0.003745007299 | AK108: 19.96680142 | AL108: 0 | AM108: TRUE | AN108: 0.2734516723 | AO108: 11.84275292 | AP108: 0 | AQ108: 0.006314057009 | AR108: 0.006314057009 | AS108: FALSE | AT108: 0 | AU108: 37450.07299 | AV108: 0
B109: 5 | C109: 20 | D109: 2733.698847 | F109: 100 | G109: 12 | H109: 6 | I109: 525.4591914 | J109: 1 | K109: 0.2007060846 | L109: 0.2007060846 | M109: 1.836449347e+15 | N109: 0 | O109: FALSE | P109: 0 | Q109: 6.775301667e-14 | R109: 6.775301667e-14 | S109: 5.795248825e+11 | T109: 0 | U109: FALSE | V109: 0 | W109: 2.197820984e-10 | X109: 2.197820984e-10 | Y109: 183405410.6 | Z109: 0 | AA109: FALSE | AB109: 0 | AC109: 6.336912765e-07 | AD109: 6.336912765e-07 | AE109: 63568.70277 | AF109: 0 | AG109: FALSE | AH109: 0 | AI109: 0.002003248885 | AJ109: 0.002003248885 | AK109: 20.10880061 | AL109: 0 | AM109: TRUE | AN109: 0.2007060846 | AO109: 6.334829197 | AP109: 0 | AQ109: 0.006358961094 | AR109: 0.006358961094 | AS109: FALSE | AT109: 0 | AU109: 20032.48885 | AV109: 0
B110: 6 | C110: 1 | D110: 77.67645157 | F110: 101 | G110: 10 | H110: 7 | I110: 525.967255 | J110: 1 | K110: 0.5521147512 | L110: 0.5521147512 | M110: 5108903227786693 | N110: 0 | O110: FALSE | P110: 0 | Q110: 1.842966912e-13 | R110: 1.842966912e-13 | S110: 1.612207028e+12 | T110: 0 | U110: FALSE | V110: 0 | W110: 5.978348348e-10 | X110: 5.978348348e-10 | Y110: 510223979.5 | Z110: 0 | AA110: FALSE | AB110: 0 | AC110: 1.72371964e-06 | AD110: 1.72371964e-06 | AE110: 176844.7092 | AF110: 0 | AG110: FALSE | AH110: 0 | AI110: 0.005449087869 | AJ110: 0.005449087869 | AK110: 55.94160085 | AL110: 0 | AM110: TRUE | AN110: 0.5521147512 | AO110: 17.23152884 | AP110: 0 | AQ110: 0.01769028746 | AR110: 0.01769028746 | AS110: FALSE | AT110: 0 | AU110: 54490.87869 | AV110: 0
B111: 6 | C111: 2 | D111: 97.80958142 | F111: 102 | G111: 7 | H111: 8 | I111: 526.0985759 | J111: 1 | K111: 0.3318936708 | L111: 0.3318936708 | M111: 3080050631213555 | N111: 0 | O111: FALSE | P111: 0 | Q111: 1.104654837e-13 | R111: 1.104654837e-13 | S111: 9.719658118e+11 | T111: 0 | U111: FALSE | V111: 0 | W111: 3.583358647e-10 | X111: 3.583358647e-10 | Y111: 307603338.8 | Z111: 0 | AA111: FALSE | AB111: 0 | AC111: 1.033179286e-06 | AD111: 1.033179286e-06 | AE111: 106615.9671 | AF111: 0 | AG111: FALSE | AH111: 0 | AI111: 0.003266125524 | AJ111: 0.003266125524 | AK111: 33.72601815 | AL111: 0 | AM111: TRUE | AN111: 0.3318936708 | AO111: 10.32839578 | AP111: 0 | AQ111: 0.01066510338 | AR111: 0.01066510338 | AS111: FALSE | AT111: 0 | AU111: 32661.25524 | AV111: 0
B112: 6 | C112: 3 | D112: 131.3647978 | F112: 103 | G112: 16 | H112: 2 | I112: 531.4870765 | J112: 1 | K112: 0.2419397657 | L112: 0.2419397657 | M112: 2.527675252e+15 | N112: 0 | O112: FALSE | P112: 0 | Q112: 7.152860384e-14 | R112: 7.152860384e-14 | S112: 7.976537475e+11 | T112: 0 | U112: FALSE | V112: 0 | W112: 2.320296191e-10 | X112: 2.320296191e-10 | Y112: 252437846 | Z112: 0 | AA112: FALSE | AB112: 0 | AC112: 6.690041935e-07 | AD112: 6.690041935e-07 | AE112: 87495.49073 | AF112: 0 | AG112: FALSE | AH112: 0 | AI112: 0.002114881417 | AJ112: 0.002114881417 | AK112: 27.67760393 | AL112: 0 | AM112: TRUE | AN112: 0.2419397657 | AO112: 6.687842258 | AP112: 0 | AQ112: 0.008752426859 | AR112: 0.008752426859 | AS112: FALSE | AT112: 0 | AU112: 21148.81417 | AV112: 0
B113: 6 | C113: 4 | D113: 178.3421008 | F113: 104 | G113: 1 | H113: 9 | I113: 545.5657673 | J113: 1 | K113: 0.467179734 | L113: 0.467179734 | M113: 6614740348400195 | N113: 0 | O113: FALSE | P113: 0 | Q113: 1.019158432e-13 | R113: 1.019158432e-13 | S113: 2.087401229e+12 | T113: 0 | U113: FALSE | V113: 0 | W113: 3.306019272e-10 | X113: 3.306019272e-10 | Y113: 660611288.5 | Z113: 0 | AA113: FALSE | AB113: 0 | AC113: 9.532148377e-07 | AD113: 9.532148377e-07 | AE113: 228969.2682 | AF113: 0 | AG113: FALSE | AH113: 0 | AI113: 0.003013338879 | AJ113: 0.003013338879 | AK113: 72.43025514 | AL113: 0 | AM113: TRUE | AN113: 0.467179734 | AO113: 9.529014221 | AP113: 0 | AQ113: 0.02290445778 | AR113: 0.02290445778 | AS113: FALSE | AT113: 0 | AU113: 30133.38879 | AV113: 0
B114: 6 | C114: 5 | D114: 238.7414904 | F114: 105 | G114: 15 | H114: 4 | I114: 550.9104943 | J114: 1 | K114: 0.6157243478 | L114: 0.6157243478 | M114: 9764320231443034 | N114: 0 | O114: FALSE | P114: 0 | Q114: 1.199270508e-13 | R114: 1.199270508e-13 | S114: 3.081308256e+12 | T114: 0 | U114: FALSE | V114: 0 | W114: 3.890279752e-10 | X114: 3.890279752e-10 | Y114: 975158483.9 | Z114: 0 | AA114: FALSE | AB114: 0 | AC114: 1.121672948e-06 | AD114: 1.121672948e-06 | AE114: 337991.9907 | AF114: 0 | AG114: FALSE | AH114: 0 | AI114: 0.003545875043 | AJ114: 0.003545875043 | AK114: 106.9176065 | AL114: 0 | AM114: TRUE | AN114: 0.6157243478 | AO114: 11.21304143 | AP114: 0 | AQ114: 0.03381031585 | AR114: 0.03381031585 | AS114: FALSE | AT114: 0 | AU114: 35458.75043 | AV114: 0
B115: 6 | C115: 6 | D115: 312.5629665 | F115: 106 | G115: 2 | H115: 9 | I115: 551.4795513 | J115: 1 | K115: 0.5039612142 | L115: 0.5039612142 | M115: 8088460421034823 | N115: 0 | O115: FALSE | P115: 0 | Q115: 9.698730143e-14 | R115: 9.698730143e-14 | S115: 2.552460313e+12 | T115: 0 | U115: FALSE | V115: 0 | W115: 3.146143696e-10 | X115: 3.146143696e-10 | Y115: 807791081.7 | Z115: 0 | AA115: FALSE | AB115: 0 | AC115: 9.071183819e-07 | AD115: 9.071183819e-07 | AE115: 279982.0955 | AF115: 0 | AG115: FALSE | AH115: 0 | AI115: 0.002867617016 | AJ115: 0.002867617016 | AK115: 88.56723335 | AL115: 0 | AM115: TRUE | AN115: 0.5039612142 | AO115: 9.068201227 | AP115: 0 | AQ115: 0.02800741834 | AR115: 0.02800741834 | AS115: FALSE | AT115: 0 | AU115: 28676.17016 | AV115: 0
B116: 6 | C116: 7 | D116: 399.8065292 | F116: 107 | G116: 14 | H116: 5 | I116: 554.143305 | J116: 1 | K116: 0.6548631183 | L116: 0.6548631183 | M116: 1.11160454e+16 | N116: 0 | O116: FALSE | P116: 0 | Q116: 1.191618577e-13 | R116: 1.191618577e-13 | S116: 3.507869636e+12 | T116: 0 | U116: FALSE | V116: 0 | W116: 3.865457868e-10 | X116: 3.865457868e-10 | Y116: 1110154698 | Z116: 0 | AA116: FALSE | AB116: 0 | AC116: 1.114516127e-06 | AD116: 1.114516127e-06 | AE116: 384781.9636 | AF116: 0 | AG116: FALSE | AH116: 0 | AI116: 0.003523250629 | AJ116: 0.003523250629 | AK116: 121.7187617 | AL116: 0 | AM116: TRUE | AN116: 0.6548631183 | AO116: 11.14149676 | AP116: 0 | AQ116: 0.0384908521 | AR116: 0.0384908521 | AS116: FALSE | AT116: 0 | AU116: 35232.50629 | AV116: 0
B117: 6 | C117: 8 | D117: 500.4721784 | F117: 108 | G117: 8 | H117: 8 | I117: 555.667496 | J117: 1 | K117: 0.4947178059 | L117: 0.4947178059 | M117: 8670155791295384 | N117: 0 | O117: FALSE | P117: 0 | Q117: 8.719160972e-14 | R117: 8.719160972e-14 | S117: 2.736024832e+12 | T117: 0 | U117: FALSE | V117: 0 | W117: 2.828384017e-10 | X117: 2.828384017e-10 | Y117: 865884749.4 | Z117: 0 | AA117: FALSE | AB117: 0 | AC117: 8.154996659e-07 | AD117: 8.154996659e-07 | AE117: 300117.4834 | AF117: 0 | AG117: FALSE | AH117: 0 | AI117: 0.002577988458 | AJ117: 0.002577988458 | AK117: 94.93669638 | AL117: 0 | AM117: TRUE | AN117: 0.4947178059 | AO117: 8.152315308 | AP117: 0 | AQ117: 0.03002161941 | AR117: 0.03002161941 | AS117: FALSE | AT117: 0 | AU117: 25779.88458 | AV117: 0
B118: 6 | C118: 9 | D118: 614.5599142 | F118: 109 | G118: 3 | H118: 9 | I118: 561.335858 | J118: 1 | K118: 0.07645879932 | L118: 0.07645879932 | M118: 1507804819012704 | N118: 0 | O118: FALSE | P118: 0 | Q118: 1.197557386e-14 | R118: 1.197557386e-14 | S118: 4.758151441e+11 | T118: 0 | U118: FALSE | V118: 0 | W118: 3.884722604e-11 | X118: 3.884722604e-11 | Y118: 150583822.2 | Z118: 0 | AA118: FALSE | AB118: 0 | AC118: 1.120070672e-07 | AD118: 1.120070672e-07 | AE118: 52192.67089 | AF118: 0 | AG118: FALSE | AH118: 0 | AI118: 0.0003540809867 | AJ118: 0.0003540809867 | AK118: 16.51020025 | AL118: 0 | AM118: TRUE | AN118: 0.07645879932 | AO118: 1.119702394 | AP118: 0 | AQ118: 0.005220983741 | AR118: 0.005220983741 | AS118: FALSE | AT118: 0 | AU118: 3540.809867 | AV118: 0
B119: 6 | C119: 10 | D119: 742.0697366 | F119: 110 | G119: 16 | H119: 3 | I119: 565.0422929 | J119: 1 | K119: 0.05939245764 | L119: 0.05939245764 | M119: 1.264387435e+15 | N119: 0 | O119: FALSE | P119: 0 | Q119: 8.617254808e-15 | R119: 8.617254808e-15 | S119: 3.99000376e+11 | T119: 0 | U119: FALSE | V119: 0 | W119: 2.795326965e-11 | X119: 2.795326965e-11 | Y119: 126273832.2 | Z119: 0 | AA119: FALSE | AB119: 0 | AC119: 8.059684229e-08 | AD119: 8.059684229e-08 | AE119: 43766.77702 | AF119: 0 | AG119: FALSE | AH119: 0 | AI119: 0.0002547857931 | AJ119: 0.0002547857931 | AK119: 13.84482228 | AL119: 0 | AM119: TRUE | AN119: 0.05939245764 | AO119: 0.8057034217 | AP119: 0 | AQ119: 0.00437811722 | AR119: 0.00437811722 | AS119: FALSE | AT119: 0 | AU119: 2547.857931 | AV119: 0
B120: 6 | C120: 11 | D120: 883.0016456 | F120: 111 | G120: 11 | H120: 7 | I120: 567.3637432 | J120: 1 | K120: 0.9976728234 | L120: 0.9976728234 | M120: 2.227613696e+16 | N120: 0 | O120: FALSE | P120: 0 | Q120: 1.380139286e-13 | R120: 1.380139286e-13 | S120: 7.029638838e+12 | T120: 0 | U120: FALSE | V120: 0 | W120: 4.476994875e-10 | X120: 4.476994875e-10 | Y120: 2224708267 | Z120: 0 | AA120: FALSE | AB120: 0 | AC120: 1.290838798e-06 | AD120: 1.290838798e-06 | AE120: 771088.5854 | AF120: 0 | AG120: FALSE | AH120: 0 | AI120: 0.004080648541 | AJ120: 0.004080648541 | AK120: 243.9198213 | AL120: 0 | AM120: TRUE | AN120: 0.9976728234 | AO120: 12.90414372 | AP120: 0 | AQ120: 0.07713422016 | AR120: 0.07713422016 | AS120: FALSE | AT120: 0 | AU120: 40806.48541 | AV120: 0
B121: 6 | C121: 12 | D121: 1037.355641 | F121: 112 | G121: 13 | H121: 6 | I121: 574.7407249 | J121: 1 | K121: 0.1655505486 | L121: 0.1655505486 | M121: 4.295492644e+15 | N121: 0 | O121: FALSE | P121: 0 | Q121: 1.970764734e-14 | R121: 1.970764734e-14 | S121: 1.355520572e+12 | T121: 0 | U121: FALSE | V121: 0 | W121: 6.392908096e-11 | X121: 6.392908096e-11 | Y121: 428989012.5 | Z121: 0 | AA121: FALSE | AB121: 0 | AC121: 1.843248436e-07 | AD121: 1.843248436e-07 | AE121: 148688.498 | AF121: 0 | AG121: FALSE | AH121: 0 | AI121: 0.000582694683 | AJ121: 0.000582694683 | AK121: 47.03489657 | AL121: 0 | AM121: TRUE | AN121: 0.1655505486 | AO121: 1.842642379 | AP121: 0 | AQ121: 0.01487374027 | AR121: 0.01487374027 | AS121: FALSE | AT121: 0 | AU121: 5826.94683 | AV121: 0
B122: 6 | C122: 13 | D122: 1205.131723 | F122: 113 | G122: 4 | H122: 9 | I122: 575.1346874 | J122: 1 | K122: 0.4214827449 | L122: 0.4214827449 | M122: 1.102356735e+16 | N122: 0 | O122: FALSE | P122: 0 | Q122: 4.977645375e-14 | R122: 4.977645375e-14 | S122: 3.478686513e+12 | T122: 0 | U122: FALSE | V122: 0 | W122: 1.614684334e-10 | X122: 1.614684334e-10 | Y122: 1100918955 | Z122: 0 | AA122: FALSE | AB122: 0 | AC122: 4.655571968e-07 | AD122: 4.655571968e-07 | AE122: 381580.8357 | AF122: 0 | AG122: FALSE | AH122: 0 | AI122: 0.001471737059 | AJ122: 0.001471737059 | AK122: 120.7061432 | AL122: 0 | AM122: TRUE | AN122: 0.4214827449 | AO122: 4.654041223 | AP122: 0 | AQ122: 0.03817063402 | AR122: 0.03817063402 | AS122: FALSE | AT122: 0 | AU122: 14717.37059 | AV122: 0
B123: 6 | C123: 14 | D123: 1386.329892 | F123: 114 | G123: 17 | H123: 1 | I123: 576.4055709 | J123: 1 | K123: 0.8667217681 | L123: 0.8667217681 | M123: 2.325774261e+16 | N123: 0 | O123: FALSE | P123: 0 | Q123: 9.976503557e-14 | R123: 9.976503557e-14 | S123: 7.339402295e+12 | T123: 0 | U123: FALSE | V123: 0 | W123: 3.23624983e-10 | X123: 3.23624983e-10 | Y123: 2322740803 | Z123: 0 | AA123: FALSE | AB123: 0 | AC123: 9.330984191e-07 | AD123: 9.330984191e-07 | AE123: 805066.8696 | AF123: 0 | AG123: FALSE | AH123: 0 | AI123: 0.002949746094 | AJ123: 0.002949746094 | AK123: 254.6682322 | AL123: 0 | AM123: TRUE | AN123: 0.8667217681 | AO123: 9.327916177 | AP123: 0 | AQ123: 0.08053316614 | AR123: 0.08053316614 | AS123: FALSE | AT123: 0 | AU123: 29497.46094 | AV123: 0
B124: 6 | C124: 15 | D124: 1580.950147 | F124: 115 | G124: 9 | H124: 8 | I124: 589.1789388 | J124: 1 | K124: 0.2017737124 | L124: 0.2017737124 | M124: 6985990201028155 | N124: 0 | O124: FALSE | P124: 0 | Q124: 1.800063022e-14 | R124: 1.800063022e-14 | S124: 2.20455585e+12 | T124: 0 | U124: FALSE | V124: 0 | W124: 5.839173629e-11 | X124: 5.839173629e-11 | Y124: 697687852.5 | Z124: 0 | AA124: FALSE | AB124: 0 | AC124: 1.683591802e-07 | AD124: 1.683591802e-07 | AE124: 241820.0836 | AF124: 0 | AG124: FALSE | AH124: 0 | AI124: 0.0005322234225 | AJ124: 0.0005322234225 | AK124: 76.49537639 | AL124: 0 | AM124: TRUE | AN124: 0.2017737124 | AO124: 1.683038239 | AP124: 0 | AQ124: 0.02418996199 | AR124: 0.02418996199 | AS124: FALSE | AT124: 0 | AU124: 5322.234225 | AV124: 0
B125: 6 | C125: 16 | D125: 1788.992489 | F125: 116 | G125: 5 | H125: 9 | I125: 592.8760395 | J125: 1 | K125: 0.5311252594 | L125: 0.5311252594 | M125: 1.977636912e+16 | N125: 0 | O125: FALSE | P125: 0 | Q125: 4.405892191e-14 | R125: 4.405892191e-14 | S125: 6.240791782e+12 | T125: 0 | U125: FALSE | V125: 0 | W125: 1.429214932e-10 | X125: 1.429214932e-10 | Y125: 1975057523 | Z125: 0 | AA125: FALSE | AB125: 0 | AC125: 4.120813484e-07 | AD125: 4.120813484e-07 | AE125: 684559.1101 | AF125: 0 | AG125: FALSE | AH125: 0 | AI125: 0.00130268718 | AJ125: 0.00130268718 | AK125: 216.5477987 | AL125: 0 | AM125: TRUE | AN125: 0.5311252594 | AO125: 4.119458567 | AP125: 0 | AQ125: 0.06847842661 | AR125: 0.06847842661 | AS125: FALSE | AT125: 0 | AU125: 13026.8718 | AV125: 0
B126: 6 | C126: 17 | D126: 2010.456917 | F126: 117 | G126: 17 | H126: 2 | I126: 596.5387008 | J126: 1 | K126: 0.7668428564 | L126: 0.7668428564 | M126: 3.067286428e+16 | N126: 0 | O126: FALSE | P126: 0 | Q126: 5.921679969e-14 | R126: 5.921679969e-14 | S126: 9.67937836e+12 | T126: 0 | U126: FALSE | V126: 0 | W126: 1.920917051e-10 | X126: 1.920917051e-10 | Y126: 3063285832 | Z126: 0 | AA126: FALSE | AB126: 0 | AC126: 5.538523778e-07 | AD126: 5.538523778e-07 | AE126: 1061741.341 | AF126: 0 | AG126: FALSE | AH126: 0 | AI126: 0.001750859132 | AJ126: 0.001750859132 | AK126: 335.8625235 | AL126: 0 | AM126: TRUE | AN126: 0.7668428564 | AO126: 5.53670272 | AP126: 0 | AQ126: 0.1062090555 | AR126: 0.1062090555 | AS126: FALSE | AT126: 0 | AU126: 17508.59132 | AV126: 0
B127: 6 | C127: 18 | D127: 2245.343432 | F127: 118 | G127: 15 | H127: 5 | I127: 611.3098839 | J127: 1 | K127: 0.4205902284 | L127: 0.4205902284 | M127: 2.235711104e+16 | N127: 0 | O127: FALSE | P127: 0 | Q127: 2.443932386e-14 | R127: 2.443932386e-14 | S127: 7.055191677e+12 | T127: 0 | U127: FALSE | V127: 0 | W127: 7.927803285e-11 | X127: 7.927803285e-11 | Y127: 2232795114 | Z127: 0 | AA127: FALSE | AB127: 0 | AC127: 2.285800263e-07 | AD127: 2.285800263e-07 | AE127: 773891.5036 | AF127: 0 | AG127: FALSE | AH127: 0 | AI127: 0.0007225958441 | AJ127: 0.0007225958441 | AK127: 244.8064733 | AL127: 0 | AM127: TRUE | AN127: 0.4205902284 | AO127: 2.285048695 | AP127: 0 | AQ127: 0.07741460416 | AR127: 0.07741460416 | AS127: FALSE | AT127: 0 | AU127: 7225.958441 | AV127: 0
B128: 6 | C128: 19 | D128: 2493.652034 | F128: 119 | G128: 16 | H128: 4 | I128: 612.0195959 | J128: 1 | K128: 0.2944879807 | L128: 0.2944879807 | M128: 1.586656501e+16 | N128: 0 | O128: FALSE | P128: 0 | Q128: 1.688257726e-14 | R128: 1.688257726e-14 | S128: 5.006982218e+12 | T128: 0 | U128: FALSE | V128: 0 | W128: 5.476491587e-11 | X128: 5.476491587e-11 | Y128: 1584587059 | Z128: 0 | AA128: FALSE | AB128: 0 | AC128: 1.579020752e-07 | AD128: 1.579020752e-07 | AE128: 549221.2224 | AF128: 0 | AG128: FALSE | AH128: 0 | AI128: 0.000499166026 | AJ128: 0.000499166026 | AK128: 173.7361244 | AL128: 0 | AM128: TRUE | AN128: 0.2944879807 | AO128: 1.578501573 | AP128: 0 | AQ128: 0.0549401865 | AR128: 0.0549401865 | AS128: FALSE | AT128: 0 | AU128: 4991.66026 | AV128: 0
B129: 6 | C129: 20 | D129: 2755.382722 | F129: 120 | G129: 12 | H129: 7 | I129: 612.702754 | J129: 1 | K129: 0.5241057499 | L129: 0.5241057499 | M129: 2.860668141e+16 | N129: 0 | O129: FALSE | P129: 0 | Q129: 2.965902585e-14 | R129: 2.965902585e-14 | S129: 9.0273569e+12 | T129: 0 | U129: FALSE | V129: 0 | W129: 9.621007683e-11 | X129: 9.621007683e-11 | Y129: 2856937033 | Z129: 0 | AA129: FALSE | AB129: 0 | AC129: 2.773996919e-07 | AD129: 2.773996919e-07 | AE129: 990220.4113 | AF129: 0 | AG129: FALSE | AH129: 0 | AI129: 0.0008769264218 | AJ129: 0.0008769264218 | AK129: 313.2381808 | AL129: 0 | AM129: TRUE | AN129: 0.5241057499 | AO129: 2.773084833 | AP129: 0 | AQ129: 0.09905461015 | AR129: 0.09905461015 | AS129: FALSE | AT129: 0 | AU129: 8769.264218 | AV129: 0
B130: 7 | C130: 1 | D130: 103.302849 | F130: 121 | G130: 6 | H130: 9 | I130: 614.5599142 | J130: 1 | K130: 0.1514584833 | L130: 0.1514584833 | M130: 8562967959466701 | N130: 0 | O130: FALSE | P130: 0 | Q130: 8.274645585e-15 | R130: 8.274645585e-15 | S130: 2.702199769e+12 | T130: 0 | U130: FALSE | V130: 0 | W130: 2.684188926e-11 | X130: 2.684188926e-11 | Y130: 855179946.5 | Z130: 0 | AA130: FALSE | AB130: 0 | AC130: 7.739243182e-08 | AD130: 7.739243182e-08 | AE130: 296407.1761 | AF130: 0 | AG130: FALSE | AH130: 0 | AI130: 0.0002446558893 | AJ130: 0.0002446558893 | AK130: 93.76300828 | AL130: 0 | AM130: TRUE | AN130: 0.1514584833 | AO130: 0.773669853 | AP130: 0 | AQ130: 0.02965046664 | AR130: 0.02965046664 | AS130: FALSE | AT130: 0 | AU130: 2446.558893 | AV130: 0
B131: 7 | C131: 2 | D131: 123.4359789 | F131: 122 | G131: 10 | H131: 8 | I131: 626.6329043 | J131: 1 | K131: 0.2770582678 | L131: 0.2770582678 | M131: 1.963974471e+16 | N131: 0 | O131: FALSE | P131: 0 | Q131: 1.20723802e-14 | R131: 1.20723802e-14 | S131: 6.197677471e+12 | T131: 0 | U131: FALSE | V131: 0 | W131: 3.916125339e-11 | X131: 3.916125339e-11 | Y131: 1961412901 | Z131: 0 | AA131: FALSE | AB131: 0 | AC131: 1.12912493e-07 | AD131: 1.12912493e-07 | AE131: 679829.8552 | AF131: 0 | AG131: FALSE | AH131: 0 | AI131: 0.0003569432532 | AJ131: 0.0003569432532 | AK131: 215.0517851 | AL131: 0 | AM131: TRUE | AN131: 0.2770582678 | AO131: 1.128753675 | AP131: 0 | AQ131: 0.06800534558 | AR131: 0.06800534558 | AS131: FALSE | AT131: 0 | AU131: 3569.432532 | AV131: 0
B132: 7 | C132: 3 | D132: 156.9911953 | F132: 123 | G132: 14 | H132: 6 | I132: 627.9647811 | J132: 1 | K132: 0.3792905767 | L132: 0.3792905767 | M132: 2.755863502e+16 | N132: 0 | O132: FALSE | P132: 0 | Q132: 1.61240047e-14 | R132: 1.61240047e-14 | S132: 8.696626862e+12 | T132: 0 | U132: FALSE | V132: 0 | W132: 5.230420374e-11 | X132: 5.230420374e-11 | Y132: 2752269088 | Z132: 0 | AA132: FALSE | AB132: 0 | AC132: 1.508071762e-07 | AD132: 1.508071762e-07 | AE132: 953942.2805 | AF132: 0 | AG132: FALSE | AH132: 0 | AI132: 0.000476737362 | AJ132: 0.000476737362 | AK132: 301.7622553 | AL132: 0 | AM132: TRUE | AN132: 0.3792905767 | AO132: 1.50757591 | AP132: 0 | AQ132: 0.09542560385 | AR132: 0.09542560385 | AS132: FALSE | AT132: 0 | AU132: 4767.37362 | AV132: 0
B133: 7 | C133: 4 | D133: 203.9684983 | F133: 124 | G133: 17 | H133: 3 | I133: 630.0939172 | J133: 1 | K133: 0.1882480201 | L133: 0.1882480201 | M133: 1.422680515e+16 | N133: 0 | O133: FALSE | P133: 0 | Q133: 7.693783548e-15 | R133: 7.693783548e-15 | S133: 4.48952627e+12 | T133: 0 | U133: FALSE | V133: 0 | W133: 2.495764729e-11 | X133: 2.495764729e-11 | Y133: 1420824944 | Z133: 0 | AA133: FALSE | AB133: 0 | AC133: 7.195965224e-08 | AD133: 7.195965224e-08 | AE133: 492460.9273 | AF133: 0 | AG133: FALSE | AH133: 0 | AI133: 0.0002274815805 | AJ133: 0.0002274815805 | AK133: 155.7810395 | AL133: 0 | AM133: TRUE | AN133: 0.1882480201 | AO133: 0.7193599201 | AP133: 0 | AQ133: 0.04926229009 | AR133: 0.04926229009 | AS133: FALSE | AT133: 0 | AU133: 2274.815805 | AV133: 0
B134: 7 | C134: 5 | D134: 264.3678878 | F134: 125 | G134: 7 | H134: 9 | I134: 640.1863117 | J134: 1 | K134: 0.3677423136 | L134: 0.3677423136 | M134: 3.343165582e+16 | N134: 0 | O134: FALSE | P134: 0 | Q134: 1.249441234e-14 | R134: 1.249441234e-14 | S134: 1.054996504e+13 | T134: 0 | U134: FALSE | V134: 0 | W134: 4.053027152e-11 | X134: 4.053027152e-11 | Y134: 3338805163 | Z134: 0 | AA134: FALSE | AB134: 0 | AC134: 1.168597428e-07 | AD134: 1.168597428e-07 | AE134: 1157236.923 | AF134: 0 | AG134: FALSE | AH134: 0 | AI134: 0.0003694214489 | AJ134: 0.0003694214489 | AK134: 366.0708105 | AL134: 0 | AM134: TRUE | AN134: 0.3677423136 | AO134: 1.168213195 | AP134: 0 | AQ134: 0.1157617546 | AR134: 0.1157617546 | AS134: FALSE | AT134: 0 | AU134: 3694.214489 | AV134: 0
B135: 7 | C135: 6 | D135: 338.1893639 | F135: 126 | G135: 18 | H135: 1 | I135: 645.3997179 | J135: 1 | K135: 0.6615078792 | L135: 0.6615078792 | M135: 6.608504883e+16 | N135: 0 | O135: FALSE | P135: 0 | Q135: 2.045282681e-14 | R135: 2.045282681e-14 | S135: 2.085433515e+13 | T135: 0 | U135: FALSE | V135: 0 | W135: 6.634634761e-11 | X135: 6.634634761e-11 | Y135: 6599885553 | Z135: 0 | AA135: FALSE | AB135: 0 | AC135: 1.912944776e-07 | AD135: 1.912944776e-07 | AE135: 2287534.276 | AF135: 0 | AG135: FALSE | AH135: 0 | AI135: 0.0006047273542 | AJ135: 0.0006047273542 | AK135: 723.6197788 | AL135: 0 | AM135: TRUE | AN135: 0.6615078792 | AO135: 1.912315803 | AP135: 0 | AQ135: 0.2288286661 | AR135: 0.2288286661 | AS135: FALSE | AT135: 0 | AU135: 6047.273542 | AV135: 0
B136: 7 | C136: 7 | D136: 425.4329266 | F136: 127 | G136: 13 | H136: 7 | I136: 661.9842876 | J136: 1 | K136: 0.432303757 | L136: 0.432303757 | M136: 5.800578379e+16 | N136: 0 | O136: FALSE | P136: 0 | Q136: 9.95160738e-15 | R136: 9.95160738e-15 | S136: 1.83047766e+13 | T136: 0 | U136: FALSE | V136: 0 | W136: 3.228173829e-11 | X136: 3.228173829e-11 | Y136: 5793012810 | Z136: 0 | AA136: FALSE | AB136: 0 | AC136: 9.307698895e-08 | AD136: 9.307698895e-08 | AE136: 2007870.478 | AF136: 0 | AG136: FALSE | AH136: 0 | AI136: 0.0002942385058 | AJ136: 0.0002942385058 | AK136: 635.1532333 | AL136: 0 | AM136: TRUE | AN136: 0.432303757 | AO136: 0.9304638537 | AP136: 0 | AQ136: 0.200853088 | AR136: 0.200853088 | AS136: FALSE | AT136: 0 | AU136: 2942.385058 | AV136: 0
B137: 7 | C137: 8 | D137: 526.0985759 | F137: 128 | G137: 18 | H137: 2 | I137: 665.5328477 | J137: 1 | K137: 0.5852773178 | L137: 0.5852773178 | M137: 8.356783042e+16 | N137: 0 | O137: FALSE | P137: 0 | Q137: 1.266108059e-14 | R137: 1.266108059e-14 | S137: 2.63713438e+13 | T137: 0 | U137: FALSE | V137: 0 | W137: 4.107092195e-11 | X137: 4.107092195e-11 | Y137: 8345883470 | Z137: 0 | AA137: FALSE | AB137: 0 | AC137: 1.184185843e-07 | AD137: 1.184185843e-07 | AE137: 2892700.843 | AF137: 0 | AG137: FALSE | AH137: 0 | AI137: 0.0003743493178 | AJ137: 0.0003743493178 | AK137: 915.0531933 | AL137: 0 | AM137: TRUE | AN137: 0.5852773178 | AO137: 1.183796485 | AP137: 0 | AQ137: 0.2893652271 | AR137: 0.2893652271 | AS137: FALSE | AT137: 0 | AU137: 3743.493178 | AV137: 0
B138: 7 | C138: 9 | D138: =3.1416/2*SQRT($H$2/$I$2)*(B138^2/$C$2^2+C138^2/$D$2^2) -> 640.1863117 | F138: 129 | G138: 11 | H138: 8 | I138: 668.0293924 | J138: 1 | K138: =ABS(SIN(G138*3.1416*$J$2/$C$2)*SIN(H138*3.1416*$K$2/$D$2))*(1/F138^$M$2)+(1-1/F138^$M$2) -> 0.5006450266 | L138: 0.5006450266 | M138: 7.466435501e+16 | N138: 0 | O138: FALSE | P138: 0 | Q138: 1.036890769e-14 | R138: 1.036890769e-14 | S138: 2.356169074e+13 | T138: 0 | U138: =AND($I138>44.548,$I138<89.095) -> FALSE | V138: 0 | W138: 3.363540697e-11 | X138: =IF($I138>89.095,W138,0) -> 3.363540697e-11 | Y138: 7456697190 | Z138: 0 | AA138: FALSE | AB138: 0 | AC138: 9.697998215e-08 | AD138: 9.697998215e-08 | AE138: 2584506.999 | AF138: 0 | AG138: FALSE | AH138: 0 | AI138: 0.0003065767959 | AJ138: 0.0003065767959 | AK138: 817.5616877 | AL138: 0 | AM138: TRUE | AN138: 0.5006450266 | AO138: 0.9694809527 | AP138: 0 | AQ138: 0.2585357061 | AR138: 0.2585357061 | AS138: FALSE | AT138: 0 | AU138: 3065.767959 | AV138: 0
B139: 7 | C139: 10 | D139: 767.6961341 | F139: 130 | G139: 8 | H139: 9 | I139: 669.7552318 | J139: =IF(ABS(I139-I138)>0.0001,1,$L$2) -> 1 | K139: 0.5481534796 | L139: =$J139*$K139 -> 0.5481534796 | M139: =10^(LOG10($I139/22.27)/LOG10(2)*70/20)*$L139 -> 8.423912827e+16 | N139: =IF($I139<22.27,M139,0) -> 0 | O139: =AND($I139>22.27,$I139<44.45) -> FALSE | P139: =IF($O139=TRUE,$L139,0) -> 0 | Q139: =10^(LOG10(44.45/$I139)/LOG10(2)*70/20)*$L139 -> 1.101734628e-14 | R139: =IF($I139>44.45,Q139,0) -> 1.101734628e-14 | S139: =10^(LOG10($I139/44.548)/LOG10(2)*70/20)*$L139 -> 2.658318401e+13 | T139: =IF($I139<44.528,S139,0) -> 0 | U139: FALSE | V139: =IF($U139=TRUE,$L139,0) -> 0 | W139: =10^(LOG10(89.095/$I139)/LOG10(2)*70/20)*$L139 -> 3.573885864e-11 | X139: 3.573885864e-11 | Y139: =10^(LOG10($I139/89.09)/LOG10(2)*70/20)*$L139 -> 8412925700 | Z139: =IF($I139<89.09,Y139,0) -> 0 | AA139: =AND($I139>89.09,$I139<176.78) -> FALSE | AB139: =IF($AA139=TRUE,$L139,0) -> 0 | AC139: =10^(LOG10(176.78/$I139)/LOG10(2)*70/20)*$L139 -> 1.030448026e-07 | AD139: =IF($I139>176.78,AC139,0) -> 1.030448026e-07 | AE139: =10^(LOG10($I139/176.78)/LOG10(2)*70/20)*$L139 -> 2915937.821 | AF139: =IF($I139<176.78,AE139,0) -> 0 | AG139: =AND($I139>176.78,$I139<353.55) -> FALSE | AH139: =IF($AG139=TRUE,$L139,0) -> 0 | AI139: =10^(LOG10(353.55/$I139)/LOG10(2)*70/20)*$L139 -> 0.0003257491363 | AJ139: =IF($I139>353.55,AI139,0) -> 0.0003257491363 | AK139: =10^(LOG10($I139/353.55)/LOG10(2)*70/20)*$L139 -> 922.403788 | AL139: =IF($I139<353.55,AK139,0) -> 0 | AM139: =AND($I139>353.55,$I139<707.1) -> TRUE | AN139: =IF($AM139=TRUE,$L139,0) -> 0.5481534796 | AO139: =10^(LOG10(707.1/$I139)/LOG10(2)*70/20)*$L139 -> 1.030109217 | AP139: =IF($I139>707.1,AO139,0) -> 0 | AQ139: =10^(LOG10($I139/707.1)/LOG10(2)*70/20)*$L139 -> 0.2916896892 | AR139: =IF($I139<707.1,AQ139,0) -> 0.2916896892 | AS139: =AND($I139>707.1,$I139<1414.2) -> FALSE | AT139: =IF($AS139=TRUE,$L139,0) -> 0 | AU139: =10^(LOG10(1414.2/$I139)/LOG10(2)*70/20)*$L139 -> 3257.491363 | AV139: =IF($I139>1414.2,AU139,0) -> 0
B140: 7 | C140: 11 | D140: 908.628043 | F140: 131 | G140: 16 | H140: 5 | I140: 672.4189855 | J140: 1 | K140: 0.2011594434 | L140: 0.2011594434 | M140: 3.237389177e+16 | N140: 0 | O140: FALSE | P140: 0 | Q140: 3.860756872e-15 | R140: 3.860756872e-15 | S140: 1.021616842e+13 | T140: 0 | U140: FALSE | V140: 0 | W140: 1.252380025e-11 | X140: 1.252380025e-11 | Y140: 3233166720 | Z140: 0 | AA140: FALSE | AB140: 0 | AC140: 3.610950583e-08 | AD140: 3.610950583e-08 | AE140: 1120622.416 | AF140: 0 | AG140: FALSE | AH140: 0 | AI140: 0.0001141507387 | AJ140: 0.0001141507387 | AK140: 354.4884784 | AL140: 0 | AM140: TRUE | AN140: 0.2011594434 | AO140: 0.3609763308 | AP140: 0 | AQ140: 0.1120990996 | AR140: 0.1120990996 | AS140: FALSE | AT140: 0 | AU140: 1141.507387 | AV140: 0
B141: 7 | C141: 12 | D141: 1062.982039 | F141: 132 | G141: 1 | H141: 10 | I141: 673.0755897 | J141: 1 | K141: 0.8349807041 | L141: 0.8349807041 | M141: 1.359124348e+17 | N141: 0 | O141: FALSE | P141: 0 | Q141: 1.584456058e-14 | R141: 1.584456058e-14 | S141: 4.288963261e+13 | T141: 0 | U141: FALSE | V141: 0 | W141: 5.139772283e-11 | X141: 5.139772283e-11 | Y141: 1.357351671e+10 | Z141: 0 | AA141: FALSE | AB141: 0 | AC141: 1.481935464e-07 | AD141: 1.481935464e-07 | AE141: 4704609.569 | AF141: 0 | AG141: FALSE | AH141: 0 | AI141: 0.0004684750565 | AJ141: 0.0004684750565 | AK141: 1488.217498 | AL141: 0 | AM141: TRUE | AN141: 0.8349807041 | AO141: 1.481448205 | AP141: 0 | AQ141: 0.4706156946 | AR141: 0.4706156946 | AS141: FALSE | AT141: 0 | AU141: 4684.750565 | AV141: 0
B142: 7 | C142: 13 | D142: 1230.758121 | F142: 133 | G142: 17 | H142: 4 | I142: 677.0712202 | J142: 1 | K142: 0.9333976318 | L142: 0.9333976318 | M142: 1.627556832e+17 | N142: 0 | O142: FALSE | P142: 0 | Q142: 1.653422108e-14 | R142: 1.653422108e-14 | S142: 5.136050625e+13 | T142: 0 | U142: FALSE | V142: 0 | W142: 5.363489307e-11 | X142: 5.363489307e-11 | Y142: 1.625434044e+10 | Z142: 0 | AA142: FALSE | AB142: 0 | AC142: 1.546439137e-07 | AD142: 1.546439137e-07 | AE142: 5633788.737 | AF142: 0 | AG142: FALSE | AH142: 0 | AI142: 0.0004888662021 | AJ142: 0.0004888662021 | AK142: 1782.146394 | AL142: 0 | AM142: TRUE | AN142: 0.9333976318 | AO142: 1.54593067 | AP142: 0 | AQ142: 0.5635641728 | AR142: 0.5635641728 | AS142: FALSE | AT142: 0 | AU142: 4888.662021 | AV142: 0
B143: 7 | C143: 14 | D143: 1411.956289 | F143: 134 | G143: 2 | H143: 10 | I143: 678.9893737 | J143: 1 | K143: 0.9007194851 | L143: 0.9007194851 | M143: 1.623094938e+17 | N143: 0 | O143: FALSE | P143: 0 | Q143: 1.543909024e-14 | R143: 1.543909024e-14 | S143: 5.121970311e+13 | T143: 0 | U143: FALSE | V143: 0 | W143: 5.008242906e-11 | X143: 5.008242906e-11 | Y143: 1.62097797e+10 | Z143: 0 | AA143: FALSE | AB143: 0 | AC143: 1.444011984e-07 | AD143: 1.444011984e-07 | AE143: 5618343.89 | AF143: 0 | AG143: FALSE | AH143: 0 | AI143: 0.0004564865424 | AJ143: 0.0004564865424 | AK143: 1777.260698 | AL143: 0 | AM143: TRUE | AN143: 0.9007194851 | AO143: 1.443537195 | AP143: 0 | AQ143: 0.5620191801 | AR143: 0.5620191801 | AS143: FALSE | AT143: 0 | AU143: 4564.865424 | AV143: 0
B144: 7 | C144: 15 | D144: 1606.576544 | F144: 135 | G144: 15 | H144: 6 | I144: 685.13136 | J144: 1 | K144: 0.2436019159 | L144: 0.2436019159 | M144: 4.874227048e+16 | N144: 0 | O144: FALSE | P144: 0 | Q144: 3.76047025e-15 | R144: 3.76047025e-15 | S144: 1.538150705e+13 | T144: 0 | U144: FALSE | V144: 0 | W144: 1.21984833e-11 | X144: 1.21984833e-11 | Y144: 4867869699 | Z144: 0 | AA144: FALSE | AB144: 0 | AC144: 3.517152903e-08 | AD144: 3.517152903e-08 | AE144: 1687213.922 | AF144: 0 | AG144: FALSE | AH144: 0 | AI144: 0.0001111855708 | AJ144: 0.0001111855708 | AK144: 533.7193754 | AL144: 0 | AM144: TRUE | AN144: 0.2436019159 | AO144: 0.3515996468 | AP144: 0 | AQ144: 0.1687768858 | AR144: 0.1687768858 | AS144: FALSE | AT144: 0 | AU144: 1111.855708 | AV144: 0
B145: 7 | C145: 16 | D145: 1814.618886 | F145: 136 | G145: 3 | H145: 10 | I145: 688.8456804 | J145: 1 | K145: 0.1366532353 | L145: 0.1366532353 | M145: 2.911693504e+16 | N145: 0 | O145: FALSE | P145: 0 | Q145: 1.980982741e-15 | R145: 1.980982741e-15 | S145: 9.188376683e+12 | T145: 0 | U145: FALSE | V145: 0 | W145: 6.426053998e-12 | X145: 6.426053998e-12 | Y145: 2907895845 | Z145: 0 | AA145: FALSE | AB145: 0 | AC145: 1.852805297e-08 | AD145: 1.852805297e-08 | AE145: 1007882.843 | AF145: 0 | AG145: FALSE | AH145: 0 | AI145: 5.85715834e-05 | AJ145: 5.85715834e-05 | AK145: 318.8253692 | AL145: 0 | AM145: TRUE | AN145: 0.1366532353 | AO145: 0.1852196097 | AP145: 0 | AQ145: 0.1008214343 | AR145: 0.1008214343 | AS145: FALSE | AT145: 0 | AU145: 585.715834 | AV145: 0
B146: 7 | C146: 17 | D146: 2036.083315 | F146: 137 | G146: 18 | H146: 3 | I146: 699.0880641 | J146: 1 | K146: 0.1436764982 | L146: 0.1436764982 | M146: 3.634446873e+16 | N146: 0 | O146: FALSE | P146: 0 | Q146: 1.754363799e-15 | R146: 1.754363799e-15 | S146: 1.146915596e+13 | T146: 0 | U146: FALSE | V146: 0 | W146: 5.69093121e-12 | X146: 5.69093121e-12 | Y146: 3629706543 | Z146: 0 | AA146: FALSE | AB146: 0 | AC146: 1.6408495e-08 | AD146: 1.6408495e-08 | AE146: 1258063.956 | AF146: 0 | AG146: FALSE | AH146: 0 | AI146: 5.187115641e-05 | AJ146: 5.187115641e-05 | AK146: 397.9656048 | AL146: 0 | AM146: TRUE | AN146: 0.1436764982 | AO146: 0.1640309991 | AP146: 0 | AQ146: 0.1258477742 | AR146: 0.1258477742 | AS146: FALSE | AT146: 0 | AU146: 518.7115641 | AV146: 0
B147: 7 | C147: 18 | D147: 2270.96983 | F147: 138 | G147: 4 | H147: 10 | I147: 702.6445098 | J147: 1 | K147: 0.7533074178 | L147: 0.7533074178 | M147: 2.021377897e+17 | N147: 0 | O147: FALSE | P147: 0 | Q147: 8.671285562e-15 | R147: 8.671285562e-15 | S147: 6.37882439e+13 | T147: 0 | U147: FALSE | V147: 0 | W147: 2.812853848e-11 | X147: 2.812853848e-11 | Y147: 2.018741458e+10 | Z147: 0 | AA147: FALSE | AB147: 0 | AC147: 8.110218978e-08 | AD147: 8.110218978e-08 | AE147: 6997000.541 | AF147: 0 | AG147: FALSE | AH147: 0 | AI147: 0.0002563833168 | AJ147: 0.0002563833168 | AK147: 2213.373604 | AL147: 0 | AM147: TRUE | AN147: 0.7533074178 | AO147: 0.810755235 | AP147: 0 | AQ147: 0.6999301901 | AR147: 0.6999301901 | AS147: FALSE | AT147: 0 | AU147: 2563.833168 | AV147: 0
B148: 7 | C148: 19 | D148: 2519.278431 | F148: 139 | G148: 9 | H148: 9 | I148: 703.2666746 | J148: 1 | K148: 0.223567782 | L148: 0.223567782 | M148: 6.061129844e+16 | N148: 0 | O148: FALSE | P148: 0 | Q148: 2.547131472e-15 | R148: 2.547131472e-15 | S148: 1.912699398e+13 | T148: 0 | U148: FALSE | V148: 0 | W148: 8.262567887e-12 | X148: 8.262567887e-12 | Y148: 6053224443 | Z148: 0 | AA148: FALSE | AB148: 0 | AC148: 2.382321958e-08 | AD148: 2.382321958e-08 | AE148: 2098060.38 | AF148: 0 | AG148: FALSE | AH148: 0 | AI148: 7.531086484e-05 | AJ148: 7.531086484e-05 | AK148: 663.683165 | AL148: 0 | AM148: TRUE | AN148: 0.223567782 | AO148: 0.2381538654 | AP148: 0 | AQ148: 0.2098750446 | AR148: 0.2098750446 | AS148: FALSE | AT148: 0 | AU148: 753.1086484 | AV148: 0
B149: 7 | C149: 20 | D149: 2781.009119 | F149: 140 | G149: 12 | H149: 8 | I149: 713.3684033 | J149: 1 | K149: 0.2630029915 | L149: 0.2630029915 | M149: 8.416260637e+16 | N149: 0 | O149: FALSE | P149: 0 | Q149: 2.538567488e-15 | R149: 2.538567488e-15 | S149: 2.655903614e+13 | T149: 0 | U149: FALSE | V149: 0 | W149: 8.234787421e-12 | X149: 8.234787421e-12 | Y149: 8405283490 | Z149: 0 | AA149: FALSE | AB149: 0 | AC149: 2.374312098e-08 | AD149: 2.374312098e-08 | AE149: 2913289.015 | AF149: 0 | AG149: FALSE | AH149: 0 | AI149: 7.50576541e-05 | AJ149: 7.50576541e-05 | AK149: 921.5658864 | AL149: 0 | AM149: FALSE | AN149: 0 | AO149: 0.2373531428 | AP149: 0.2373531428 | AQ149: 0.2914247215 | AR149: 0 | AS149: TRUE | AT149: 0.2630029915 | AU149: 750.576541 | AV149: 0
B150: 8 | C150: 1 | D150: 132.8717691 | F150: 141 | G150: 14 | H150: 7 | I150: 715.2083438 | J150: 1 | K150: 0.9904451701 | L150: 0.9904451701 | M150: 3.265846762e+17 | N150: 0 | O150: FALSE | P150: 0 | Q150: 9.277940586e-15 | R150: 9.277940586e-15 | S150: 1.030597149e+14 | T150: 0 | U150: FALSE | V150: 0 | W150: 3.009644959e-11 | X150: 3.009644959e-11 | Y150: 3.261587188e+10 | Z150: 0 | AA150: FALSE | AB150: 0 | AC150: 8.677621016e-08 | AD150: 8.677621016e-08 | AE150: 11304730.1 | AF150: 0 | AG150: FALSE | AH150: 0 | AI150: 0.0002743202451 | AJ150: 0.0002743202451 | AK150: 3576.045343 | AL150: 0 | AM150: FALSE | AN150: 0 | AO150: 0.8674767827 | AP150: 0.8674767827 | AQ150: 1.13084483 | AR150: 0 | AS150: TRUE | AT150: 0.9904451701 | AU150: 2743.202451 | AV150: 0
B151: 8 | C151: 2 | D151: 153.004899 | F151: 142 | G151: 19 | H151: 1 | I151: 718.3363875 | J151: 1 | K151: 0.1531327792 | L151: 0.1531327792 | M151: 5.312141493e+16 | N151: 0 | O151: FALSE | P151: 0 | Q151: 1.363493927e-15 | R151: 1.363493927e-15 | S151: 1.676342546e+13 | T151: 0 | U151: FALSE | V151: 0 | W151: 4.422999466e-12 | X151: 4.422999466e-12 | Y151: 5305212981 | Z151: 0 | AA151: FALSE | AB151: 0 | AC151: 1.27527046e-08 | AD151: 1.27527046e-08 | AE151: 1838798.027 | AF151: 0 | AG151: FALSE | AH151: 0 | AI151: 4.031433321e-05 | AJ151: 4.031433321e-05 | AK151: 581.6702446 | AL151: 0 | AM151: FALSE | AN151: 0 | AO151: 0.1274851153 | AP151: 0.1274851153 | AQ151: 0.183940282 | AR151: 0 | AS151: TRUE | AT151: 0.1531327792 | AU151: 403.1433321 | AV151: 0
B152: 8 | C152: 3 | D152: 186.5601154 | F152: 143 | G152: 5 | H152: 10 | I152: 720.3858619 | J152: 1 | K152: 0.9492692229 | L152: 0.9492692229 | M152: 3.403900176e+17 | N152: 0 | O152: FALSE | P152: 0 | Q152: 8.176896465e-15 | R152: 8.176896465e-15 | S152: 1.074162406e+14 | T152: 0 | U152: FALSE | V152: 0 | W152: 2.652480365e-11 | X152: 2.652480365e-11 | Y152: 3.399460543e+10 | Z152: 0 | AA152: FALSE | AB152: 0 | AC152: 7.647818818e-08 | AD152: 7.647818818e-08 | AE152: 11782602.06 | AF152: 0 | AG152: FALSE | AH152: 0 | AI152: 0.0002417657476 | AJ152: 0.0002417657476 | AK152: 3727.211429 | AL152: 0 | AM152: FALSE | AN152: 0 | AO152: 0.7645304226 | AP152: 0.7645304226 | AQ152: 1.178647744 | AR152: 0 | AS152: TRUE | AT152: 0.9492692229 | AU152: 2417.657476 | AV152: 0
B153: 8 | C153: 4 | D153: 233.5374184 | F153: 144 | G153: 17 | H153: 5 | I153: 737.4706097 | J153: 1 | K153: 0.6375871355 | L153: 0.6375871355 | M153: 3.002492057e+17 | N153: 0 | O153: FALSE | P153: 0 | Q153: 4.181997199e-15 | R153: 4.181997199e-15 | S153: 9.474907977e+13 | T153: 0 | U153: FALSE | V153: 0 | W153: 1.356586268e-11 | X153: 1.356586268e-11 | Y153: 2.998575971e+10 | Z153: 0 | AA153: FALSE | AB153: 0 | AC153: 3.911405386e-08 | AD153: 3.911405386e-08 | AE153: 10393127.67 | AF153: 0 | AG153: FALSE | AH153: 0 | AI153: 0.0001236488298 | AJ153: 0.0001236488298 | AK153: 3287.676527 | AL153: 0 | AM153: FALSE | AN153: 0 | AO153: 0.3910119322 | AP153: 0.3910119322 | AQ153: 1.039654603 | AR153: 0 | AS153: TRUE | AT153: 0.6375871355 | AU153: 1236.488298 | AV153: 0
B154: 8 | C154: 5 | D154: 293.9368079 | F154: 145 | G154: 19 | H154: 2 | I154: 738.4695174 | J154: 1 | K154: 0.1354861296 | L154: 0.1354861296 | M154: 6.481447564e+16 | N154: 0 | O154: FALSE | P154: 0 | Q154: 8.747907347e-16 | R154: 8.747907347e-16 | S154: 2.045338274e+13 | T154: 0 | U154: FALSE | V154: 0 | W154: 2.837708973e-12 | X154: 2.837708973e-12 | Y154: 6472993951 | Z154: 0 | AA154: FALSE | AB154: 0 | AC154: 8.18188303e-09 | AD154: 8.18188303e-09 | AE154: 2243553.379 | AF154: 0 | AG154: FALSE | AH154: 0 | AI154: 2.586487879e-05 | AJ154: 2.586487879e-05 | AK154: 709.7072235 | AL154: 0 | AM154: FALSE | AN154: 0 | AO154: 0.08179192839 | AP154: 0.08179192839 | AQ154: 0.2244291298 | AR154: 0 | AS154: TRUE | AT154: 0.1354861296 | AU154: 258.6487879 | AV154: 0
B155: 8 | C155: 6 | D155: 367.758284 | F155: 146 | G155: 10 | H155: 9 | I155: 740.7206401 | J155: 1 | K155: 0.3069840053 | L155: 0.3069840053 | M155: 1.521465156e+17 | N155: 0 | O155: FALSE | P155: 0 | Q155: 1.913180734e-15 | R155: 1.913180734e-15 | S155: 4.801259111e+13 | T155: 0 | U155: FALSE | V155: 0 | W155: 6.206112983e-12 | X155: 6.206112983e-12 | Y155: 1.519480742e+10 | Z155: 0 | AA155: FALSE | AB155: 0 | AC155: 1.789390349e-08 | AD155: 1.789390349e-08 | AE155: 5266552.353 | AF155: 0 | AG155: FALSE | AH155: 0 | AI155: 5.656688604e-05 | AJ155: 5.656688604e-05 | AK155: 1665.977856 | AL155: 0 | AM155: FALSE | AN155: 0 | AO155: 0.1788802 | AP155: 0.1788802 | AQ155: 0.5268284557 | AR155: 0 | AS155: TRUE | AT155: 0.3069840053 | AU155: 565.6688604 | AV155: 0
B156: 8 | C156: 7 | D156: 455.0018467 | F156: 147 | G156: 6 | H156: 10 | I156: 742.0697366 | J156: 1 | K156: 0.2706986238 | L156: 0.2706986238 | M156: 1.37031568e+17 | N156: 0 | O156: FALSE | P156: 0 | Q156: 1.65172591e-15 | R156: 1.65172591e-15 | S156: 4.32427954e+13 | T156: 0 | U156: FALSE | V156: 0 | W156: 5.35798706e-12 | X156: 5.35798706e-12 | Y156: 1.368528407e+10 | Z156: 0 | AA156: FALSE | AB156: 0 | AC156: 1.54485269e-08 | AD156: 1.54485269e-08 | AE156: 4743348.372 | AF156: 0 | AG156: FALSE | AH156: 0 | AI156: 4.883646886e-05 | AJ156: 4.883646886e-05 | AK156: 1500.471812 | AL156: 0 | AM156: FALSE | AN156: 0 | AO156: 0.1544344745 | AP156: 0.1544344745 | AQ156: 0.4744908491 | AR156: 0 | AS156: TRUE | AT156: 0.2706986238 | AU156: 488.3646886 | AV156: 0
B157: 8 | C157: 8 | D157: 555.667496 | F157: 148 | G157: 18 | H157: 4 | I157: 746.0653671 | J157: 1 | K157: 0.7123968852 | L157: 0.7123968852 | M157: 3.838592645e+17 | N157: 0 | O157: FALSE | P157: 0 | Q157: 4.083744009e-15 | R157: 4.083744009e-15 | S157: 1.211337495e+14 | T157: 0 | U157: FALSE | V157: 0 | W157: 1.324714192e-11 | X157: 1.324714192e-11 | Y157: 3.833586051e+10 | Z157: 0 | AA157: FALSE | AB157: 0 | AC157: 3.819509567e-08 | AD157: 3.819509567e-08 | AE157: 13287290.24 | AF157: 0 | AG157: FALSE | AH157: 0 | AI157: 0.0001207437843 | AJ157: 0.0001207437843 | AK157: 4203.192114 | AL157: 0 | AM157: FALSE | AN157: 0 | AO157: 0.3818253718 | AP157: 0.3818253718 | AQ157: 1.329166052 | AR157: 0 | AS157: TRUE | AT157: 0.7123968852 | AU157: 1207.437843 | AV157: 0
B158: 8 | C158: 9 | D158: 669.7552318 | F158: 149 | G158: 16 | H158: 6 | I158: 746.2404616 | J158: 1 | K158: 0.1165096631 | L158: 0.1165096631 | M158: 6.295016548e+16 | N158: 0 | O158: FALSE | P158: 0 | Q158: 6.660602712e-16 | R158: 6.660602712e-16 | S158: 1.986506588e+13 | T158: 0 | U158: FALSE | V158: 0 | W158: 2.160614114e-12 | X158: 2.160614114e-12 | Y158: 6286806094 | Z158: 0 | AA158: FALSE | AB158: 0 | AC158: 6.229635288e-09 | AD158: 6.229635288e-09 | AE158: 2179020.274 | AF158: 0 | AG158: FALSE | AH158: 0 | AI158: 1.969335922e-05 | AJ158: 1.969335922e-05 | AK158: 689.2933519 | AL158: 0 | AM158: FALSE | AN158: 0 | AO158: 0.06227586993 | AP158: 0.06227586993 | AQ158: 0.2179736968 | AR158: 0 | AS158: TRUE | AT158: 0.1165096631 | AU158: 196.9335922 | AV158: 0
B159: 8 | C159: 10 | D159: 797.2650542 | F159: 150 | G159: 13 | H159: 8 | I159: 762.6499368 | J159: 1 | K159: 0.2169355733 | L159: 0.2169355733 | M159: 1.509374988e+17 | N159: 0 | O159: FALSE | P159: 0 | Q159: 9.630546045e-16 | R159: 9.630546045e-16 | S159: 4.763106394e+13 | T159: 0 | U159: FALSE | V159: 0 | W159: 3.124025649e-12 | X159: 3.124025649e-12 | Y159: 1.507406343e+10 | Z159: 0 | AA159: FALSE | AB159: 0 | AC159: 9.007411502e-09 | AD159: 9.007411502e-09 | AE159: 5224702.23 | AF159: 0 | AG159: FALSE | AH159: 0 | AI159: 2.847457069e-05 | AJ159: 2.847457069e-05 | AK159: 1652.739333 | AL159: 0 | AM159: FALSE | AN159: 0 | AO159: 0.09004449879 | AP159: 0.09004449879 | AQ159: 0.522642067 | AR159: 0 | AS159: TRUE | AT159: 0.2169355733 | AU159: 284.7457069 | AV159: 0
B160: 8 | C160: 11 | D160: 938.1969631 | F160: 151 | G160: 7 | H160: 10 | I160: 767.6961341 | J160: 1 | K160: 0.6572582533 | L160: 0.6572582533 | M160: 4.937450647e+17 | N160: 0 | O160: FALSE | P160: 0 | Q160: 2.702438642e-15 | R160: 2.702438642e-15 | S160: 155810205750426 | T160: 0 | U160: FALSE | V160: 0 | W160: 8.766364434e-12 | X160: 8.766364434e-12 | Y160: 4.931010836e+10 | Z160: 0 | AA160: FALSE | AB160: 0 | AC160: 2.527580139e-08 | AD160: 2.527580139e-08 | AE160: 17090987.73 | AF160: 0 | AG160: FALSE | AH160: 0 | AI160: 7.990282151e-05 | AJ160: 7.990282151e-05 | AK160: 5406.422493 | AL160: 0 | AM160: FALSE | AN160: 0 | AO160: 0.2526749074 | AP160: 0.2526749074 | AQ160: 1.709660907 | AR160: 0 | AS160: TRUE | AT160: 0.6572582533 | AU160: 799.0282151 | AV160: 0
B161: 8 | C161: 12 | D161: 1092.550959 | F161: 152 | G161: 19 | H161: 3 | I161: 772.0247338 | J161: 1 | K161: 0.03325974212 | L161: 0.03325974212 | M161: 2.667328445e+16 | N161: 0 | O161: FALSE | P161: 0 | Q161: 1.280995995e-16 | R161: 1.280995995e-16 | S161: 8.417238441e+12 | T161: 0 | U161: FALSE | V161: 0 | W161: 4.155386751e-13 | X161: 4.155386751e-13 | Y161: 2663849506 | Z161: 0 | AA161: FALSE | AB161: 0 | AC161: 1.198110471e-09 | AD161: 1.198110471e-09 | AE161: 923295.8665 | AF161: 0 | AG161: FALSE | AH161: 0 | AI161: 3.787512239e-06 | AJ161: 3.787512239e-06 | AK161: 292.0678207 | AL161: 0 | AM161: FALSE | AN161: 0 | AO161: 0.01197716534 | AP161: 0.01197716534 | AQ161: 0.09235995447 | AR161: 0 | AS161: TRUE | AT161: 0.03325974212 | AU161: 37.87512239 | AV161: 0
B162: 8 | C162: 13 | D162: 1260.327041 | F162: 153 | G162: 15 | H162: 7 | I162: 772.3749227 | J162: 1 | K162: 0.6361200511 | L162: 0.6361200511 | M162: 5.128455571e+17 | N162: 0 | O162: FALSE | P162: 0 | Q162: 2.437126579e-15 | R162: 2.437126579e-15 | S162: 1.618377124e+14 | T162: 0 | U162: FALSE | V162: 0 | W162: 7.905726121e-12 | X162: 7.905726121e-12 | Y162: 5.121766637e+10 | Z162: 0 | AA162: FALSE | AB162: 0 | AC162: 2.279434819e-08 | AD162: 2.279434819e-08 | AE162: 17752151.37 | AF162: 0 | AG162: FALSE | AH162: 0 | AI162: 7.205835758e-05 | AJ162: 7.205835758e-05 | AK162: 5615.569561 | AL162: 0 | AM162: FALSE | AN162: 0 | AO162: 0.2278685344 | AP162: 0.2278685344 | AQ162: 1.775799017 | AR162: 0 | AS162: TRUE | AT162: 0.6361200511 | AU162: 720.5835758 | AV162: 0
B163: 8 | C163: 14 | D163: 1441.525209 | F163: 154 | G163: 11 | H163: 9 | I163: 782.1171282 | J163: 1 | K163: 0.5547209139 | L163: 0.5547209139 | M163: 5.17384953e+17 | N163: 0 | O163: FALSE | P163: 0 | Q163: 1.837053476e-15 | R163: 1.837053476e-15 | S163: 1.632702011e+14 | T163: 0 | U163: FALSE | V163: 0 | W163: 5.95916592e-12 | X163: 5.95916592e-12 | Y163: 5.167101389e+10 | Z163: 0 | AA163: FALSE | AB163: 0 | AC163: 1.718188827e-08 | AD163: 1.718188827e-08 | AE163: 17909282.58 | AF163: 0 | AG163: FALSE | AH163: 0 | AI163: 5.431603653e-05 | AJ163: 5.431603653e-05 | AK163: 5665.275155 | AL163: 0 | AM163: FALSE | AN163: 0 | AO163: 0.1717623889 | AP163: 0.1717623889 | AQ163: 1.791517306 | AR163: 0 | AS163: TRUE | AT163: 0.5547209139 | AU163: 543.1603653 | AV163: 0
B164: 8 | C164: 15 | D164: 1636.145465 | F164: 155 | G164: 20 | H164: 1 | I164: 795.2155798 | J164: 1 | K164: 0.8266969397 | L164: 0.8266969397 | M164: 9.352986057e+17 | N164: 0 | O164: FALSE | P164: 0 | Q164: 2.256986109e-15 | R164: 2.256986109e-15 | S164: 2.951504301e+14 | T164: 0 | U164: FALSE | V164: 0 | W164: 7.321373536e-12 | X164: 7.321373536e-12 | Y164: 9.340787159e+10 | Z164: 0 | AA164: FALSE | AB164: 0 | AC164: 2.110950152e-08 | AD164: 2.110950152e-08 | AE164: 32375365.63 | AF164: 0 | AG164: FALSE | AH164: 0 | AI164: 6.673215644e-05 | AJ164: 6.673215644e-05 | AK164: 10241.35689 | AL164: 0 | AM164: FALSE | AN164: 0 | AO164: 0.2110256075 | AP164: 0.2110256075 | AQ164: 3.23860141 | AR164: 0 | AS164: TRUE | AT164: 0.8266969397 | AU164: 667.3215644 | AV164: 0
B165: 8 | C165: 16 | D165: 1844.187806 | F165: 156 | G165: 8 | H165: 10 | I165: 797.2650542 | J165: 1 | K165: 0.9797034098 | L165: 0.9797034098 | M165: 1.142077347e+18 | N165: 0 | O165: FALSE | P165: 0 | Q165: 2.595853834e-15 | R165: 2.595853834e-15 | S165: 3.604032105e+14 | T165: 0 | U165: FALSE | V165: 0 | W165: 8.420616984e-12 | X165: 8.420616984e-12 | Y165: 1.140587761e+11 | Z165: 0 | AA165: FALSE | AB165: 0 | AC165: 2.427891791e-08 | AD165: 2.427891791e-08 | AE165: 39533012.74 | AF165: 0 | AG165: FALSE | AH165: 0 | AI165: 7.675143566e-05 | AJ165: 7.675143566e-05 | AK165: 12505.54811 | AL165: 0 | AM165: FALSE | AN165: 0 | AO165: 0.2427093504 | AP165: 0.2427093504 | AQ165: 3.954601542 | AR165: 0 | AS165: TRUE | AT165: 0.9797034098 | AU165: 767.5143566 | AV165: 0
B166: 8 | C166: 17 | D166: 2065.652235 | F166: 157 | G166: 18 | H166: 5 | I166: 806.4647567 | J166: 1 | K166: 0.4866255001 | L166: 0.4866255001 | M166: 6.482282414e+17 | N166: 0 | O166: FALSE | P166: 0 | Q166: 1.128361583e-15 | R166: 1.128361583e-15 | S166: 2.045601726e+14 | T166: 0 | U166: FALSE | V166: 0 | W166: 3.660260289e-12 | X166: 3.660260289e-12 | Y166: 6.473827713e+10 | Z166: 0 | AA166: FALSE | AB166: 0 | AC166: 1.055352111e-08 | AD166: 1.055352111e-08 | AE166: 22438423.62 | AF166: 0 | AG166: FALSE | AH166: 0 | AI166: 3.336219099e-05 | AJ166: 3.336219099e-05 | AK166: 7097.986382 | AL166: 0 | AM166: FALSE | AN166: 0 | AO166: 0.1055005113 | AP166: 0.1055005113 | AQ166: 2.244580377 | AR166: 0 | AS166: TRUE | AT166: 0.4866255001 | AU166: 333.6219099 | AV166: 0
B167: 8 | C167: 18 | D167: 2300.53875 | F167: 158 | G167: 17 | H167: 6 | I167: 811.2920858 | J167: 1 | K167: 0.3692844894 | L167: 0.3692844894 | M167: 5.272649445e+17 | N167: 0 | O167: FALSE | P167: 0 | Q167: 7.988766896e-16 | R167: 7.988766896e-16 | S167: 1.663880115e+14 | T167: 0 | U167: FALSE | V167: 0 | W167: 2.591453545e-12 | X167: 2.591453545e-12 | Y167: 5.265772442e+10 | Z167: 0 | AA167: FALSE | AB167: 0 | AC167: 7.471861979e-09 | AD167: 7.471861979e-09 | AE167: 18251278.53 | AF167: 0 | AG167: FALSE | AH167: 0 | AI167: 2.362033333e-05 | AJ167: 2.362033333e-05 | AK167: 5773.459342 | AL167: 0 | AM167: FALSE | AN167: 0 | AO167: 0.07469405241 | AP167: 0.07469405241 | AQ167: 1.82572815 | AR167: 0 | AS167: TRUE | AT167: 0.3692844894 | AU167: 236.2033333 | AV167: 0
B168: 8 | C168: 19 | D168: 2548.847351 | F168: 159 | G168: 1 | H168: 11 | I168: 814.0074986 | J168: 1 | K168: 0.2715798216 | L168: 0.2715798216 | M168: 4.031230893e+17 | N168: 0 | O168: FALSE | P168: 0 | Q168: 5.651241112e-16 | R168: 5.651241112e-16 | S168: 1.272127986e+14 | T168: 0 | U168: FALSE | V168: 0 | W168: 1.833190154e-12 | X168: 1.833190154e-12 | Y168: 4.025973045e+10 | Z168: 0 | AA168: FALSE | AB168: 0 | AC168: 5.285583388e-09 | AD168: 5.285583388e-09 | AE168: 13954107.63 | AF168: 0 | AG168: FALSE | AH168: 0 | AI168: 1.670898657e-05 | AJ168: 1.670898657e-05 | AK168: 4414.127641 | AL168: 0 | AM168: FALSE | AN168: 0 | AO168: 0.05283845496 | AP168: 0.05283845496 | AQ168: 1.395869723 | AR168: 0 | AS168: TRUE | AT168: 0.2715798216 | AU168: 167.0898657 | AV168: 0
B169: 8 | C169: 20 | D169: 2810.578039 | F169: 160 | G169: 20 | H169: 2 | I169: 815.3487097 | J169: 1 | K169: 0.7314303921 | L169: 0.7314303921 | M169: 1.106690291e+18 | N169: 0 | O169: FALSE | P169: 0 | Q169: 1.493160241e-15 | R169: 1.493160241e-15 | S169: 3.492361834e+14 | T169: 0 | U169: FALSE | V169: 0 | W169: 4.843620362e-12 | X169: 4.843620362e-12 | Y169: 1.105246859e+11 | Z169: 0 | AA169: FALSE | AB169: 0 | AC169: 1.396546849e-08 | AD169: 1.396546849e-08 | AE169: 38308089.62 | AF169: 0 | AG169: FALSE | AH169: 0 | AI169: 4.414816839e-05 | AJ169: 4.414816839e-05 | AK169: 12118.066 | AL169: 0 | AM169: FALSE | AN169: 0 | AO169: 0.1396087666 | AP169: 0.1396087666 | AQ169: 3.832068941 | AR169: 0 | AS169: TRUE | AT169: 0.7314303921 | AU169: 441.4816839 | AV169: 0
B170: 9 | C170: 1 | D170: 166.3832119 | F170: 161 | G170: 14 | H170: 8 | I170: 815.873993 | J170: 1 | K170: 0.4970180974 | L170: 0.4970180974 | M170: 7.576651624e+17 | N170: 0 | O170: FALSE | P170: 0 | Q170: 1.00705595e-15 | R170: 1.00705595e-15 | S170: 2.390949769e+14 | T170: 0 | U170: FALSE | V170: 0 | W170: 3.26676037e-12 | X170: 3.26676037e-12 | Y170: 7.56676956e+10 | Z170: 0 | AA170: FALSE | AB170: 0 | AC170: 9.418954336e-09 | AD170: 9.418954336e-09 | AE170: 26226583.15 | AF170: 0 | AG170: FALSE | AH170: 0 | AI170: 2.97755555e-05 | AJ170: 2.97755555e-05 | AK170: 8296.301613 | AL170: 0 | AM170: FALSE | AN170: 0 | AO170: 0.09415857398 | AP170: 0.09415857398 | AQ170: 2.623520925 | AR170: 0 | AS170: TRUE | AT170: 0.4970180974 | AU170: 297.755555 | AV170: 0
B171: 9 | C171: 2 | D171: 186.5163418 | F171: 162 | G171: 19 | H171: 4 | I171: 819.0020368 | J171: 1 | K171: 0.1649130998 | L171: 0.1649130998 | M171: 2.628346827e+17 | N171: 0 | O171: FALSE | P171: 0 | Q171: 3.196054311e-16 | R171: 3.196054311e-16 | S171: 8.294224878e+13 | T171: 0 | U171: FALSE | V171: 0 | W171: 1.036759037e-12 | X171: 1.036759037e-12 | Y171: 2.624918731e+10 | Z171: 0 | AA171: FALSE | AB171: 0 | AC171: 2.989256916e-09 | AD171: 2.989256916e-09 | AE171: 9098023.776 | AF171: 0 | AG171: FALSE | AH171: 0 | AI171: 9.449752278e-06 | AJ171: 9.449752278e-06 | AK171: 2877.994014 | AL171: 0 | AM171: FALSE | AN171: 0 | AO171: 0.02988274052 | AP171: 0.02988274052 | AQ171: 0.9101016177 | AR171: 0 | AS171: TRUE | AT171: 0.1649130998 | AU171: 94.49752278 | AV171: 0
B172: 9 | C172: 3 | D172: 220.0715582 | F172: 163 | G172: 2 | H172: 11 | I172: 819.9212826 | J172: 1 | K172: 0.2929615449 | L172: 0.2929615449 | M172: 4.730449684e+17 | N172: 0 | O172: FALSE | P172: 0 | Q172: 5.604092825e-16 | R172: 5.604092825e-16 | S172: 1.492779151e+14 | T172: 0 | U172: FALSE | V172: 0 | W172: 1.817895854e-12 | X172: 1.817895854e-12 | Y172: 4.72427986e+10 | Z172: 0 | AA172: FALSE | AB172: 0 | AC172: 5.241485782e-09 | AD172: 5.241485782e-09 | AE172: 16374453.8 | AF172: 0 | AG172: FALSE | AH172: 0 | AI172: 1.656958355e-05 | AJ172: 1.656958355e-05 | AK172: 5179.760043 | AL172: 0 | AM172: FALSE | AN172: 0 | AO172: 0.0523976239 | AP172: 0.0523976239 | AQ172: 1.637983947 | AR172: 0 | AS172: TRUE | AT172: 0.2929615449 | AU172: 165.6958355 | AV172: 0
B173: 9 | C173: 4 | D173: 267.0488612 | F173: 164 | G173: 12 | H173: 9 | I173: 827.4561391 | J173: 1 | K173: 0.2914105844 | L173: 0.2914105844 | M173: 5.233450785e+17 | N173: 0 | O173: FALSE | P173: 0 | Q173: 5.011976344e-16 | R173: 5.011976344e-16 | S173: 1.651510267e+14 | T173: 0 | U173: FALSE | V173: 0 | W173: 1.62582086e-12 | X173: 1.62582086e-12 | Y173: 5.226624908e+10 | Z173: 0 | AA173: FALSE | AB173: 0 | AC173: 4.687681587e-09 | AD173: 4.687681587e-09 | AE173: 18115592.35 | AF173: 0 | AG173: FALSE | AH173: 0 | AI173: 1.481887673e-05 | AJ173: 1.481887673e-05 | AK173: 5730.537492 | AL173: 0 | AM173: FALSE | AN173: 0 | AO173: 0.04686140284 | AP173: 0.04686140284 | AQ173: 1.812155069 | AR173: 0 | AS173: TRUE | AT173: 0.2914105844 | AU173: 148.1887673 | AV173: 0
B174: 9 | C174: 5 | D174: 327.4482507 | F174: 165 | G174: 3 | H174: 11 | I174: 829.7775894 | J174: 1 | K174: 0.04444684897 | L174: 0.04444684897 | M174: 8.246511765e+16 | N174: 0 | O174: FALSE | P174: 0 | Q174: 7.39942862e-17 | R174: 7.39942862e-17 | S174: 2.60233628e+13 | T174: 0 | U174: FALSE | V174: 0 | W174: 2.400279765e-13 | X174: 2.400279765e-13 | Y174: 8235756018 | Z174: 0 | AA174: FALSE | AB174: 0 | AC174: 6.920656228e-10 | AD174: 6.920656228e-10 | AE174: 2854530.435 | AF174: 0 | AG174: FALSE | AH174: 0 | AI174: 2.187784082e-06 | AJ174: 2.187784082e-06 | AK174: 902.9786806 | AL174: 0 | AM174: FALSE | AN174: 0 | AO174: 0.006918380726 | AP174: 0.006918380726 | AQ174: 0.2855469309 | AR174: 0 | AS174: TRUE | AT174: 0.04444684897 | AU174: 21.87784082 | AV174: 0
B175: 9 | C175: 6 | D175: 401.2697268 | F175: 166 | G175: 9 | H175: 10 | I175: 830.776497 | J175: 1 | K175: 0.3995780862 | L175: 0.3995780862 | M175: 7.5180628e+17 | N175: 0 | O175: FALSE | P175: 0 | Q175: 6.559698657e-16 | R175: 6.559698657e-16 | S175: 2.372461004e+14 | T175: 0 | U175: FALSE | V175: 0 | W175: 2.127882132e-12 | X175: 2.127882132e-12 | Y175: 7.508257153e+10 | Z175: 0 | AA175: FALSE | AB175: 0 | AC175: 6.135260125e-09 | AD175: 6.135260125e-09 | AE175: 26023777.91 | AF175: 0 | AG175: FALSE | AH175: 0 | AI175: 1.939501688e-05 | AJ175: 1.939501688e-05 | AK175: 8232.147871 | AL175: 0 | AM175: FALSE | AN175: 0 | AO175: 0.06133242861 | AP175: 0.06133242861 | AQ175: 2.603233731 | AR175: 0 | AS175: TRUE | AT175: 0.3995780862 | AU175: 193.9501688 | AV175: 0
B176: 9 | C176: 7 | D176: 488.5132895 | F176: 167 | G176: 16 | H176: 7 | I176: 833.4840243 | J176: 1 | K176: 0.3042428158 | L176: 0.3042428158 | M176: 5.945031008e+17 | N176: 0 | O176: FALSE | P176: 0 | Q176: 4.809202375e-16 | R176: 4.809202375e-16 | S176: 1.876062306e+14 | T176: 0 | U176: FALSE | V176: 0 | W176: 1.560043584e-12 | X176: 1.560043584e-12 | Y176: 5.937277032e+10 | Z176: 0 | AA176: FALSE | AB176: 0 | AC176: 4.498027899e-09 | AD176: 4.498027899e-09 | AE176: 20578727.63 | AF176: 0 | AG176: FALSE | AH176: 0 | AI176: 1.42193363e-05 | AJ176: 1.42193363e-05 | AK176: 6509.705447 | AL176: 0 | AM176: FALSE | AN176: 0 | AO176: 0.04496548954 | AP176: 0.04496548954 | AQ176: 2.058549611 | AR176: 0 | AS176: TRUE | AT176: 0.3042428158 | AU176: 142.193363 | AV176: 0
B177: 9 | C177: 8 | D177: 589.1789388 | F177: 168 | G177: 4 | H177: 11 | I177: 843.5764187 | J177: 1 | K177: 0.2450153556 | L177: 0.2450153556 | M177: 5.506832483e+17 | N177: 0 | O177: FALSE | P177: 0 | Q177: 3.367218155e-16 | R177: 3.367218155e-16 | S177: 1.737780818e+14 | T177: 0 | U177: FALSE | V177: 0 | W177: 1.092282393e-12 | X177: 1.092282393e-12 | Y177: 5.49965004e+10 | Z177: 0 | AA177: FALSE | AB177: 0 | AC177: 3.14934578e-09 | AD177: 3.14934578e-09 | AE177: 19061903.23 | AF177: 0 | AG177: FALSE | AH177: 0 | AI177: 9.955831263e-06 | AJ177: 9.955831263e-06 | AK177: 6029.885691 | AL177: 0 | AM177: FALSE | AN177: 0 | AO177: 0.03148310279 | AP177: 0.03148310279 | AQ177: 1.906817281 | AR177: 0 | AS177: TRUE | AT177: 0.2450153556 | AU177: 99.55831263 | AV177: 0
B178: 9 | C178: 9 | D178: 703.2666746 | F178: 169 | G178: 20 | H178: 3 | I178: 848.9039261 | J178: 1 | K178: 0.1795548097 | L178: 0.1795548097 | M178: 4.342046072e+17 | N178: 0 | O178: FALSE | P178: 0 | Q178: 2.293433605e-16 | R178: 2.293433605e-16 | S178: 1.370211351e+14 | T178: 0 | U178: FALSE | V178: 0 | W178: 7.439604539e-13 | X178: 7.439604539e-13 | Y178: 4.336382835e+10 | Z178: 0 | AA178: FALSE | AB178: 0 | AC178: 2.145039351e-09 | AD178: 2.145039351e-09 | AE178: 15029994.52 | AF178: 0 | AG178: FALSE | AH178: 0 | AI178: 6.780979709e-06 | AJ178: 6.780979709e-06 | AK178: 4754.464851 | AL178: 0 | AM178: FALSE | AN178: 0 | AO178: 0.02144334065 | AP178: 0.02144334065 | AQ178: 1.503493798 | AR178: 0 | AS178: TRUE | AT178: 0.1795548097 | AU178: 67.80979709 | AV178: 0
B179: 9 | C179: 10 | D179: 830.776497 | F179: 170 | G179: 5 | H179: 11 | I179: 861.3177708 | J179: 1 | K179: 0.3087524836 | L179: 0.3087524836 | M179: 8.839199367e+17 | N179: 0 | O179: FALSE | P179: 0 | Q179: 3.33115241e-16 | R179: 3.33115241e-16 | S179: 2.789369597e+14 | T179: 0 | U179: FALSE | V179: 0 | W179: 1.080583128e-12 | X179: 1.080583128e-12 | Y179: 8.82767059e+10 | Z179: 0 | AA179: FALSE | AB179: 0 | AC179: 3.115613631e-09 | AD179: 3.115613631e-09 | AE179: 30596892.76 | AF179: 0 | AG179: FALSE | AH179: 0 | AI179: 9.849195916e-06 | AJ179: 9.849195916e-06 | AK179: 9678.76941 | AL179: 0 | AM179: FALSE | AN179: 0 | AO179: 0.03114589222 | AP179: 0.03114589222 | AQ179: 3.060695628 | AR179: 0 | AS179: TRUE | AT179: 0.3087524836 | AU179: 98.49195916 | AV179: 0
B180: 9 | C180: 11 | D180: 971.7084059 | F180: 171 | G180: 10 | H180: 10 | I180: 868.2304625 | J180: 1 | K180: 0.5486661819 | L180: 0.5486661819 | M180: 1.72374975e+18 | N180: 0 | O180: FALSE | P180: 0 | Q180: 5.394220337e-16 | R180: 5.394220337e-16 | S180: 5.439604816e+14 | T180: 0 | U180: FALSE | V180: 0 | W180: 1.74981591e-12 | X180: 1.74981591e-12 | Y180: 1.7215015e+11 | Z180: 0 | AA180: FALSE | AB180: 0 | AC180: 5.045192877e-09 | AD180: 5.045192877e-09 | AE180: 59667605.68 | AF180: 0 | AG180: FALSE | AH180: 0 | AI180: 1.594905498e-05 | AJ180: 1.594905498e-05 | AK180: 18874.75964 | AL180: 0 | AM180: FALSE | AN180: 0 | AO180: 0.05043534025 | AP180: 0.05043534025 | AQ180: 5.968723076 | AR180: 0 | AS180: TRUE | AT180: 0.5486661819 | AU180: 159.4905498 | AV180: 0
B181: 9 | C181: 12 | D181: 1126.062401 | F181: 172 | G181: 15 | H181: 8 | I181: 873.0405719 | J181: 1 | K181: 0.3192132054 | L181: 0.3192132054 | M181: 1.069409848e+18 | N181: 0 | O181: FALSE | P181: 0 | Q181: 2.943093318e-16 | R181: 2.943093318e-16 | S181: 3.374716637e+14 | T181: 0 | U181: FALSE | V181: 0 | W181: 9.547017344e-13 | X181: 9.547017344e-13 | Y181: 1.068015039e+11 | Z181: 0 | AA181: FALSE | AB181: 0 | AC181: 2.752663502e-09 | AD181: 2.752663502e-09 | AE181: 37017626.9 | AF181: 0 | AG181: FALSE | AH181: 0 | AI181: 8.701824211e-06 | AJ181: 8.701824211e-06 | AK181: 11709.85164 | AL181: 0 | AM181: FALSE | AN181: 0 | AO181: 0.0275175843 | AP181: 0.0275175843 | AQ181: 3.702980224 | AR181: 0 | AS181: TRUE | AT181: 0.3192132054 | AU181: 87.01824211 | AV181: 0
B182: 9 | C182: 13 | D182: 1293.838484 | F182: 173 | G182: 13 | H182: 9 | I182: 876.7376726 | J182: 1 | K182: 0.2403673123 | L182: 0.2403673123 | M182: 8.458174255e+17 | N182: 0 | O182: FALSE | P182: 0 | Q182: 2.109894305e-16 | R182: 2.109894305e-16 | S182: 2.669130216e+14 | T182: 0 | U182: FALSE | V182: 0 | W182: 6.844226583e-13 | X182: 6.844226583e-13 | Y182: 8.447142441e+10 | Z182: 0 | AA182: FALSE | AB182: 0 | AC182: 1.973375771e-09 | AD182: 1.973375771e-09 | AE182: 29277974.16 | AF182: 0 | AG182: FALSE | AH182: 0 | AI182: 6.238310295e-06 | AJ182: 6.238310295e-06 | AK182: 9261.553546 | AL182: 0 | AM182: FALSE | AN182: 0 | AO182: 0.01972726928 | AP182: 0.01972726928 | AQ182: 2.928760388 | AR182: 0 | AS182: TRUE | AT182: 0.2403673123 | AU182: 62.38310295 | AV182: 0
B183: 9 | C183: 14 | D183: 1475.036652 | F183: 174 | G183: 19 | H183: 5 | I183: 879.4014263 | J183: 1 | K183: 0.1126491726 | L183: 0.1126491726 | M183: 4.106269397e+17 | N183: 0 | O183: FALSE | P183: 0 | Q183: 9.545420987e-17 | R183: 9.545420987e-17 | S183: 1.295807747e+14 | T183: 0 | U183: FALSE | V183: 0 | W183: 3.096412172e-13 | X183: 3.096412172e-13 | Y183: 4.100913678e+10 | Z183: 0 | AA183: FALSE | AB183: 0 | AC183: 8.927794373e-10 | AD183: 8.927794373e-10 | AE183: 14213853.45 | AF183: 0 | AG183: FALSE | AH183: 0 | AI183: 2.822288201e-06 | AJ183: 2.822288201e-06 | AK183: 4496.293497 | AL183: 0 | AM183: FALSE | AN183: 0 | AO183: 0.008924858928 | AP183: 0.008924858928 | AQ183: 1.421852848 | AR183: 0 | AS183: TRUE | AT183: 0.1126491726 | AU183: 28.22288201 | AV183: 0
B184: 9 | C184: 15 | D184: 1669.656907 | F184: 175 | G184: 18 | H184: 6 | I184: 880.2862328 | J184: 1 | K184: 0.281848926 | L184: 0.281848926 | M184: 1.039474238e+18 | N184: 0 | O184: FALSE | P184: 0 | Q184: 2.360508406e-16 | R184: 2.360508406e-16 | S184: 3.280249393e+14 | T184: 0 | U184: FALSE | V184: 0 | W184: 7.657186592e-13 | X184: 7.657186592e-13 | Y184: 1.038118474e+11 | Z184: 0 | AA184: FALSE | AB184: 0 | AC184: 2.207774146e-09 | AD184: 2.207774146e-09 | AE184: 35981405.62 | AF184: 0 | AG184: FALSE | AH184: 0 | AI184: 6.979299322e-06 | AJ184: 6.979299322e-06 | AK184: 11382.06192 | AL184: 0 | AM184: FALSE | AN184: 0 | AO184: 0.02207048233 | AP184: 0.02207048233 | AQ184: 3.599324015 | AR184: 0 | AS184: TRUE | AT184: 0.281848926 | AU184: 69.79299322 | AV184: 0
B185: 9 | C185: 16 | D185: 1877.699249 | F185: 176 | G185: 6 | H185: 11 | I185: 883.0016456 | J185: 1 | K185: 0.08804548846 | L185: 0.08804548846 | M185: 3.365552957e+17 | N185: 0 | O185: FALSE | P185: 0 | Q185: 7.114498613e-17 | R185: 7.114498613e-17 | S185: 1.062061246e+14 | T185: 0 | U185: FALSE | V185: 0 | W185: 2.307852124e-13 | X185: 2.307852124e-13 | Y185: 3.361163339e+10 | Z185: 0 | AA185: FALSE | AB185: 0 | AC185: 6.654162323e-10 | AD185: 6.654162323e-10 | AE185: 11649863.14 | AF185: 0 | AG185: FALSE | AH185: 0 | AI185: 2.103539018e-06 | AJ185: 2.103539018e-06 | AK185: 3685.221891 | AL185: 0 | AM185: FALSE | AN185: 0 | AO185: 0.006651974444 | AP185: 0.006651974444 | AQ185: 1.165369486 | AR185: 0 | AS185: TRUE | AT185: 0.08804548846 | AU185: 21.03539018 | AV185: 0
B186: 9 | C186: 17 | D186: 2099.163678 | F186: 177 | G186: 20 | H186: 4 | I186: 895.8812291 | J186: 1 | K186: 0.8902937415 | L186: 0.8902937415 | M186: 4.027192421e+18 | N186: 0 | O186: FALSE | P186: 0 | Q186: 6.079260776e-16 | R186: 6.079260776e-16 | S186: 1.270853573e+15 | T186: 0 | U186: FALSE | V186: 0 | W186: 1.972034244e-12 | X186: 1.972034244e-12 | Y186: 4.021939841e+11 | Z186: 0 | AA186: FALSE | AB186: 0 | AC186: 5.685908481e-09 | AD186: 5.685908481e-09 | AE186: 139401284.6 | AF186: 0 | AG186: FALSE | AH186: 0 | AI186: 1.797450943e-05 | AJ186: 1.797450943e-05 | AK186: 44097.05585 | AL186: 0 | AM186: FALSE | AN186: 0 | AO186: 0.05684038963 | AP186: 0.05684038963 | AQ186: 13.94471346 | AR186: 0 | AS186: TRUE | AT186: 0.8902937415 | AU186: 179.7450943 | AV186: 0
B187: 9 | C187: 18 | D187: 2334.050192 | F187: 178 | G187: 17 | H187: 7 | I187: 898.5356485 | J187: 1 | K187: 0.9643161772 | L187: 0.9643161772 | M187: 4.514684745e+18 | N187: 0 | O187: FALSE | P187: 0 | Q187: 6.362063341e-16 | R187: 6.362063341e-16 | S187: 1424690613534936 | T187: 0 | U187: FALSE | V187: 0 | W187: 2.06377177e-12 | X187: 2.06377177e-12 | Y187: 4.50879634e+11 | Z187: 0 | AA187: FALSE | AB187: 0 | AC187: 5.950412599e-09 | AD187: 5.950412599e-09 | AE187: 156275833.7 | AF187: 0 | AG187: FALSE | AH187: 0 | AI187: 1.881066987e-05 | AJ187: 1.881066987e-05 | AK187: 49435.01192 | AL187: 0 | AM187: FALSE | AN187: 0 | AO187: 0.05948456112 | AP187: 0.05948456112 | AQ187: 15.63272338 | AR187: 0 | AS187: TRUE | AT187: 0.9643161772 | AU187: 188.1066987 | AV187: 0
B188: 9 | C188: 19 | D188: 2582.358794 | F188: 179 | G188: 7 | H188: 11 | I188: 908.628043 | J188: 1 | K188: 0.2137750948 | L188: 0.2137750948 | M188: 1.139631378e+18 | N188: 0 | O188: FALSE | P188: 0 | Q188: 1.238614986e-16 | R188: 1.238614986e-16 | S188: 3.596313405e+14 | T188: 0 | U188: FALSE | V188: 0 | W188: 4.017908192e-13 | X188: 4.017908192e-13 | Y188: 1.138144981e+11 | Z188: 0 | AA188: FALSE | AB188: 0 | AC188: 1.158471682e-09 | AD188: 1.158471682e-09 | AE188: 39448345.5 | AF188: 0 | AG188: FALSE | AH188: 0 | AI188: 3.662204595e-06 | AJ188: 3.662204595e-06 | AK188: 12478.76517 | AL188: 0 | AM188: FALSE | AN188: 0 | AO188: 0.01158090778 | AP188: 0.01158090778 | AQ188: 3.946132032 | AR188: 0 | AS188: TRUE | AT188: 0.2137750948 | AU188: 36.62204595 | AV188: 0
B189: 9 | C189: 20 | D189: 2844.089482 | F189: 180 | G189: 11 | H189: 10 | I189: 909.6269506 | J189: 1 | K189: 0.9914412495 | L189: 0.9914412495 | M189: 5.353309595e+18 | N189: 0 | O189: FALSE | P189: 0 | Q189: 5.671502409e-16 | R189: 5.671502409e-16 | S189: 1.689333887e+15 | T189: 0 | U189: FALSE | V189: 0 | W189: 1.839762658e-12 | X189: 1.839762658e-12 | Y189: 5.346327389e+11 | Z189: 0 | AA189: FALSE | AB189: 0 | AC189: 5.304533699e-09 | AD189: 5.304533699e-09 | AE189: 185304836.8 | AF189: 0 | AG189: FALSE | AH189: 0 | AI189: 1.676889301e-05 | AJ189: 1.676889301e-05 | AK189: 58617.80802 | AL189: 0 | AM189: FALSE | AN189: 0 | AO189: 0.05302789576 | AP189: 0.05302789576 | AQ189: 18.53657848 | AR189: 0 | AS189: TRUE | AT189: 0.9914412495 | AU189: 167.6889301 | AV189: 0
B190: 10 | C190: 1 | D190: 203.8371774 | F190: 181 | G190: 14 | H190: 9 | I190: 929.9617288 | J190: 1 | K190: 0.5507022312 | L190: 0.5507022312 | M190: 3.845115804e+18 | N190: 0 | O190: FALSE | P190: 0 | Q190: 2.436187785e-16 | R190: 2.436187785e-16 | S190: 1.213395996e+15 | T190: 0 | U190: FALSE | V190: 0 | W190: 7.902680792e-13 | X190: 7.902680792e-13 | Y190: 3.840100703e+11 | Z190: 0 | AA190: FALSE | AB190: 0 | AC190: 2.278556768e-09 | AD190: 2.278556768e-09 | AE190: 133098701.6 | AF190: 0 | AG190: FALSE | AH190: 0 | AI190: 7.203060031e-06 | AJ190: 7.203060031e-06 | AK190: 42103.34859 | AL190: 0 | AM190: FALSE | AN190: 0 | AO190: 0.02277807582 | AP190: 0.02277807582 | AQ190: 13.31424787 | AR190: 0 | AS190: TRUE | AT190: 0.5507022312 | AU190: 72.03060031 | AV190: 0
B191: 10 | C191: 2 | D191: 223.9703073 | F191: 182 | G191: 16 | H191: 8 | I191: 934.1496735 | J191: 1 | K191: 0.1526729495 | L191: 0.1526729495 | M191: 1.123163564e+18 | N191: 0 | O191: FALSE | P191: 0 | Q191: 6.410142718e-17 | R191: 6.410142718e-17 | S191: 3.544346232e+14 | T191: 0 | U191: FALSE | V191: 0 | W191: 2.079368103e-13 | X191: 2.079368103e-13 | Y191: 1.121698646e+11 | Z191: 0 | AA191: FALSE | AB191: 0 | AC191: 5.995381049e-10 | AD191: 5.995381049e-10 | AE191: 38878312.04 | AF191: 0 | AG191: FALSE | AH191: 0 | AI191: 1.895282584e-06 | AJ191: 1.895282584e-06 | AK191: 12298.44547 | AL191: 0 | AM191: FALSE | AN191: 0 | AO191: 0.005993409776 | AP191: 0.005993409776 | AQ191: 3.889109937 | AR191: 0 | AS191: TRUE | AT191: 0.1526729495 | AU191: 18.95282584 | AV191: 0
B192: 10 | C192: 3 | D192: 257.5255237 | F192: 183 | G192: 8 | H192: 11 | I192: 938.1969631 | J192: 1 | K192: 0.3186512885 | L192: 0.3186512885 | M192: 2.465054161e+18 | N192: 0 | O192: FALSE | P192: 0 | Q192: 1.272305502e-16 | R192: 1.272305502e-16 | S192: 7.77892527e+14 | T192: 0 | U192: FALSE | V192: 0 | W192: 4.127195906e-13 | X192: 4.127195906e-13 | Y192: 2.461839044e+11 | Z192: 0 | AA192: FALSE | AB192: 0 | AC192: 1.189982287e-09 | AD192: 1.189982287e-09 | AE192: 85327861.37 | AF192: 0 | AG192: FALSE | AH192: 0 | AI192: 3.761817117e-06 | AJ192: 3.761817117e-06 | AK192: 26991.91388 | AL192: 0 | AM192: FALSE | AN192: 0 | AO192: 0.01189591023 | AP192: 0.01189591023 | AQ192: 8.535592628 | AR192: 0 | AS192: TRUE | AT192: 0.3186512885 | AU192: 37.61817117 | AV192: 0
B193: 10 | C193: 4 | D193: 304.5028267 | F193: 184 | G193: 19 | H193: 6 | I193: 953.2229024 | J193: 1 | K193: 0.0652453443 | L193: 0.0652453443 | M193: 6.071416925e+17 | N193: 0 | O193: FALSE | P193: 0 | Q193: 2.165686109e-17 | R193: 2.165686109e-17 | S193: 1.915945673e+14 | T193: 0 | U193: FALSE | V193: 0 | W193: 7.025208041e-14 | X193: 7.025208041e-14 | Y193: 6.063498107e+10 | Z193: 0 | AA193: FALSE | AB193: 0 | AC193: 2.025557624e-10 | AD193: 2.025557624e-10 | AE193: 21016212.54 | AF193: 0 | AG193: FALSE | AH193: 0 | AI193: 6.403269546e-07 | AJ193: 6.403269546e-07 | AK193: 6648.095825 | AL193: 0 | AM193: FALSE | AN193: 0 | AO193: 0.002024891624 | AP193: 0.002024891624 | AQ193: 2.102312491 | AR193: 0 | AS193: TRUE | AT193: 0.0652453443 | AU193: 6.403269546 | AV193: 0
B194: 10 | C194: 5 | D194: 364.9022162 | F194: 185 | G194: 12 | H194: 10 | I194: 954.9659615 | J194: 1 | K194: 0.5208321279 | L194: 0.5208321279 | M194: 4.950661511e+18 | N194: 0 | O194: FALSE | P194: 0 | Q194: 1.692461554e-16 | R194: 1.692461554e-16 | S194: 1.562270985e+15 | T194: 0 | U194: FALSE | V194: 0 | W194: 5.490128263e-13 | X194: 5.490128263e-13 | Y194: 4.94420447e+11 | Z194: 0 | AA194: FALSE | AB194: 0 | AC194: 1.582952576e-09 | AD194: 1.582952576e-09 | AE194: 171367171.5 | AF194: 0 | AG194: FALSE | AH194: 0 | AI194: 5.004089688e-06 | AJ194: 5.004089688e-06 | AK194: 54208.8816 | AL194: 0 | AM194: FALSE | AN194: 0 | AO194: 0.01582432103 | AP194: 0.01582432103 | AQ194: 17.14235353 | AR194: 0 | AS194: TRUE | AT194: 0.5208321279 | AU194: 50.04089688 | AV194: 0
B195: 10 | C195: 6 | D195: 438.7236923 | F195: 186 | G195: 20 | H195: 5 | I195: 956.2806186 | J195: 1 | K195: 0.6081436432 | L195: 0.6081436432 | M195: 5.873786776e+18 | N195: 0 | O195: FALSE | P195: 0 | Q195: 1.944825674e-16 | R195: 1.944825674e-16 | S195: 1.853579897e+15 | T195: 0 | U195: FALSE | V195: 0 | W195: 6.308765111e-13 | X195: 6.308765111e-13 | Y195: 5.866125723e+11 | Z195: 0 | AA195: FALSE | AB195: 0 | AC195: 1.818987736e-09 | AD195: 1.818987736e-09 | AE195: 203321156.8 | AF195: 0 | AG195: FALSE | AH195: 0 | AI195: 5.750252986e-06 | AJ195: 5.750252986e-06 | AK195: 64316.94253 | AL195: 0 | AM195: FALSE | AN195: 0 | AO195: 0.01818389656 | AP195: 0.01818389656 | AQ195: 20.33880305 | AR195: 0 | AS195: TRUE | AT195: 0.6081436432 | AU195: 57.50252986 | AV195: 0
B196: 10 | C196: 7 | D196: 525.967255 | F196: 187 | G196: 18 | H196: 7 | I196: 967.5297955 | J196: 1 | K196: 0.7359948403 | L196: 0.7359948403 | M196: 8.144022494e+18 | N196: 0 | O196: FALSE | P196: 0 | Q196: 2.054457153e-16 | R196: 2.054457153e-16 | S196: 2.569993933e+15 | T196: 0 | U196: FALSE | V196: 0 | W196: 6.66439557e-13 | X196: 6.66439557e-13 | Y196: 8.133400421e+11 | Z196: 0 | AA196: FALSE | AB196: 0 | AC196: 1.921525623e-09 | AD196: 1.921525623e-09 | AE196: 281905376.9 | AF196: 0 | AG196: FALSE | AH196: 0 | AI196: 6.074399641e-06 | AJ196: 6.074399641e-06 | AK196: 89175.62838 | AL196: 0 | AM196: FALSE | AN196: 0 | AO196: 0.01920893828 | AP196: 0.01920893828 | AQ196: 28.19980974 | AR196: 0 | AS196: TRUE | AT196: 0.7359948403 | AU196: 60.74399641 | AV196: 0
B197: 10 | C197: 8 | D197: 626.6329043 | F197: 188 | G197: 1 | H197: 12 | I197: 968.3614941 | J197: 1 | K197: 0.5946970816 | L197: 0.5946970816 | M197: 6.646586824e+18 | N197: 0 | O197: FALSE | P197: 0 | Q197: 1.643536848e-16 | R197: 1.643536848e-16 | S197: 2097450961497320 | T197: 0 | U197: FALSE | V197: 0 | W197: 5.331422793e-13 | X197: 5.331422793e-13 | Y197: 6.637917824e+11 | Z197: 0 | AA197: FALSE | AB197: 0 | AC197: 1.537193493e-09 | AD197: 1.537193493e-09 | AE197: 230071634.1 | AF197: 0 | AG197: FALSE | AH197: 0 | AI197: 4.859434341e-06 | AJ197: 4.859434341e-06 | AK197: 72778.9685 | AL197: 0 | AM197: FALSE | AN197: 0 | AO197: 0.01536688066 | AP197: 0.01536688066 | AQ197: 23.01473062 | AR197: 0 | AS197: TRUE | AT197: 0.5946970816 | AU197: 48.59434341 | AV197: 0
B198: 10 | C198: 9 | D198: 740.7206401 | F198: 189 | G198: 9 | H198: 11 | I198: 971.7084059 | J198: 1 | K198: 0.1299638959 | L198: 0.1299638959 | M198: 1.511985661e+18 | N198: 0 | O198: FALSE | P198: 0 | Q198: 3.450517896e-17 | R198: 3.450517896e-17 | S198: 4.771344846e+14 | T198: 0 | U198: FALSE | V198: 0 | W198: 1.119303761e-13 | X198: 1.119303761e-13 | Y198: 1.510013611e+11 | Z198: 0 | AA198: FALSE | AB198: 0 | AC198: 3.227255697e-10 | AD198: 3.227255697e-10 | AE198: 52337390.76 | AF198: 0 | AG198: FALSE | AH198: 0 | AI198: 1.020212305e-06 | AJ198: 1.020212305e-06 | AK198: 16555.97974 | AL198: 0 | AM198: FALSE | AN198: 0 | AO198: 0.00322619458 | AP198: 0.00322619458 | AQ198: 5.235460488 | AR198: 0 | AS198: TRUE | AT198: 0.1299638959 | AU198: 10.20212305 | AV198: 0
B199: 10 | C199: 10 | D199: 868.2304625 | F199: 190 | G199: 2 | H199: 12 | I199: 974.2752782 | J199: 1 | K199: 0.6415181171 | L199: 0.6415181171 | M199: 7.695820139e+18 | N199: 0 | O199: FALSE | P199: 0 | Q199: 1.65176955e-16 | R199: 1.65176955e-16 | S199: 2.428555554e+15 | T199: 0 | U199: FALSE | V199: 0 | W199: 5.358128621e-13 | X199: 5.358128621e-13 | Y199: 7.685782646e+11 | Z199: 0 | AA199: FALSE | AB199: 0 | AC199: 1.544893506e-09 | AD199: 1.544893506e-09 | AE199: 266390850.3 | AF199: 0 | AG199: FALSE | AH199: 0 | AI199: 4.883775915e-06 | AJ199: 4.883775915e-06 | AK199: 84267.89062 | AL199: 0 | AM199: FALSE | AN199: 0 | AO199: 0.01544385547 | AP199: 0.01544385547 | AQ199: 26.6478468 | AR199: 0 | AS199: TRUE | AT199: 0.6415181171 | AU199: 48.83775915 | AV199: 0
B200: 10 | C200: 11 | D200: 1009.162371 | F200: 191 | G200: 3 | H200: 12 | I200: 984.1315849 | J200: 1 | K200: 0.09732833321 | L200: 0.09732833321 | M200: 1.312536703e+18 | N200: 0 | O200: FALSE | P200: 0 | Q200: 2.229223582e-17 | R200: 2.229223582e-17 | S200: 4.141947503e+14 | T200: 0 | U200: FALSE | V200: 0 | W200: 7.231315456e-14 | X200: 7.231315456e-14 | Y200: 1.31082479e+11 | Z200: 0 | AA200: FALSE | AB200: 0 | AC200: 2.084983971e-10 | AD200: 2.084983971e-10 | AE200: 45433464.14 | AF200: 0 | AG200: FALSE | AH200: 0 | AI200: 6.591130365e-07 | AJ200: 6.591130365e-07 | AK200: 14372.04838 | AL200: 0 | AM200: FALSE | AN200: 0 | AO200: 0.002084298431 | AP200: 0.002084298431 | AQ200: 4.544840751 | AR200: 0 | AS200: TRUE | AT200: 0.09732833321 | AU200: 6.591130365 | AV200: 0
B201: 10 | C201: 12 | D201: 1163.516367 | F201: 192 | G201: 15 | H201: 9 | I201: 987.1283077 | J201: 1 | K201: 0.3536922003 | L201: 0.3536922003 | M201: 4.941400216e+18 | N201: 0 | O201: FALSE | P201: 0 | Q201: 7.819652412e-17 | R201: 7.819652412e-17 | S201: 1.559348416e+15 | T201: 0 | U201: FALSE | V201: 0 | W201: 2.536594975e-13 | X201: 2.536594975e-13 | Y201: 4.934955254e+11 | Z201: 0 | AA201: FALSE | AB201: 0 | AC201: 7.313689873e-10 | AD201: 7.313689873e-10 | AE201: 171046591.7 | AF201: 0 | AG201: FALSE | AH201: 0 | AI201: 2.312031367e-06 | AJ201: 2.312031367e-06 | AK201: 54107.47203 | AL201: 0 | AM201: FALSE | AN201: 0 | AO201: 0.007311285143 | AP201: 0.007311285143 | AQ201: 17.110285 | AR201: 0 | AS201: TRUE | AT201: 0.3536922003 | AU201: 23.12031367 | AV201: 0
... 208 more rows

Sheet 計算表s-2 (hidden)
B1: ヤング率 | C1: 辺長ｘ | D1: 辺長ｙ | E1: 板厚 | F1: ポアソン比 | G1: 密度 | H1: 曲げ剛性 | I1: 面密度 | J1: 加振点ｘ | K1: 加振点ｙ | L1: 縮退重み | M1: 周波数重み
B2: 24000000000 | C2: =床衝撃音計算シート!E17 -> 12.27 | D2: =床衝撃音計算シート!G17 -> 6.65 | E2: =(床衝撃音計算シート!N17)/1000 -> 0.2 | F2: 0.16 | G2: 2300 | H2: =B2*E2^3/12/(1-F2^2) -> 16420361.25 | I2: =G2*E2 -> 460 | J2: ='計算表（参考）'!D31 -> 3.91 | K2: ='計算表（参考）'!F31 -> 4.295 | L2: 1 | M2: 0
B4: 周波数 | C4: 31.5Hz | D4: 63Hz | E4: 125Hz | F4: 250Hz | G4: 500Hz | H4: 1000Hz | I4: (2000Hz) | J4: (4000Hz)
B5: モード数１ | C5: =M8 -> 2.395752665 | D5: =S8 -> 3.552882129 | E5: =Y8 -> 9.820208031 | F5: =AE8 -> 19.70962128 | G5: =AK8 -> 40.947531 | H5: =AQ8 -> 57.62835629 | I5: =H6*I7/H7 -> 75.45556973 | J5: =H6*J7/H7 -> 152.1836601
B6: モード数２ | C6: =C5*($D$7^2+$C$7^2)/2/$D$7^2 -> 1.549733295 | D6: =D5*($D$7^2+$C$7^2)/2/$D$7^2 -> 2.298242139 | E6: 6.352368328 | F6: 12.74950322 | G6: 26.48760578 | H6: 37.27788089 | I6: 48.80971664 | J6: 98.44258484
C7: =MIN(C2,D2) -> 6.65 | D7: =MAX(C2,D2) -> 12.27 | H7: =0.354*SQRT(I2/H2)*C2*D2*1000-0.139*SQRT(SQRT(I2/H2*1000^2))*(C2+D2) -> 146.8318991 | I7: =0.354*SQRT(I2/H2)*C2*D2*2000-0.139*SQRT(SQRT(I2/H2*2000^2))*(C2+D2) -> 297.2080049 | J7: =0.354*SQRT(I2/H2)*C2*D2*4000-0.139*SQRT(SQRT(I2/H2*4000^2))*(C2+D2) -> 599.4282747
M8: =M9+O9+Q9 -> 2.395752665 | S8: =S9+U9+W9 -> 3.552882129 | Y8: =Y9+AA9+AC9 -> 9.820208031 | AE8: =AE9+AG9+AI9 -> 19.70962128 | AK8: =AK9+AM9+AO9 -> 40.947531 | AQ8: =AQ9+AS9+AU9 -> 57.62835629
B9: m | C9: n | D9: fi | F9: No. | G9: m | H9: n | I9: fi | J9: 縮退ﾁｪｯｸ | K9: 周波数重み | L9: 重み | M9: =SUM(N10:N409) -> 0.00600633998 | O9: =SUM(P10:P409) -> 2.193856854 | Q9: =SUM(R10:R409) -> 0.1958894713 | S9: =SUM(T10:T409) -> 0.1600382281 | U9: =SUM(V10:V409) -> 2.942982935 | W9: =SUM(X10:X409) -> 0.4498609661 | Y9: =SUM(Z10:Z409) -> 0.1966407604 | AA9: =SUM(AB10:AB409) -> 8.522104925 | AC9: =SUM(AD10:AD409) -> 1.101462345 | AE9: =SUM(AF10:AF409) -> 1.587417636 | AG9: =SUM(AH10:AH409) -> 15.02283653 | AI9: =SUM(AJ10:AJ409) -> 3.099367106 | AK9: =SUM(AL10:AL409) -> 2.859637775 | AM9: =SUM(AN10:AN409) -> 32.27004746 | AO9: =SUM(AP10:AP409) -> 5.817845764 | AQ9: =SUM(AR10:AR409) -> 5.567727897 | AS9: =SUM(AT10:AT409) -> 46.43516311 | AU9: =SUM(AV10:AV409) -> 5.625465282
B10: 1 | C10: 1 | D10: =3.1416/2*SQRT($H$2/$I$2)*(B10^2/$C$2^2+C10^2/$D$2^2) -> 8.682304625 | F10: 1 | G10: 1 | H10: 1 | I10: 8.682304625 | J10: =1 -> 1 | K10: =ABS(SIN(G10*3.1416*$J$2/$C$2)*SIN(H10*3.1416*$K$2/$D$2))*(1/F10^$M$2)+(1-1/F10^$M$2) -> 0.7551928147 | L10: =$J10*$K10 -> 0.7551928147 | M10: =10^(LOG10($I10/22.27)/LOG10(2)*70/20)*$L10 -> 1.323509944e-05 | N10: =IF($I10<22.27,M10,0) -> 1.323509944e-05 | O10: =AND($I10>22.27,$I10<44.45) -> FALSE | P10: =IF($O10=TRUE,$L10,0) -> 0 | Q10: =10^(LOG10(44.45/$I10)/LOG10(2)*70/20)*$L10 -> 133099064.5 | R10: =IF($I10>44.45,Q10,0) -> 0 | S10: =10^(LOG10($I10/44.548)/LOG10(2)*70/20)*$L10 -> 4.176575554e-09 | T10: =IF($I10<44.528,S10,0) -> 4.176575554e-09 | U10: =AND($I10>44.548,$I10<89.095) -> FALSE | V10: =IF($U10=TRUE,$L10,0) -> 0 | W10: =10^(LOG10(89.095/$I10)/LOG10(2)*70/20)*$L10 -> 4.317562986e+11 | X10: =IF($I10>89.095,W10,0) -> 0 | Y10: =10^(LOG10($I10/89.09)/LOG10(2)*70/20)*$L10 -> 1.321783719e-12 | Z10: =IF($I10<89.09,Y10,0) -> 1.321783719e-12 | AA10: =AND($I10>89.09,$I10<176.78) -> FALSE | AB10: =IF($AA10=TRUE,$L10,0) -> 0 | AC10: =10^(LOG10(176.78/$I10)/LOG10(2)*70/20)*$L10 -> 1.244870269e+15 | AD10: =IF($I10>176.78,AC10,0) -> 0 | AE10: =10^(LOG10($I10/176.78)/LOG10(2)*70/20)*$L10 -> 4.581330293e-16 | AF10: =IF($I10<176.78,AE10,0) -> 4.581330293e-16 | AG10: =AND($I10>176.78,$I10<353.55) -> FALSE | AH10: =IF($AG10=TRUE,$L10,0) -> 0 | AI10: =10^(LOG10(353.55/$I10)/LOG10(2)*70/20)*$L10 -> 3.935331085e+18 | AJ10: =IF($I10>353.55,AI10,0) -> 0 | AK10: =10^(LOG10($I10/353.55)/LOG10(2)*70/20)*$L10 -> 1.449220345e-19 | AL10: =IF($I10<353.55,AK10,0) -> 1.449220345e-19 | AM10: =AND($I10>353.55,$I10<707.1) -> FALSE | AN10: =IF($AM10=TRUE,$L10,0) -> 0 | AO10: =10^(LOG10(707.1/$I10)/LOG10(2)*70/20)*$L10 -> 1.244460957e+22 | AP10: =IF($I10>707.1,AO10,0) -> 0 | AQ10: =10^(LOG10($I10/707.1)/LOG10(2)*70/20)*$L10 -> 4.582837123e-23 | AR10: =IF($I10<707.1,AQ10,0) -> 4.582837123e-23 | AS10: =AND($I10>707.1,$I10<1414.2) -> FALSE | AT10: =IF($AS10=TRUE,$L10,0) -> 0 | AU10: =10^(LOG10(1414.2/$I10)/LOG10(2)*70/20)*$L10 -> 3.935331085e+25 | AV10: =IF($I10>1414.2,AU10,0) -> 0
B11: 1 | C11: 2 | D11: 28.81543447 | F11: 2 | G11: 2 | H11: 1 | I11: 14.59608865 | J11: =IF(ABS(I11-I10)>0.0001,1,$L$2) -> 1 | K11: 0.8146498235 | L11: 0.8146498235 | M11: 0.005993104881 | N11: 0.005993104881 | O11: FALSE | P11: 0 | Q11: 342039.7425 | R11: 0 | S11: 1.891232888e-06 | T11: 1.891232888e-06 | U11: FALSE | V11: 0 | W11: 1109533066 | X11: 0 | Y11: 5.985288203e-10 | Z11: 5.985288203e-10 | AA11: FALSE | AB11: 0 | AC11: 3.199084139e+12 | AD11: 0 | AE11: 2.074513536e-13 | AF11: 2.074513536e-13 | AG11: FALSE | AH11: 0 | AI11: 1.011306605e+16 | AJ11: 0 | AK11: 6.5623455e-17 | AL11: 6.5623455e-17 | AM11: FALSE | AN11: 0 | AO11: 3.198032285e+19 | AP11: 0 | AQ11: 2.075195857e-20 | AR11: 2.075195857e-20 | AS11: FALSE | AT11: 0 | AU11: 1.011306605e+23 | AV11: 0
B12: 1 | C12: 3 | D12: 62.37065089 | F12: 3 | G12: 3 | H12: 1 | I12: 24.45239536 | J12: 1 | K12: 0.1235951213 | L12: 0.1235951213 | M12: 0.3664891898 | N12: 0 | O12: TRUE | P12: 0.1235951213 | Q12: 128.744297 | R12: 0 | S12: 0.0001156523076 | T12: 0.0001156523076 | U12: FALSE | V12: 0 | W12: 417629.9912 | X12: 0 | Y12: 3.660111859e-08 | Z12: 3.660111859e-08 | AA12: FALSE | AB12: 0 | AC12: 1204140301 | AD12: 0 | AE12: 1.268602503e-11 | AF12: 1.268602503e-11 | AG12: FALSE | AH12: 0 | AI12: 3.806573967e+12 | AJ12: 0 | AK12: 4.01299282e-15 | AL12: 4.01299282e-15 | AM12: FALSE | AN12: 0 | AO12: 1.203744382e+16 | AP12: 0 | AQ12: 1.269019755e-18 | AR12: 1.269019755e-18 | AS12: FALSE | AT12: 0 | AU12: 3.806573967e+19 | AV12: 0
B13: 1 | C13: 4 | D13: 109.3479539 | F13: 4 | G13: 1 | H13: 2 | I13: 28.81543447 | J13: 1 | K13: 0.6681662288 | L13: 0.6681662288 | M13: 13.36519415 | N13: 0 | O13: TRUE | P13: 0.6681662288 | Q13: 103.1763794 | R13: 0 | S13: 0.004217629298 | T13: 0.004217629298 | U13: FALSE | V13: 0 | W13: 334690.9449 | X13: 0 | Y13: 1.334776222e-06 | Z13: 1.334776222e-06 | AA13: FALSE | AB13: 0 | AC13: 965004582.5 | AD13: 0 | AE13: 4.626362583e-10 | AF13: 4.626362583e-10 | AG13: FALSE | AH13: 0 | AI13: 3.050609067e+12 | AJ13: 0 | AK13: 1.46346549e-13 | AL13: 1.46346549e-13 | AM13: FALSE | AN13: 0 | AO13: 9646872904003806 | AP13: 0 | AQ13: 4.627884225e-17 | AR13: 4.627884225e-17 | AS13: FALSE | AT13: 0 | AU13: 3.050609067e+19 | AV13: 0
B14: 1 | C14: 5 | D14: 169.7473434 | F14: 5 | G14: 2 | H14: 2 | I14: 34.7292185 | J14: 1 | K14: 0.7207715563 | L14: 0.7207715563 | M14: 126.3185114 | N14: 0 | O14: TRUE | P14: 0.7207715563 | Q14: 12.70324849 | R14: 0 | S14: 0.03986209619 | T14: 0.03986209619 | U14: FALSE | V14: 0 | W14: 41207.70923 | X14: 0 | Y14: 1.261537569e-05 | Z14: 1.261537569e-05 | AA14: FALSE | AB14: 0 | AC14: 118812979.1 | AD14: 0 | AE14: 4.372515867e-09 | AF14: 4.372515867e-09 | AG14: FALSE | AH14: 0 | AI14: 3.755960935e+11 | AJ14: 0 | AK14: 1.383165707e-12 | AL14: 1.383165707e-12 | AM14: FALSE | AN14: 0 | AO14: 1.187739136e+15 | AP14: 0 | AQ14: 4.373954017e-16 | AR14: 4.373954017e-16 | AS14: FALSE | AT14: 0 | AU14: 3.755960935e+18 | AV14: 0
B15: 1 | C15: 6 | D15: 243.5688195 | F15: 6 | G15: 4 | H15: 1 | I15: 38.25122474 | J15: 1 | K15: 0.6813239473 | L15: 0.6813239473 | M15: 367.0869921 | N15: 0 | O15: TRUE | P15: 0.6813239473 | Q15: 3.905933326 | R15: 0 | S15: 0.1158409549 | T15: 0.1158409549 | U15: FALSE | V15: 0 | W15: 12670.34687 | X15: 0 | Y15: 3.666082084e-05 | Z15: 3.666082084e-05 | AA15: FALSE | AB15: 0 | AC15: 36532039.42 | AD15: 0 | AE15: 1.270671795e-08 | AF15: 1.270671795e-08 | AG15: FALSE | AH15: 0 | AI15: 1.154864679e+11 | AJ15: 0 | AK15: 4.019538651e-12 | AL15: 4.019538651e-12 | AM15: FALSE | AN15: 0 | AO15: 3.652002774e+14 | AP15: 0 | AQ15: 1.271089728e-15 | AR15: 1.271089728e-15 | AS15: FALSE | AT15: 0 | AU15: 1.154864679e+18 | AV15: 0
B16: 1 | C16: 7 | D16: 330.8123822 | F16: 7 | G16: 3 | H16: 2 | I16: 44.58552521 | J16: 1 | K16: 0.1093523196 | L16: 0.1093523196 | M16: 349.9342795 | N16: 0 | O16: FALSE | P16: 0 | Q16: 0.1055494623 | R16: 0.1055494623 | S16: 0.1104281055 | T16: 0 | U16: TRUE | V16: 0.1093523196 | W16: 342.3889216 | X16: 0 | Y16: 3.494778678e-05 | Z16: 3.494778678e-05 | AA16: FALSE | AB16: 0 | AC16: 987199.9327 | AD16: 0 | AE16: 1.211297673e-08 | AF16: 1.211297673e-08 | AG16: FALSE | AH16: 0 | AI16: 3120773850 | AJ16: 0 | AK16: 3.831719435e-12 | AL16: 3.831719435e-12 | AM16: FALSE | AN16: 0 | AO16: 9.868753428e+12 | AP16: 0 | AQ16: 1.211696077e-15 | AR16: 1.211696077e-15 | AS16: FALSE | AT16: 0 | AU16: 3.12077385e+16 | AV16: 0
B17: 1 | C17: 8 | D17: 431.4780315 | F17: 8 | G17: 5 | H17: 1 | I17: 55.99257682 | J17: 1 | K17: 0.858560315 | L17: 0.858560315 | M17: 38836.48095 | N17: 0 | O17: FALSE | P17: 0 | Q17: 0.05862572995 | R17: 0.05862572995 | S17: 12.25555559 | T17: 0 | U17: TRUE | V17: 0.858560315 | W17: 190.1743507 | X17: 0 | Y17: 0.003878582737 | Z17: 0.003878582737 | AA17: FALSE | AB17: 0 | AC17: 548324.126 | AD17: 0 | AE17: 1.344324971e-06 | AF17: 1.344324971e-06 | AG17: FALSE | AH17: 0 | AI17: 1733383013 | AJ17: 0 | AK17: 4.252527047e-10 | AL17: 4.252527047e-10 | AM17: FALSE | AN17: 0 | AO17: 5.481438378e+12 | AP17: 0 | AQ17: 1.344767128e-13 | AR17: 1.344767128e-13 | AS17: FALSE | AT17: 0 | AU17: 1.733383013e+16 | AV17: 0
B18: 1 | C18: 9 | D18: 545.5657673 | F18: 9 | G18: 4 | H18: 2 | I18: 58.38435459 | J18: 1 | K18: 0.6028098303 | L18: 0.6028098303 | M18: 44346.69267 | N18: 0 | O18: FALSE | P18: 0 | Q18: 0.02530963773 | R18: 0.02530963773 | S18: 13.99440279 | T18: 0 | U18: TRUE | V18: 0.6028098303 | W18: 82.10121945 | X18: 0 | Y18: 0.004428885224 | Z18: 0.004428885224 | AA18: FALSE | AB18: 0 | AC18: 236720.0374 | AD18: 0 | AE18: 1.535060975e-06 | AF18: 1.535060975e-06 | AG18: FALSE | AH18: 0 | AI18: 748328355.8 | AJ18: 0 | AK18: 4.855885637e-10 | AL18: 4.855885637e-10 | AM18: FALSE | AN18: 0 | AO18: 2.366422042e+12 | AP18: 0 | AQ18: 1.535565867e-13 | AR18: 1.535565867e-13 | AS18: FALSE | AT18: 0 | AU18: 7483283558064873 | AV18: 0
B19: 1 | C19: 10 | D19: 673.0755897 | F19: 10 | G19: 1 | H19: 3 | I19: 62.37065089 | J19: 1 | K19: 0.1640244394 | L19: 0.1640244394 | M19: 26006.90734 | N19: 0 | O19: FALSE | P19: 0 | Q19: 0.00319532419 | R19: 0.00319532419 | S19: 8.206951065 | T19: 0 | U19: TRUE | V19: 0.1640244394 | W19: 10.36522195 | X19: 0 | Y19: 0.00259729871 | Z19: 0.00259729871 | AA19: FALSE | AB19: 0 | AC19: 29885.74036 | AD19: 0 | AE19: 9.002292199e-07 | AF19: 9.002292199e-07 | AG19: FALSE | AH19: 0 | AI19: 94475935.34 | AJ19: 0 | AK19: 2.847711074e-10 | AL19: 2.847711074e-10 | AM19: FALSE | AN19: 0 | AO19: 2.987591398e+11 | AP19: 0 | AQ19: 9.005253113e-14 | AR19: 9.005253113e-14 | AS19: FALSE | AT19: 0 | AU19: 9.447593534e+14 | AV19: 0
B20: 1 | C20: 11 | D20: 814.0074986 | F20: 11 | G20: 2 | H20: 3 | I20: 68.28443492 | J20: 1 | K20: 0.1769382309 | L20: 0.1769382309 | M20: 80429.41153 | N20: 0 | O20: FALSE | P20: 0 | Q20: 0.001202305915 | R20: 0.001202305915 | S20: 25.38095883 | T20: 0 | U20: TRUE | V20: 0.1769382309 | W20: 3.900126221 | X20: 0 | Y20: 0.008032450918 | Z20: 0.008032450918 | AA20: FALSE | AB20: 0 | AC20: 11245.11951 | AD20: 0 | AE20: 2.784064458e-06 | AF20: 2.784064458e-06 | AG20: FALSE | AH20: 0 | AI20: 35548498.08 | AJ20: 0 | AK20: 8.806880529e-10 | AL20: 8.806880529e-10 | AM20: FALSE | AN20: 0 | AO20: 1.124142213e+11 | AP20: 0 | AQ20: 2.784980155e-13 | AR20: 2.784980155e-13 | AS20: FALSE | AT20: 0 | AU20: 355484980846607 | AV20: 0
B21: 1 | C21: 12 | D21: 968.3614941 | F21: 12 | G21: 5 | H21: 2 | I21: 76.12570667 | J21: 1 | K21: 0.7596219094 | L21: 0.7596219094 | M21: 1222038.907 | N21: 0 | O21: FALSE | P21: 0 | Q21: 0.001458466456 | R21: 0.001458466456 | S21: 385.6365302 | T21: 0 | U21: TRUE | V21: 0.7596219094 | W21: 4.73107817 | X21: 0 | Y21: 0.1220445028 | Z21: 0.1220445028 | AA21: FALSE | AB21: 0 | AC21: 13640.97889 | AD21: 0 | AE21: 4.23008825e-05 | AF21: 4.23008825e-05 | AG21: FALSE | AH21: 0 | AI21: 43122379.57 | AJ21: 0 | AK21: 1.338111326e-08 | AL21: 1.338111326e-08 | AM21: FALSE | AN21: 0 | AO21: 1.363649376e+11 | AP21: 0 | AQ21: 4.231479555e-12 | AR21: 4.231479555e-12 | AS21: FALSE | AT21: 0 | AU21: 4.312237957e+14 | AV21: 0
B22: 1 | C22: 13 | D22: 1136.137576 | F22: 13 | G22: 6 | H22: 1 | I22: 77.67645157 | J22: 1 | K22: 0.2448315927 | L22: 0.2448315927 | M22: 497946.3384 | N22: 0 | O22: FALSE | P22: 0 | Q22: 0.0003718252559 | R22: 0.0003718252559 | S22: 157.1359938 | T22: 0 | U22: TRUE | V22: 0.2448315927 | W22: 1.206153453 | X22: 0 | Y22: 0.04972968777 | Z22: 0.04972968777 | AA22: FALSE | AB22: 0 | AC22: 3477.666865 | AD22: 0 | AE22: 1.723641484e-05 | AF22: 1.723641484e-05 | AG22: FALSE | AH22: 0 | AI22: 10993732.32 | AJ22: 0 | AK22: 5.45242571e-09 | AL22: 5.45242571e-09 | AM22: FALSE | AN22: 0 | AO22: 3.476523413e+10 | AP22: 0 | AQ22: 1.724208402e-12 | AR22: 1.724208402e-12 | AS22: FALSE | AT22: 0 | AU22: 1.099373232e+14 | AV22: 0
B23: 1 | C23: 14 | D23: 1317.335745 | F23: 14 | G23: 3 | H23: 3 | I23: 78.14074162 | J23: 1 | K23: 0.02684429736 | L23: 0.02684429736 | M23: 58513.88117 | N23: 0 | O23: FALSE | P23: 0 | Q23: 3.803922759e-05 | R23: 3.803922759e-05 | S23: 18.46511594 | T23: 0 | U23: TRUE | V23: 0.02684429736 | W23: 0.1233943767 | X23: 0 | Y23: 0.005843756278 | Z23: 0.005843756278 | AA23: FALSE | AB23: 0 | AC23: 355.7793862 | AD23: 0 | AE23: 2.025458272e-06 | AF23: 2.025458272e-06 | AG23: FALSE | AH23: 0 | AI23: 1124703.283 | AJ23: 0 | AK23: 6.407168111e-10 | AL23: 6.407168111e-10 | AM23: FALSE | AN23: 0 | AO23: 3556624065 | AP23: 0 | AQ23: 2.026124458e-13 | AR23: 2.026124458e-13 | AS23: FALSE | AT23: 0 | AU23: 1.124703283e+13 | AV23: 0
B24: 1 | C24: 15 | D24: 1511.956 | F24: 15 | G24: 4 | H24: 3 | I24: 91.93957101 | J24: 1 | K24: 0.1479804579 | L24: 0.1479804579 | M24: 2136730.181 | N24: 0 | O24: FALSE | P24: 0 | Q24: 3.16552365e-05 | R24: 3.16552365e-05 | S24: 674.2839433 | T24: 0 | U24: FALSE | V24: 0 | W24: 0.1026855282 | X24: 0.1026855282 | Y24: 0.213394329 | Z24: 0 | AA24: TRUE | AB24: 0.1479804579 | AC24: 296.0701709 | AD24: 0 | AE24: 7.396292526e-05 | AF24: 7.396292526e-05 | AG24: FALSE | AH24: 0 | AI24: 935948.2477 | AJ24: 0 | AK24: 2.339682346e-08 | AL24: 2.339682346e-08 | AM24: FALSE | AN24: 0 | AO24: 2959728235 | AP24: 0 | AQ24: 7.398725216e-12 | AR24: 7.398725216e-12 | AS24: FALSE | AT24: 0 | AU24: 9.359482477e+12 | AV24: 0
B25: 1 | C25: 16 | D25: 1719.998342 | F25: 16 | G25: 6 | H25: 2 | I25: 97.80958142 | J25: 1 | K25: 0.2166177945 | L25: 0.2166177945 | M25: 6423237.358 | N25: 0 | O25: FALSE | P25: 0 | Q25: 2.256424476e-05 | R25: 2.256424476e-05 | S25: 2026.968989 | T25: 0 | U25: FALSE | V25: 0 | W25: 0.07319551669 | X25: 0.07319551669 | Y25: 0.6414859668 | Z25: 0 | AA25: TRUE | AB25: 0.2166177945 | AC25: 211.0424859 | AD25: 0 | AE25: 0.0002223403913 | AF25: 0.0002223403913 | AG25: FALSE | AH25: 0 | AI25: 667155.5066 | AJ25: 0 | AK25: 7.033333074e-08 | AL25: 7.033333074e-08 | AM25: FALSE | AN25: 0 | AO25: 2109730954 | AP25: 0 | AQ25: 2.224135206e-11 | AR25: 2.224135206e-11 | AS25: FALSE | AT25: 0 | AU25: 6.671555066e+12 | AV25: 0
B26: 1 | C26: 17 | D26: 1941.46277 | F26: 17 | G26: 7 | H26: 1 | I26: 103.302849 | J26: 1 | K26: 0.5944529111 | L26: 0.5944529111 | M26: 33272887.2 | N26: 0 | O26: FALSE | P26: 0 | Q26: 3.280431261e-05 | R26: 3.280431261e-05 | S26: 10499.86273 | T26: 0 | U26: FALSE | V26: 0 | W26: 0.1064129838 | X26: 0.1064129838 | Y26: 3.322949009 | Z26: 0 | AA26: TRUE | AB26: 0.5944529111 | AC26: 306.8174342 | AD26: 0 | AE26: 0.001151741147 | AF26: 0.001151741147 | AG26: FALSE | AH26: 0 | AI26: 969922.9038 | AJ26: 0 | AK26: 3.643323218e-07 | AL26: 3.643323218e-07 | AM26: FALSE | AN26: 0 | AO26: 3067165531 | AP26: 0 | AQ26: 1.152119962e-10 | AR26: 1.152119962e-10 | AS26: FALSE | AT26: 0 | AU26: 9.699229038e+12 | AV26: 0
B27: 1 | C27: 18 | D27: 2176.349285 | F27: 18 | G27: 1 | H27: 4 | I27: 109.3479539 | J27: 1 | K27: 0.8132888902 | L27: 0.8132888902 | M27: 88181910.81 | N27: 0 | O27: FALSE | P27: 0 | Q27: 2.31684344e-05 | R27: 2.31684344e-05 | S27: 27827.40052 | T27: 0 | U27: FALSE | V27: 0 | W27: 0.0751554304 | X27: 0.0751554304 | Y27: 8.806689705 | Z27: 0 | AA27: TRUE | AB27: 0.8132888902 | AC27: 216.6934476 | AD27: 0 | AE27: 0.003052417257 | AF27: 0.003052417257 | AG27: FALSE | AH27: 0 | AI27: 685019.5409 | AJ27: 0 | AK27: 9.655765703e-07 | AL27: 9.655765703e-07 | AM27: FALSE | AN27: 0 | AO27: 2166221991 | AP27: 0 | AQ27: 3.053421217e-10 | AR27: 3.053421217e-10 | AS27: FALSE | AT27: 0 | AU27: 6.850195409e+12 | AV27: 0
B28: 1 | C28: 19 | D28: 2424.657887 | F28: 19 | G28: 5 | H28: 3 | I28: 109.6809231 | J28: 1 | K28: 0.1864753897 | L28: 0.1864753897 | M28: 20946360.1 | N28: 0 | O28: FALSE | P28: 0 | Q28: 5.127680944e-06 | R28: 5.127680944e-06 | S28: 6610.003644 | T28: 0 | U28: FALSE | V28: 0 | W28: 0.01663353948 | X28: 0.01663353948 | Y28: 2.091904021 | Z28: 0 | AA28: TRUE | AB28: 0.1864753897 | AC28: 47.9589964 | AD28: 0 | AE28: 0.0007250583532 | AF28: 0.0007250583532 | AG28: FALSE | AH28: 0 | AI28: 151609.7975 | AJ28: 0 | AK28: 2.293589962e-07 | AL28: 2.293589962e-07 | AM28: FALSE | AN28: 0 | AO28: 479432275.5 | AP28: 0 | AQ28: 7.252968297e-11 | AR28: 7.252968297e-11 | AS28: FALSE | AT28: 0 | AU28: 1.516097975e+12 | AV28: 0
B29: 1 | C29: 20 | D29: 2686.388575 | F29: 20 | G29: 2 | H29: 4 | I29: 115.2617379 | J29: 1 | K29: 0.8773198552 | L29: 0.8773198552 | M29: 175488519 | N29: 0 | O29: FALSE | P29: 0 | Q29: 1.354733034e-05 | R29: 1.354733034e-05 | S29: 55378.58344 | T29: 0 | U29: FALSE | V29: 0 | W29: 0.04394580251 | X29: 0.04394580251 | Y29: 17.52596332 | Z29: 0 | AA29: TRUE | AB29: 0.8773198552 | AC29: 126.7076431 | AD29: 0 | AE29: 0.006074535911 | AF29: 0.006074535911 | AG29: FALSE | AH29: 0 | AI29: 400553.0046 | AJ29: 0 | AK29: 1.92156873e-06 | AL29: 1.92156873e-06 | AM29: FALSE | AN29: 0 | AO29: 1266659818 | AP29: 0 | AQ29: 6.076533867e-10 | AR29: 6.076533867e-10 | AS29: FALSE | AT29: 0 | AU29: 4.005530046e+12 | AV29: 0
B30: 2 | C30: 1 | D30: 14.59608865 | F30: 21 | G30: 7 | H30: 2 | I30: 123.4359789 | J30: 1 | K30: 0.5259496013 | L30: 0.5259496013 | M30: 233349783.4 | N30: 0 | O30: FALSE | P30: 0 | Q30: 3.661570257e-06 | R30: 3.661570257e-06 | S30: 73637.75431 | T30: 0 | U30: FALSE | V30: 0 | W30: 0.01187766441 | X30: 0.01187766441 | Y30: 23.30454303 | Z30: 0 | AA30: TRUE | AB30: 0.5259496013 | AC30: 34.24652132 | AD30: 0 | AE30: 0.008077403849 | AF30: 0.008077403849 | AG30: FALSE | AH30: 0 | AI30: 108261.4014 | AJ30: 0 | AK30: 2.5551395e-06 | AL30: 2.5551395e-06 | AM30: FALSE | AN30: 0 | AO30: 342352611.1 | AP30: 0 | AQ30: 8.080060561e-10 | AR30: 8.080060561e-10 | AS30: FALSE | AT30: 0 | AU30: 1.082614014e+12 | AV30: 0
B31: 2 | C31: 2 | D31: 34.7292185 | F31: 22 | G31: 3 | H31: 4 | I31: 125.1180446 | J31: 1 | K31: 0.1331031454 | L31: 0.1331031454 | M31: 69118729.29 | N31: 0 | O31: FALSE | P31: 0 | Q31: 7.917123231e-07 | R31: 7.917123231e-07 | S31: 21811.66801 | T31: 0 | U31: FALSE | V31: 0 | W31: 0.002568213258 | X31: 0.002568213258 | Y31: 6.902857923 | Z31: 0 | AA31: TRUE | AB31: 0.1331031454 | AC31: 7.404853943 | AD31: 0 | AE31: 0.002392545139 | AF31: 0.002392545139 | AG31: FALSE | AH31: 0 | AI31: 23408.50499 | AJ31: 0 | AK31: 7.568380517e-07 | AL31: 7.568380517e-07 | AM31: FALSE | AN31: 0 | AO31: 74024192.38 | AP31: 0 | AQ31: 2.393332063e-10 | AR31: 2.393332063e-10 | AS31: FALSE | AT31: 0 | AU31: 2.340850499e+11 | AV31: 0
B32: 2 | C32: 3 | D32: 68.28443492 | F32: 23 | G32: 6 | H32: 3 | I32: 131.3647978 | J32: 1 | K32: 0.05317630671 | L32: 0.05317630671 | M32: 48656020.53 | N32: 0 | O32: FALSE | P32: 0 | Q32: 1.79509017e-07 | R32: 1.79509017e-07 | S32: 15354.28931 | T32: 0 | U32: FALSE | V32: 0 | W32: 0.0005823042335 | X32: 0.0005823042335 | Y32: 4.859255953 | Z32: 0 | AA32: TRUE | AB32: 0.05317630671 | AC32: 1.678940713 | AD32: 0 | AE32: 0.001684228379 | AF32: 0.001684228379 | AG32: FALSE | AH32: 0 | AI32: 5307.531027 | AJ32: 0 | AK32: 5.327749534e-07 | AL32: 5.327749534e-07 | AM32: FALSE | AN32: 0 | AO32: 16783886.8 | AP32: 0 | AQ32: 1.684782333e-10 | AR32: 1.684782333e-10 | AS32: FALSE | AT32: 0 | AU32: 5.307531027e+10 | AV32: 0
B33: 2 | C33: 4 | D33: 115.2617379 | F33: 24 | G33: 8 | H33: 1 | I33: 132.8717691 | J33: 1 | K33: 0.8860863155 | L33: 0.8860863155 | M33: 925742176 | N33: 0 | O33: FALSE | P33: 0 | Q33: 2.619681674e-06 | R33: 2.619681674e-06 | S33: 292134.7255 | T33: 0 | U33: FALSE | V33: 0 | W33: 0.00849791144 | X33: 0.00849791144 | Y33: 92.45347504 | Z33: 0 | AA33: TRUE | AB33: 0.8860863155 | AC33: 24.50177875 | AD33: 0 | AE33: 0.03204456977 | AF33: 0.03204456977 | AG33: FALSE | AH33: 0 | AI33: 77455.95179 | AJ33: 0 | AK33: 1.013671565e-05 | AL33: 1.013671565e-05 | AM33: FALSE | AN33: 0 | AO33: 244937226 | AP33: 0 | AQ33: 3.205510944e-09 | AR33: 3.205510944e-09 | AS33: FALSE | AT33: 0 | AU33: 7.745595179e+11 | AV33: 0
B34: 2 | C34: 5 | D34: 175.6611274 | F34: 25 | G34: 4 | H34: 4 | I34: 138.916874 | J34: 1 | K34: 0.7337373796 | L34: 0.7337373796 | M34: 1285908313 | N34: 0 | O34: FALSE | P34: 0 | Q34: 1.293176483e-06 | R34: 1.293176483e-06 | S34: 405791.679 | T34: 0 | U34: FALSE | V34: 0 | W34: 0.004194898693 | X34: 0.004194898693 | Y34: 128.423113 | Z34: 0 | AA34: TRUE | AB34: 0.7337373796 | AC34: 12.09502833 | AD34: 0 | AE34: 0.04451172229 | AF34: 0.04451172229 | AG34: FALSE | AH34: 0 | AI34: 38235.26206 | AJ34: 0 | AK34: 1.408047214e-05 | AL34: 1.408047214e-05 | AM34: FALSE | AN34: 0 | AO34: 120910515.1 | AP34: 0 | AQ34: 4.452636249e-09 | AR34: 4.452636249e-09 | AS34: FALSE | AT34: 0 | AU34: 3.823526206e+11 | AV34: 0
B35: 2 | C35: 6 | D35: 249.4826036 | F35: 26 | G35: 8 | H35: 2 | I35: 153.004899 | J35: 1 | K35: 0.7839758805 | L35: 0.7839758805 | M35: 4223942942 | N35: 0 | O35: FALSE | P35: 0 | Q35: 4.494422265e-07 | R35: 4.494422265e-07 | S35: 1332941.767 | T35: 0 | U35: FALSE | V35: 0 | W35: 0.001457932953 | X35: 0.001457932953 | Y35: 421.8433744 | Z35: 0 | AA35: TRUE | AB35: 0.7839758805 | AC35: 4.203615311 | AD35: 0 | AE35: 0.1462118048 | AF35: 0.1462118048 | AG35: FALSE | AH35: 0 | AI35: 13288.62807 | AJ35: 0 | AK35: 4.625143979e-05 | AL35: 4.625143979e-05 | AM35: FALSE | AN35: 0 | AO35: 42022331.68 | AP35: 0 | AQ35: 1.462598948e-08 | AR35: 1.462598948e-08 | AS35: FALSE | AT35: 0 | AU35: 1.328862807e+11 | AV35: 0
B36: 2 | C36: 7 | D36: 336.7261662 | F36: 27 | G36: 5 | H36: 4 | I36: 156.6582261 | J36: 1 | K36: 0.924608328 | L36: 0.924608328 | M36: 6554242780 | N36: 0 | O36: FALSE | P36: 0 | Q36: 4.028836014e-07 | R36: 4.028836014e-07 | S36: 2068310.124 | T36: 0 | U36: FALSE | V36: 0 | W36: 0.001306902743 | X36: 0.001306902743 | Y36: 654.5694222 | Z36: 0 | AA36: TRUE | AB36: 0.924608328 | AC36: 3.768154338 | AD36: 0 | AE36: 0.2268751446 | AF36: 0.2268751446 | AG36: FALSE | AH36: 0 | AI36: 11912.03234 | AJ36: 0 | AK36: 7.17678173e-05 | AL36: 7.17678173e-05 | AM36: FALSE | AN36: 0 | AO36: 37669153.74 | AP36: 0 | AQ36: 2.269497654e-08 | AR36: 2.269497654e-08 | AS36: FALSE | AT36: 0 | AU36: 1.191203234e+11 | AV36: 0
B37: 2 | C37: 8 | D37: 437.3918155 | F37: 28 | G37: 7 | H37: 3 | I37: 156.9911953 | J37: 1 | K37: 0.1291124646 | L37: 0.1291124646 | M37: 938110120.7 | N37: 0 | O37: FALSE | P37: 0 | Q37: 5.488694192e-08 | R37: 5.488694192e-08 | S37: 296037.6546 | T37: 0 | U37: FALSE | V37: 0 | W37: 0.0001780462017 | X37: 0.0001780462017 | Y37: 93.68865639 | Z37: 0 | AA37: TRUE | AB37: 0.1291124646 | AC37: 0.5133553899 | AD37: 0 | AE37: 0.03247268624 | AF37: 0.03247268624 | AG37: FALSE | AH37: 0 | AI37: 1622.838519 | AJ37: 0 | AK37: 1.027214249e-05 | AL37: 1.027214249e-05 | AM37: FALSE | AN37: 0 | AO37: 5131865.994 | AP37: 0 | AQ37: 3.248336672e-09 | AR37: 3.248336672e-09 | AS37: FALSE | AT37: 0 | AU37: 1.622838519e+10 | AV37: 0
B38: 2 | C38: 9 | D38: 551.4795513 | F38: 29 | G38: 9 | H38: 1 | I38: 166.3832119 | J38: 1 | K38: 0.3613957761 | L38: 0.3613957761 | M38: 5160128373 | N38: 0 | O38: FALSE | P38: 0 | Q38: 7.817936739e-08 | R38: 7.817936739e-08 | S38: 1628372.051 | T38: 0 | U38: FALSE | V38: 0 | W38: 0.0002536038432 | X38: 0.0002536038432 | Y38: 515.3398128 | Z38: 0 | AA38: TRUE | AB38: 0.3613957761 | AC38: 0.731208521 | AD38: 0 | AE38: 0.1786178679 | AF38: 0.1786178679 | AG38: FALSE | AH38: 0 | AI38: 2311.524095 | AJ38: 0 | AK38: 5.650250726e-05 | AL38: 5.650250726e-05 | AM38: FALSE | AN38: 0 | AO38: 7309681.007 | AP38: 0 | AQ38: 1.786766165e-08 | AR38: 1.786766165e-08 | AS38: FALSE | AT38: 0 | AU38: 2.311524095e+10 | AV38: 0
B39: 2 | C39: 10 | D39: 678.9893737 | F39: 30 | G39: 1 | H39: 5 | I39: 169.7473434 | J39: 1 | K39: 0.5555430142 | L39: 0.5555430142 | M39: 1.001087541e+10 | N39: 0 | O39: FALSE | P39: 0 | Q39: 9.522474945e-08 | R39: 9.522474945e-08 | S39: 3159113.211 | T39: 0 | U39: FALSE | V39: 0 | W39: 0.000308896877 | X39: 0.000308896877 | Y39: 999.7818437 | Z39: 0 | AA39: TRUE | AB39: 0.5555430142 | AC39: 0.8906333032 | AD39: 0 | AE39: 0.3465264992 | AF39: 0.3465264992 | AG39: FALSE | AH39: 0 | AI39: 2815.50376 | AJ39: 0 | AK39: 0.0001096173427 | AL39: 0.0001096173427 | AM39: FALSE | AN39: 0 | AO39: 8903404.642 | AP39: 0 | AQ39: 3.466404741e-08 | AR39: 3.466404741e-08 | AS39: FALSE | AT39: 0 | AU39: 2.81550376e+10 | AV39: 0
B40: 2 | C40: 11 | D40: 819.9212826 | F40: 31 | G40: 2 | H40: 5 | I40: 175.6611274 | J40: 1 | K40: 0.5992814148 | L40: 0.5992814148 | M40: 1.608074177e+10 | N40: 0 | O40: FALSE | P40: 0 | Q40: 6.898299627e-08 | R40: 6.898299627e-08 | S40: 5074569.577 | T40: 0 | U40: FALSE | V40: 0 | W40: 0.0002237719945 | X40: 0.0002237719945 | Y40: 1605.976801 | Z40: 0 | AA40: TRUE | AB40: 0.5992814148 | AC40: 0.6451952269 | AD40: 0 | AE40: 0.5566349519 | AF40: 0.5566349519 | AG40: FALSE | AH40: 0 | AI40: 2039.615609 | AJ40: 0 | AK40: 0.0001760813226 | AL40: 0.0001760813226 | AM40: FALSE | AN40: 0 | AO40: 6449830.876 | AP40: 0 | AQ40: 5.568180329e-08 | AR40: 5.568180329e-08 | AS40: FALSE | AT40: 0 | AU40: 2.039615609e+10 | AV40: 0
B41: 2 | C41: 12 | D41: 974.2752782 | F41: 32 | G41: 6 | H41: 4 | I41: 178.3421008 | J41: 1 | K41: 0.2636661928 | L41: 0.2636661928 | M41: 8437483494 | N41: 0 | O41: FALSE | P41: 0 | Q41: 2.544968864e-08 | R41: 2.544968864e-08 | S41: 2662600.871 | T41: 0 | U41: FALSE | V41: 0 | W41: 8.255552666e-05 | X41: 8.255552666e-05 | Y41: 842.6478667 | Z41: 0 | AA41: FALSE | AB41: 0 | AC41: 0.2380299281 | AD41: 0.2380299281 | AE41: 0.2920635308 | AF41: 0 | AG41: TRUE | AH41: 0.2636661928 | AI41: 752.4692318 | AJ41: 0 | AK41: 9.238897524e-05 | AL41: 9.238897524e-05 | AM41: FALSE | AN41: 0 | AO41: 2379516.642 | AP41: 0 | AQ41: 2.921595924e-08 | AR41: 2.921595924e-08 | AS41: FALSE | AT41: 0 | AU41: 7524692318 | AV41: 0
B42: 2 | C42: 13 | D42: 1142.05136 | F42: 33 | G42: 3 | H42: 5 | I42: 185.5174342 | J42: 1 | K42: 0.09092036479 | L42: 0.09092036479 | M42: 4602520685 | N42: 0 | O42: FALSE | P42: 0 | Q42: 5.547701728e-09 | R42: 5.547701728e-09 | S42: 1452408.837 | T42: 0 | U42: FALSE | V42: 0 | W42: 1.799603305e-05 | X42: 1.799603305e-05 | Y42: 459.6517717 | Z42: 0 | AA42: FALSE | AB42: 0 | AC42: 0.05188743414 | AD42: 0.05188743414 | AE42: 0.1593162751 | AF42: 0 | AG42: TRUE | AH42: 0.09092036479 | AI42: 164.0285237 | AJ42: 0 | AK42: 5.039680017e-05 | AL42: 5.039680017e-05 | AM42: FALSE | AN42: 0 | AO42: 518703.7362 | AP42: 0 | AQ42: 1.593686753e-08 | AR42: 1.593686753e-08 | AS42: FALSE | AT42: 0 | AU42: 1640285237 | AV42: 0
B43: 2 | C43: 14 | D43: 1323.249529 | F43: 34 | G43: 9 | H43: 2 | I43: 186.5163418 | J43: 1 | K43: 0.3197494045 | L43: 0.3197494045 | M43: 1.722898763e+10 | N43: 0 | O43: FALSE | P43: 0 | Q43: 1.832931533e-08 | R43: 1.832931533e-08 | S43: 5436919.374 | T43: 0 | U43: FALSE | V43: 0 | W43: 5.945794865e-05 | X43: 5.945794865e-05 | Y43: 1720.651624 | Z43: 0 | AA43: FALSE | AB43: 0 | AC43: 0.171433359 | AD43: 0.171433359 | AE43: 0.5963814878 | AF43: 0 | AG43: TRUE | AH43: 0.3197494045 | AI43: 541.9416331 | AJ43: 0 | AK43: 0.0001886544149 | AL43: 0.0001886544149 | AM43: FALSE | AN43: 0 | AO43: 1713769.92 | AP43: 0 | AQ43: 5.965776417e-08 | AR43: 5.965776417e-08 | AS43: FALSE | AT43: 0 | AU43: 5419416331 | AV43: 0
B44: 2 | C44: 15 | D44: 1517.869784 | F44: 35 | G44: 8 | H44: 3 | I44: 186.5601154 | J44: 1 | K44: 0.1924539116 | L44: 0.1924539116 | M44: 1.039828394e+10 | N44: 0 | O44: FALSE | P44: 0 | Q44: 1.100216936e-08 | R44: 1.100216936e-08 | S44: 3281366.997 | T44: 0 | U44: FALSE | V44: 0 | W44: 3.568962665e-05 | X44: 3.568962665e-05 | Y44: 1038.472168 | Z44: 0 | AA44: FALSE | AB44: 0 | AC44: 0.1029028535 | AD44: 0.1029028535 | AE44: 0.3599366474 | AF44: 0 | AG44: TRUE | AH44: 0.1924539116 | AI44: 325.3004013 | AJ44: 0 | AK44: 0.0001138593987 | AL44: 0.0001138593987 | AM44: FALSE | AN44: 0 | AO44: 1028690.192 | AP44: 0 | AQ44: 3.600550329e-08 | AR44: 3.600550329e-08 | AS44: FALSE | AT44: 0 | AU44: 3253004013 | AV44: 0
B45: 2 | C45: 16 | D45: 1725.912126 | F45: 36 | G45: 4 | H45: 5 | I45: 199.3162635 | J45: 1 | K45: 0.501202808 | L45: 0.501202808 | M45: 5.842710842e+10 | N45: 0 | O45: FALSE | P45: 0 | Q45: 1.328003167e-08 | R45: 1.328003167e-08 | S45: 18437733.23 | T45: 0 | U45: FALSE | V45: 0 | W45: 4.30787199e-05 | X45: 4.30787199e-05 | Y45: 5835.09032 | Z45: 0 | AA45: FALSE | AB45: 0 | AC45: 0.1242076093 | AD45: 0.1242076093 | AE45: 2.022454632 | AF45: 0 | AG45: TRUE | AH45: 0.501202808 | AI45: 392.6498028 | AJ45: 0 | AK45: 0.0006397666646 | AL45: 0.0006397666646 | AM45: FALSE | AN45: 0 | AO45: 1241667.7 | AP45: 0 | AQ45: 2.023119831e-07 | AR45: 2.023119831e-07 | AS45: FALSE | AT45: 0 | AU45: 3926498028 | AV45: 0
B46: 2 | C46: 17 | D46: 1947.376554 | F46: 37 | G46: 10 | H46: 1 | I46: 203.8371774 | J46: 1 | K46: 0.4962375253 | L46: 0.4962375253 | M46: 7.50831873e+10 | N46: 0 | O46: FALSE | P46: 0 | Q46: 1.013031658e-08 | R46: 1.013031658e-08 | S46: 23693860.86 | T46: 0 | U46: FALSE | V46: 0 | W46: 3.286144803e-05 | X46: 3.286144803e-05 | Y46: 7498.525792 | Z46: 0 | AA46: FALSE | AB46: 0 | AC46: 0.09474844903 | AD46: 0.09474844903 | AE46: 2.599004881 | AF46: 0 | AG46: TRUE | AH46: 0.4962375253 | AI46: 299.5223888 | AJ46: 0 | AK46: 0.0008221478284 | AL46: 0.0008221478284 | AM46: FALSE | AN46: 0 | AO46: 947172.9588 | AP46: 0 | AQ46: 2.599859711e-07 | AR46: 2.599859711e-07 | AS46: FALSE | AT46: 0 | AU46: 2995223888 | AV46: 0
B47: 2 | C47: 18 | D47: 2182.263069 | F47: 38 | G47: 7 | H47: 4 | I47: 203.9684983 | J47: 1 | K47: 0.640183459 | L47: 0.640183459 | M47: 9.759095433e+10 | N47: 0 | O47: FALSE | P47: 0 | Q47: 1.297136995e-08 | R47: 1.297136995e-08 | S47: 30796594.76 | T47: 0 | U47: FALSE | V47: 0 | W47: 4.207746085e-05 | X47: 4.207746085e-05 | Y47: 9746.366855 | Z47: 0 | AA47: FALSE | AB47: 0 | AC47: 0.1213207084 | AD47: 0.1213207084 | AE47: 3.378111342 | AF47: 0 | AG47: TRUE | AH47: 0.640183459 | AI47: 383.5236225 | AJ47: 0 | AK47: 0.001068603959 | AL47: 0.001068603959 | AM47: FALSE | AN47: 0 | AO47: 1212808.184 | AP47: 0 | AQ47: 3.379222426e-07 | AR47: 3.379222426e-07 | AS47: FALSE | AT47: 0 | AU47: 3835236225 | AV47: 0
B48: 2 | C48: 19 | D48: 2430.571671 | F48: 39 | G48: 5 | H48: 5 | I48: 217.0576156 | J48: 1 | K48: 0.6315833201 | L48: 0.6315833201 | M48: 1.98425131e+11 | N48: 0 | O48: FALSE | P48: 0 | Q48: 6.209421507e-09 | R48: 6.209421507e-09 | S48: 62616647.12 | T48: 0 | U48: FALSE | V48: 0 | W48: 2.014256716e-05 | X48: 2.014256716e-05 | Y48: 19816.63293 | Z48: 0 | AA48: FALSE | AB48: 0 | AC48: 0.05807647296 | AD48: 0.05807647296 | AE48: 6.86848684 | AF48: 0 | AG48: TRUE | AH48: 0.6315833201 | AI48: 183.5935479 | AJ48: 0 | AK48: 0.002172720637 | AL48: 0.002172720637 | AM48: FALSE | AN48: 0 | AO48: 580573.775 | AP48: 0 | AQ48: 6.870745931e-07 | AR48: 6.870745931e-07 | AS48: FALSE | AT48: 0 | AU48: 1835935479 | AV48: 0
B49: 2 | C49: 20 | D49: 2692.302359 | F49: 40 | G49: 9 | H49: 3 | I49: 220.0715582 | J49: 1 | K49: 0.0784935164 | L49: 0.0784935164 | M49: 2.89488377e+10 | N49: 0 | O49: FALSE | P49: 0 | Q49: 6.573897866e-10 | R49: 6.573897866e-10 | S49: 9135330.52 | T49: 0 | U49: FALSE | V49: 0 | W49: 2.132488174e-06 | X49: 2.132488174e-06 | Y49: 2891.108036 | Z49: 0 | AA49: FALSE | AB49: 0 | AC49: 0.006148540589 | AD49: 0.006148540589 | AE49: 1.002064153 | AF49: 0 | AG49: TRUE | AH49: 0.0784935164 | AI49: 19.43699959 | AJ49: 0 | AK49: 0.0003169847326 | AL49: 0.0003169847326 | AM49: FALSE | AN49: 0 | AO49: 61465.18958 | AP49: 0 | AQ49: 1.002393739e-07 | AR49: 1.002393739e-07 | AS49: FALSE | AT49: 0 | AU49: 194369995.9 | AV49: 0
B50: 3 | C50: 1 | D50: 24.45239536 | F50: 41 | G50: 10 | H50: 2 | I50: 223.9703073 | J50: 1 | K50: 0.439052318 | L50: 0.439052318 | M50: 1.986027852e+11 | N50: 0 | O50: FALSE | P50: 0 | Q50: 2.998014488e-09 | R50: 2.998014488e-09 | S50: 62672709.15 | T50: 0 | U50: FALSE | V50: 0 | W50: 9.725174577e-06 | X50: 9.725174577e-06 | Y50: 19834.37519 | Z50: 0 | AA50: FALSE | AB50: 0 | AC50: 0.02804031055 | AD50: 0.02804031055 | AE50: 6.874636344 | AF50: 0 | AG50: TRUE | AH50: 0.439052318 | AI50: 88.64209264 | AJ50: 0 | AK50: 0.00217466592 | AL50: 0.00217466592 | AM50: FALSE | AN50: 0 | AO50: 280310.9093 | AP50: 0 | AQ50: 6.876897458e-07 | AR50: 6.876897458e-07 | AS50: FALSE | AT50: 0 | AU50: 886420926.4 | AV50: 0
B51: 3 | C51: 2 | D51: 44.58552521 | F51: 42 | G51: 8 | H51: 4 | I51: 233.5374184 | J51: 1 | K51: 0.9542518707 | L51: 0.9542518707 | M51: 7.02011021e+11 | N51: 0 | O51: FALSE | P51: 0 | Q51: 4.006532066e-09 | R51: 4.006532066e-09 | S51: 221532303.7 | T51: 0 | U51: FALSE | V51: 0 | W51: 1.299667628e-05 | X51: 1.299667628e-05 | Y51: 70109.54032 | Z51: 0 | AA51: FALSE | AB51: 0 | AC51: 0.03747293544 | AD51: 0.03747293544 | AE51: 24.30011479 | AF51: 0 | AG51: TRUE | AH51: 0.9542518707 | AI51: 118.460864 | AJ51: 0 | AK51: 0.007686898455 | AL51: 0.007686898455 | AM51: FALSE | AN51: 0 | AO51: 374606.1439 | AP51: 0 | AQ51: 2.430810726e-06 | AR51: 2.430810726e-06 | AS51: FALSE | AT51: 0 | AU51: 1184608640 | AV51: 0
B52: 3 | C52: 3 | D52: 78.14074162 | F52: 43 | G52: 6 | H52: 5 | I52: 238.7414904 | J52: 1 | K52: 0.1801056344 | L52: 0.1801056344 | M52: 1.711956664e+11 | N52: 0 | O52: FALSE | P52: 0 | Q52: 5.852593291e-10 | R52: 5.852593291e-10 | S52: 54023895.95 | T52: 0 | U52: FALSE | V52: 0 | W52: 1.898506219e-06 | X52: 1.898506219e-06 | Y52: 17097.23795 | Z52: 0 | AA52: FALSE | AB52: 0 | AC52: 0.005473907282 | AD52: 0.005473907282 | AE52: 5.925938795 | AF52: 0 | AG52: TRUE | AH52: 0.1801056344 | AI52: 17.30432321 | AJ52: 0 | AK52: 0.00187456274 | AL52: 0.00187456274 | AM52: FALSE | AN52: 0 | AO52: 54721.0747 | AP52: 0 | AQ52: 5.927887876e-07 | AR52: 5.927887876e-07 | AS52: FALSE | AT52: 0 | AU52: 173043232.1 | AV52: 0
B53: 3 | C53: 4 | D53: 125.1180446 | F53: 44 | G53: 1 | H53: 6 | I53: 243.5688195 | J53: 1 | K53: 0.3217653038 | L53: 0.3217653038 | M53: 3.859981252e+11 | N53: 0 | O53: FALSE | P53: 0 | Q53: 8.284756375e-10 | R53: 8.284756375e-10 | S53: 121808705.8 | T53: 0 | U53: FALSE | V53: 0 | W53: 2.687468736e-06 | X53: 2.687468736e-06 | Y53: 38549.46762 | Z53: 0 | AA53: FALSE | AB53: 0 | AC53: 0.007748699764 | AD53: 0.007748699764 | AE53: 13.36132692 | AF53: 0 | AG53: TRUE | AH53: 0.3217653038 | AI53: 24.49548343 | AJ53: 0 | AK53: 0.004226612266 | AL53: 0.004226612266 | AM53: FALSE | AN53: 0 | AO53: 77461.52003 | AP53: 0 | AQ53: 1.336572155e-06 | AR53: 1.336572155e-06 | AS53: FALSE | AT53: 0 | AU53: 244954834.3 | AV53: 0
B54: 3 | C54: 5 | D54: 185.5174342 | F54: 45 | G54: 11 | H54: 1 | I54: 245.2336656 | J54: 1 | K54: 0.8967025276 | L54: 0.8967025276 | M54: 1.164369795e+12 | N54: 0 | O54: FALSE | P54: 0 | Q54: 2.133007439e-09 | R54: 2.133007439e-09 | S54: 367437996.6 | T54: 0 | U54: FALSE | V54: 0 | W54: 6.919202627e-06 | X54: 6.919202627e-06 | Y54: 116285.1133 | Z54: 0 | AA54: FALSE | AB54: 0 | AC54: 0.01994993394 | AD54: 0.01994993394 | AE54: 40.30466594 | AF54: 0 | AG54: TRUE | AH54: 0.8967025276 | AI54: 63.06648744 | AJ54: 0 | AK54: 0.01274964653 | AL54: 0.01274964653 | AM54: FALSE | AN54: 0 | AO54: 199433.7443 | AP54: 0 | AQ54: 4.031792241e-06 | AR54: 4.031792241e-06 | AS54: FALSE | AT54: 0 | AU54: 630664874.4 | AV54: 0
B55: 3 | C55: 6 | D55: 259.3389103 | F55: 46 | G55: 2 | H55: 6 | I55: 249.4826036 | J55: 1 | K55: 0.3470981752 | L55: 0.3470981752 | M55: 5.503417731e+11 | N55: 0 | O55: FALSE | P55: 0 | Q55: 6.761743552e-10 | R55: 6.761743552e-10 | S55: 173670323.1 | T55: 0 | U55: FALSE | V55: 0 | W55: 2.193422906e-06 | X55: 2.193422906e-06 | Y55: 54962.39742 | Z55: 0 | AA55: FALSE | AB55: 0 | AC55: 0.006324231914 | AD55: 0.006324231914 | AE55: 19.05008306 | AF55: 0 | AG55: TRUE | AH55: 0.3470981752 | AI55: 19.99240166 | AJ55: 0 | AK55: 0.006026146597 | AL55: 0.006026146597 | AM55: FALSE | AN55: 0 | AO55: 63221.52516 | AP55: 0 | AQ55: 1.905634876e-06 | AR55: 1.905634876e-06 | AS55: FALSE | AT55: 0 | AU55: 199924016.6 | AV55: 0
B56: 3 | C56: 7 | D56: 346.582473 | F56: 47 | G56: 10 | H56: 3 | I56: 257.5255237 | J56: 1 | K56: 0.1077805301 | L56: 0.1077805301 | M56: 2.471366683e+11 | N56: 0 | O56: FALSE | P56: 0 | Q56: 1.451877438e-10 | R56: 1.451877438e-10 | S56: 77988455.77 | T56: 0 | U56: FALSE | V56: 0 | W56: 4.709704241e-07 | X56: 4.709704241e-07 | Y56: 24681.43333 | Z56: 0 | AA56: FALSE | AB56: 0 | AC56: 0.001357935207 | AD56: 0.001357935207 | AE56: 8.554636934 | AF56: 0 | AG56: TRUE | AH56: 0.1077805301 | AI56: 4.292756252 | AJ56: 0 | AK56: 0.00270610349 | AL56: 0.00270610349 | AM56: FALSE | AN56: 0 | AO56: 13574.8872 | AP56: 0 | AQ56: 8.557450612e-07 | AR56: 8.557450612e-07 | AS56: FALSE | AT56: 0 | AU56: 42927562.52 | AV56: 0
B57: 3 | C57: 8 | D57: 447.2481222 | F57: 48 | G57: 3 | H57: 6 | I57: 259.3389103 | J57: 1 | K57: 0.05266022261 | L57: 0.05266022261 | M57: 1.310119608e+11 | N57: 0 | O57: FALSE | P57: 0 | Q57: 6.537940264e-11 | R57: 6.537940264e-11 | S57: 41343199.2 | T57: 0 | U57: FALSE | V57: 0 | W57: 2.120823988e-07 | X57: 2.120823988e-07 | Y57: 13084.10847 | Z57: 0 | AA57: FALSE | AB57: 0 | AC57: 0.0006114909586 | AD57: 0.0006114909586 | AE57: 4.534979637 | AF57: 0 | AG57: TRUE | AH57: 0.05266022261 | AI57: 1.933068399 | AJ57: 0 | AK57: 0.00143455816 | AL57: 0.00143455816 | AM57: FALSE | AN57: 0 | AO57: 6112.899013 | AP57: 0 | AQ57: 4.536471222e-07 | AR57: 4.536471222e-07 | AS57: FALSE | AT57: 0 | AU57: 19330683.99 | AV57: 0
B58: 3 | C58: 9 | D58: 561.335858 | F58: 49 | G58: 7 | H58: 5 | I58: 264.3678878 | J58: 1 | K58: 0.4372978074 | L58: 0.4372978074 | M58: 1.36014275e+12 | N58: 0 | O58: FALSE | P58: 0 | Q58: 4.342667933e-10 | R58: 4.342667933e-10 | S58: 429217701.5 | T58: 0 | U58: FALSE | V58: 0 | W58: 1.408705793e-06 | X58: 1.408705793e-06 | Y58: 135836.8746 | Z58: 0 | AA58: FALSE | AB58: 0 | AC58: 0.004061680086 | AD58: 0.004061680086 | AE58: 47.08134769 | AF58: 0 | AG58: TRUE | AH58: 0.4372978074 | AI58: 12.83993706 | AJ58: 0 | AK58: 0.01489332631 | AL58: 0.01489332631 | AM58: FALSE | AN58: 0 | AO58: 40603.44611 | AP58: 0 | AQ58: 4.709683306e-06 | AR58: 4.709683306e-06 | AS58: FALSE | AT58: 0 | AU58: 128399370.6 | AV58: 0
B59: 3 | C59: 10 | D59: 688.8456804 | F59: 50 | G59: 11 | H59: 2 | I59: 265.3667954 | J59: 1 | K59: 0.793368706 | L59: 0.793368706 | M59: 2.57825258e+12 | N59: 0 | O59: FALSE | P59: 0 | Q59: 7.540691684e-10 | R59: 7.540691684e-10 | S59: 813614340.1 | T59: 0 | U59: FALSE | V59: 0 | W59: 2.446103692e-06 | X59: 2.446103692e-06 | Y59: 257488.9821 | Z59: 0 | AA59: FALSE | AB59: 0 | AC59: 0.007052779011 | AD59: 0.007052779011 | AE59: 89.24622517 | AF59: 0 | AG59: TRUE | AH59: 0.793368706 | AI59: 22.29551237 | AJ59: 0 | AK59: 0.02823141686 | AL59: 0.02823141686 | AM59: FALSE | AN59: 0 | AO59: 70504.60068 | AP59: 0 | AQ59: 8.927557885e-06 | AR59: 8.927557885e-06 | AS59: FALSE | AT59: 0 | AU59: 222955123.7 | AV59: 0
B60: 3 | C60: 11 | D60: 829.7775894 | F60: 51 | G60: 9 | H60: 4 | I60: 267.0488612 | J60: 1 | K60: 0.3891975187 | L60: 0.3891975187 | M60: 1.361212734e+12 | N60: 0 | O60: FALSE | P60: 0 | Q60: 3.437167017e-10 | R60: 3.437167017e-10 | S60: 429555354.3 | T60: 0 | U60: FALSE | V60: 0 | W60: 1.114972907e-06 | X60: 1.114972907e-06 | Y60: 135943.7334 | Z60: 0 | AA60: FALSE | AB60: 0 | AC60: 0.003214768673 | AD60: 0.003214768673 | AE60: 47.11838518 | AF60: 0 | AG60: TRUE | AH60: 0.3891975187 | AI60: 10.16264859 | AJ60: 0 | AK60: 0.01490504244 | AL60: 0.01490504244 | AM60: FALSE | AN60: 0 | AO60: 32137.11661 | AP60: 0 | AQ60: 4.713388274e-06 | AR60: 4.713388274e-06 | AS60: FALSE | AT60: 0 | AU60: 101626485.9 | AV60: 0
B61: 3 | C61: 12 | D61: 984.1315849 | F61: 52 | G61: 4 | H61: 6 | I61: 273.1377397 | J61: 1 | K61: 0.290291966 | L61: 0.290291966 | M61: 1.319557219e+12 | N61: 0 | O61: FALSE | P61: 0 | Q61: 1.972551358e-10 | R61: 1.972551358e-10 | S61: 416410201.4 | T61: 0 | U61: FALSE | V61: 0 | W61: 6.398703674e-07 | X61: 6.398703674e-07 | Y61: 131783.6149 | Z61: 0 | AA61: FALSE | AB61: 0 | AC61: 0.001844919458 | AD61: 0.001844919458 | AE61: 45.67647934 | AF61: 0 | AG61: TRUE | AH61: 0.290291966 | AI61: 5.832229328 | AJ61: 0 | AK61: 0.0144489218 | AL61: 0.0144489218 | AM61: FALSE | AN61: 0 | AO61: 18443.12851 | AP61: 0 | AQ61: 4.569150264e-06 | AR61: 4.569150264e-06 | AS61: FALSE | AT61: 0 | AU61: 58322293.28 | AV61: 0
B62: 3 | C62: 13 | D62: 1151.907667 | F62: 53 | G62: 12 | H62: 1 | I62: 290.5726764 | J62: 1 | K62: 0.4710631979 | L62: 0.4710631979 | M62: 4.396617879e+12 | N62: 0 | O62: FALSE | P62: 0 | Q62: 1.558928309e-10 | R62: 1.558928309e-10 | S62: 1387432473 | T62: 0 | U62: FALSE | V62: 0 | W62: 5.056963541e-07 | X62: 5.056963541e-07 | Y62: 439088.3465 | Z62: 0 | AA62: FALSE | AB62: 0 | AC62: 0.001458059462 | AD62: 0.001458059462 | AE62: 152.1889485 | AF62: 0 | AG62: TRUE | AH62: 0.4710631979 | AI62: 4.609272843 | AJ62: 0 | AK62: 0.04814220029 | AL62: 0.04814220029 | AM62: FALSE | AN62: 0 | AO62: 14575.80054 | AP62: 0 | AQ62: 1.522390045e-05 | AR62: 1.522390045e-05 | AS62: FALSE | AT62: 0 | AU62: 46092728.43 | AV62: 0
B63: 3 | C63: 14 | D63: 1333.105836 | F63: 54 | G63: 5 | H63: 6 | I63: 290.8790917 | J63: 1 | K63: 0.3658071359 | L63: 0.3658071359 | M63: 3.456317667e+12 | N63: 0 | O63: FALSE | P63: 0 | Q63: 1.195851378e-10 | R63: 1.195851378e-10 | S63: 1090703696 | T63: 0 | U63: FALSE | V63: 0 | W63: 3.879188531e-07 | X63: 3.879188531e-07 | Y63: 345180.9666 | Z63: 0 | AA63: FALSE | AB63: 0 | AC63: 0.001118475049 | AD63: 0.001118475049 | AE63: 119.6404523 | AF63: 0 | AG63: TRUE | AH63: 0.3658071359 | AI63: 3.535765722 | AJ63: 0 | AK63: 0.03784607668 | AL63: 0.03784607668 | AM63: FALSE | AN63: 0 | AO63: 11181.07296 | AP63: 0 | AQ63: 1.196798028e-05 | AR63: 1.196798028e-05 | AS63: FALSE | AT63: 0 | AU63: 35357657.22 | AV63: 0
B64: 3 | C64: 15 | D64: 1527.726091 | F64: 55 | G64: 8 | H64: 5 | I64: 293.9368079 | J64: 1 | K64: 0.651832291 | L64: 0.651832291 | M64: 6.955043581e+12 | N64: 0 | O64: FALSE | P64: 0 | Q64: 1.886941342e-10 | R64: 1.886941342e-10 | S64: 2194790083 | T64: 0 | U64: FALSE | V64: 0 | W64: 6.120995759e-07 | X64: 6.120995759e-07 | Y64: 694597.2268 | Z64: 0 | AA64: FALSE | AB64: 0 | AC64: 0.00176484875 | AD64: 0.00176484875 | AE64: 240.7488662 | AF64: 0 | AG64: TRUE | AH64: 0.651832291 | AI64: 5.579106769 | AJ64: 0 | AK64: 0.07615651629 | AL64: 0.07615651629 | AM64: FALSE | AN64: 0 | AO64: 17642.6847 | AP64: 0 | AQ64: 2.408280502e-05 | AR64: 2.408280502e-05 | AS64: FALSE | AT64: 0 | AU64: 55791067.69 | AV64: 0
B65: 3 | C65: 16 | D65: 1735.768433 | F65: 56 | G65: 11 | H65: 3 | I65: 298.9220119 | J65: 1 | K65: 0.1947597045 | L65: 0.1947597045 | M65: 2.526876207e+12 | N65: 0 | O65: FALSE | P65: 0 | Q65: 4.636612065e-11 | R65: 4.636612065e-11 | S65: 797401594.3 | T65: 0 | U65: FALSE | V65: 0 | W65: 1.504057501e-07 | X65: 1.504057501e-07 | Y65: 252358.0457 | Z65: 0 | AA65: FALSE | AB65: 0 | AC65: 0.0004336604867 | AD65: 0.0004336604867 | AE65: 87.46783177 | AF65: 0 | AG65: TRUE | AH65: 0.1947597045 | AI65: 1.37090397 | AJ65: 0 | AK65: 0.02766885452 | AL65: 0.02766885452 | AM65: FALSE | AN65: 0 | AO65: 4335.178997 | AP65: 0 | AQ65: 8.749660053e-06 | AR65: 8.749660053e-06 | AS65: FALSE | AT65: 0 | AU65: 13709039.7 | AV65: 0
B66: 3 | C66: 17 | D66: 1957.232861 | F66: 57 | G66: 10 | H66: 4 | I66: 304.5028267 | J66: 1 | K66: 0.5344124816 | L66: 0.5344124816 | M66: 8.597340819e+12 | N66: 0 | O66: FALSE | P66: 0 | Q66: 1.026066611e-10 | R66: 1.026066611e-10 | S66: 2713046748 | T66: 0 | U66: FALSE | V66: 0 | W66: 3.328428517e-07 | X66: 3.328428517e-07 | Y66: 858612.7493 | Z66: 0 | AA66: FALSE | AB66: 0 | AC66: 0.0009596760296 | AD66: 0.0009596760296 | AE66: 297.5969928 | AF66: 0 | AG66: TRUE | AH66: 0.5344124816 | AI66: 3.033764244 | AJ66: 0 | AK66: 0.09413938511 | AL66: 0.09413938511 | AM66: FALSE | AN66: 0 | AO66: 9593.604896 | AP66: 0 | AQ66: 2.976948745e-05 | AR66: 2.976948745e-05 | AS66: FALSE | AT66: 0 | AU66: 30337642.44 | AV66: 0
B67: 3 | C67: 18 | D67: 2192.119376 | F67: 58 | G67: 12 | H67: 2 | I67: 310.7058063 | J67: 1 | K67: 0.416779019 | L67: 0.416779019 | M67: 8.476585238e+12 | N67: 0 | O67: FALSE | P67: 0 | Q67: 6.329614725e-11 | R67: 6.329614725e-11 | S67: 2674940135 | T67: 0 | U67: FALSE | V67: 0 | W67: 2.053245855e-07 | X67: 2.053245855e-07 | Y67: 846552.9411 | Z67: 0 | AA67: FALSE | AB67: 0 | AC67: 0.0005920063536 | AD67: 0.0005920063536 | AE67: 293.4170378 | AF67: 0 | AG67: TRUE | AH67: 0.416779019 | AI67: 1.871472927 | AJ67: 0 | AK67: 0.09281713252 | AL67: 0.09281713252 | AM67: FALSE | AN67: 0 | AO67: 5918.117028 | AP67: 0 | AQ67: 2.935135447e-05 | AR67: 2.935135447e-05 | AS67: FALSE | AT67: 0 | AU67: 18714729.27 | AV67: 0
B68: 3 | C68: 19 | D68: 2440.427977 | F68: 59 | G68: 6 | H68: 6 | I68: 312.5629665 | J68: 1 | K68: 0.1043154943 | L68: 0.1043154943 | M68: 2.273817921e+12 | N68: 0 | O68: FALSE | P68: 0 | Q68: 1.478183905e-11 | R68: 1.478183905e-11 | S68: 717544464.6 | T68: 0 | U68: FALSE | V68: 0 | W68: 4.795039047e-08 | X68: 4.795039047e-08 | Y68: 227085.2229 | Z68: 0 | AA68: FALSE | AB68: 0 | AC68: 0.0001382539541 | AD68: 0.0001382539541 | AE68: 78.708218 | AF68: 0 | AG68: TRUE | AH68: 0.1043154943 | AI68: 0.4370536406 | AJ68: 0 | AK68: 0.02489791034 | AL68: 0.02489791034 | AM68: FALSE | AN68: 0 | AO68: 1382.084964 | AP68: 0 | AQ68: 7.873410566e-06 | AR68: 7.873410566e-06 | AS68: FALSE | AT68: 0 | AU68: 4370536.406 | AV68: 0
B69: 3 | C69: 20 | D69: 2702.158665 | F69: 60 | G69: 9 | H69: 5 | I69: 327.4482507 | J69: 1 | K69: 0.2658538255 | L69: 0.2658538255 | M69: 9.953367206e+12 | N69: 0 | O69: FALSE | P69: 0 | Q69: 2.193321594e-11 | R69: 2.193321594e-11 | S69: 3140965456 | T69: 0 | U69: FALSE | V69: 0 | W69: 7.114854012e-08 | X69: 7.114854012e-08 | Y69: 994038.5244 | Z69: 0 | AA69: FALSE | AB69: 0 | AC69: 0.0002051404984 | AD69: 0.0002051404984 | AE69: 344.5358526 | AF69: 0 | AG69: TRUE | AH69: 0.2658538255 | AI69: 0.64849792 | AJ69: 0 | AK69: 0.108987638 | AL69: 0.108987638 | AM69: FALSE | AN69: 0 | AO69: 2050.730485 | AP69: 0 | AQ69: 3.446491727e-05 | AR69: 3.446491727e-05 | AS69: FALSE | AT69: 0 | AU69: 6484979.2 | AV69: 0
B70: 4 | C70: 1 | D70: 38.25122474 | F70: 61 | G70: 1 | H70: 7 | I70: 330.8123822 | J70: 1 | K70: 0.8402288658 | L70: 0.8402288658 | M70: 3.542719758e+13 | N70: 0 | O70: FALSE | P70: 0 | Q70: 6.155238831e-11 | R70: 6.155238831e-11 | S70: 1.117969442e+10 | T70: 0 | U70: FALSE | V70: 0 | W70: 1.996680551e-07 | X70: 1.996680551e-07 | Y70: 3538099.065 | Z70: 0 | AA70: FALSE | AB70: 0 | AC70: 0.0005756970455 | AD70: 0.0005756970455 | AE70: 1226.312611 | AF70: 0 | AG70: TRUE | AH70: 0.8402288658 | AI70: 1.819915324 | AJ70: 0 | AK70: 0.3879216454 | AL70: 0.3879216454 | AM70: FALSE | AN70: 0 | AO70: 5755.077572 | AP70: 0 | AQ70: 0.0001226715953 | AR70: 0.0001226715953 | AS70: FALSE | AT70: 0 | AU70: 18199153.24 | AV70: 0
B71: 4 | C71: 2 | D71: 58.38435459 | F71: 62 | G71: 2 | H71: 7 | I71: 336.7261662 | J71: 1 | K71: 0.9063808393 | L71: 0.9063808393 | M71: 4.695901885e+13 | N71: 0 | O71: FALSE | P71: 0 | Q71: 5.403671394e-11 | R71: 5.403671394e-11 | S71: 1.481876967e+10 | T71: 0 | U71: FALSE | V71: 0 | W71: 1.752881712e-07 | X71: 1.752881712e-07 | Y71: 4689777.121 | Z71: 0 | AA71: FALSE | AB71: 0 | AC71: 0.0005054032414 | AD71: 0.0005054032414 | AE71: 1625.486658 | AF71: 0 | AG71: TRUE | AH71: 0.9063808393 | AI71: 1.597699885 | AJ71: 0 | AK71: 0.5141930805 | AL71: 0.5141930805 | AM71: FALSE | AN71: 0 | AO71: 5052.370655 | AP71: 0 | AQ71: 0.0001626021291 | AR71: 0.0001626021291 | AS71: FALSE | AT71: 0 | AU71: 15976998.85 | AV71: 0
B72: 4 | C72: 3 | D72: 91.93957101 | F72: 63 | G72: 7 | H72: 6 | I72: 338.1893639 | J72: 1 | K72: 0.2532787889 | L72: 0.2532787889 | M72: 1.380070289e+13 | N72: 0 | O72: FALSE | P72: 0 | Q72: 1.435763633e-11 | R72: 1.435763633e-11 | S72: 4355061976 | T72: 0 | U72: FALSE | V72: 0 | W72: 4.657433126e-08 | X72: 4.657433126e-08 | Y72: 1378270.293 | Z72: 0 | AA72: FALSE | AB72: 0 | AC72: 0.0001342864029 | AD72: 0.0001342864029 | AE72: 477.7113954 | AF72: 0 | AG72: TRUE | AH72: 0.2532787889 | AI72: 0.4245112675 | AJ72: 0 | AK72: 0.1511152939 | AL72: 0.1511152939 | AM72: FALSE | AN72: 0 | AO72: 1342.422498 | AP72: 0 | AQ72: 4.778685179e-05 | AR72: 4.778685179e-05 | AS72: FALSE | AT72: 0 | AU72: 4245112.675 | AV72: 0
B73: 4 | C73: 4 | D73: 138.916874 | F73: 64 | G73: 13 | H73: 1 | I73: 339.85421 | J73: 1 | K73: 0.3885521009 | L73: 0.3885521009 | M73: 2.2415484e+13 | N73: 0 | O73: FALSE | P73: 0 | Q73: 2.080352436e-11 | R73: 2.080352436e-11 | S73: 7073612324 | T73: 0 | U73: FALSE | V73: 0 | W73: 6.748396548e-08 | X73: 6.748396548e-08 | Y73: 2238624.797 | Z73: 0 | AA73: FALSE | AB73: 0 | AC73: 0.0001945745378 | AD73: 0.0001945745378 | AE73: 775.912084 | AF73: 0 | AG73: TRUE | AH73: 0.3885521009 | AI73: 0.6150964049 | AJ73: 0 | AK73: 0.2454456471 | AL73: 0.2454456471 | AM73: FALSE | AN73: 0 | AO73: 1945.10562 | AP73: 0 | AQ73: 7.761672866e-05 | AR73: 7.761672866e-05 | AS73: FALSE | AT73: 0 | AU73: 6150964.049 | AV73: 0
B74: 4 | C74: 5 | D74: =3.1416/2*SQRT($H$2/$I$2)*(B74^2/$C$2^2+C74^2/$D$2^2) -> 199.3162635 | F74: 65 | G74: 12 | H74: 3 | I74: 344.2610227 | J74: 1 | K74: =ABS(SIN(G74*3.1416*$J$2/$C$2)*SIN(H74*3.1416*$K$2/$D$2))*(1/F74^$M$2)+(1-1/F74^$M$2) -> 0.1023127809 | L74: =$J74*$K74 -> 0.1023127809 | M74: =10^(LOG10($I74/22.27)/LOG10(2)*70/20)*$L74 -> 6.856188282e+12 | N74: =IF($I74<22.27,M74,0) -> 0 | O74: =AND($I74>22.27,$I74<44.45) -> FALSE | P74: =IF($O74=TRUE,$L74,0) -> 0 | Q74: =10^(LOG10(44.45/$I74)/LOG10(2)*70/20)*$L74 -> 4.715888798e-12 | R74: =IF($I74>44.45,Q74,0) -> 4.715888798e-12 | S74: =10^(LOG10($I74/44.548)/LOG10(2)*70/20)*$L74 -> 2163594501 | T74: =IF($I74<44.528,S74,0) -> 0 | U74: =AND($I74>44.548,$I74<89.095) -> FALSE | V74: =IF($U74=TRUE,$L74,0) -> 0 | W74: =10^(LOG10(89.095/$I74)/LOG10(2)*70/20)*$L74 -> 1.529773857e-08 | X74: =IF($I74>89.095,W74,0) -> 1.529773857e-08 | Y74: =10^(LOG10($I74/89.09)/LOG10(2)*70/20)*$L74 -> 684724.5903 | Z74: =IF($I74<89.09,Y74,0) -> 0 | AA74: =AND($I74>89.09,$I74<176.78) -> FALSE | AB74: =IF($AA74=TRUE,$L74,0) -> 0 | AC74: =10^(LOG10(176.78/$I74)/LOG10(2)*70/20)*$L74 -> 4.410752081e-05 | AD74: =IF($I74>176.78,AC74,0) -> 4.410752081e-05 | AE74: =10^(LOG10($I74/176.78)/LOG10(2)*70/20)*$L74 -> 237.3269896 | AF74: =IF($I74<176.78,AE74,0) -> 0 | AG74: =AND($I74>176.78,$I74<353.55) -> TRUE | AH74: =IF($AG74=TRUE,$L74,0) -> 0.1023127809 | AI74: =10^(LOG10(353.55/$I74)/LOG10(2)*70/20)*$L74 -> 0.1394343668 | AJ74: =IF($I74>353.55,AI74,0) -> 0 | AK74: =10^(LOG10($I74/353.55)/LOG10(2)*70/20)*$L74 -> 0.07507406798 | AL74: =IF($I74<353.55,AK74,0) -> 0.07507406798 | AM74: =AND($I74>353.55,$I74<707.1) -> FALSE | AN74: =IF($AM74=TRUE,$L74,0) -> 0 | AO74: =10^(LOG10(707.1/$I74)/LOG10(2)*70/20)*$L74 -> 440.9301832 | AP74: =IF($I74>707.1,AO74,0) -> 0 | AQ74: =10^(LOG10($I74/707.1)/LOG10(2)*70/20)*$L74 -> 2.37405048e-05 | AR74: =IF($I74<707.1,AQ74,0) -> 2.37405048e-05 | AS74: =AND($I74>707.1,$I74<1414.2) -> FALSE | AT74: =IF($AS74=TRUE,$L74,0) -> 0 | AU74: =10^(LOG10(1414.2/$I74)/LOG10(2)*70/20)*$L74 -> 1394343.668 | AV74: =IF($I74>1414.2,AU74,0) -> 0
B75: 4 | C75: 6 | D75: 273.1377397 | F75: 66 | G75: 11 | H75: 4 | I75: 345.8993148 | J75: =IF(ABS(I75-I74)>0.0001,1,$L$2) -> 1 | K75: 0.9656847752 | L75: 0.9656847752 | M75: 6.838499336e+13 | N75: 0 | O75: FALSE | P75: 0 | Q75: 4.212078661e-11 | R75: 4.212078661e-11 | S75: 2.158012434e+10 | T75: 0 | U75: FALSE | V75: 0 | W75: 1.366344308e-07 | X75: 1.366344308e-07 | Y75: 6829580.028 | Z75: 0 | AA75: FALSE | AB75: 0 | AC75: 0.0003939540458 | AD75: 0.0003939540458 | AE75: 2367.146866 | AF75: 0 | AG75: TRUE | AH75: 0.9656847752 | AI75: 1.245382464 | AJ75: 0 | AK75: 0.7488037709 | AL75: 0.7488037709 | AM75: FALSE | AN75: 0 | AO75: 3938.245143 | AP75: 0 | AQ75: 0.0002367925437 | AR75: 0.0002367925437 | AS75: FALSE | AT75: 0 | AU75: 12453824.64 | AV75: 0
B76: 4 | C76: 7 | D76: 360.3813023 | F76: 67 | G76: 3 | H76: 7 | I76: 346.582473 | J76: 1 | K76: 0.1375121512 | L76: 0.1375121512 | M76: 9.963900841e+12 | N76: 0 | O76: FALSE | P76: 0 | Q76: 5.861911654e-12 | R76: 5.861911654e-12 | S76: 3144289536 | T76: 0 | U76: FALSE | V76: 0 | W76: 1.901528976e-08 | X76: 1.901528976e-08 | Y76: 995090.514 | Z76: 0 | AA76: FALSE | AB76: 0 | AC76: 5.48262271e-05 | AD76: 5.48262271e-05 | AE76: 344.9004744 | AF76: 0 | AG76: TRUE | AH76: 0.1375121512 | AI76: 0.1733187475 | AJ76: 0 | AK76: 0.1091029794 | AL76: 0.1091029794 | AM76: FALSE | AN76: 0 | AO76: 548.0820032 | AP76: 0 | AQ76: 3.450139145e-05 | AR76: 3.450139145e-05 | AS76: FALSE | AT76: 0 | AU76: 1733187.475 | AV76: 0
B77: 4 | C77: 8 | D77: 461.0469516 | F77: 68 | G77: 13 | H77: 2 | I77: 359.9873398 | J77: 1 | K77: 0.3437763005 | L77: 0.3437763005 | M77: 3.872401751e+13 | N77: 0 | O77: FALSE | P77: 0 | Q77: 9.426662808e-12 | R77: 9.426662808e-12 | S77: 1.222006571e+10 | T77: 0 | U77: FALSE | V77: 0 | W77: 3.057888541e-08 | X77: 3.057888541e-08 | Y77: 3867351.061 | Z77: 0 | AA77: FALSE | AB77: 0 | AC77: 8.81672032e-05 | AD77: 8.81672032e-05 | AE77: 1340.432048 | AF77: 0 | AG77: FALSE | AH77: 0 | AI77: 0.278717505 | AJ77: 0.278717505 | AK77: 0.4240212496 | AL77: 0 | AM77: TRUE | AN77: 0.3437763005 | AO77: 881.3821395 | AP77: 0 | AQ77: 0.0001340872925 | AR77: 0.0001340872925 | AS77: FALSE | AT77: 0 | AU77: 2787175.05 | AV77: 0
B78: 4 | C78: 9 | D78: 575.1346874 | F78: 69 | G78: 4 | H78: 7 | I78: 360.3813023 | J78: 1 | K78: 0.7580422328 | L78: 0.7580422328 | M78: 8.648102871e+13 | N78: 0 | O78: FALSE | P78: 0 | Q78: 2.052354938e-11 | R78: 2.052354938e-11 | S78: 2.729065634e+10 | T78: 0 | U78: FALSE | V78: 0 | W78: 6.657576254e-08 | X78: 6.657576254e-08 | Y78: 8636823.337 | Z78: 0 | AA78: FALSE | AB78: 0 | AC78: 0.000191955943 | AD78: 0.000191955943 | AE78: 2993.541215 | AF78: 0 | AG78: FALSE | AH78: 0 | AI78: 0.6068184035 | AJ78: 0.6068184035 | AK78: 0.9469522074 | AL78: 0 | AM78: TRUE | AN78: 0.7580422328 | AO78: 1918.928281 | AP78: 0 | AQ78: 0.0002994525811 | AR78: 0.0002994525811 | AS78: FALSE | AT78: 0 | AU78: 6068184.035 | AV78: 0
B79: 4 | C79: 10 | D79: 702.6445098 | F79: 70 | G79: 10 | H79: 5 | I79: 364.9022162 | J79: 1 | K79: 0.365047555 | L79: 0.365047555 | M79: 4.814232035e+13 | N79: 0 | O79: FALSE | P79: 0 | Q79: 8.549847781e-12 | R79: 8.549847781e-12 | S79: 1.519218191e+10 | T79: 0 | U79: FALSE | V79: 0 | W79: 2.773460989e-08 | X79: 2.773460989e-08 | Y79: 4807952.936 | Z79: 0 | AA79: FALSE | AB79: 0 | AC79: 7.996638704e-05 | AD79: 7.996638704e-05 | AE79: 1666.446645 | AF79: 0 | AG79: FALSE | AH79: 0 | AI79: 0.2527927741 | AJ79: 0.2527927741 | AK79: 0.5271500259 | AL79: 0 | AM79: TRUE | AN79: 0.365047555 | AO79: 799.4009421 | AP79: 0 | AQ79: 0.000166699475 | AR79: 0.000166699475 | AS79: FALSE | AT79: 0 | AU79: 2527927.741 | AV79: 0
B80: 4 | C80: 11 | D80: 843.5764187 | F80: 71 | G80: 8 | H80: 6 | I80: 367.758284 | J80: 1 | K80: 0.3775351499 | L80: 0.3775351499 | M80: 5.451332971e+13 | N80: 0 | O80: FALSE | P80: 0 | Q80: 8.076042355e-12 | R80: 8.076042355e-12 | S80: 1.72026694e+10 | T80: 0 | U80: FALSE | V80: 0 | W80: 2.619764584e-08 | X80: 2.619764584e-08 | Y80: 5444222.915 | Z80: 0 | AA80: FALSE | AB80: 0 | AC80: 7.553490369e-05 | AD80: 7.553490369e-05 | AE80: 1886.979164 | AF80: 0 | AG80: FALSE | AH80: 0 | AI80: 0.2387838009 | AJ80: 0.2387838009 | AK80: 0.5969114691 | AL80: 0 | AM80: TRUE | AN80: 0.3775351499 | AO80: 755.1006792 | AP80: 0 | AQ80: 0.0001887599804 | AR80: 0.0001887599804 | AS80: FALSE | AT80: 0 | AU80: 2387838.009 | AV80: 0
B81: 4 | C81: 12 | D81: 997.9304143 | F81: 72 | G81: 5 | H81: 7 | I81: 378.1226544 | J81: 1 | K81: 0.9552357301 | L81: 0.9552357301 | M81: 1.905431958e+14 | N81: 0 | O81: FALSE | P81: 0 | Q81: 1.479156702e-11 | R81: 1.479156702e-11 | S81: 6.012935961e+10 | T81: 0 | U81: FALSE | V81: 0 | W81: 4.798194674e-08 | X81: 4.798194674e-08 | Y81: 19029467.44 | Z81: 0 | AA81: FALSE | AB81: 0 | AC81: 0.0001383449394 | AD81: 0.0001383449394 | AE81: 6595.653619 | AF81: 0 | AG81: FALSE | AH81: 0 | AI81: 0.4373412667 | AJ81: 0.4373412667 | AK81: 2.086414819 | AL81: 0 | AM81: TRUE | AN81: 0.9552357301 | AO81: 1382.994518 | AP81: 0 | AQ81: 0.0006597822973 | AR81: 0.0006597822973 | AS81: FALSE | AT81: 0 | AU81: 4373412.667 | AV81: 0
B82: 4 | C82: 13 | D82: 1165.706496 | F82: 73 | G82: 12 | H82: 4 | I82: 391.2383257 | J82: 1 | K82: 0.5073015235 | L82: 0.5073015235 | M82: 1.504270739e+14 | N82: 0 | O82: FALSE | P82: 0 | Q82: 5.284365381e-12 | R82: 5.284365381e-12 | S82: 4.746999009e+10 | T82: 0 | U82: FALSE | V82: 0 | W82: 1.714180371e-08 | X82: 1.714180371e-08 | Y82: 15023087.51 | Z82: 0 | AA82: FALSE | AB82: 0 | AC82: 4.942445973e-05 | AD82: 4.942445973e-05 | AE82: 5207.033868 | AF82: 0 | AG82: FALSE | AH82: 0 | AI82: 0.1562424757 | AJ82: 0.1562424757 | AK82: 1.647150268 | AL82: 0 | AM82: TRUE | AN82: 0.5073015235 | AO82: 494.0820904 | AP82: 0 | AQ82: 0.0005208746496 | AR82: 0.0005208746496 | AS82: FALSE | AT82: 0 | AU82: 1562424.757 | AV82: 0
B83: 4 | C83: 14 | D83: 1346.904665 | F83: 74 | G83: 14 | H83: 1 | I83: 393.0782662 | J83: 1 | K83: 0.8902063548 | L83: 0.8902063548 | M83: 2.787671917e+14 | N83: 0 | O83: FALSE | P83: 0 | Q83: 8.780641252e-12 | R83: 8.780641252e-12 | S83: 8.797004082e+10 | T83: 0 | U83: FALSE | V83: 0 | W83: 2.848327432e-08 | X83: 2.848327432e-08 | Y83: 27840360.16 | Z83: 0 | AA83: FALSE | AB83: 0 | AC83: 8.212498922e-05 | AD83: 8.212498922e-05 | AE83: 9649.527649 | AF83: 0 | AG83: FALSE | AH83: 0 | AI83: 0.2596166291 | AJ83: 0.2596166291 | AK83: 3.052452213 | AL83: 0 | AM83: TRUE | AN83: 0.8902063548 | AO83: 820.9798664 | AP83: 0 | AQ83: 0.0009652701443 | AR83: 0.0009652701443 | AS83: FALSE | AT83: 0 | AU83: 2596166.291 | AV83: 0
B84: 4 | C84: 15 | D84: 1541.52492 | F84: 75 | G84: 13 | H84: 3 | I84: 393.5425562 | J84: 1 | K84: 0.08439174646 | L84: 0.08439174646 | M84: 2.679240101e+13 | N84: 0 | O84: FALSE | P84: 0 | Q84: 8.210598728e-13 | R84: 8.210598728e-13 | S84: 8454827830 | T84: 0 | U84: FALSE | V84: 0 | W84: 2.663412947e-09 | X84: 2.663412947e-09 | Y84: 2675745.626 | Z84: 0 | AA84: FALSE | AB84: 0 | AC84: 7.679340411e-06 | AD84: 7.679340411e-06 | AE84: 927.4190868 | AF84: 0 | AG84: FALSE | AH84: 0 | AI84: 0.02427622201 | AJ84: 0.02427622201 | AK84: 0.2933721263 | AL84: 0 | AM84: TRUE | AN84: 0.08439174646 | AO84: 76.76815455 | AP84: 0 | AQ84: 9.277241211e-05 | AR84: 9.277241211e-05 | AS84: FALSE | AT84: 0 | AU84: 242762.2201 | AV84: 0
B85: 4 | C85: 16 | D85: 1749.567262 | F85: 76 | G85: 6 | H85: 7 | I85: 399.8065292 | J85: 1 | K85: 0.2724000645 | L85: 0.2724000645 | M85: 1.039099651e+14 | N85: 0 | O85: FALSE | P85: 0 | Q85: 2.205686201e-12 | R85: 2.205686201e-12 | S85: 3.279067317e+10 | T85: 0 | U85: FALSE | V85: 0 | W85: 7.154963212e-09 | X85: 7.154963212e-09 | Y85: 10377443.76 | Z85: 0 | AA85: FALSE | AB85: 0 | AC85: 2.062969552e-05 | AD85: 2.062969552e-05 | AE85: 3596.843931 | AF85: 0 | AG85: FALSE | AH85: 0 | AI85: 0.0652153755 | AJ85: 0.0652153755 | AK85: 1.137796027 | AL85: 0 | AM85: TRUE | AN85: 0.2724000645 | AO85: 206.2291251 | AP85: 0 | AQ85: 0.0003598026957 | AR85: 0.0003598026957 | AS85: FALSE | AT85: 0 | AU85: 652153.755 | AV85: 0
B86: 4 | C86: 17 | D86: 1971.03169 | F86: 77 | G86: 9 | H86: 6 | I86: 401.2697268 | J86: 1 | K86: 0.1539800425 | L86: 0.1539800425 | M86: 6.128588023e+13 | N86: 0 | O86: FALSE | P86: 0 | Q86: 1.194964367e-12 | R86: 1.194964367e-12 | S86: 1.93398705e+10 | T86: 0 | U86: FALSE | V86: 0 | W86: 3.876311183e-09 | X86: 3.876311183e-09 | Y86: 6120594.638 | Z86: 0 | AA86: FALSE | AB86: 0 | AC86: 1.117645431e-05 | AD86: 1.117645431e-05 | AE86: 2121.411032 | AF86: 0 | AG86: FALSE | AH86: 0 | AI86: 0.03533143105 | AJ86: 0.03533143105 | AK86: 0.6710697183 | AL86: 0 | AM86: TRUE | AN86: 0.1539800425 | AO86: 111.7277951 | AP86: 0 | AQ86: 0.0002122108778 | AR86: 0.0002122108778 | AS86: FALSE | AT86: 0 | AU86: 353314.3105 | AV86: 0
B87: 4 | C87: 18 | D87: 2205.918205 | F87: 78 | G87: 11 | H87: 5 | I87: 406.2987044 | J87: 1 | K87: 0.6596419024 | L87: 0.6596419024 | M87: 3.034546442e+14 | N87: 0 | O87: FALSE | P87: 0 | Q87: 4.429035853e-12 | R87: 4.429035853e-12 | S87: 9.576061398e+10 | T87: 0 | U87: FALSE | V87: 0 | W87: 1.436722439e-08 | X87: 1.436722439e-08 | Y87: 30305885.48 | Z87: 0 | AA87: FALSE | AB87: 0 | AC87: 4.142459659e-05 | AD87: 4.142459659e-05 | AE87: 10504.08393 | AF87: 0 | AG87: FALSE | AH87: 0 | AI87: 0.130953005 | AJ87: 0.130953005 | AK87: 3.32277552 | AL87: 0 | AM87: TRUE | AN87: 0.6596419024 | AO87: 414.1097624 | AP87: 0 | AQ87: 0.00105075388 | AR87: 0.00105075388 | AS87: FALSE | AT87: 0 | AU87: 1309530.05 | AV87: 0
B88: 4 | C88: 19 | D88: 2454.226807 | F88: 79 | G88: 14 | H88: 2 | I88: 413.211396 | J88: 1 | K88: 0.7876211364 | L88: 0.7876211364 | M88: 4.408495398e+14 | N88: 0 | O88: FALSE | P88: 0 | Q88: 4.346411548e-12 | R88: 4.346411548e-12 | S88: 1.39118064e+11 | T88: 0 | U88: FALSE | V88: 0 | W88: 1.409920174e-08 | X88: 1.409920174e-08 | Y88: 44027454.93 | Z88: 0 | AA88: FALSE | AB88: 0 | AC88: 4.065181475e-05 | AD88: 4.065181475e-05 | AE88: 15260.00889 | AF88: 0 | AG88: FALSE | AH88: 0 | AI88: 0.1285100578 | AJ88: 0.1285100578 | AK88: 4.827225706 | AL88: 0 | AM88: TRUE | AN88: 0.7876211364 | AO88: 406.3844849 | AP88: 0 | AQ88: 0.001526502801 | AR88: 0.001526502801 | AS88: FALSE | AT88: 0 | AU88: 1285100.578 | AV88: 0
B89: 4 | C89: 20 | D89: 2715.957495 | F89: 80 | G89: 7 | H89: 7 | I89: 425.4329266 | J89: 1 | K89: 0.6613893638 | L89: 0.6613893638 | M89: 5.195304661e+14 | N89: 0 | O89: FALSE | P89: 0 | Q89: 2.600697893e-12 | R89: 2.600697893e-12 | S89: 1.639472566e+11 | T89: 0 | U89: FALSE | V89: 0 | W89: 8.43633049e-09 | X89: 8.43633049e-09 | Y89: 51885285.37 | Z89: 0 | AA89: FALSE | AB89: 0 | AC89: 2.43242242e-05 | AD89: 2.43242242e-05 | AE89: 17983.54952 | AF89: 0 | AG89: FALSE | AH89: 0 | AI89: 0.07689465963 | AJ89: 0.07689465963 | AK89: 5.688768149 | AL89: 0 | AM89: TRUE | AN89: 0.6613893638 | AO89: 243.1622643 | AP89: 0 | AQ89: 0.001798946443 | AR89: 0.001798946443 | AS89: FALSE | AT89: 0 | AU89: 768946.5963 | AV89: 0
B90: 5 | C90: 1 | D90: 55.99257682 | F90: 81 | G90: 1 | H90: 8 | I90: 431.4780315 | J90: 1 | K90: 0.4216376281 | L90: 0.4216376281 | M90: 390244791051921 | N90: 0 | O90: FALSE | P90: 0 | Q90: 1.407110233e-12 | R90: 1.407110233e-12 | S90: 1.231488182e+11 | T90: 0 | U90: FALSE | V90: 0 | W90: 4.564485169e-09 | X90: 4.564485169e-09 | Y90: 38973580.32 | Z90: 0 | AA90: FALSE | AB90: 0 | AC90: 1.316064618e-05 | AD90: 1.316064618e-05 | AE90: 13508.32528 | AF90: 0 | AG90: FALSE | AH90: 0 | AI90: 0.04160393359 | AJ90: 0.04160393359 | AK90: 4.273112518 | AL90: 0 | AM90: TRUE | AN90: 0.4216376281 | AO90: 131.5631898 | AP90: 0 | AQ90: 0.001351276825 | AR90: 0.001351276825 | AS90: FALSE | AT90: 0 | AU90: 416039.3359 | AV90: 0
B91: 5 | C91: 2 | D91: 76.12570667 | F91: 82 | G91: 2 | H91: 8 | I91: 437.3918155 | J91: 1 | K91: 0.4548335373 | L91: 0.4548335373 | M91: 4.931592071e+14 | N91: 0 | O91: FALSE | P91: 0 | Q91: 1.295699609e-12 | R91: 1.295699609e-12 | S91: 1.556253278e+11 | T91: 0 | U91: FALSE | V91: 0 | W91: 4.20308339e-09 | X91: 4.20308339e-09 | Y91: 49251599.02 | Z91: 0 | AA91: FALSE | AB91: 0 | AC91: 1.211862703e-05 | AD91: 1.211862703e-05 | AE91: 17070.70827 | AF91: 0 | AG91: FALSE | AH91: 0 | AI91: 0.03830986316 | AJ91: 0.03830986316 | AK91: 5.400007455 | AL91: 0 | AM91: TRUE | AN91: 0.4548335373 | AO91: 121.1464244 | AP91: 0 | AQ91: 0.001707632294 | AR91: 0.001707632294 | AS91: FALSE | AT91: 0 | AU91: 383098.6316 | AV91: 0
B92: 5 | C92: 3 | D92: 109.6809231 | F92: 83 | G92: 10 | H92: 6 | I92: 438.7236923 | J92: 1 | K92: 0.2114321203 | L92: 0.2114321203 | M92: 2.374969339e+14 | N92: 0 | O92: FALSE | P92: 0 | Q92: 5.813938538e-13 | R92: 5.813938538e-13 | S92: 7.494646282e+10 | T92: 0 | U92: FALSE | V92: 0 | W92: 1.885967112e-09 | X92: 1.885967112e-09 | Y92: 23718717.17 | Z92: 0 | AA92: FALSE | AB92: 0 | AC92: 5.437753645e-06 | AD92: 5.437753645e-06 | AE92: 8220.957481 | AF92: 0 | AG92: FALSE | AH92: 0 | AI92: 0.01719003296 | AJ92: 0.01719003296 | AK92: 2.600550076 | AL92: 0 | AM92: TRUE | AN92: 0.2114321203 | AO92: 54.3596572 | AP92: 0 | AQ92: 0.0008223661409 | AR92: 0.0008223661409 | AS92: FALSE | AT92: 0 | AU92: 171900.3296 | AV92: 0
B93: 5 | C93: 4 | D93: 156.6582261 | F93: 84 | G93: 13 | H93: 4 | I93: 440.5198592 | J93: 1 | K93: 0.418442947 | L93: 0.418442947 | M93: 4.928943478e+14 | N93: 0 | O93: FALSE | P93: 0 | Q93: 1.097248964e-12 | R93: 1.097248964e-12 | S93: 1.555417466e+11 | T93: 0 | U93: FALSE | V93: 0 | W93: 3.559334944e-09 | X93: 3.559334944e-09 | Y93: 49225147.63 | Z93: 0 | AA93: FALSE | AB93: 0 | AC93: 1.026252602e-05 | AD93: 1.026252602e-05 | AE93: 17061.54016 | AF93: 0 | AG93: FALSE | AH93: 0 | AI93: 0.03244228629 | AJ93: 0.03244228629 | AK93: 5.397107292 | AL93: 0 | AM93: TRUE | AN93: 0.418442947 | AO93: 102.5915172 | AP93: 0 | AQ93: 0.001706715182 | AR93: 0.001706715182 | AS93: FALSE | AT93: 0 | AU93: 324422.8629 | AV93: 0
B94: 5 | C94: 5 | D94: 217.0576156 | F94: 85 | G94: 14 | H94: 3 | I94: 446.7666125 | J94: 1 | K94: 0.1933487654 | L94: 0.1933487654 | M94: 2.682619607e+14 | N94: 0 | O94: FALSE | P94: 0 | Q94: 4.304376237e-13 | R94: 4.304376237e-13 | S94: 8.465492476e+10 | T94: 0 | U94: FALSE | V94: 0 | W94: 1.396284458e-09 | X94: 1.396284458e-09 | Y94: 26791207.25 | Z94: 0 | AA94: FALSE | AB94: 0 | AC94: 4.025866014e-06 | AD94: 4.025866014e-06 | AE94: 9285.889031 | AF94: 0 | AG94: FALSE | AH94: 0 | AI94: 0.01272672026 | AJ94: 0.01272672026 | AK94: 2.937421764 | AL94: 0 | AM94: TRUE | AN94: 0.1933487654 | AO94: 40.24542316 | AP94: 0 | AQ94: 0.0009288943222 | AR94: 0.0009288943222 | AS94: FALSE | AT94: 0 | AU94: 127267.2026 | AV94: 0
B95: 5 | C95: 6 | D95: 290.8790917 | F95: 86 | G95: 3 | H95: 8 | I95: 447.2481222 | J95: 1 | K95: 0.06900536227 | L95: 0.06900536227 | M95: 9.694819028e+13 | N95: 0 | O95: FALSE | P95: 0 | Q95: 1.517093987e-13 | R95: 1.517093987e-13 | S95: 3.059375892e+10 | T95: 0 | U95: FALSE | V95: 0 | W95: 4.921258365e-10 | X95: 4.921258365e-10 | Y95: 9682174.285 | Z95: 0 | AA95: FALSE | AB95: 0 | AC95: 1.418931987e-06 | AD95: 1.418931987e-06 | AE95: 3355.862062 | AF95: 0 | AG95: FALSE | AH95: 0 | AI95: 0.004485581585 | AJ95: 0.004485581585 | AK95: 1.061565804 | AL95: 0 | AM95: TRUE | AN95: 0.06900536227 | AO95: 14.18465444 | AP95: 0 | AQ95: 0.0003356965828 | AR95: 0.0003356965828 | AS95: FALSE | AT95: 0 | AU95: 44855.81585 | AV95: 0
B96: 5 | C96: 7 | D96: 378.1226544 | F96: 87 | G96: 15 | H96: 1 | I96: 450.2448451 | J96: 1 | K96: 0.5717409999 | L96: 0.5717409999 | M96: 868113221576297 | N96: 0 | O96: FALSE | P96: 0 | Q96: 1.163077934e-12 | R96: 1.163077934e-12 | S96: 2.739488642e+11 | T96: 0 | U96: FALSE | V96: 0 | W96: 3.772875682e-09 | X96: 3.772875682e-09 | Y96: 86698096.02 | Z96: 0 | AA96: FALSE | AB96: 0 | AC96: 1.087822177e-05 | AD96: 1.087822177e-05 | AE96: 30049.74324 | AF96: 0 | AG96: FALSE | AH96: 0 | AI96: 0.03438864702 | AJ96: 0.03438864702 | AK96: 9.505688632 | AL96: 0 | AM96: TRUE | AN96: 0.5717409999 | AO96: 108.7464502 | AP96: 0 | AQ96: 0.00300596268 | AR96: 0.00300596268 | AS96: FALSE | AT96: 0 | AU96: 343886.4702 | AV96: 0
B97: 5 | C97: 8 | D97: 478.7883037 | F97: 88 | G97: 12 | H97: 5 | I97: 451.6377152 | J97: 1 | K97: 0.346528547 | L97: 0.346528547 | M97: 5.453970466e+14 | N97: 0 | O97: FALSE | P97: 0 | Q97: 6.800671022e-13 | R97: 6.800671022e-13 | S97: 1.72109925e+11 | T97: 0 | U97: FALSE | V97: 0 | W97: 2.206050478e-09 | X97: 2.206050478e-09 | Y97: 54468569.7 | Z97: 0 | AA97: FALSE | AB97: 0 | AC97: 6.360640622e-06 | AD97: 6.360640622e-06 | AE97: 18878.92133 | AF97: 0 | AG97: FALSE | AH97: 0 | AI97: 0.02010749825 | AJ97: 0.02010749825 | AK97: 5.972002703 | AL97: 0 | AM97: TRUE | AN97: 0.346528547 | AO97: 63.58549252 | AP97: 0 | AQ97: 0.001888513073 | AR97: 0.001888513073 | AS97: FALSE | AT97: 0 | AU97: 201074.9825 | AV97: 0
B98: 5 | C98: 9 | D98: 592.8760395 | F98: 89 | G98: 8 | H98: 7 | I98: 455.0018467 | J98: 1 | K98: 0.9858612071 | L98: 0.9858612071 | M98: 1.691461275e+15 | N98: 0 | O98: FALSE | P98: 0 | Q98: 1.774826929e-12 | R98: 1.774826929e-12 | S98: 5.337712681e+11 | T98: 0 | U98: FALSE | V98: 0 | W98: 5.757310979e-09 | X98: 5.757310979e-09 | Y98: 168925513.9 | Z98: 0 | AA98: FALSE | AB98: 0 | AC98: 1.659988584e-05 | AD98: 1.659988584e-05 | AE98: 58549.93998 | AF98: 0 | AG98: FALSE | AH98: 0 | AI98: 0.05247618838 | AJ98: 0.05247618838 | AK98: 18.52120647 | AL98: 0 | AM98: TRUE | AN98: 0.9858612071 | AO98: 165.9442782 | AP98: 0 | AQ98: 0.005856919745 | AR98: 0.005856919745 | AS98: FALSE | AT98: 0 | AU98: 524761.8838 | AV98: 0
B99: 5 | C99: 10 | D99: 720.3858619 | F99: 90 | G99: 4 | H99: 8 | I99: 461.0469516 | J99: 1 | K99: 0.3803953209 | L99: 0.3803953209 | M99: 7.60897079e+14 | N99: 0 | O99: FALSE | P99: 0 | Q99: 5.873959242e-13 | R99: 5.873959242e-13 | S99: 2.401148668e+11 | T99: 0 | U99: FALSE | V99: 0 | W99: 1.905437059e-09 | X99: 1.905437059e-09 | Y99: 75990465.73 | Z99: 0 | AA99: FALSE | AB99: 0 | AC99: 5.493890771e-06 | AD99: 5.493890771e-06 | AE99: 26338.45596 | AF99: 0 | AG99: FALSE | AH99: 0 | AI99: 0.01736749577 | AJ99: 0.01736749577 | AK99: 8.331690537 | AL99: 0 | AM99: TRUE | AN99: 0.3803953209 | AO99: 54.92084388 | AP99: 0 | AQ99: 0.002634711886 | AR99: 0.002634711886 | AS99: FALSE | AT99: 0 | AU99: 173674.9577 | AV99: 0
B100: 5 | C100: 11 | D100: 861.3177708 | F100: 91 | G100: 15 | H100: 2 | I100: 470.3779749 | J100: 1 | K100: 0.5058549556 | L100: 0.5058549556 | M100: 1.2772934e+15 | N100: 0 | O100: FALSE | P100: 0 | Q100: 6.187965205e-13 | R100: 6.187965205e-13 | S100: 4.030730872e+11 | T100: 0 | U100: FALSE | V100: 0 | W100: 2.007296567e-09 | X100: 2.007296567e-09 | Y100: 127562745.4 | Z100: 0 | AA100: FALSE | AB100: 0 | AC100: 5.787579302e-06 | AD100: 5.787579302e-06 | AE100: 44213.51705 | AF100: 0 | AG100: FALSE | AH100: 0 | AI100: 0.01829591509 | AJ100: 0.01829591509 | AK100: 13.98614035 | AL100: 0 | AM100: TRUE | AN100: 0.5058549556 | AO100: 57.85676355 | AP100: 0 | AQ100: 0.004422805917 | AR100: 0.004422805917 | AS100: FALSE | AT100: 0 | AU100: 182959.1509 | AV100: 0
B101: 5 | C101: 12 | D101: 1015.671766 | F101: 92 | G101: 5 | H101: 8 | I101: 478.7883037 | J101: 1 | K101: 0.4793495485 | L101: 0.4793495485 | M101: 1.487314744e+15 | N101: 0 | O101: FALSE | P101: 0 | Q101: 4.771866394e-13 | R101: 4.771866394e-13 | S101: 4.693491293e+11 | T101: 0 | U101: FALSE | V101: 0 | W101: 1.547932271e-09 | X101: 1.547932271e-09 | Y101: 148537487.1 | Z101: 0 | AA101: FALSE | AB101: 0 | AC101: 4.463107704e-06 | AD101: 4.463107704e-06 | AE101: 51483.40683 | AF101: 0 | AG101: FALSE | AH101: 0 | AI101: 0.01410894526 | AJ101: 0.01410894526 | AK101: 16.28583749 | AL101: 0 | AM101: TRUE | AN101: 0.4793495485 | AO101: 44.61640241 | AP101: 0 | AQ101: 0.005150034007 | AR101: 0.005150034007 | AS101: FALSE | AT101: 0 | AU101: 141089.4526 | AV101: 0
B102: 5 | C102: 13 | D102: 1183.447848 | F102: 93 | G102: 11 | H102: 6 | I102: 480.1201805 | J102: 1 | K102: 0.3820584036 | L102: 0.3820584036 | M102: 1224354423019057 | N102: 0 | O102: FALSE | P102: 0 | Q102: 3.682467072e-13 | R102: 3.682467072e-13 | S102: 3.863672333e+11 | T102: 0 | U102: FALSE | V102: 0 | W102: 1.1945451e-09 | X102: 1.1945451e-09 | Y102: 122275752.4 | Z102: 0 | AA102: FALSE | AB102: 0 | AC102: 3.44419684e-06 | AD102: 3.44419684e-06 | AE102: 42381.0341 | AF102: 0 | AG102: FALSE | AH102: 0 | AI102: 0.01088792561 | AJ102: 0.01088792561 | AK102: 13.40646776 | AL102: 0 | AM102: TRUE | AN102: 0.3820584036 | AO102: 34.43064394 | AP102: 0 | AQ102: 0.004239497351 | AR102: 0.004239497351 | AS102: FALSE | AT102: 0 | AU102: 108879.2561 | AV102: 0
B103: 5 | C103: 14 | D103: 1364.646017 | F103: 94 | G103: 9 | H103: 7 | I103: 488.5132895 | J103: 1 | K103: 0.4020895818 | L103: 0.4020895818 | M103: 1576188061600960 | N103: 0 | O103: FALSE | P103: 0 | Q103: 3.168284121e-13 | R103: 3.168284121e-13 | S103: 4.973947159e+11 | T103: 0 | U103: FALSE | V103: 0 | W103: 1.027750743e-09 | X103: 1.027750743e-09 | Y103: 157413227.4 | Z103: 0 | AA103: FALSE | AB103: 0 | AC103: 2.963283567e-06 | AD103: 2.963283567e-06 | AE103: 54559.75716 | AF103: 0 | AG103: FALSE | AH103: 0 | AI103: 0.009367644343 | AJ103: 0.009367644343 | AK103: 17.25898485 | AL103: 0 | AM103: TRUE | AN103: 0.4020895818 | AO103: 29.62309244 | AP103: 0 | AQ103: 0.005457770222 | AR103: 0.005457770222 | AS103: FALSE | AT103: 0 | AU103: 93676.44343 | AV103: 0
B104: 5 | C104: 15 | D104: 1559.266272 | F104: 95 | G104: 14 | H104: 4 | I104: 493.7439154 | J104: 1 | K104: 0.9586888596 | L104: 0.9586888596 | M104: 4253446284329950 | N104: 0 | O104: FALSE | P104: 0 | Q104: 6.674226209e-13 | R104: 6.674226209e-13 | S104: 1.342252081e+12 | T104: 0 | U104: FALSE | V104: 0 | W104: 2.165033402e-09 | X104: 2.165033402e-09 | Y104: 424789860.6 | Z104: 0 | AA104: FALSE | AB104: 0 | AC104: 6.24237729e-06 | AD104: 6.24237729e-06 | AE104: 147233.0631 | AF104: 0 | AG104: FALSE | AH104: 0 | AI104: 0.01973363973 | AJ104: 0.01973363973 | AK104: 46.57449626 | AL104: 0 | AM104: TRUE | AN104: 0.9586888596 | AO104: 62.40324806 | AP104: 0 | AQ104: 0.0147281489 | AR104: 0.0147281489 | AS104: FALSE | AT104: 0 | AU104: 197336.3973 | AV104: 0
